Workbook

Sheet 6.1
AH1: Sorted counties for | AK1: Counties | AL1: Population | AM1: Population (%) | AN1: Population (50%) | AO1: Population (50-80%)
I2: Florida | AH2: chart 5
A3: County Name | B3: County Code | C3: State | D3: Young | E3: Old | F3: Total | G3: Young (%) | H3: Old (%) | I3: Young (%) | J3: Old (%) | R3: FL | U3: ELDERLY VS. YOUNG | Y3: FLORIDA VS. THE U.S. | AK3: 0.03104625893 | AL3: 9818605 | AM3: 3.142241912 | AN3: 3.142241912
A4: Aleutians East Borough | B4: AK013 | C4: AK | D4: 316 | E4: 155 | F4: 3141 | G4: =D4/$F4*100 -> 10.06049029 | H4: =E4/$F4*100 -> 4.934734161 | I4: =IF($C4=$R$3,G4,NA()) ->  | J4: =IF($C4=$R$3,H4,NA()) ->  | L4: =+G4 -> 10.06049029 | M4: 0 | N4: 0 | O4: =+H4 -> 4.934734161 | R4: AK | U4: County level, Census 2010 | AK4: 0.06209251785 | AL4: 5194675 | AM4: 4.804690448 | AN4: 4.804690448
A5: Aleutians West Census Area | B5: AK016 | C5: AK | D5: 658 | E5: 193 | F5: 5561 | G5: =D5/$F5*100 -> 11.83240424 | H5: 3.470598813 | L5: 11.83240424 | M5: 0 | N5: 0 | O5: 3.470598813 | R5: AL | T5: 1 | AC5: 2 | AK5: 0.09313877678 | AL5: 4092459 | AM5: 6.114397498 | AN5: 6.114397498
A6: Anchorage Municipality | B6: AK020 | C6: AK | D6: 63022 | E6: 21139 | F6: 291826 | G6: 21.59574541 | H6: 7.243700013 | L6: 21.59574541 | M6: 0 | N6: 0 | O6: 7.243700013 | R6: AR | AK6: 0.1241850357 | AL6: 3817117 | AM6: 7.335987023 | AN6: 7.335987023
A7: Bethel Census Area | B7: AK050 | C7: AK | D7: 5227 | E7: 1041 | F7: 17013 | G7: 30.72356433 | H7: 6.118850291 | L7: 30.72356433 | M7: 0 | N7: 0 | O7: 6.118850291 | R7: AZ | AK7: 0.1552312946 | AL7: 3095313 | AM7: 8.326578074 | AN7: 8.326578074
A8: Bristol Bay Borough | B8: AK060 | C8: AK | D8: 179 | E8: 83 | F8: 997 | G8: 17.95386158 | H8: 8.324974925 | L8: 17.95386158 | M8: 0 | N8: 0 | O8: 8.324974925 | R8: CA | AK8: 0.1862775536 | AL8: 3010232 | AM8: 9.289940706 | AN8: 9.289940706
A9: Denali Borough | B9: AK068 | C9: AK | D9: 346 | E9: 137 | F9: 1826 | G9: 18.94852136 | H9: 7.502738226 | L9: 18.94852136 | M9: 0 | N9: 0 | O9: 7.502738226 | R9: CO | AK9: 0.2173238125 | AL9: 2504700 | AM9: 10.09151825 | AN9: 10.09151825
A10: Dillingham Census Area | B10: AK070 | C10: AK | D10: 1313 | E10: 367 | F10: 4847 | G10: 27.08892098 | H10: 7.571693831 | L10: 27.08892098 | M10: 0 | N10: 0 | O10: 7.571693831 | R10: CT | AK10: 0.2483700714 | AL10: 2496435 | AM10: 10.89045076 | AN10: 10.89045076
A11: Fairbanks North Star Borough | B11: AK090 | C11: AK | D11: 21205 | E11: 6375 | F11: 97581 | G11: 21.73066478 | H11: 6.533034095 | L11: 21.73066478 | M11: 0 | N11: 0 | O11: 6.533034095 | R11: DC | AK11: 0.2794163303 | AL11: 2368139 | AM11: 11.64832478 | AN11: 11.64832478
A12: Haines Borough | B12: AK100 | C12: AK | D12: 404 | E12: 345 | F12: 2508 | G12: 16.10845295 | H12: 13.75598086 | L12: 16.10845295 | M12: 0 | N12: 0 | O12: 13.75598086 | R12: DE | AK12: 0.3104625893 | AL12: 2230722 | AM12: 12.36222132 | AN12: 12.36222132
A13: Hoonah-Angoon Census Area | B13: AK105 | C13: AK | D13: 344 | E13: 288 | F13: 2150 | G13: 16 | H13: 13.39534884 | L13: 16 | M13: 0 | N13: 0 | O13: 13.39534884 | R13: FL | AK13: 0.3415088482 | AL13: 2189641 | AM13: 13.06297073 | AN13: 13.06297073
A14: Juneau City and Borough | B14: AK110 | C14: AK | D14: 5965 | E14: 2635 | F14: 31275 | G14: 19.07274181 | H14: 8.425259792 | L14: 19.07274181 | M14: 0 | N14: 0 | O14: 8.425259792 | R14: GA | AK14: 0.3725551071 | AL14: 2035210 | AM14: 13.7142977 | AN14: 13.7142977
A15: Kenai Peninsula Borough | B15: AK122 | C15: AK | D15: 10660 | E15: 6276 | F15: 55400 | G15: 19.24187726 | H15: 11.32851986 | L15: 19.24187726 | M15: 0 | N15: 0 | O15: 11.32851986 | R15: HI | AK15: 0.403601366 | AL15: 1951269 | AM15: 14.33876107 | AN15: 14.33876107
A16: Ketchikan Gateway Borough | B16: AK130 | C16: AK | D16: 2636 | E16: 1367 | F16: 13477 | G16: 19.55924909 | H16: 10.14320695 | L16: 19.55924909 | M16: 0 | N16: 0 | O16: 10.14320695 | R16: IA | AK16: 0.434647625 | AL16: 1931249 | AM16: 14.95681746 | AN16: 14.95681746
A17: Kodiak Island Borough | B17: AK150 | C17: AK | D17: 3253 | E17: 915 | F17: 13592 | G17: 23.933196 | H17: 6.731901118 | L17: 23.933196 | M17: 0 | N17: 0 | O17: 6.731901118 | R17: ID | AK17: 0.4656938839 | AL17: 1820584 | AM17: 15.5394578 | AN17: 15.5394578
A18: Lake and Peninsula Borough | B18: AK164 | C18: AK | D18: 398 | E18: 127 | F18: 1631 | G18: 24.40220723 | H18: 7.786633967 | L18: 24.40220723 | M18: 0 | N18: 0 | O18: 7.786633967 | R18: IL | U18: (encoding total population to bubble size) | AF18: Centers for | AK18: 0.4967401428 | AL18: 1809034 | AM18: 16.1184018 | AN18: 16.1184018
A19: Matanuska-Susitna Borough | B19: AK170 | C19: AK | D19: 21171 | E19: 7069 | F19: 88995 | G19: 23.78897691 | H19: 7.943142873 | L19: 23.78897691 | M19: 0 | N19: 0 | O19: 7.943142873 | R19: IN | T19: 3 | AC19: 4 | AF19: charts 1 and 2 | AK19: 0.5277864017 | AL19: 1781642 | AM19: 16.68857956 | AN19: 16.68857956
A20: Nome Census Area | B20: AK180 | C20: AK | D20: 2772 | E20: 603 | F20: 9492 | G20: 29.20353982 | H20: 6.352718078 | L20: 29.20353982 | M20: 0 | N20: 0 | O20: 6.352718078 | R20: KS | AK20: 0.5588326607 | AL20: 1748066 | AM20: 17.24801201 | AN20: 17.24801201
A21: North Slope Borough | B21: AK185 | C21: AK | D21: 1920 | E21: 402 | F21: 9430 | G21: 20.36055143 | H21: 4.262990456 | L21: 20.36055143 | M21: 0 | N21: 0 | O21: 4.262990456 | R21: KY | AF21: 19.82919348 | AG21: 13.06039258 | AK21: 0.5898789196 | AL21: 1714773 | AM21: 17.79678972 | AN21: 17.79678972
A22: Northwest Arctic Borough | B22: AK188 | C22: AK | D22: 2269 | E22: 455 | F22: 7523 | G22: 30.16084009 | H22: 6.048119101 | L22: 30.16084009 | M22: 0 | N22: 0 | O22: 6.048119101 | R22: LA | AF22: 17.47010182 | AG22: 17.33710045 | AK22: 0.6209251785 | AL22: 1585873 | AM22: 18.30431565 | AN22: 18.30431565
A23: Petersburg Census Area | B23: AK195 | C23: AK | D23: 733 | E23: 438 | F23: 3815 | G23: 19.21363041 | H23: 11.48099607 | L23: 19.21363041 | M23: 0 | N23: 0 | O23: 11.48099607 | R23: MA | AK23: 0.6519714374 | AL23: 1526006 | AM23: 18.79268238 | AN23: 18.79268238
A24: Prince of Wales-Hyder Census Area | B24: AK198 | C24: AK | D24: 1194 | E24: 559 | F24: 5559 | G24: 21.47868322 | H24: 10.05576543 | L24: 21.47868322 | M24: 0 | N24: 0 | O24: 10.05576543 | R24: MD | AK24: 0.6830176964 | AL24: 1510271 | AM24: 19.27601344 | AN24: 19.27601344
A25: Sitka City and Borough | B25: AK220 | C25: AK | D25: 1731 | E25: 1008 | F25: 8881 | G25: 19.49104831 | H25: 11.35007319 | L25: 19.49104831 | M25: 0 | N25: 0 | O25: 11.35007319 | R25: ME | AF25: =_xlfn.PERCENTILE.EXC(G4:G3224,0.25) -> 17.48002863 | AG25: 5 | AK25: 0.7140639553 | AL25: 1503085 | AM25: 19.75704478 | AN25: 19.75704478
A26: Skagway Municipality | B26: AK230 | C26: AK | D26: 117 | E26: 88 | F26: 968 | G26: 12.08677686 | H26: 9.090909091 | L26: 12.08677686 | M26: 0 | N26: 0 | O26: 9.090909091 | R26: MI | AF26: =_xlfn.PERCENTILE.EXC(G4:G3224,0.75) -> 20.74407806 | AG26: 5 | AK26: 0.7451102142 | AL26: 1493350 | AM26: 20.23496063 | AN26: 20.23496063
A27: Southeast Fairbanks Census Area | B27: AK240 | C27: AK | D27: 1524 | E27: 664 | F27: 7029 | G27: 21.68160478 | H27: 9.446578461 | L27: 21.68160478 | M27: 0 | N27: 0 | O27: 9.446578461 | R27: MN | AF27: =_xlfn.PERCENTILE.EXC(H4:H3224,0.25) -> 13.08713439 | AG27: 5 | AK27: 0.7761564731 | AL27: 1418788 | AM27: 20.68901445 | AN27: 20.68901445
A28: Valdez-Cordova Census Area | B28: AK261 | C28: AK | D28: 1925 | E28: 798 | F28: 9636 | G28: 19.97716895 | H28: 8.281444583 | L28: 19.97716895 | M28: 0 | N28: 0 | O28: 8.281444583 | R28: MO | AF28: =_xlfn.PERCENTILE.EXC(H4:H3224,0.75) -> 18.13512584 | AG28: 5 | AK28: 0.8072027321 | AL28: 1385108 | AM28: 21.13228968 | AN28: 21.13228968
A29: Wade Hampton Census Area | B29: AK270 | C29: AK | D29: 2593 | E29: 404 | F29: 7459 | G29: 34.76337311 | H29: 5.41627564 | L29: 34.76337311 | M29: 0 | N29: 0 | O29: 5.41627564 | R29: MS | AK29: 0.838248991 | AL29: 1339532 | AM29: 21.56097926 | AN29: 21.56097926
A30: Wrangell City and Borough | B30: AK275 | C30: AK | D30: 420 | E30: 374 | F30: 2369 | G30: 17.72899958 | H30: 15.78725201 | L30: 17.72899958 | M30: 0 | N30: 0 | O30: 15.78725201 | R30: MT | AK30: 0.8692952499 | AL30: 1320134 | AM30: 21.9834609 | AN30: 21.9834609
A31: Yakutat City and Borough | B31: AK282 | C31: AK | D31: 123 | E31: 64 | F31: 662 | G31: 18.58006042 | H31: 9.667673716 | L31: 18.58006042 | M31: 0 | N31: 0 | O31: 9.667673716 | R31: NC | AK31: 0.9003415088 | AL31: 1280122 | AM31: 22.39313753 | AN31: 22.39313753
A32: Yukon-Koyukuk Census Area | B32: AK290 | C32: AK | D32: 1281 | E32: 569 | F32: 5588 | G32: 22.92412312 | H32: 10.182534 | L32: 22.92412312 | M32: 0 | N32: 0 | O32: 10.182534 | R32: ND | T32: 5 | U32: Half of the U.S. population lives in 5% of the counties, while 80% lives in 20% | AK32: 0.9313877678 | AL32: 1229226 | AM32: 22.78652595 | AN32: 22.78652595
A33: Autauga County | B33: AL001 | C33: AL | D33: 11860 | E33: 6546 | F33: 54571 | G33: 21.73315497 | H33: 11.99538216 | L33: 21.73315497 | M33: 0 | N33: 0 | O33: 11.99538216 | R33: NE | AK33: 0.9624340267 | AL33: 1223348 | AM33: 23.17803323 | AN33: 23.17803323
A34: Baldwin County | B34: AL003 | C34: AL | D34: 34683 | E34: 30568 | F34: 182265 | G34: 19.02888651 | H34: 16.77118481 | L34: 19.02888651 | M34: 0 | N34: 0 | O34: 16.77118481 | R34: NH | AK34: 0.9934802856 | AL34: 1202362 | AM34: 23.56282437 | AN34: 23.56282437
A35: Barbour County | B35: AL005 | C35: AL | D35: 4943 | E35: 3909 | F35: 27457 | G35: 18.00269512 | H35: 14.23680664 | L35: 18.00269512 | M35: 0 | N35: 0 | O35: 14.23680664 | R35: NJ | AK35: 1.024526545 | AL35: 1163414 | AM35: 23.93515102 | AN35: 23.93515102
A36: Bibb County | B36: AL007 | C36: AL | D36: 4223 | E36: 2906 | F36: 22915 | G36: 18.42897665 | H36: 12.68164957 | L36: 18.42897665 | M36: 0 | N36: 0 | O36: 12.68164957 | R36: NM | AK36: 1.055572803 | AL36: 1152425 | AM36: 24.30396086 | AN36: 24.30396086
A37: Blount County | B37: AL009 | C37: AL | D37: 11580 | E37: 8439 | F37: 57322 | G37: 20.20166777 | H37: 14.72209623 | L37: 20.20166777 | M37: 0 | N37: 0 | O37: 14.72209623 | R37: NV | AK37: 1.086619062 | AL37: 1145956 | AM37: 24.67070043 | AN37: 24.67070043
A38: Bullock County | B38: AL011 | C38: AL | D38: 1987 | E38: 1469 | F38: 10914 | G38: 18.20597398 | H38: 13.45977643 | L38: 18.20597398 | M38: 0 | N38: 0 | O38: 13.45977643 | R38: NY | AK38: 1.117665321 | AL38: 1081726 | AM38: 25.01688451 | AN38: 25.01688451
A39: Butler County | B39: AL013 | C39: AL | D39: 4188 | E39: 3489 | F39: 20947 | G39: 19.99331647 | H39: 16.6563231 | L39: 19.99331647 | M39: 0 | N39: 0 | O39: 16.6563231 | R39: OH | AK39: 1.14871158 | AL39: 1049025 | AM39: 25.35260331 | AN39: 25.35260331
A40: Calhoun County | B40: AL015 | C40: AL | D40: 22444 | E40: 16990 | F40: 118572 | G40: 18.92858348 | H40: 14.32884661 | L40: 18.92858348 | M40: 0 | N40: 0 | O40: 14.32884661 | R40: OK | AK40: 1.179757839 | AL40: 1029655 | AM40: 25.68212315 | AN40: 25.68212315
A41: Chambers County | B41: AL017 | C41: AL | D41: 6235 | E41: 5706 | F41: 34215 | G41: 18.22300161 | H41: 16.6768961 | L41: 18.22300161 | M41: 0 | N41: 0 | O41: 16.6768961 | R41: OR | AK41: 1.210804098 | AL41: 1024266 | AM41: 26.00991834 | AN41: 26.00991834
A42: Cherokee County | B42: AL019 | C42: AL | D42: 4544 | E42: 4651 | F42: 25989 | G42: 17.48432029 | H42: 17.89603294 | L42: 17.48432029 | M42: 0 | N42: 0 | O42: 17.89603294 | R42: PA | U42: Source: U.S. Census Bureau | AK42: 1.241850357 | AL42: 998954 | AM42: 26.32961296 | AN42: 26.32961296
A43: Chilton County | B43: AL021 | C43: AL | D43: 9069 | E43: 5921 | F43: 43643 | G43: 20.77996471 | H43: 13.56689503 | L43: 20.77996471 | M43: 0 | N43: 0 | O43: 13.56689503 | R43: PR | AK43: 1.272896616 | AL43: 980263 | AM43: 26.6433259 | AN43: 26.6433259
A44: Choctaw County | B44: AL023 | C44: AL | D44: 2567 | E44: 2519 | F44: 13859 | G44: 18.5222599 | H44: 18.17591457 | L44: 18.5222599 | M44: 0 | N44: 0 | O44: 18.17591457 | R44: RI | AK44: 1.303942875 | AL44: 971777 | AM44: 26.95432308 | AN44: 26.95432308
A45: Clarke County | B45: AL025 | C45: AL | D45: 5114 | E45: 4174 | F45: 25833 | G45: 19.79638447 | H45: 16.15762784 | L45: 19.79638447 | M45: 0 | N45: 0 | O45: 16.15762784 | R45: SC | AK45: 1.334989134 | AL45: 953207 | AM45: 27.25937731 | AN45: 27.25937731
A46: Clay County | B46: AL027 | C46: AL | D46: 2574 | E46: 2449 | F46: 13932 | G46: 18.4754522 | H46: 17.57823715 | L46: 18.4754522 | M46: 0 | N46: 0 | O46: 17.57823715 | R46: SD | AK46: 1.366035393 | AL46: 949113 | AM46: 27.56312134 | AN46: 27.56312134
A47: Cleburne County | B47: AL029 | C47: AL | D47: 2877 | E47: 2361 | F47: 14972 | G47: 19.21586962 | H47: 15.76943628 | L47: 19.21586962 | M47: 0 | N47: 0 | O47: 15.76943628 | R47: TN | AK47: 1.397081652 | AL47: 947735 | AM47: 27.86642436 | AN47: 27.86642436
A48: Coffee County | B48: AL031 | C48: AL | D48: 9947 | E48: 7210 | F48: 49948 | G48: 19.9147113 | H48: 14.43501241 | L48: 19.9147113 | M48: 0 | N48: 0 | O48: 14.43501241 | R48: TX | AK48: 1.428127911 | AL48: 930450 | AM48: 28.16419569 | AN48: 28.16419569
A49: Colbert County | B49: AL033 | C49: AL | D49: 9853 | E49: 9463 | F49: 54428 | G49: 18.10281473 | H49: 17.38627177 | L49: 18.10281473 | M49: 0 | N49: 0 | O49: 17.38627177 | R49: UT | AK49: 1.45917417 | AL49: 927644 | AM49: 28.46106901 | AN49: 28.46106901
A50: Conecuh County | B50: AL035 | C50: AL | D50: 2445 | E50: 2362 | F50: 13228 | G50: 18.48351981 | H50: 17.8560629 | L50: 18.48351981 | M50: 0 | N50: 0 | O50: 17.8560629 | R50: VA | AK50: 1.490220428 | AL50: 920581 | AM50: 28.75568196 | AN50: 28.75568196
A51: Coosa County | B51: AL037 | C51: AL | D51: 1886 | E51: 1970 | F51: 11539 | G51: 16.34457059 | H51: 17.07253661 | L51: 16.34457059 | M51: 0 | N51: 0 | O51: 17.07253661 | R51: VT | AK51: 1.521266687 | AL51: 919628 | AM51: 29.04998992 | AN51: 29.04998992
A52: Covington County | B52: AL039 | C52: AL | D52: 7020 | E52: 6939 | F52: 37765 | G52: 18.58864028 | H52: 18.37415596 | L52: 18.58864028 | M52: 0 | N52: 0 | O52: 18.37415596 | R52: WA | AK52: 1.552312946 | AL52: 919040 | AM52: 29.34410971 | AN52: 29.34410971
A53: Crenshaw County | B53: AL041 | C53: AL | D53: 2696 | E53: 2210 | F53: 13906 | G53: 19.38731483 | H53: 15.89242054 | L53: 19.38731483 | M53: 0 | N53: 0 | O53: 15.89242054 | R53: WI | AK53: 1.583359205 | AL53: 916924 | AM53: 29.63755231 | AN53: 29.63755231
A54: Cullman County | B54: AL043 | C54: AL | D54: 15350 | E54: 12810 | F54: 80406 | G54: 19.09061513 | H54: 15.93164689 | L54: 19.09061513 | M54: 0 | N54: 0 | O54: 15.93164689 | R54: WV | AK54: 1.614405464 | AL54: 916829 | AM54: 29.93096451 | AN54: 29.93096451
A55: Dale County | B55: AL045 | C55: AL | D55: 10499 | E55: 6759 | F55: 50251 | G55: 20.89311655 | H55: 13.4504786 | L55: 20.89311655 | M55: 0 | N55: 0 | O55: 13.4504786 | R55: WY | AK55: 1.645451723 | AL55: 916542 | AM55: 30.22428487 | AN55: 30.22428487
A56: Dallas County | B56: AL047 | C56: AL | D56: 9565 | E56: 6165 | F56: 43820 | G56: 21.82793245 | H56: 14.0689183 | L56: 21.82793245 | M56: 0 | N56: 0 | O56: 14.0689183 | AK56: 1.676497982 | AL56: 905116 | AM56: 30.51394856 | AN56: 30.51394856
A57: DeKalb County | B57: AL049 | C57: AL | D57: 15288 | E57: 9875 | F57: 71109 | G57: 21.49938826 | H57: 13.88713102 | L57: 21.49938826 | M57: 0 | N57: 0 | O57: 13.88713102 | AK57: 1.707544241 | AL57: 903393 | AM57: 30.80306085 | AN57: 30.80306085
A58: Elmore County | B58: AL051 | C58: AL | D58: 15321 | E58: 9436 | F58: 79303 | G58: 19.31957177 | H58: 11.89866714 | L58: 19.31957177 | M58: 0 | N58: 0 | O58: 11.89866714 | AK58: 1.7385905 | AL58: 900993 | AM58: 31.09140507 | AN58: 31.09140507
A59: Escambia County | B59: AL053 | C59: AL | D59: 7155 | E59: 5812 | F59: 38319 | G59: 18.67219917 | H59: 15.16741042 | L59: 18.67219917 | M59: 0 | N59: 0 | O59: 15.16741042 | AK59: 1.769636759 | AL59: 894014 | AM59: 31.3775158 | AN59: 31.3775158
A60: Etowah County | B60: AL055 | C60: AL | D60: 19585 | E60: 16508 | F60: 104430 | G60: 18.75418941 | H60: 15.80771809 | L60: 18.75418941 | M60: 0 | N60: 0 | O60: 15.80771809 | AK60: 1.800683018 | AL60: 864263 | AM60: 31.65410534 | AN60: 31.65410534
A61: Fayette County | B61: AL057 | C61: AL | D61: 3142 | E61: 3084 | F61: 17241 | G61: 18.22400093 | H61: 17.88759353 | L61: 18.22400093 | M61: 0 | N61: 0 | O61: 17.88759353 | AK61: 1.831729277 | AL61: 863420 | AM61: 31.93042509 | AN61: 31.93042509
A62: Franklin County | B62: AL059 | C62: AL | D62: 6520 | E62: 4825 | F62: 31704 | G62: 20.56522836 | H62: 15.21889982 | L62: 20.56522836 | M62: 0 | N62: 0 | O62: 15.21889982 | AK62: 1.862775536 | AL62: 862477 | AM62: 32.20644306 | AN62: 32.20644306
A63: Geneva County | B63: AL061 | C63: AL | D63: 4896 | E63: 4674 | F63: 26790 | G63: 18.27547592 | H63: 17.44680851 | L63: 18.27547592 | M63: 0 | N63: 0 | O63: 17.44680851 | AK63: 1.893821794 | AL63: 840978 | AM63: 32.47558071 | AN63: 32.47558071
A64: Greene County | B64: AL063 | C64: AL | D64: 1771 | E64: 1454 | F64: 9045 | G64: 19.57987839 | H64: 16.07517966 | L64: 19.57987839 | M64: 0 | N64: 0 | O64: 16.07517966 | AK64: 1.924868053 | AL64: 839631 | AM64: 32.74428729 | AN64: 32.74428729
A65: Hale County | B65: AL065 | C65: AL | D65: 3153 | E65: 2370 | F65: 15760 | G65: 20.00634518 | H65: 15.03807107 | L65: 20.00634518 | M65: 0 | N65: 0 | O65: 15.03807107 | AK65: 1.955914312 | AL65: 823318 | AM65: 33.00777322 | AN65: 33.00777322
A66: Henry County | B66: AL067 | C66: AL | D66: 3152 | E66: 3044 | F66: 17302 | G66: 18.2175471 | H66: 17.59334181 | L66: 18.2175471 | M66: 0 | N66: 0 | O66: 17.59334181 | AK66: 1.986960571 | AL66: 809858 | AM66: 33.26695156 | AN66: 33.26695156
A67: Houston County | B67: AL069 | C67: AL | D67: 20718 | E67: 14675 | F67: 101547 | G67: 20.40237525 | H67: 14.45143628 | L67: 20.40237525 | M67: 0 | N67: 0 | O67: 14.45143628 | AK67: 2.01800683 | AL67: 805321 | AM67: 33.52467793 | AN67: 33.52467793
A68: Jackson County | B68: AL071 | C68: AL | D68: 9854 | E68: 8773 | F68: 53227 | G68: 18.51316061 | H68: 16.48223646 | I68: =IF($C68=$R$3,G68,NA()) ->  | J68: =IF($C68=$R$3,H68,NA()) ->  | L68: =+G68 -> 18.51316061 | M68: 0 | N68: 0 | O68: =+H68 -> 16.48223646 | AK68: 2.049053089 | AL68: 805235 | AM68: 33.78237677 | AN68: 33.78237677
A69: Jefferson County | B69: AL073 | C69: AL | D69: 128172 | E69: 86443 | F69: 658466 | G69: =D69/$F69*100 -> 19.46524194 | H69: 13.12793675 | L69: 19.46524194 | M69: 0 | N69: 0 | O69: 13.12793675 | AK69: 2.080099348 | AL69: 805029 | AM69: 34.04000969 | AN69: 34.04000969
A70: Lamar County | B70: AL075 | C70: AL | D70: 2686 | E70: 2732 | F70: 14564 | G70: 18.44273551 | H70: 18.75858281 | L70: 18.44273551 | M70: 0 | N70: 0 | O70: 18.75858281 | AK70: 2.111145607 | AL70: 802374 | AM70: 34.29679293 | AN70: 34.29679293
A71: Lauderdale County | B71: AL077 | C71: AL | D71: 16342 | E71: 15553 | F71: 92709 | G71: 17.62719909 | H71: 16.77614903 | L71: 17.62719909 | M71: 0 | N71: 0 | O71: 16.77614903 | AK71: 2.142191866 | AL71: 800647 | AM71: 34.55302348 | AN71: 34.55302348
A72: Lawrence County | B72: AL079 | C72: AL | D72: 6436 | E72: 4999 | F72: 34339 | G72: 18.74253764 | H72: 14.55779143 | L72: 18.74253764 | M72: 0 | N72: 0 | O72: 14.55779143 | AK72: 2.173238125 | AL72: 799874 | AM72: 34.80900665 | AN72: 34.80900665
A73: Lee County | B73: AL081 | C73: AL | D73: 26130 | E73: 12716 | F73: 140247 | G73: 18.63141458 | H73: 9.06686061 | L73: 18.63141458 | M73: 0 | N73: 0 | O73: 9.06686061 | AK73: 2.204284384 | AL73: 798552 | AM73: 35.06456674 | AN73: 35.06456674
A74: Limestone County | B74: AL083 | C74: AL | D74: 16452 | E74: 10187 | F74: 82782 | G74: 19.87388563 | H74: 12.30581527 | L74: 19.87388563 | M74: 0 | N74: 0 | O74: 12.30581527 | AK74: 2.235330643 | AL74: 795225 | AM74: 35.31906209 | AN74: 35.31906209
A75: Lowndes County | B75: AL085 | C75: AL | D75: 2222 | E75: 1655 | F75: 11299 | G75: 19.66545712 | H75: 14.64731392 | L75: 19.66545712 | M75: 0 | N75: 0 | O75: 14.64731392 | AK75: 2.266376902 | AL75: 783969 | AM75: 35.56995519 | AN75: 35.56995519
A76: Macon County | B76: AL087 | C76: AL | D76: 3486 | E76: 3031 | F76: 21452 | G76: 16.25023308 | H76: 14.12921872 | L76: 16.25023308 | M76: 0 | N76: 0 | O76: 14.12921872 | AK76: 2.297423161 | AL76: 782341 | AM76: 35.82032728 | AN76: 35.82032728
A77: Madison County | B77: AL089 | C77: AL | D77: 64988 | E77: 40873 | F77: 334811 | G77: 19.4103539 | H77: 12.2077829 | L77: 19.4103539 | M77: 0 | N77: 0 | O77: 12.2077829 | AK77: 2.328469419 | AL77: 774769 | AM77: 36.06827611 | AN77: 36.06827611
A78: Marengo County | B78: AL091 | C78: AL | D78: 4160 | E78: 3424 | F78: 21027 | G78: 19.78408713 | H78: 16.28382556 | L78: 19.78408713 | M78: 0 | N78: 0 | O78: 16.28382556 | AK78: 2.359515678 | AL78: 744344 | AM78: 36.30648805 | AN78: 36.30648805
A79: Marion County | B79: AL093 | C79: AL | D79: 5477 | E79: 5645 | F79: 30776 | G79: 17.79633481 | H79: 18.34221471 | L79: 17.79633481 | M79: 0 | N79: 0 | O79: 18.34221471 | AK79: 2.390561937 | AL79: 743159 | AM79: 36.54432075 | AN79: 36.54432075
A80: Marshall County | B80: AL095 | C80: AL | D80: 19249 | E80: 13862 | F80: 93019 | G80: 20.69362173 | H80: 14.90233178 | L80: 20.69362173 | M80: 0 | N80: 0 | O80: 14.90233178 | AK80: 2.421608196 | AL80: 741096 | AM80: 36.78149323 | AN80: 36.78149323
A81: Mobile County | B81: AL097 | C81: AL | D81: 84926 | E81: 53321 | F81: 412992 | G81: 20.56359445 | H81: 12.91090384 | L81: 20.56359445 | M81: 0 | N81: 0 | O81: 12.91090384 | AK81: 2.452654455 | AL81: 735334 | AM81: 37.01682171 | AN81: 37.01682171
A82: Monroe County | B82: AL099 | C82: AL | D82: 4696 | E82: 3618 | F82: 23068 | G82: 20.35720479 | H82: 15.6840645 | L82: 20.35720479 | M82: 0 | N82: 0 | O82: 15.6840645 | AK82: 2.483700714 | AL82: 722023 | AM82: 37.24789027 | AN82: 37.24789027
A83: Montgomery County | B83: AL101 | C83: AL | D83: 46709 | E83: 27421 | F83: 229363 | G83: 20.36466213 | H83: 11.95528485 | L83: 20.36466213 | M83: 0 | N83: 0 | O83: 11.95528485 | AK83: 2.514746973 | AL83: 718633 | AM83: 37.47787393 | AN83: 37.47787393
A84: Morgan County | B84: AL103 | C84: AL | D84: 23592 | E84: 16871 | F84: 119490 | G84: 19.74391162 | H84: 14.11917315 | L84: 19.74391162 | M84: 0 | N84: 0 | O84: 14.11917315 | AK84: 2.545793232 | AL84: 718451 | AM84: 37.70779935 | AN84: 37.70779935
A85: Perry County | B85: AL105 | C85: AL | D85: 2088 | E85: 1769 | F85: 10591 | G85: 19.71485223 | H85: 16.70286092 | L85: 19.71485223 | M85: 0 | N85: 0 | O85: 16.70286092 | AK85: 2.576839491 | AL85: 713335 | AM85: 37.93608749 | AN85: 37.93608749
A86: Pickens County | B86: AL107 | C86: AL | D86: 3771 | E86: 3336 | F86: 19746 | G86: 19.09753874 | H86: 16.89456092 | L86: 19.09753874 | M86: 0 | N86: 0 | O86: 16.89456092 | AK86: 2.60788575 | AL86: 703462 | AM86: 38.16121599 | AN86: 38.16121599
A87: Pike County | B87: AL109 | C87: AL | D87: 5528 | E87: 4211 | F87: 32899 | G87: 16.80294234 | H87: 12.79978115 | L87: 16.80294234 | M87: 0 | N87: 0 | O87: 12.79978115 | AK87: 2.638932009 | AL87: 691893 | AM87: 38.38264207 | AN87: 38.38264207
A88: Randolph County | B88: AL111 | C88: AL | D88: 4457 | E88: 3888 | F88: 22913 | G88: 19.45183957 | H88: 16.96853315 | L88: 19.45183957 | M88: 0 | N88: 0 | O88: 16.96853315 | AK88: 2.669978268 | AL88: 688078 | AM88: 38.60284723 | AN88: 38.60284723
A89: Russell County | B89: AL113 | C89: AL | D89: 11108 | E89: 6720 | F89: 52947 | G89: 20.97947004 | H89: 12.69193722 | L89: 20.97947004 | M89: 0 | N89: 0 | O89: 12.69193722 | AK89: 2.701024527 | AL89: 685306 | AM89: 38.82216527 | AN89: 38.82216527
A90: St. Clair County | B90: AL115 | C90: AL | D90: 16458 | E90: 10909 | F90: 83593 | G90: 19.68825141 | H90: 13.05013578 | L90: 19.68825141 | M90: 0 | N90: 0 | O90: 13.05013578 | AK90: 2.732070785 | AL90: 677560 | AM90: 39.03900437 | AN90: 39.03900437
A91: Shelby County | B91: AL117 | C91: AL | D91: 41707 | E91: 20627 | F91: 195085 | G91: 21.37888613 | H91: 10.57333983 | L91: 21.37888613 | M91: 0 | N91: 0 | O91: 10.57333983 | AK91: 2.763117044 | AL91: 674158 | AM91: 39.25475473 | AN91: 39.25475473
A92: Sumter County | B92: AL119 | C92: AL | D92: 2410 | E92: 2063 | F92: 13763 | G92: 17.51071714 | H92: 14.98946451 | L92: 17.51071714 | M92: 0 | N92: 0 | O92: 14.98946451 | AK92: 2.794163303 | AL92: 670850 | AM92: 39.46944642 | AN92: 39.46944642
A93: Talladega County | B93: AL121 | C93: AL | D93: 15785 | E93: 11591 | F93: 82291 | G93: 19.18192755 | H93: 14.08537993 | L93: 19.18192755 | M93: 0 | N93: 0 | O93: 14.08537993 | AK93: 2.825209562 | AL93: 662614 | AM93: 39.68150236 | AN93: 39.68150236
A94: Tallapoosa County | B94: AL123 | C94: AL | D94: 7473 | E94: 7193 | F94: 41616 | G94: 17.95703576 | H94: 17.28421761 | L94: 17.95703576 | M94: 0 | N94: 0 | O94: 17.28421761 | AK94: 2.856255821 | AL94: 662564 | AM94: 39.8935423 | AN94: 39.8935423
A95: Tuscaloosa County | B95: AL125 | C95: AL | D95: 34710 | E95: 21050 | F95: 194656 | G95: 17.83145652 | H95: 10.81394871 | L95: 17.83145652 | M95: 0 | N95: 0 | O95: 10.81394871 | AK95: 2.88730208 | AL95: 658466 | AM95: 40.10427075 | AN95: 40.10427075
A96: Walker County | B96: AL127 | C96: AL | D96: 12412 | E96: 10894 | F96: 67023 | G96: 18.51901586 | H96: 16.25412172 | L96: 18.51901586 | M96: 0 | N96: 0 | O96: 16.25412172 | AK96: 2.918348339 | AL96: 634266 | AM96: 40.3072545 | AN96: 40.3072545
A97: Washington County | B97: AL129 | C97: AL | D97: 3605 | E97: 2590 | F97: 17581 | G97: 20.50509072 | H97: 14.73181275 | L97: 20.50509072 | M97: 0 | N97: 0 | O97: 14.73181275 | AK97: 2.949394598 | AL97: 630380 | AM97: 40.50899461 | AN97: 40.50899461
A98: Wilcox County | B98: AL131 | C98: AL | D98: 2552 | E98: 1752 | F98: 11670 | G98: 21.8680377 | H98: 15.01285347 | L98: 21.8680377 | M98: 0 | N98: 0 | O98: 15.01285347 | AK98: 2.980440857 | AL98: 626681 | AM98: 40.70955093 | AN98: 40.70955093
A99: Winston County | B99: AL133 | C99: AL | D99: 4350 | E99: 4333 | F99: 24484 | G99: 17.76670479 | H99: 17.69727169 | L99: 17.76670479 | M99: 0 | N99: 0 | O99: 17.69727169 | AK99: 3.011487116 | AL99: 626667 | AM99: 40.91010277 | AN99: 40.91010277
A100: Arkansas County | B100: AR001 | C100: AR | D100: 3643 | E100: 3115 | F100: 19019 | G100: 19.15452968 | H100: 16.37835848 | L100: 19.15452968 | M100: 0 | N100: 0 | O100: 16.37835848 | AK100: 3.042533375 | AL100: 625249 | AM100: 41.11020081 | AN100: 41.11020081
A101: Ashley County | B101: AR003 | C101: AR | D101: 4362 | E101: 3544 | F101: 21853 | G101: 19.96064614 | H101: 16.21745298 | L101: 19.96064614 | M101: 0 | N101: 0 | O101: 16.21745298 | AK101: 3.073579634 | AL101: 622263 | AM101: 41.30934324 | AN101: 41.30934324
A102: Baxter County | B102: AR005 | C102: AR | D102: 6205 | E102: 11659 | F102: 41513 | G102: 14.947125 | H102: 28.08517814 | L102: 14.947125 | M102: 0 | N102: 0 | O102: 28.08517814 | AK102: 3.104625893 | AL102: 620961 | AM102: 41.50806899 | AN102: 41.50806899
A103: Benton County | B103: AR007 | C103: AR | D103: 52502 | E103: 26986 | F103: 221339 | G103: 23.72017584 | H103: 12.19215773 | L103: 23.72017584 | M103: 0 | N103: 0 | O103: 12.19215773 | AK103: 3.135672152 | AL103: 618754 | AM103: 41.70608844 | AN103: 41.70608844
A104: Boone County | B104: AR009 | C104: AR | D104: 7051 | E104: 6673 | F104: 36903 | G104: 19.10684768 | H104: 18.08254071 | L104: 19.10684768 | M104: 0 | N104: 0 | O104: 18.08254071 | AK104: 3.16671841 | AL104: 603403 | AM104: 41.89919512 | AN104: 41.89919512
A105: Bradley County | B105: AR011 | C105: AR | D105: 2232 | E105: 2041 | F105: 11508 | G105: 19.39520334 | H105: 17.73548836 | L105: 19.39520334 | M105: 0 | N105: 0 | O105: 17.73548836 | AK105: 3.197764669 | AL105: 602622 | AM105: 42.09205186 | AN105: 42.09205186
A106: Calhoun County | B106: AR013 | C106: AR | D106: 864 | E106: 923 | F106: 5368 | G106: 16.09538003 | H106: 17.19448584 | L106: 16.09538003 | M106: 0 | N106: 0 | O106: 17.19448584 | AK106: 3.228810928 | AL106: 602095 | AM106: 42.28473994 | AN106: 42.28473994
A107: Carroll County | B107: AR015 | C107: AR | D107: 5162 | E107: 5131 | F107: 27446 | G107: 18.80784085 | H107: 18.69489179 | L107: 18.80784085 | M107: 0 | N107: 0 | O107: 18.69489179 | AK107: 3.259857187 | AL107: 601723 | AM107: 42.47730897 | AN107: 42.47730897
A108: Chicot County | B108: AR017 | C108: AR | D108: 2269 | E108: 2149 | F108: 11800 | G108: 19.22881356 | H108: 18.21186441 | L108: 19.22881356 | M108: 0 | N108: 0 | O108: 18.21186441 | AK108: 3.290903446 | AL108: 600158 | AM108: 42.66937715 | AN108: 42.66937715
A109: Clark County | B109: AR019 | C109: AR | D109: 3683 | E109: 3410 | F109: 22995 | G109: 16.01652533 | H109: 14.82931072 | L109: 16.01652533 | M109: 0 | N109: 0 | O109: 14.82931072 | AK109: 3.321949705 | AL109: 585375 | AM109: 42.85671434 | AN109: 42.85671434
A110: Clay County | B110: AR021 | C110: AR | D110: 2938 | E110: 3220 | F110: 16083 | G110: 18.26773612 | H110: 20.02114033 | L110: 18.26773612 | M110: 0 | N110: 0 | O110: 20.02114033 | AK110: 3.352995964 | AL110: 576567 | AM110: 43.04123271 | AN110: 43.04123271
A111: Cleburne County | B111: AR023 | C111: AR | D111: 4257 | E111: 6118 | F111: 25970 | G111: 16.39199076 | H111: 23.55795148 | L111: 16.39199076 | M111: 0 | N111: 0 | O111: 23.55795148 | AK111: 3.384042223 | AL111: 572003 | AM111: 43.22429046 | AN111: 43.22429046
A112: Cleveland County | B112: AR025 | C112: AR | D112: 1791 | E112: 1416 | F112: 8689 | G112: 20.61226839 | H112: 16.2964668 | L112: 20.61226839 | M112: 0 | N112: 0 | O112: 16.2964668 | AK112: 3.415088482 | AL112: 558979 | AM112: 43.40318016 | AN112: 43.40318016
A113: Columbia County | B113: AR027 | C113: AR | D113: 4542 | E113: 3928 | F113: 24552 | G113: 18.49951124 | H113: 15.99869664 | L113: 18.49951124 | M113: 0 | N113: 0 | O113: 15.99869664 | AK113: 3.446134741 | AL113: 548285 | AM113: 43.57864746 | AN113: 43.57864746
A114: Conway County | B114: AR029 | C114: AR | D114: 4216 | E114: 3592 | F114: 21273 | G114: 19.81854933 | H114: 16.88525361 | L114: 19.81854933 | M114: 0 | N114: 0 | O114: 16.88525361 | AK114: 3.477181 | AL114: 544179 | AM114: 43.75280072 | AN114: 43.75280072
A115: Craighead County | B115: AR031 | C115: AR | D115: 20334 | E115: 11740 | F115: 96443 | G115: 21.08395633 | H115: 12.17299337 | L115: 21.08395633 | M115: 0 | N115: 0 | O115: 12.17299337 | AK115: 3.508227259 | AL115: 543376 | AM115: 43.92669699 | AN115: 43.92669699
A116: Crawford County | B116: AR033 | C116: AR | D116: 13563 | E116: 8233 | F116: 61948 | G116: 21.8941693 | H116: 13.29017886 | L116: 21.8941693 | M116: 0 | N116: 0 | O116: 13.29017886 | AK116: 3.539273518 | AL116: 541781 | AM116: 44.10008282 | AN116: 44.10008282
A117: Crittenden County | B117: AR035 | C117: AR | D117: 12187 | E117: 5477 | F117: 50902 | G117: 23.94208479 | H117: 10.75989156 | L117: 23.94208479 | M117: 0 | N117: 0 | O117: 10.75989156 | AK117: 3.570319776 | AL117: 538479 | AM117: 44.27241191 | AN117: 44.27241191
A118: Cross County | B118: AR037 | C118: AR | D118: 3608 | E118: 2759 | F118: 17870 | G118: 20.19026301 | H118: 15.43928372 | L118: 20.19026301 | M118: 0 | N118: 0 | O118: 15.43928372 | AK118: 3.601366035 | AL118: 537656 | AM118: 44.44447762 | AN118: 44.44447762
A119: Dallas County | B119: AR039 | C119: AR | D119: 1570 | E119: 1474 | F119: 8116 | G119: 19.34450468 | H119: 18.16165599 | L119: 19.34450468 | M119: 0 | N119: 0 | O119: 18.16165599 | AK119: 3.632412294 | AL119: 536499 | AM119: 44.61617305 | AN119: 44.61617305
A120: Desha County | B120: AR041 | C120: AR | D120: 2821 | E120: 1970 | F120: 13008 | G120: 21.68665437 | H120: 15.14452645 | L120: 21.68665437 | M120: 0 | N120: 0 | O120: 15.14452645 | AK120: 3.663458553 | AL120: 535153 | AM120: 44.78743773 | AN120: 44.78743773
A121: Drew County | B121: AR043 | C121: AR | D121: 3602 | E121: 2735 | F121: 18509 | G121: 19.46080285 | H121: 14.77659517 | L121: 19.46080285 | M121: 0 | N121: 0 | O121: 14.77659517 | AK121: 3.694504812 | AL121: 534543 | AM121: 44.95850718 | AN121: 44.95850718
A122: Faulkner County | B122: AR045 | C122: AR | D122: 23273 | E122: 11318 | F122: 113237 | G122: 20.5524696 | H122: 9.99496631 | L122: 20.5524696 | M122: 0 | N122: 0 | O122: 9.99496631 | AK122: 3.725551071 | AL122: 529710 | AM122: 45.12802994 | AN122: 45.12802994
A123: Franklin County | B123: AR047 | C123: AR | D123: 3636 | E123: 3007 | F123: 18125 | G123: 20.06068966 | H123: 16.59034483 | L123: 20.06068966 | M123: 0 | N123: 0 | O123: 16.59034483 | AK123: 3.75659733 | AL123: 519445 | AM123: 45.29426759 | AN123: 45.29426759
A124: Fulton County | B124: AR049 | C124: AR | D124: 2097 | E124: 2742 | F124: 12245 | G124: 17.12535729 | H124: 22.39281339 | L124: 17.12535729 | M124: 0 | N124: 0 | O124: 22.39281339 | AK124: 3.787643589 | AL124: 517110 | AM124: 45.45975798 | AN124: 45.45975798
A125: Garland County | B125: AR051 | C125: AR | D125: 16414 | E125: 20098 | F125: 96024 | G125: 17.09364326 | H125: 20.93018412 | L125: 17.09364326 | M125: 0 | N125: 0 | O125: 20.93018412 | AK125: 3.818689848 | AL125: 516564 | AM125: 45.62507362 | AN125: 45.62507362
A126: Grant County | B126: AR053 | C126: AR | D126: 3543 | E126: 2591 | F126: 17853 | G126: 19.84540413 | H126: 14.51296701 | L126: 19.84540413 | M126: 0 | N126: 0 | O126: 14.51296701 | AK126: 3.849736107 | AL126: 515269 | AM126: 45.78997484 | AN126: 45.78997484
A127: Greene County | B127: AR055 | C127: AR | D127: 8846 | E127: 6034 | F127: 42090 | G127: 21.01686861 | H127: 14.33594678 | L127: 21.01686861 | M127: 0 | N127: 0 | O127: 14.33594678 | AK127: 3.880782366 | AL127: 514453 | AM127: 45.9546149 | AN127: 45.9546149
A128: Hempstead County | B128: AR057 | C128: AR | D128: 4962 | E128: 3396 | F128: 22609 | G128: 21.94701225 | H128: 15.02056703 | L128: 21.94701225 | M128: 0 | N128: 0 | O128: 15.02056703 | AK128: 3.911828625 | AL128: 513657 | AM128: 46.11900022 | AN128: 46.11900022
A129: Hot Spring County | B129: AR059 | C129: AR | D129: 6203 | E129: 5164 | F129: 32923 | G129: 18.84093187 | H129: 15.68508338 | L129: 18.84093187 | M129: 0 | N129: 0 | O129: 15.68508338 | AK129: 3.942874884 | AL129: 508640 | AM129: 46.28177996 | AN129: 46.28177996
A130: Howard County | B130: AR061 | C130: AR | D130: 3023 | E130: 2104 | F130: 13789 | G130: 21.92327217 | H130: 15.25853942 | L130: 21.92327217 | M130: 0 | N130: 0 | O130: 15.25853942 | AK130: 3.973921143 | AL130: 501226 | AM130: 46.442187 | AN130: 46.442187
A131: Independence County | B131: AR063 | C131: AR | D131: 7354 | E131: 5730 | F131: 36647 | G131: 20.06712691 | H131: 15.63565913 | L131: 20.06712691 | M131: 0 | N131: 0 | O131: 15.63565913 | AK131: 4.004967401 | AL131: 498886 | AM131: 46.60184517 | AN131: 46.60184517
A132: Izard County | B132: AR065 | C132: AR | D132: 2150 | E132: 3229 | F132: 13696 | G132: 15.69801402 | H132: 23.57622664 | I132: =IF($C132=$R$3,G132,NA()) ->  | J132: =IF($C132=$R$3,H132,NA()) ->  | L132: =+G132 -> 15.69801402 | M132: 0 | N132: 0 | O132: =+H132 -> 23.57622664 | AK132: 4.03601366 | AL132: 498365 | AM132: 46.7613366 | AN132: 46.7613366
A133: Jackson County | B133: AR067 | C133: AR | D133: 3088 | E133: 2856 | F133: 17997 | G133: =D133/$F133*100 -> 17.15841529 | H133: 15.86931155 | L133: 17.15841529 | M133: 0 | N133: 0 | O133: 15.86931155 | AK133: 4.067059919 | AL133: 496005 | AM133: 46.92007277 | AN133: 46.92007277
A134: Jefferson County | B134: AR069 | C134: AR | D134: 15193 | E134: 10255 | F134: 77435 | G134: 19.62032673 | H134: 13.2433654 | L134: 19.62032673 | M134: 0 | N134: 0 | O134: 13.2433654 | AK134: 4.098106178 | AL134: 494919 | AM134: 47.07846138 | AN134: 47.07846138
A135: Johnson County | B135: AR071 | C135: AR | D135: 5266 | E135: 3749 | F135: 25540 | G135: 20.61863743 | H135: 14.678935 | L135: 20.61863743 | M135: 0 | N135: 0 | O135: 14.678935 | AK135: 4.129152437 | AL135: 494593 | AM135: 47.23674566 | AN135: 47.23674566
A136: Lafayette County | B136: AR073 | C136: AR | D136: 1427 | E136: 1483 | F136: 7645 | G136: 18.66579464 | H136: 19.39829954 | L136: 18.66579464 | M136: 0 | N136: 0 | O136: 19.39829954 | AK136: 4.160198696 | AL136: 492276 | AM136: 47.39428844 | AN136: 47.39428844
A137: Lawrence County | B137: AR075 | C137: AR | D137: 3284 | E137: 3160 | F137: 17415 | G137: 18.85730692 | H137: 18.14527706 | L137: 18.85730692 | M137: 0 | N137: 0 | O137: 18.14527706 | AK137: 4.191244955 | AL137: 488406 | AM137: 47.5505927 | AN137: 47.5505927
A138: Lee County | B138: AR077 | C138: AR | D138: 1748 | E138: 1607 | F138: 10424 | G138: 16.76899463 | H138: 15.41634689 | L138: 16.76899463 | M138: 0 | N138: 0 | O138: 15.41634689 | AK138: 4.222291214 | AL138: 488073 | AM138: 47.70679039 | AN138: 47.70679039
A139: Lincoln County | B139: AR079 | C139: AR | D139: 2237 | E139: 1758 | F139: 14134 | G139: 15.82708363 | H139: 12.43809254 | L139: 15.82708363 | M139: 0 | N139: 0 | O139: 12.43809254 | AK139: 4.253337473 | AL139: 483878 | AM139: 47.86164556 | AN139: 47.86164556
A140: Little River County | B140: AR081 | C140: AR | D140: 2567 | E140: 2253 | F140: 13171 | G140: 19.48978817 | H140: 17.10576266 | L140: 19.48978817 | M140: 0 | N140: 0 | O140: 17.10576266 | AK140: 4.284383732 | AL140: 471221 | AM140: 48.01245012 | AN140: 48.01245012
A141: Logan County | B141: AR083 | C141: AR | D141: 4402 | E141: 3842 | F141: 22353 | G141: 19.69310607 | H141: 17.18784951 | L141: 19.69310607 | M141: 0 | N141: 0 | O141: 17.18784951 | AK141: 4.315429991 | AL141: 468730 | AM141: 48.16245748 | AN141: 48.16245748
A142: Lonoke County | B142: AR085 | C142: AR | D142: 15733 | E142: 7625 | F142: 68356 | G142: 23.01626777 | H142: 11.15483644 | L142: 23.01626777 | M142: 0 | N142: 0 | O142: 11.15483644 | AK142: 4.34647625 | AL142: 467026 | AM142: 48.31191951 | AN142: 48.31191951
A143: Madison County | B143: AR087 | C143: AR | D143: 3101 | E143: 2452 | F143: 15717 | G143: 19.73022842 | H143: 15.60094166 | L143: 19.73022842 | M143: 0 | N143: 0 | O143: 15.60094166 | AK143: 4.377522509 | AL143: 464697 | AM143: 48.4606362 | AN143: 48.4606362
A144: Marion County | B144: AR089 | C144: AR | D144: 2384 | E144: 3964 | F144: 16653 | G144: 14.31573891 | H144: 23.80351889 | L144: 14.31573891 | M144: 0 | N144: 0 | O144: 23.80351889 | AK144: 4.408568767 | AL144: 463490 | AM144: 48.60896661 | AN144: 48.60896661
A145: Miller County | B145: AR091 | C145: AR | D145: 8863 | E145: 5982 | F145: 43462 | G145: 20.39252681 | H145: 13.76374764 | L145: 20.39252681 | M145: 0 | N145: 0 | O145: 13.76374764 | AK145: 4.439615026 | AL145: 455746 | AM145: 48.75481871 | AN145: 48.75481871
A146: Mississippi County | B146: AR093 | C146: AR | D146: 10880 | E146: 5685 | F146: 46480 | G146: 23.40791738 | H146: 12.23106713 | L146: 23.40791738 | M146: 0 | N146: 0 | O146: 12.23106713 | AK146: 4.470661285 | AL146: 451225 | AM146: 48.89922396 | AN146: 48.89922396
A147: Monroe County | B147: AR095 | C147: AR | D147: 1458 | E147: 1541 | F147: 8149 | G147: 17.89176586 | H147: 18.91029574 | L147: 17.89176586 | M147: 0 | N147: 0 | O147: 18.91029574 | AK147: 4.501707544 | AL147: 448734 | AM147: 49.04283202 | AN147: 49.04283202
A148: Montgomery County | B148: AR097 | C148: AR | D148: 1626 | E148: 2126 | F148: 9487 | G148: 17.13924317 | H148: 22.40961315 | L148: 17.13924317 | M148: 0 | N148: 0 | O148: 22.40961315 | AK148: 4.532753803 | AL148: 442179 | AM148: 49.18434228 | AN148: 49.18434228
A149: Nevada County | B149: AR099 | C149: AR | D149: 1762 | E149: 1588 | F149: 8997 | G149: 19.58430588 | H149: 17.65032789 | L149: 19.58430588 | M149: 0 | N149: 0 | O149: 17.65032789 | AK149: 4.563800062 | AL149: 441815 | AM149: 49.32573605 | AN149: 49.32573605
A150: Newton County | B150: AR101 | C150: AR | D150: 1431 | E150: 1701 | F150: 8330 | G150: 17.17887155 | H150: 20.42016807 | L150: 17.17887155 | M150: 0 | N150: 0 | O150: 20.42016807 | AK150: 4.594846321 | AL150: 441603 | AM150: 49.46706198 | AN150: 49.46706198
A151: Ouachita County | B151: AR103 | C151: AR | D151: 5038 | E151: 4451 | F151: 26120 | G151: 19.28790199 | H151: 17.04058193 | L151: 19.28790199 | M151: 0 | N151: 0 | O151: 17.04058193 | AK151: 4.62589258 | AL151: 440171 | AM151: 49.60792963 | AN151: 49.60792963
A152: Perry County | B152: AR105 | C152: AR | D152: 1933 | E152: 1747 | F152: 10445 | G152: 18.50646242 | H152: 16.72570608 | L152: 18.50646242 | M152: 0 | N152: 0 | O152: 16.72570608 | AK152: 4.656938839 | AL152: 437994 | AM152: 49.74810057 | AN152: 49.74810057
A153: Phillips County | B153: AR107 | C153: AR | D153: 4956 | E153: 3254 | F153: 21757 | G153: 22.77887576 | H153: 14.95610608 | L153: 22.77887576 | M153: 0 | N153: 0 | O153: 14.95610608 | AK153: 4.687985098 | AL153: 434972 | AM153: 49.88730438 | AN153: 49.88730438
A154: Pike County | B154: AR109 | C154: AR | D154: 2242 | E154: 1962 | F154: 11291 | G154: 19.85652289 | H154: 17.37667169 | L154: 19.85652289 | M154: 0 | N154: 0 | O154: 17.37667169 | AK154: 4.719031357 | AL154: 432552 | AM154: 50.02573372 | AO154: 50.02573372
A155: Poinsett County | B155: AR111 | C155: AR | D155: 4941 | E155: 3900 | F155: 24583 | G155: 20.09925558 | H155: 15.86462189 | L155: 20.09925558 | M155: 0 | N155: 0 | O155: 15.86462189 | AK155: 4.750077616 | AL155: 432226 | AM155: 50.16405873 | AO155: 50.16405873
A156: Polk County | B156: AR113 | C156: AR | D156: 4073 | E156: 4025 | F156: 20662 | G156: 19.71251573 | H156: 19.48020521 | L156: 19.71251573 | M156: 0 | N156: 0 | O156: 19.48020521 | AK156: 4.781123875 | AL156: 430640 | AM156: 50.30187618 | AO156: 50.30187618
A157: Pope County | B157: AR115 | C157: AR | D157: 11776 | E157: 8113 | F157: 61754 | G157: 19.06921009 | H157: 13.13761052 | L157: 19.06921009 | M157: 0 | N157: 0 | O157: 13.13761052 | AK157: 4.812170133 | AL157: 425790 | AM157: 50.43814148 | AO157: 50.43814148
A158: Prairie County | B158: AR117 | C158: AR | D158: 1505 | E158: 1717 | F158: 8715 | G158: 17.26907631 | H158: 19.7016638 | L158: 17.26907631 | M158: 0 | N158: 0 | O158: 19.7016638 | AK158: 4.843216392 | AL158: 425363 | AM158: 50.57427013 | AO158: 50.57427013
A159: Pulaski County | B159: AR119 | C159: AR | D159: 77439 | E159: 45908 | F159: 382748 | G159: 20.23237221 | H159: 11.9943148 | L159: 20.23237221 | M159: 0 | N159: 0 | O159: 11.9943148 | AK159: 4.874262651 | AL159: 423895 | AM159: 50.70992898 | AO159: 50.70992898
A160: Randolph County | B160: AR121 | C160: AR | D160: 3397 | E160: 3361 | F160: 17969 | G160: 18.90478046 | H160: 18.70443542 | L160: 18.90478046 | M160: 0 | N160: 0 | O160: 18.70443542 | AK160: 4.90530891 | AL160: 422718 | AM160: 50.84521115 | AO160: 50.84521115
A161: St. Francis County | B161: AR123 | C161: AR | D161: 5533 | E161: 3447 | F161: 28258 | G161: 19.58029585 | H161: 12.19831552 | L161: 19.58029585 | M161: 0 | N161: 0 | O161: 12.19831552 | AK161: 4.936355169 | AL161: 422679 | AM161: 50.98048084 | AO161: 50.98048084
A162: Saline County | B162: AR125 | C162: AR | D162: 21877 | E162: 15875 | F162: 107118 | G162: 20.42327153 | H162: 14.82010493 | L162: 20.42327153 | M162: 0 | N162: 0 | O162: 14.82010493 | AK162: 4.967401428 | AL162: 421407 | AM162: 51.11534346 | AO162: 51.11534346
A163: Scott County | B163: AR127 | C163: AR | D163: 2363 | E163: 1915 | F163: 11233 | G163: 21.03623253 | H163: 17.04798362 | L163: 21.03623253 | M163: 0 | N163: 0 | O163: 17.04798362 | AK163: 4.998447687 | AL163: 415057 | AM163: 51.24817388 | AO163: 51.24817388
A164: Searcy County | B164: AR129 | C164: AR | D164: 1384 | E164: 1745 | F164: 8195 | G164: 16.88834655 | H164: 21.29347163 | L164: 16.88834655 | M164: 0 | N164: 0 | O164: 21.29347163 | AK164: 5.029493946 | AL164: 413344 | AM164: 51.3804561 | AO164: 51.3804561
A165: Sebastian County | B165: AR131 | C165: AR | D165: 26616 | E165: 16518 | F165: 125744 | G165: 21.16681512 | H165: 13.13621326 | L165: 21.16681512 | M165: 0 | N165: 0 | O165: 13.13621326 | AK165: 5.060540205 | AL165: 412992 | AM165: 51.51262567 | AO165: 51.51262567
A166: Sevier County | B166: AR133 | C166: AR | D166: 4242 | E166: 2147 | F166: 17058 | G166: 24.86809708 | H166: 12.58646969 | L166: 24.86809708 | M166: 0 | N166: 0 | O166: 12.58646969 | AK166: 5.091586464 | AL166: 411442 | AM166: 51.64429919 | AO166: 51.64429919
A167: Sharp County | B167: AR135 | C167: AR | D167: 3013 | E167: 4134 | F167: 17264 | G167: 17.45250232 | H167: 23.94578313 | L167: 17.45250232 | M167: 0 | N167: 0 | O167: 23.94578313 | AK167: 5.122632723 | AL167: 406220 | AM167: 51.77430152 | AO167: 51.77430152
A168: Stone County | B168: AR137 | C168: AR | D168: 2127 | E168: 2826 | F168: 12394 | G168: 17.16152977 | H168: 22.80135549 | L168: 17.16152977 | M168: 0 | N168: 0 | O168: 22.80135549 | AK168: 5.153678982 | AL168: 402002 | AM168: 51.90295396 | AO168: 51.90295396
A169: Union County | B169: AR139 | C169: AR | D169: 8266 | E169: 6481 | F169: 41639 | G169: 19.85158145 | H169: 15.56473498 | L169: 19.85158145 | M169: 0 | N169: 0 | O169: 15.56473498 | AK169: 5.184725241 | AL169: 400721 | AM169: 52.03119645 | AO169: 52.03119645
A170: Van Buren County | B170: AR141 | C170: AR | D170: 2886 | E170: 3923 | F170: 17295 | G170: 16.68690373 | H170: 22.68285632 | L170: 16.68690373 | M170: 0 | N170: 0 | O170: 22.68285632 | AK170: 5.2157715 | AL170: 398552 | AM170: 52.15874479 | AO170: 52.15874479
A171: Washington County | B171: AR143 | C171: AR | D171: 43655 | E171: 19641 | F171: 203065 | G171: 21.4980425 | H171: 9.672272425 | L171: 21.4980425 | M171: 0 | N171: 0 | O171: 9.672272425 | AK171: 5.246817758 | AL171: 395326 | AM171: 52.28526072 | AO171: 52.28526072
A172: White County | B172: AR145 | C172: AR | D172: 15309 | E172: 10848 | F172: 77076 | G172: 19.86221392 | H172: 14.07442005 | L172: 19.86221392 | M172: 0 | N172: 0 | O172: 14.07442005 | AK172: 5.277864017 | AL172: 392365 | AM172: 52.41082904 | AO172: 52.41082904
A173: Woodruff County | B173: AR147 | C173: AR | D173: 1361 | E173: 1293 | F173: 7260 | G173: 18.74655647 | H173: 17.80991736 | L173: 18.74655647 | M173: 0 | N173: 0 | O173: 17.80991736 | AK173: 5.308910276 | AL173: 389891 | AM173: 52.53560561 | AO173: 52.53560561
A174: Yell County | B174: AR149 | C174: AR | D174: 4840 | E174: 3417 | F174: 22185 | G174: 21.81654271 | H174: 15.40229885 | L174: 21.81654271 | M174: 0 | N174: 0 | O174: 15.40229885 | AK174: 5.339956535 | AL174: 384504 | AM174: 52.65865818 | AO174: 52.65865818
A175: Apache County | B175: AZ001 | C175: AZ | D175: 18367 | E175: 8268 | F175: 71518 | G175: 25.68164658 | H175: 11.56072597 | L175: 25.68164658 | M175: 0 | N175: 0 | O175: 11.56072597 | AK175: 5.371002794 | AL175: 382748 | AM175: 52.78114878 | AO175: 52.78114878
A176: Cochise County | B176: AZ003 | C176: AZ | D176: 24907 | E176: 22688 | F176: 131346 | G176: 18.9628919 | H176: 17.27346094 | L176: 18.9628919 | M176: 0 | N176: 0 | O176: 17.27346094 | AK176: 5.402049053 | AL176: 379448 | AM176: 52.90258328 | AO176: 52.90258328
A177: Coconino County | B177: AZ005 | C177: AZ | D177: 26307 | E177: 11924 | F177: 134421 | G177: 19.57060281 | H177: 8.870637772 | L177: 19.57060281 | M177: 0 | N177: 0 | O177: 8.870637772 | AK177: 5.433095312 | AL177: 375992 | AM177: 53.02291176 | AO177: 53.02291176
A178: Gila County | B178: AZ007 | C178: AZ | D178: 9314 | E178: 12450 | F178: 53597 | G178: 17.37783831 | H178: 23.22891207 | L178: 17.37783831 | M178: 0 | N178: 0 | O178: 23.22891207 | AK178: 5.464141571 | AL178: 375770 | AM178: 53.1431692 | AO178: 53.1431692
A179: Graham County | B179: AZ009 | C179: AZ | D179: 8921 | E179: 4261 | F179: 37220 | G179: 23.96829661 | H179: 11.44814616 | L179: 23.96829661 | M179: 0 | N179: 0 | O179: 11.44814616 | AK179: 5.49518783 | AL179: 375586 | AM179: 53.26336775 | AO179: 53.26336775
A180: Greenlee County | B180: AZ011 | C180: AZ | D180: 2031 | E180: 1016 | F180: 8437 | G180: 24.07253763 | H180: 12.04219509 | L180: 24.07253763 | M180: 0 | N180: 0 | O180: 12.04219509 | AK180: 5.526234089 | AL180: 372813 | AM180: 53.38267885 | AO180: 53.38267885
A181: La Paz County | B181: AZ012 | C181: AZ | D181: 3012 | E181: 6683 | F181: 20489 | G181: 14.70057104 | H181: 32.61750207 | L181: 14.70057104 | M181: 0 | N181: 0 | O181: 32.61750207 | AK181: 5.557280348 | AL181: 368130 | AM181: 53.50049126 | AO181: 53.50049126
A182: Maricopa County | B182: AZ013 | C182: AZ | D182: 842707 | E182: 462641 | F182: 3817117 | G182: 22.07705449 | H182: 12.12016818 | L182: 22.07705449 | M182: 0 | N182: 0 | O182: 12.12016818 | AK182: 5.588326607 | AL182: 366513 | AM182: 53.61778618 | AO182: 53.61778618
A183: Mohave County | B183: AZ015 | C183: AZ | D183: 33911 | E183: 46658 | F183: 200186 | G183: 16.93974604 | H183: 23.30732419 | L183: 16.93974604 | M183: 0 | N183: 0 | O183: 23.30732419 | AK183: 5.619372866 | AL183: 365169 | AM183: 53.73465099 | AO183: 53.73465099
A184: Navajo County | B184: AZ017 | C184: AZ | D184: 26300 | E184: 14241 | F184: 107449 | G184: 24.47672849 | H184: 13.25372968 | L184: 24.47672849 | M184: 0 | N184: 0 | O184: 13.25372968 | AK184: 5.650419124 | AL184: 360485 | AM184: 53.85001677 | AO184: 53.85001677
A185: Pima County | B185: AZ019 | C185: AZ | D185: 186423 | E185: 151293 | F185: 980263 | G185: 19.01765139 | H185: 15.43391926 | L185: 19.01765139 | M185: 0 | N185: 0 | O185: 15.43391926 | AK185: 5.681465383 | AL185: 355329 | AM185: 53.96373249 | AO185: 53.96373249
A186: Pinal County | B186: AZ021 | C186: AZ | D186: 85577 | E186: 52071 | F186: 375770 | G186: 22.77377119 | H186: 13.85714666 | L186: 22.77377119 | M186: 0 | N186: 0 | O186: 13.85714666 | AK186: 5.712511642 | AL186: 351715 | AM186: 54.07629161 | AO186: 54.07629161
A187: Santa Cruz County | B187: AZ023 | C187: AZ | D187: 11827 | E187: 6224 | F187: 47420 | G187: 24.94095318 | H187: 13.1252636 | L187: 24.94095318 | M187: 0 | N187: 0 | O187: 13.1252636 | AK187: 5.743557901 | AL187: 350670 | AM187: 54.18851631 | AO187: 54.18851631
A188: Yavapai County | B188: AZ025 | C188: AZ | D188: 33126 | E188: 50767 | F188: 211033 | G188: 15.69707107 | H188: 24.05642719 | L188: 15.69707107 | M188: 0 | N188: 0 | O188: 24.05642719 | AK188: 5.77460416 | AL188: 350209 | AM188: 54.30059347 | AO188: 54.30059347
A189: Yuma County | B189: AZ027 | C189: AZ | D189: 45329 | E189: 30646 | F189: 195751 | G189: 23.15645897 | H189: 15.65560329 | L189: 23.15645897 | M189: 0 | N189: 0 | O189: 15.65560329 | AK189: 5.805650419 | AL189: 349497 | AM189: 54.41244278 | AO189: 54.41244278
A190: Alameda County | B190: CA001 | C190: CA | D190: 283268 | E190: 167746 | F190: 1510271 | G190: 18.75610404 | H190: 11.10701324 | L190: 18.75610404 | M190: 0 | N190: 0 | O190: 11.10701324 | AK190: 5.836696678 | AL190: 348432 | AM190: 54.52395125 | AO190: 54.52395125
A191: Alpine County | B191: CA003 | C191: CA | D191: 220 | E191: 166 | F191: 1175 | G191: 18.72340426 | H191: 14.12765957 | L191: 18.72340426 | M191: 0 | N191: 0 | O191: 14.12765957 | AK191: 5.867742937 | AL191: 344791 | AM191: 54.63429449 | AO191: 54.63429449
A192: Amador County | B192: CA005 | C192: CA | D192: 4967 | E192: 7865 | F192: 38091 | G192: 13.03982568 | H192: 20.64792208 | L192: 13.03982568 | M192: 0 | N192: 0 | O192: 20.64792208 | AK192: 5.898789196 | AL192: 343829 | AM192: 54.74432987 | AO192: 54.74432987
A193: Butte County | B193: CA007 | C193: CA | D193: 37759 | E193: 33817 | F193: 220000 | G193: 17.16318182 | H193: 15.37136364 | L193: 17.16318182 | M193: 0 | N193: 0 | O193: 15.37136364 | AK193: 5.929835455 | AL193: 340223 | AM193: 54.85321122 | AO193: 54.85321122
A194: Calaveras County | B194: CA009 | C194: CA | D194: 7001 | E194: 9565 | F194: 45578 | G194: 15.36048093 | H194: 20.98600202 | L194: 15.36048093 | M194: 0 | N194: 0 | O194: 20.98600202 | AK194: 5.960881714 | AL194: 336463 | AM194: 54.96088926 | AO194: 54.96088926
A195: Colusa County | B195: CA011 | C195: CA | D195: 5266 | E195: 2495 | F195: 21419 | G195: 24.58564826 | H195: 11.64853635 | L195: 24.58564826 | M195: 0 | N195: 0 | O195: 11.64853635 | AK195: 5.991927973 | AL195: 334811 | AM195: 55.06803861 | AO195: 55.06803861
A196: Contra Costa County | B196: CA013 | C196: CA | D196: 213747 | E196: 130438 | F196: 1049025 | G196: 20.37577751 | H196: 12.43421272 | I196: =IF($C196=$R$3,G196,NA()) ->  | J196: =IF($C196=$R$3,H196,NA()) ->  | L196: =+G196 -> 20.37577751 | M196: 0 | N196: 0 | O196: =+H196 -> 12.43421272 | AK196: 6.022974232 | AL196: 331298 | AM196: 55.1740637 | AO196: 55.1740637
A197: Del Norte County | B197: CA015 | C197: CA | D197: 4988 | E197: 3873 | F197: 28610 | G197: =D197/$F197*100 -> 17.43446347 | H197: 13.53722475 | L197: 17.43446347 | M197: 0 | N197: 0 | O197: 13.53722475 | AK197: 6.054020491 | AL197: 330844 | AM197: 55.27994349 | AO197: 55.27994349
A198: El Dorado County | B198: CA017 | C198: CA | D198: 33145 | E198: 26524 | F198: 181058 | G198: 18.30628859 | H198: 14.64944935 | L198: 18.30628859 | M198: 0 | N198: 0 | O198: 14.64944935 | AK198: 6.085066749 | AL198: 323444 | AM198: 55.38345507 | AO198: 55.38345507
A199: Fresno County | B199: CA019 | C199: CA | D199: 229429 | E199: 93421 | F199: 930450 | G199: 24.65785373 | H199: 10.04041055 | L199: 24.65785373 | M199: 0 | N199: 0 | O199: 10.04041055 | AK199: 6.116113008 | AL199: 322833 | AM199: 55.48677111 | AO199: 55.48677111
A200: Glenn County | B200: CA021 | C200: CA | D200: 6520 | E200: 3737 | F200: 28122 | G200: 23.18469526 | H200: 13.28852855 | L200: 23.18469526 | M200: 0 | N200: 0 | O200: 13.28852855 | AK200: 6.147159267 | AL200: 321520 | AM200: 55.58966695 | AO200: 55.58966695
... 2050 more rows

Sheet 6.2
A1: Share of energy from renewable sources [nrg_ind_335a]
A3: Last update | B3: 2016-02-09T15:35:24
A4: Extracted on | B4: 2016-04-12T00:18:16.405
A5: Source of data | B5: Eurostat
A7: UNIT | B7: Percentage
A8: INDIC_EN | B8: Share of renewable energy in gross final energy consumption
P9: NORDIC COUNTRIES AHEAD IN SHARE OF
A10: Get the data: | B10: http://goo.gl/3gXB1w | P10: ENERGY FROM RENEWABLE SOURCES
A12: GEO/TIME | B12: 2004 | C12: 2005 | D12: 2006 | E12: 2007 | F12: 2008 | G12: 2009 | H12: 2010 | I12: 2011 | J12: 2012 | K12: 2013 | L12: 2014
A13: EU28 | B13: 8.5 | C13: 9 | D13: 9.5 | E13: 10.4 | F13: 11 | G13: 12.4 | H13: 12.8 | I13: 13.1 | J13: 14.3 | K13: 15 | L13: 16
A14: Belgium | B14: 1.9 | C14: 2.3 | D14: 2.7 | E14: 3.4 | F14: 3.8 | G14: 5.1 | H14: 5.5 | I14: 6.2 | J14: 7.2 | K14: 7.5 | L14: 8
A15: Bulgaria | B15: 9.4 | C15: 9.4 | D15: 9.6 | E15: 9.2 | F15: 10.5 | G15: 12.1 | H15: 14.1 | I15: 14.3 | J15: 16 | K15: 19 | L15: 18
A16: Czech Republic | B16: 5.9 | C16: 6 | D16: 6.4 | E16: 7.4 | F16: 7.6 | G16: 8.5 | H16: 9.5 | I16: 9.5 | J16: 11.4 | K16: 12.4 | L16: 13.4
A17: Denmark | B17: 14.9 | C17: 16 | D17: 16.4 | E17: 17.8 | F17: 18.6 | G17: 20 | H17: 22.1 | I17: 23.5 | J17: 25.6 | K17: 27.3 | L17: 29.2
A18: Germany | B18: 5.8 | C18: 6.7 | D18: 7.7 | E18: 9.1 | F18: 8.6 | G18: 9.9 | H18: 10.5 | I18: 11.4 | J18: 12.1 | K18: 12.4 | L18: 13.8
A19: Estonia | B19: 18.4 | C19: 17.5 | D19: 16.1 | E19: 17.1 | F19: 18.9 | G19: 23 | H19: 24.6 | I19: 25.5 | J19: 25.8 | K19: 25.6 | L19: 26.5
A20: Ireland | B20: 2.4 | C20: 2.9 | D20: 3.1 | E20: 3.6 | F20: 4.1 | G20: 5.1 | H20: 5.6 | I20: 6.6 | J20: 7.1 | K20: 7.7 | L20: 8.6
A21: Greece | B21: 6.9 | C21: 7 | D21: 7.2 | E21: 8.2 | F21: 8 | G21: 8.5 | H21: 9.8 | I21: 10.9 | J21: 13.4 | K21: 15 | L21: 15.3
A22: Spain | B22: 8.3 | C22: 8.4 | D22: 9.2 | E22: 9.7 | F22: 10.8 | G22: 13 | H22: 13.8 | I22: 13.2 | J22: 14.3 | K22: 15.3 | L22: 16.2
A23: France | B23: 9.4 | C23: 9.6 | D23: 9.3 | E23: 10.2 | F23: 11.1 | G23: 12.1 | H23: 12.6 | I23: 11.1 | J23: 13.4 | K23: 14 | L23: 14.3
A24: Croatia | B24: 23.5 | C24: 23.8 | D24: 22.7 | E24: 22.2 | F24: 22 | G24: 23.6 | H24: 25.1 | I24: 25.4 | J24: 26.8 | K24: 28.1 | L24: 27.9
A25: Italy | B25: 6.3 | C25: 7.5 | D25: 8.4 | E25: 9.8 | F25: 11.5 | G25: 12.8 | H25: 13 | I25: 12.9 | J25: 15.4 | K25: 16.7 | L25: 17.1
A26: Cyprus | B26: 3.1 | C26: 3.1 | D26: 3.3 | E26: 4 | F26: 5.1 | G26: 5.6 | H26: 6 | I26: 6 | J26: 6.8 | K26: 8.1 | L26: 9
A27: Latvia | B27: 32.8 | C27: 32.3 | D27: 31.1 | E27: 29.6 | F27: 29.8 | G27: 34.3 | H27: 30.4 | I27: 33.5 | J27: 35.7 | K27: 37.1 | L27: 38.7
A28: Lithuania | B28: 17.2 | C28: 17 | D28: 17 | E28: 16.7 | F28: 18 | G28: 20 | H28: 19.8 | I28: 20.2 | J28: 21.7 | K28: 23 | L28: 23.9
A29: Luxembourg | B29: 0.9 | C29: 1.4 | D29: 1.5 | E29: 2.7 | F29: 2.8 | G29: 2.9 | H29: 2.9 | I29: 2.9 | J29: 3.1 | K29: 3.6 | L29: 4.5
A30: Hungary | B30: 4.4 | C30: 4.5 | D30: 5.1 | E30: 5.9 | F30: 6.5 | G30: 8 | H30: 8.6 | I30: 9.1 | J30: 9.6 | K30: 9.5 | L30: 9.5
A31: Malta | B31: 0.1 | C31: 0.2 | D31: 0.2 | E31: 0.2 | F31: 0.2 | G31: 0.2 | H31: 1.1 | I31: 1.9 | J31: 2.9 | K31: 3.7 | L31: 4.7
A32: Netherlands | B32: 2.1 | C32: 2.5 | D32: 2.8 | E32: 3.3 | F32: 3.6 | G32: 4.3 | H32: 3.9 | I32: 4.5 | J32: 4.7 | K32: 4.8 | L32: 5.5
A33: Austria | B33: 23.3 | C33: 23.8 | D33: 25.3 | E33: 27.3 | F33: 28.2 | G33: 30.2 | H33: 30.6 | I33: 30.8 | J33: 31.6 | K33: 32.3 | L33: 33.1
A34: Poland | B34: 6.9 | C34: 6.9 | D34: 6.9 | E34: 6.9 | F34: 7.7 | G34: 8.7 | H34: 9.2 | I34: 10.3 | J34: 10.9 | K34: 11.3 | L34: 11.4
A35: Portugal | B35: 19.2 | C35: 19.5 | D35: 20.8 | E35: 21.9 | F35: 23 | G35: 24.4 | H35: 24.2 | I35: 24.7 | J35: 25 | K35: 25.7 | L35: 27
A36: Romania | B36: 17 | C36: 17.6 | D36: 17.1 | E36: 18.3 | F36: 20.5 | G36: 22.7 | H36: 23.4 | I36: 21.4 | J36: 22.8 | K36: 23.9 | L36: 24.9
A37: Slovenia | B37: 16.1 | C37: 16 | D37: 15.6 | E37: 15.6 | F37: 15 | G37: 20 | H37: 20.5 | I37: 20.2 | J37: 20.9 | K37: 22.5 | L37: 21.9
A38: Slovakia | B38: 6.4 | C38: 6.4 | D38: 6.6 | E38: 7.8 | F38: 7.7 | G38: 9.4 | H38: 9.1 | I38: 10.3 | J38: 10.4 | K38: 10.1 | L38: 11.6
A39: Finland | B39: 29.2 | C39: 28.8 | D39: 30 | E39: 29.6 | F39: 31.4 | G39: 31.4 | H39: 32.4 | I39: 32.8 | J39: 34.4 | K39: 36.7 | L39: 38.7 | P39: Source: Eurostat
A40: Sweden | B40: 38.7 | C40: 40.6 | D40: 42.7 | E40: 44.2 | F40: 45.3 | G40: 48.2 | H40: 47.2 | I40: 49 | J40: 51.1 | K40: 52 | L40: 52.6
A41: United Kingdom | B41: 1.2 | C41: 1.4 | D41: 1.6 | E41: 1.8 | F41: 2.7 | G41: 3.3 | H41: 3.7 | I41: 4.2 | J41: 4.6 | K41: 5.6 | L41: 7
A42: Norway | B42: 58.1 | C42: 59.8 | D42: 60.3 | E42: 60.2 | F42: 61.8 | G42: 64.9 | H42: 61.2 | I42: 64.8 | J42: 65.9 | K42: 66.7 | L42: 69.2

Sheet 6.3
A1: ENERGY INTENSITY OF THE ECONOMY
A2: Gross inland consumption of energy divided by GDP (kg of oil equivalent per 1 000 EUR)
A4: Geo / Time | B4: 2003 | C4: 2004 | D4: 2005 | E4: 2006 | F4: 2007 | G4: 2008 | H4: 2009 | I4: 2010 | J4: 2011 | K4: 2012 | L4: 2013 | M4: 2014
A5: EU (28 countries) | B5: 154.1 | C5: 152 | D5: 149.5 | E5: 145.4 | F5: 138.8 | G5: 137.8 | H5: 135.7 | I5: 137.8 | J5: 130.4 | K5: 130 | L5: 128.3 | M5: 122
A6: Ireland | B6: 102.6 | C6: 100.7 | D6: 95.5 | E6: 91.9 | F6: 89 | G6: 89.6 | H6: 89.7 | I6: 91.3 | J6: 81.3 | K6: 80.6 | L6: 79.1 | M6: 74.5
A7: Denmark | B7: 90.6 | C7: 85.8 | D7: 81.1 | E7: 84.1 | F7: 81.3 | G7: 78.6 | H7: 79.6 | I7: 83 | J7: 76.1 | K7: 73.5 | L7: 74.8 | M7: 68.6
A8: Norway | B8: 94.2 | C8: 88.9 | D8: 87.9 | E8: 87.2 | F8: 85.8 | G8: 99.7 | H8: 98.5 | I8: 106.1 | J8: 87 | K8: 89.6 | L8: 99.3 | M8: 84.4
A9: Italy | B9: 116.7 | C9: 115.3 | D9: 116.6 | E9: 113.2 | F9: 111.5 | G9: 111.6 | H9: 110.1 | I9: 110.9 | J9: 106.9 | K9: 105.6 | L9: 103.5 | M9: 98.4
A10: Austria | B10: 123.8 | C10: 123.3 | D10: 123.8 | E10: 120.3 | F10: 114.7 | G10: 113.9 | H10: 111.3 | I10: 116.6 | J10: 110.1 | K10: 108.8 | L10: 110 | M10: 106.3
A11: United Kingdom | B11: 137.6 | C11: 134.6 | D11: 131.6 | E11: 126.3 | F11: 118.8 | G11: 117.6 | H11: 115.8 | I11: 117.2 | J11: 107.2 | K11: 109 | L11: 105.8 | M11: 96.3
A12: Luxembourg | B12: 130.5 | C12: 138.9 | D12: 137.2 | E12: 128.4 | F12: 116.2 | G12: 117.2 | H12: 116.7 | I12: 117.4 | J12: 112.6 | K12: 111 | L12: 103.4 | M12: 96.6
A13: Germany | B13: 143.4 | C13: 142.8 | D13: 140.9 | E13: 139.8 | F13: 128.4 | G13: 128.6 | H13: 128 | I13: 129.1 | J13: 118.4 | K13: 118.7 | L13: 120.5 | M13: 114.7
A14: Spain | B14: 141 | C14: 142.8 | D14: 140.7 | E14: 135.2 | F14: 132 | G14: 126.5 | H14: 120.8 | I14: 120.5 | J14: 120.1 | K14: 122.9 | L14: 116.5 | M14: 112.3
A15: France | B15: 147.4 | C15: 145.5 | D15: 143.8 | E15: 138.5 | F15: 133.9 | G15: 134.3 | H15: 132.3 | I15: 133.6 | J15: 126.2 | K15: 126.1 | L15: 125.9 | M15: 120.6
A16: Sweden | B16: 157 | C16: 156.3 | D16: 149.5 | E16: 138.8 | F16: 134.2 | G16: 134.3 | H16: 130.5 | I16: 137.6 | J16: 131.2 | K16: 131.8 | L16: 128.4 | M16: 123.2
A17: Netherlands | B17: 147.9 | C17: 147.7 | D17: 142.8 | E17: 136.8 | F17: 131.3 | G17: 128.9 | H17: 130.3 | I17: 136.7 | J17: 125.7 | K17: 127.5 | L17: 127.7 | M17: 120.3
A18: Greece | B18: 139.6 | C18: 135.1 | D18: 136.7 | E18: 130.1 | F18: 125.7 | G18: 127.4 | H18: 128 | I18: 127.6 | J18: 135.8 | K18: 145.2 | L18: 131.8 | M18: 131.7
A19: Portugal | B19: 152.2 | C19: 154.6 | D19: 157.4 | E19: 147.8 | F19: 144.1 | G19: 139.6 | H19: 142 | I19: 135 | J19: 133.8 | K19: 131.2 | L19: 133.6 | M19: 130.7
A20: Malta | B20: 158.4 | C20: 162.2 | D20: 162.8 | E20: 150.1 | F20: 153.4 | G20: 148.1 | H20: 136.6 | I20: 141.8 | J20: 139 | K20: 141.4 | L20: 121.3 | M20: 118.6
A21: Cyprus | B21: 171.2 | C21: 153.6 | D21: 149.9 | E21: 148.9 | F21: 148.2 | G21: 150.5 | H21: 149.4 | I21: 143.3 | J21: 140.1 | K21: 134.3 | L21: 124.1 | M21: 129.5
A22: Belgium | B22: 183.3 | C22: 178 | D22: 173.4 | E22: 166.1 | F22: 158 | G22: 163.2 | H22: 159.8 | I22: 167.5 | J22: 153.3 | K22: 146.8 | L22: 151.8 | M22: 141.4
A23: Finland | B23: 219.9 | C23: 213.5 | D23: 192.2 | E23: 200.8 | F23: 189.9 | G23: 181.8 | H23: 186.8 | I23: 198.5 | J23: 186.8 | K23: 183.5 | L23: 181.8 | M23: 185.6
A24: Croatia | B24: 237.4 | C24: 228 | D24: 222.5 | E24: 210.9 | F24: 209.2 | G24: 199.4 | H24: 208.1 | I24: 209.5 | J24: 207.3 | K24: 201.9 | L24: 197.7 | M24: 189.4
A25: Slovenia | B25: 226.6 | C25: 223.8 | D25: 220.2 | E25: 208.4 | F25: 195.1 | G25: 199.7 | H25: 197 | I25: 202.6 | J25: 201 | K25: 198.6 | L25: 195.7 | M25: 184.6
A26: Latvia | B26: 288.6 | C26: 273.3 | D26: 252.6 | E26: 234.2 | F26: 218.4 | G26: 217.7 | H26: 244.1 | I26: 260.5 | J26: 231.8 | K26: 231.1 | L26: 220.8 | M26: 215
A27: Hungary | B27: 291.5 | C27: 275.3 | D27: 278.3 | E27: 266.6 | F27: 259.3 | G27: 255.3 | H27: 258.1 | I27: 257 | J27: 246 | K27: 234.3 | L27: 222.5 | M27: 215.1
A28: Lithuania | B28: 392.6 | C28: 376.2 | D28: 329.5 | E28: 300.8 | F28: 294.9 | G28: 286.6 | H28: 307.3 | I28: 242.2 | J28: 235.8 | K28: 229.9 | L28: 209.3 | M28: 203.3
A29: Poland | B29: 346 | C29: 329.2 | D29: 321.1 | E29: 317.6 | F29: 296.1 | G29: 288.1 | H29: 271 | I29: 278.3 | J29: 265.4 | K29: 252.9 | L29: 250.8 | M29: 233.6
A30: Slovakia | B30: 393.7 | C30: 368.6 | D30: 356.3 | E30: 325.7 | F30: 278 | G30: 269.7 | H30: 261.5 | I30: 265 | J30: 251 | K30: 237.2 | L30: 238.2 | M30: 221.2
A31: Czech Republic | B31: 358.6 | C31: 350.3 | D31: 325.4 | E31: 312.5 | F31: 296.2 | G31: 281.9 | H31: 277.8 | I31: 285.7 | J31: 269.9 | K31: 270.9 | L31: 268.4 | M31: 258.6
A32: Romania | B32: 412.3 | C32: 375.1 | D32: 357.2 | E32: 342.1 | F32: 318.8 | G32: 293 | H32: 278.3 | I32: 282.5 | J32: 285.4 | K32: 274.4 | L32: 243 | M32: 235
A33: FYR Macedonia | B33: 517.4 | C33: 486.1 | D33: 470.8 | E33: 465.8 | F33: 454 | G33: 426.6 | H33: 400.9 | I33: 398.6 | J33: 423.1 | K33: 408.1 | L33: 363.6 | M33: 341.4
A34: Estonia | B34: 428.6 | C34: 413 | D34: 374.6 | E34: 331.8 | F34: 345.1 | G34: 352.9 | H34: 372.7 | I34: 417.8 | J34: 390.4 | K34: 367.2 | L34: 396.2 | M34: 386.4
A35: Serbia | B35: 723.8 | C35: 715 | D35: 601.7 | E35: 610.4 | F35: 569.5 | G35: 546.7 | H35: 514.1 | I35: 523.8 | J35: 536.6 | K35: 486.9 | L35: 487.4 | M35: 441.9
A36: Bulgaria | B36: 680.2 | C36: 626.6 | D36: 609.4 | E36: 589.5 | F36: 537.8 | G36: 506.2 | H36: 464.3 | I36: 471.2 | J36: 498.3 | K36: 474.7 | L36: 430.7 | M36: 448.8
B38: Low intensity | F38: Medium intensity | J38: High intensity
A40: Data source: Eurostat
A44: Source of Data: | B44: Eurostat
A45: Last update: | B45: 30.07.2015
A46: Date of extraction: | B46: 24 Aug 2015 12:27:20 CEST
A47: Hyperlink to the table: | B47: http://goo.gl/LPtzV3
A48: General Disclaimer of the EC website: | B48: http://ec.europa.eu/geninfo/legal_notices_en.htm
A49: Short Description: | B49: This indicator is the ratio between the gross inland consumption of energy and the gross domestic product (GDP) for a given calendar year. It measures the energy consumption of an economy and its overall energy efficiency. The gross inland consumption of energy is calculated as the sum of the gross inland consumption of five energy types: coal, electricity, oil, natural gas and renewable energy sources. The GDP figures are taken at chain linked volumes with reference year 2005. The energy intensity ratio is determined by dividing the gross inland consumption by the GDP. Since gross inland consumption is measured in kgoe (kilogram of oil equivalent) and GDP in 1 000 EUR, this ratio is measured in kgoe per 1 000 EUR.
A50: Code: | B50: tsdec360

Sheet 6.4-6.5
B3: Column Labels
B4: Estimates | H4: Estimates Sum of Population | I4: Estimates Sum of Population2 | J4: Medium variant | P4: Medium variant Sum of Population | Q4: Medium variant Sum of Population2 | R4: Total Sum of Population | S4: Total Sum of Population2 | W4: Total
B5: Sum of Population | E5: Sum of Population2 | J5: Sum of Population | M5: Sum of Population2 | V5: Total | W5: Projected | X5: Old
A6: Row Labels | B6: Young | C6: Adult | D6: Old | E6: Young | F6: Adult | G6: Old | J6: Young | K6: Adult | L6: Old | M6: Young | N6: Adult | O6: Old | U6: Date | V6: Dependency | W6: Dependency | X6: Dependency
A7: 1950 | B7: 42595.724 | C7: 102174.537 | D7: 13042.78 | E7: 0.4168917741 | F7: 1 | G7: 0.1276519609 | H7: 157813.041 | R7: 157813.041 | U7: =DATE(A7,7,1) -> 1950-07-01 | V7: =IF(E7="",NA(),E7+G7) -> 0.544543735 | W7: =IF(M7="",NA(),+M7+O7) ->  | AB7: ESTIMATES AND PROJECTIONS FOR THE US POPULATION
A8: 1951 | B8: 44162.8876 | C8: 102798.7944 | D8: 13448.0264 | E8: 0.4296051122 | F8: 1 | G8: 0.1308189116 | H8: 160409.7084 | R8: 160409.7084 | U8: 1951-07-01 | V8: =IF(E8="",NA(),E8+G8) -> 0.5604240238 | W8: =IF(M8="",NA(),+M8+O8) ->  | X8: =H8/H7 -> 1.016454074
A9: 1952 | B9: 45730.0512 | C9: 103423.0518 | D9: 13853.2728 | E9: 0.4421649758 | F9: 1 | G9: 0.1339476312 | H9: 163006.3758 | R9: 163006.3758 | U9: 1952-07-01 | V9: 0.576112607 | X9: =H9/H8 -> 1.01618772
A10: 1953 | B10: 47297.2148 | C10: 104047.3092 | D10: 14258.5192 | E10: 0.4545741275 | F10: 1 | G10: 0.1370388077 | H10: 165603.0432 | R10: 165603.0432 | U10: 1953-07-01 | V10: 0.5916129352 | X10: 1.015929852
A11: 1954 | B11: 48864.3784 | C11: 104671.5666 | D11: 14663.7656 | E11: 0.4668352637 | F11: 1 | G11: 0.1400931129 | H11: 168199.7106 | R11: 168199.7106 | U11: 1954-07-01 | V11: 0.6069283767 | X11: 1.015680071
A12: 1955 | B12: 50431.542 | C12: 105295.824 | D12: 15069.012 | E12: 0.4789510171 | F12: 1 | G12: 0.1431112026 | H12: 170796.378 | R12: 170796.378 | U12: 1955-07-01 | V12: 0.6220622197 | X12: 1.015438002
A13: 1956 | B13: 51814.8094 | C13: 106596.8692 | D13: 15460.7286 | E13: 0.4860819064 | F13: 1 | G13: 0.1450392372 | H13: 173872.4072 | R13: 173872.4072 | U13: 1956-07-01 | V13: 0.6311211437 | X13: 1.018009921
A14: 1957 | B14: 53198.0768 | C14: 107897.9144 | D14: 15852.4452 | E14: 0.4930408256 | F14: 1 | G14: 0.146920775 | H14: 176948.4364 | R14: 176948.4364 | U14: 1957-07-01 | V14: 0.6399616006 | X14: 1.017691302
A15: 1958 | B15: 54581.3442 | C15: 109198.9596 | D15: 16244.1618 | E15: 0.4998339215 | F15: 1 | G15: 0.1487574777 | H15: 180024.4656 | R15: 180024.4656 | U15: 1958-07-01 | V15: 0.6485913992 | X15: 1.01738376
A16: 1959 | B16: 55964.6116 | C16: 110500.0048 | D16: 16635.8784 | E16: 0.5064670513 | F16: 1 | G16: 0.1505509292 | H16: 183100.4948 | R16: 183100.4948 | U16: 1959-07-01 | V16: 0.6570179805 | X16: 1.017086729
A17: 1960 | B17: 57347.879 | C17: 111801.05 | D17: 17027.595 | E17: 0.5129457997 | F17: 1 | G17: 0.1523026394 | H17: 186176.524 | R17: 186176.524 | U17: 1960-07-01 | V17: 0.6652484391 | X17: 1.016799677
A18: 1961 | B18: 57904.451 | C18: 113512.2618 | D18: 17405.2128 | E18: 0.5101162648 | F18: 1 | G18: 0.1533333274 | H18: 188821.9256 | R18: 188821.9256 | U18: 1961-07-01 | V18: 0.6634495922 | X18: 1.014209104
A19: 1962 | B19: 58461.023 | C19: 115223.4736 | D19: 17782.8306 | E19: 0.5073707741 | F19: 1 | G19: 0.1543334014 | H19: 191467.3272 | R19: 191467.3272 | U19: 1962-07-01 | V19: 0.6617041755 | X19: 1.014010034
A20: 1963 | B20: 59017.595 | C20: 116934.6854 | D20: 18160.4484 | E20: 0.504705638 | F20: 1 | G20: 0.1553042054 | H20: 194112.7288 | R20: 194112.7288 | U20: 1963-07-01 | V20: 0.6600098434 | X20: 1.013816465
A21: 1964 | B21: 59574.167 | C21: 118645.8972 | D21: 18538.0662 | E21: 0.5021173796 | F21: 1 | G21: 0.1562470059 | H21: 196758.1304 | R21: 196758.1304 | U21: 1964-07-01 | V21: 0.6583643855 | X21: 1.013628172
A22: 1965 | B22: 60130.739 | C22: 120357.109 | D22: 18915.684 | E22: 0.4996027198 | F22: 1 | G22: 0.1571629973 | H22: 199403.532 | R22: 199403.532 | U22: 1965-07-01 | V22: 0.6567657171 | X22: 1.013444942
A23: 1966 | B23: 59918.3592 | C23: 122286.8398 | D23: 19214.788 | E23: 0.4899820725 | F23: 1 | G23: 0.1571288295 | H23: 201419.987 | R23: 201419.987 | U23: 1966-07-01 | V23: 0.647110902 | X23: 1.010112434
A24: 1967 | B24: 59705.9794 | C24: 124216.5706 | D24: 19513.892 | E24: 0.4806603428 | F24: 1 | G24: 0.1570957233 | H24: 203436.442 | R24: 203436.442 | U24: 1967-07-01 | V24: 0.637756066 | X24: 1.010011196 | AB24: Source: United Nations Population Division, 2015 Projections
A25: 1968 | B25: 59493.5996 | C25: 126146.3014 | D25: 19812.996 | E25: 0.4716238125 | F25: 1 | G25: 0.1570636299 | H25: 205452.897 | R25: 205452.897 | U25: 1968-07-01 | V25: 0.6286874424 | X25: 1.009911966
A26: 1969 | B26: 59281.2198 | C26: 128076.0322 | D26: 20112.1 | E26: 0.4628595904 | F26: 1 | G26: 0.1570325037 | H26: 207469.352 | R26: 207469.352 | U26: 1969-07-01 | V26: 0.6198920941 | X26: 1.009814683
A27: 1970 | B27: 59068.84 | C27: 130005.763 | D27: 20411.204 | E27: 0.4543555504 | F27: 1 | G27: 0.1570023015 | H27: 209485.807 | R27: 209485.807 | U27: 1970-07-01 | V27: 0.6113578519 | X27: 1.009719291
A28: 1971 | B28: 58229.2074 | C28: 132237.2046 | D28: 20914.9458 | E28: 0.4403390678 | F28: 1 | G28: 0.1581623406 | H28: 211381.3578 | R28: 211381.3578 | U28: 1971-07-01 | V28: 0.5985014084 | X28: 1.009048588
A29: 1972 | B29: 57389.5748 | C29: 134468.6462 | D29: 21418.6876 | E29: 0.4267877786 | F29: 1 | G29: 0.1592838792 | H29: 213276.9086 | R29: 213276.9086 | U29: 1972-07-01 | V29: 0.5860716578 | X29: 1.008967445 | AB29: ESTIMATES AND PROJECTIONS FOR DEPENDENCY RATIOS FOR THE U.S. POPULATION
A30: 1973 | B30: 56549.9422 | C30: 136700.0878 | D30: 21922.4294 | E30: 0.4136789018 | F30: 1 | G30: 0.1603688026 | H30: 215172.4594 | R30: 215172.4594 | U30: 1973-07-01 | V30: 0.5740477045 | X30: 1.008887745
A31: 1974 | B31: 55710.3096 | C31: 138931.5294 | D31: 22426.1712 | E31: 0.4009911202 | F31: 1 | G31: 0.1614188752 | H31: 217068.0102 | R31: 217068.0102 | U31: 1974-07-01 | V31: 0.5624099953 | X31: 1.008809449
A32: 1975 | B32: 54870.677 | C32: 141162.971 | D32: 22929.913 | E32: 0.3887044641 | F32: 1 | G32: 0.1624357495 | H32: 218963.561 | R32: 218963.561 | U32: 1975-07-01 | V32: 0.5511402137 | X32: 1.00873252
A33: 1976 | B33: 54321.77 | C33: 143208.2304 | D33: 23558.4898 | E33: 0.3793201679 | F33: 1 | G33: 0.1645051387 | H33: 221088.4902 | R33: 221088.4902 | U33: 1976-07-01 | V33: 0.5438253066 | X33: 1.009704488
A34: 1977 | B34: 53772.863 | C34: 145253.4898 | D34: 24187.0666 | E34: 0.3702001451 | F34: 1 | G34: 0.1665162512 | H34: 223213.4194 | R34: 223213.4194 | U34: 1977-07-01 | V34: 0.5367163963 | X34: 1.009611216
A35: 1978 | B35: 53223.956 | C35: 147298.7492 | D35: 24815.6434 | E35: 0.3613333873 | F35: 1 | G35: 0.1684715148 | H35: 225338.3486 | R35: 225338.3486 | U35: 1978-07-01 | V35: 0.5298049021 | X35: 1.00951972
A36: 1979 | B36: 52675.049 | C36: 149344.0086 | D36: 25444.2202 | E36: 0.3527094893 | F36: 1 | G36: 0.1703732238 | H36: 227463.2778 | R36: 227463.2778 | U36: 1979-07-01 | V36: 0.5230827131 | X36: 1.009429949
A37: 1980 | B37: 52126.142 | C37: 151389.268 | D37: 26072.797 | E37: 0.3443186078 | F37: 1 | G37: 0.1722235489 | H37: 229588.207 | R37: 229588.207 | U37: 1980-07-01 | V37: 0.5165421567 | X37: 1.009341856
A38: 1981 | B38: 52109.3498 | C38: 153069.2666 | D38: 26630.2606 | E38: 0.3404298652 | F38: 1 | G38: 0.1739752283 | H38: 231808.877 | R38: 231808.877 | U38: 1981-07-01 | V38: 0.5144050935 | X38: 1.009672404
A39: 1982 | B39: 52092.5576 | C39: 154749.2652 | D39: 27187.7242 | E39: 0.336625557 | F39: 1 | G39: 0.1756888743 | H39: 234029.547 | R39: 234029.547 | U39: =DATE(A39,7,1) -> 1982-07-01 | V39: 0.5123144313 | X39: 1.009579745
A40: 1983 | B40: 52075.7654 | C40: 156429.2638 | D40: 27745.1878 | E40: 0.3329029629 | F40: 1 | G40: 0.1773657123 | H40: 236250.217 | R40: 236250.217 | U40: 1983-07-01 | V40: 0.5102686752 | X40: 1.009488845
A41: 1984 | B41: 52058.9732 | C41: 158109.2624 | D41: 28302.6514 | E41: 0.329259478 | F41: 1 | G41: 0.1790069157 | H41: 238470.887 | R41: 238470.887 | U41: 1984-07-01 | V41: 0.5082663936 | X41: 1.009399653
A42: 1985 | B42: 52042.181 | C42: 159789.261 | D42: 28860.115 | E42: 0.3256926071 | F42: 1 | G42: 0.1806136083 | H42: 240691.557 | R42: 240691.557 | U42: 1985-07-01 | V42: 0.5063062154 | X42: 1.009312122
A43: 1986 | B43: 52556.377 | C43: 161145.8524 | D43: 29420.5782 | E43: 0.3261416674 | F43: 1 | G43: 0.1825711165 | H43: 243122.8076 | R43: 243122.8076 | U43: 1986-07-01 | V43: 0.508712784 | X43: 1.010101105
A44: 1987 | B44: 53070.573 | C44: 162502.4438 | D44: 29981.0414 | E44: 0.3265832301 | F44: 1 | G44: 0.1844959417 | H44: 245554.0582 | R44: 245554.0582 | U44: 1987-07-01 | V44: 0.5110791718 | X44: 1.010000093
A45: 1988 | B45: 53584.769 | C45: 163859.0352 | D45: 30541.5046 | E45: 0.3270174814 | F45: 1 | G45: 0.1863888956 | H45: 247985.3088 | R45: 247985.3088 | U45: 1988-07-01 | V45: 0.513406377 | X45: 1.009901081
A46: 1989 | B46: 54098.965 | C46: 165215.6266 | D46: 31101.9678 | E46: 0.3274446014 | F46: 1 | G46: 0.1882507632 | H46: 250416.5594 | R46: 250416.5594 | U46: 1989-07-01 | V46: 0.5156953646 | X46: 1.009804011 | AB46: Source: United Nations Population Division, 2015 Projections
A47: 1990 | B47: 54613.161 | C47: 166572.218 | D47: 31662.431 | E47: 0.3278647643 | F47: 1 | G47: 0.1900823041 | H47: 252847.81 | R47: 252847.81 | U47: 1990-07-01 | V47: 0.5179470685 | X47: 1.009708825
A48: 1991 | B48: 55272.2424 | C48: 168224.8378 | D48: 32036.2734 | E48: 0.3285617221 | F48: 1 | G48: 0.1904372376 | H48: 255533.3536 | R48: 255533.3536 | U48: 1991-07-01 | V48: 0.5189989596 | X48: 1.010621186
A49: 1992 | B49: 55931.3238 | C49: 169877.4576 | D49: 32410.1158 | E49: 0.3292451193 | F49: 1 | G49: 0.1907852652 | H49: 258218.8972 | R49: 258218.8972 | U49: 1992-07-01 | V49: 0.5200303845 | X49: 1.010509562
A50: 1993 | B50: 56590.4052 | C50: 171530.0774 | D50: 32783.9582 | E50: 0.3299153481 | F50: 1 | G50: 0.1911265866 | H50: 260904.4408 | R50: 260904.4408 | U50: 1993-07-01 | V50: 0.5210419348 | X50: 1.01040026
A51: 1994 | B51: 57249.4866 | C51: 173182.6972 | D51: 33157.8006 | E51: 0.3305727854 | F51: 1 | G51: 0.1914613939 | H51: 263589.9844 | R51: 263589.9844 | U51: 1994-07-01 | V51: 0.5220341793 | X51: 1.010293208
A52: 1995 | B52: 57908.568 | C52: 174835.317 | D52: 33531.643 | E52: 0.3312177939 | F52: 1 | G52: 0.1917898716 | H52: 266275.528 | R52: 266275.528 | U52: 1995-07-01 | V52: 0.5230076656 | X52: 1.010188337
A53: 1996 | B53: 58354.7414 | C53: 177449.9572 | D53: 33794.872 | E53: 0.3288518201 | F53: 1 | G53: 0.1904473381 | H53: 269599.5706 | R53: 269599.5706 | U53: 1996-07-01 | V53: 0.5192991582 | X53: 1.01248347
A54: 1997 | B54: 58800.9148 | C54: 180064.5974 | D54: 34058.101 | E54: 0.3265545568 | F54: 1 | G54: 0.1891437933 | H54: 272923.6132 | R54: 272923.6132 | U54: 1997-07-01 | V54: 0.5156983502 | X54: 1.012329555
A55: 1998 | B55: 59247.0882 | C55: 182679.2376 | D55: 34321.33 | E55: 0.3243230538 | F55: 1 | G55: 0.1878775632 | H55: 276247.6558 | R55: 276247.6558 | U55: 1998-07-01 | V55: 0.5122006169 | X55: 1.012179388
A56: 1999 | B56: 59693.2616 | C56: 185293.8778 | D56: 34584.559 | E56: 0.3221545272 | F56: 1 | G56: 0.1866470679 | H56: 279571.6984 | R56: 279571.6984 | U56: 1999-07-01 | V56: 0.5088015952 | X56: 1.012032836
A57: 2000 | B57: 60139.435 | C57: 187908.518 | D57: 34847.788 | E57: 0.3200463483 | F57: 1 | G57: 0.185450816 | H57: 282895.741 | R57: 282895.741 | U57: 2000-07-01 | V57: 0.5054971643 | X57: 1.011889768
A58: 2001 | B58: 60210.7432 | C58: 190158.141 | D58: 35175.6356 | E58: 0.3166351064 | F58: 1 | G58: 0.1849809607 | H58: 285544.5198 | R58: 285544.5198 | U58: 2001-07-01 | V58: 0.501616067 | X58: 1.009363092
A59: 2002 | B59: 60282.0514 | C59: 192407.764 | D59: 35503.4832 | E59: 0.3133036326 | F59: 1 | G59: 0.1845220924 | H59: 288193.2986 | R59: 288193.2986 | U59: 2002-07-01 | V59: 0.497825725 | X59: 1.009276238
A60: 2003 | B60: 60353.3596 | C60: 194657.387 | D60: 35831.3308 | E60: 0.3100491614 | F60: 1 | G60: 0.1840738302 | H60: 290842.0774 | R60: 290842.0774 | U60: 2003-07-01 | V60: 0.4941229916 | X60: 1.00919098
A61: 2004 | B61: 60424.6678 | C61: 196907.01 | D61: 36159.1784 | E61: 0.3068690536 | F61: 1 | G61: 0.1836358106 | H61: 293490.8562 | R61: 293490.8562 | U61: 2004-07-01 | V61: 0.4905048642 | X61: 1.009107275
A62: 2005 | B62: 60495.976 | C62: 199156.633 | D62: 36487.026 | E62: 0.3037607891 | F62: 1 | G62: 0.1832076866 | H62: 296139.635 | R62: 296139.635 | U62: 2005-07-01 | V62: 0.4869684757 | X62: 1.009025081
A63: 2006 | B63: 60639.0294 | C63: 200993.8076 | D63: 37254.105 | E63: 0.3016960081 | F63: 1 | G63: 0.1853495162 | H63: 298886.942 | R63: 298886.942 | U63: 2006-07-01 | V63: 0.4870455243 | X63: 1.009277066
A64: 2007 | B64: 60782.0828 | C64: 202830.9822 | D64: 38021.184 | E64: 0.2996686312 | F64: 1 | G64: 0.1874525459 | H64: 301634.249 | R64: 301634.249 | U64: 2007-07-01 | V64: 0.4871211771 | X64: 1.009191793
A65: 2008 | B65: 60925.1362 | C65: 204668.1568 | D65: 38788.263 | E65: 0.2976776512 | F65: 1 | G65: 0.1895178205 | H65: 304381.556 | R65: 304381.556 | U65: 2008-07-01 | V65: 0.4871954717 | X65: 1.009108074
A66: 2009 | B66: 61068.1896 | C66: 206505.3314 | D66: 39555.342 | E66: 0.2957220968 | F66: 1 | G66: 0.1915463477 | H66: 307128.863 | R66: 307128.863 | U66: 2009-07-01 | V66: 0.4872684444 | X66: 1.009025866
A67: 2010 | B67: 61211.243 | C67: 208342.506 | D67: 40322.421 | E67: 0.2938010307 | F67: 1 | G67: 0.1935390995 | H67: 309876.17 | R67: 309876.17 | U67: 2010-07-01 | V67: 0.4873401302 | X67: 1.008945128
A68: 2011 | B68: 61164.4374 | C68: 209317.7536 | D68: 41773.4712 | E68: 0.2922085506 | F68: 1 | G68: 0.1995696518 | H68: 312255.6622 | R68: 312255.6622 | U68: 2011-07-01 | V68: 0.4917782024 | X68: 1.007678849
A69: 2012 | B69: 61117.6318 | C69: 210293.0012 | D69: 43224.5214 | E69: 0.290630841 | F69: 1 | G69: 0.2055442699 | H69: 314635.1544 | R69: 314635.1544 | U69: 2012-07-01 | V69: 0.4961751109 | X69: 1.007620333
A70: 2013 | B70: 61070.8262 | C70: 211268.2488 | D70: 44675.5716 | E70: 0.2890676973 | F70: 1 | G70: 0.2114637285 | H70: 317014.6466 | R70: 317014.6466 | U70: 2013-07-01 | V70: 0.5005314258 | X70: 1.007562703
A71: 2014 | B71: 61024.0206 | C71: 212243.4964 | D71: 46126.6218 | E71: 0.2875189188 | F71: 1 | G71: 0.2173287878 | H71: 319394.1388 | R71: 319394.1388 | U71: =DATE(A71,7,1) -> 2014-07-01 | V71: 0.5048477066 | X71: 1.007505938
A72: 2015 | J72: 60977.215 | K72: 213218.744 | L72: 47577.672 | M72: 0.2859843082 | N72: 1 | O72: 0.2231401945 | P72: 321773.631 | R72: 321773.631 | U72: 2015-07-01 | V72: =IF(E72="",NA(),E72+G72) ->  | W72: =IF(M72="",NA(),+M72+O72) -> 0.5091245027 | X72: =P72/H71 -> 1.007450018
A73: 2016 | J73: 61175.8684 | K73: 213743.6068 | L73: 49208.5356 | M73: 0.2862114536 | N73: 1 | O73: 0.2302222571 | P73: 324128.0108 | R73: 324128.0108 | U73: 2016-07-01 | W73: 0.5164337107 | X73: =P73/P72 -> 1.007316882
A74: 2017 | J74: 61374.5218 | K74: 214268.4696 | L74: 50839.3992 | M74: 0.2864374862 | N74: 1 | O74: 0.2372696239 | P74: 326482.3906 | R74: 326482.3906 | U74: 2017-07-01 | W74: 0.5237071101 | X74: =P74/P73 -> 1.007263734
A75: 2018 | J75: 61573.1752 | K75: 214793.3324 | L75: 52470.2628 | M75: 0.2866624141 | N75: 1 | O75: 0.2442825492 | P75: 328836.7704 | R75: 328836.7704 | U75: 2018-07-01 | W75: 0.5309449634 | X75: 1.007211353
A76: 2019 | J76: 61771.8286 | K76: 215318.1952 | L76: 54101.1264 | M76: 0.2868862455 | N76: 1 | O76: 0.251261285 | P76: 331191.1502 | R76: 331191.1502 | U76: 2019-07-01 | W76: 0.5381475304 | X76: 1.007159722
A77: 2020 | J77: 61970.482 | K77: 215843.058 | L77: 55731.99 | M77: 0.2871089882 | N77: 1 | O77: 0.2582060805 | P77: 333545.53 | R77: 333545.53 | U77: 2020-07-01 | W77: 0.5453150687 | X77: 1.007108825
A78: 2021 | J78: 62179.441 | K78: 216060.6112 | L78: 57613.282 | M78: 0.2877870272 | N78: 1 | O78: 0.2666533325 | P78: 335853.3342 | R78: 335853.3342 | U78: 2021-07-01 | W78: 0.5544403597 | X78: 1.006919008
A79: 2022 | J79: 62388.4 | K79: 216278.1644 | L79: 59494.574 | M79: 0.2884637022 | N79: 1 | O79: 0.2750835905 | P79: 338161.1384 | R79: 338161.1384 | U79: 2022-07-01 | W79: 0.5635472926 | X79: 1.006871464
A80: 2023 | J80: 62597.359 | K80: 216495.7176 | L80: 61375.866 | M80: 0.2891390171 | N80: 1 | O80: 0.2834969055 | P80: 340468.9426 | R80: 340468.9426 | U80: 2023-07-01 | W80: 0.5726359227 | X80: 1.00682457
A81: 2024 | J81: 62806.318 | K81: 216713.2708 | L81: 63257.158 | M81: 0.2898129762 | N81: 1 | O81: 0.2918933288 | P81: 342776.7468 | R81: 342776.7468 | U81: 2024-07-01 | W81: 0.581706305 | X81: 1.00677831
A82: 2025 | J82: 63015.277 | K82: 216930.824 | L82: 65138.45 | M82: 0.2904855836 | N82: 1 | O82: 0.300272911 | P82: 345084.551 | R82: 345084.551 | U82: 2025-07-01 | W82: 0.5907584945 | X82: 1.006732674
A83: 2026 | J83: 63368.7896 | K83: 217029.3744 | L83: 66822.4702 | M83: 0.2919825474 | N83: 1 | O83: 0.3078959721 | P83: 347220.6342 | R83: 347220.6342 | U83: 2026-07-01 | W83: 0.5998785195 | X83: 1.006190028
A84: 2027 | J84: 63722.3022 | K84: 217127.9248 | L84: 68506.4904 | M84: 0.2934781524 | N84: 1 | O84: 0.3155121133 | P84: 349356.7174 | R84: 349356.7174 | U84: 2027-07-01 | W84: 0.6089902656 | X84: 1.006151948
A85: 2028 | J85: 64075.8148 | K85: 217226.4752 | L85: 70190.5106 | M85: 0.2949724003 | N85: 1 | O85: 0.3231213439 | P85: 351492.8006 | R85: 351492.8006 | U85: 2028-07-01 | W85: 0.6180937442 | X85: 1.006114333
A86: 2029 | J86: 64429.3274 | K86: 217325.0256 | L86: 71874.5308 | M86: 0.296465293 | N86: 1 | O86: 0.3307236735 | P86: 353628.8838 | R86: 353628.8838 | U86: 2029-07-01 | W86: 0.6271889665 | X86: 1.006077175
A87: 2030 | J87: 64782.84 | K87: 217423.576 | L87: 73558.551 | M87: 0.2979568324 | N87: 1 | O87: 0.3383191113 | P87: 355764.967 | R87: 355764.967 | U87: 2030-07-01 | W87: 0.6362759437 | X87: 1.006040466
A88: 2031 | J88: 64963.9082 | K88: 218210.3334 | L88: 74490.976 | M88: 0.2977123365 | N88: 1 | O88: 0.3413723578 | P88: 357665.2176 | R88: 357665.2176 | U88: 2031-07-01 | W88: 0.6390846942 | X88: 1.005341309
A89: 2032 | J89: 65144.9764 | K89: 218997.0908 | L89: 75423.401 | M89: 0.2974695973 | N89: 1 | O89: 0.3444036664 | P89: 359565.4682 | R89: 359565.4682 | U89: 2032-07-01 | W89: 0.6418732636 | X89: 1.005312931
A90: 2033 | J90: 65326.0446 | K90: 219783.8482 | L90: 76355.826 | M90: 0.2972285959 | N90: 1 | O90: 0.3474132727 | P90: 361465.7188 | R90: 361465.7188 | U90: 2033-07-01 | W90: 0.6446418686 | X90: 1.005284853
A91: 2034 | J91: 65507.1128 | K91: 220570.6056 | L91: 77288.251 | M91: 0.2969893138 | N91: 1 | O91: 0.3504014091 | P91: 363365.9694 | R91: 363365.9694 | U91: 2034-07-01 | W91: 0.6473907229 | X91: 1.00525707
A92: 2035 | J92: 65688.181 | K92: 221357.363 | L92: 78220.676 | M92: 0.2967517326 | N92: 1 | O92: 0.3533683043 | P92: 365266.22 | R92: 365266.22 | U92: 2035-07-01 | W92: 0.6501200369 | X92: 1.005229578
A93: 2036 | J93: 65798.4414 | K93: 222250.603 | L93: 78917.2622 | M93: 0.2960551761 | N93: 1 | O93: 0.3550823311 | P93: 366966.3066 | R93: 366966.3066 | U93: 2036-07-01 | W93: 0.6511375071 | X93: 1.004654377
A94: 2037 | J94: 65908.7018 | K94: 223143.843 | L94: 79613.8484 | M94: 0.2953641961 | N94: 1 | O94: 0.3567826355 | P94: 368666.3932 | R94: 368666.3932 | U94: 2037-07-01 | W94: 0.6521468316 | X94: 1.004632814
A95: 2038 | J95: 66018.9622 | K95: 224037.083 | L95: 80310.4346 | M95: 0.294678726 | N95: 1 | O95: 0.3584693816 | P95: 370366.4798 | R95: 370366.4798 | U95: 2038-07-01 | W95: 0.6531481076 | X95: 1.00461145
A96: 2039 | J96: 66129.2226 | K96: 224930.323 | L96: 81007.0208 | M96: 0.2939987002 | N96: 1 | O96: 0.360142731 | P96: 372066.5664 | R96: 372066.5664 | U96: 2039-07-01 | W96: 0.6541414312 | X96: 1.004590282
A97: 2040 | J97: 66239.483 | K97: 225823.563 | L97: 81703.607 | M97: 0.2933240541 | N97: 1 | O97: 0.3618028425 | P97: 373766.653 | R97: 373766.653 | U97: 2040-07-01 | W97: 0.6551268966 | X97: 1.004569308
A98: 2041 | J98: 66373.4452 | K98: 226920.7648 | L98: 82013.9718 | M98: 0.2924961286 | N98: 1 | O98: 0.3614211854 | P98: 375308.1818 | R98: 375308.1818 | U98: 2041-07-01 | W98: 0.653917314 | X98: 1.004124308
A99: 2042 | J99: 66507.4074 | K99: 228017.9666 | L99: 82324.3366 | M99: 0.2916761709 | N99: 1 | O99: 0.3610432012 | P99: 376849.7106 | R99: 376849.7106 | U99: 2042-07-01 | W99: 0.6527193722 | X99: 1.004107368
A100: 2043 | J100: 66641.3696 | K100: 229115.1684 | L100: 82634.7014 | M100: 0.2908640666 | N100: 1 | O100: 0.3606688373 | P100: 378391.2394 | R100: 378391.2394 | U100: 2043-07-01 | W100: 0.6515329039 | X100: 1.004090566
A101: 2044 | J101: 66775.3318 | K101: 230212.3702 | L101: 82945.0662 | M101: 0.2900597033 | N101: 1 | O101: 0.3602980419 | P101: 379932.7682 | R101: 379932.7682 | U101: 2044-07-01 | W101: 0.6503577452 | X101: 1.004073902
A102: 2045 | J102: 66909.294 | K102: 231309.572 | L102: 83255.431 | M102: 0.2892629709 | N102: 1 | O102: 0.3599307641 | P102: 381474.297 | R102: 381474.297 | U102: 2045-07-01 | W102: 0.6491937351 | X102: 1.004057373
A103: 2046 | J103: 67103.5348 | K103: 231950.5772 | L103: 83898.275 | M103: 0.2893010037 | N103: 1 | O103: 0.36170755 | P103: 382952.387 | R103: 382952.387 | U103: =DATE(A103,7,1) -> 2046-07-01 | W103: 0.6510085537 | X103: 1.003874678
A104: 2047 | J104: 67297.7756 | K104: 232591.5824 | L104: 84541.119 | M104: 0.2893388269 | N104: 1 | O104: 0.3634745425 | P104: 384430.477 | R104: 384430.477 | U104: 2047-07-01 | W104: 0.6528133694 | X104: 1.003859723
A105: 2048 | J105: 67492.0164 | K105: 233232.5876 | L105: 85183.963 | M105: 0.2893764422 | N105: 1 | O105: 0.3652318223 | P105: 385908.567 | R105: 385908.567 | U105: 2048-07-01 | W105: 0.6546082645 | X105: 1.003844882
A106: 2049 | J106: 67686.2572 | K106: 233873.5928 | L106: 85826.807 | M106: 0.2894138513 | N106: 1 | O106: 0.3669794694 | P106: 387386.657 | R106: 387386.657 | U106: 2049-07-01 | W106: 0.6563933207 | X106: 1.003830156
A107: 2050 | J107: 67880.498 | K107: 234514.598 | L107: 86469.651 | M107: 0.2894510558 | N107: 1 | O107: 0.3687175627 | P107: 388864.747 | R107: 388864.747 | U107: 2050-07-01 | W107: 0.6581686186 | X107: 1.003815542
A108: 2051 | J108: 68101.336 | K108: 235089.036 | L108: 87126.4248 | M108: 0.289683165 | N108: 1 | O108: 0.3706103283 | P108: 390316.7968 | R108: 390316.7968 | U108: 2051-07-01 | W108: 0.6602934932 | X108: 1.003734074
A109: 2052 | J109: 68322.174 | K109: 235663.474 | L109: 87783.1986 | M109: 0.2899141426 | N109: 1 | O109: 0.3724938664 | P109: 391768.8466 | R109: 391768.8466 | U109: 2052-07-01 | W109: 0.662408009 | X109: 1.003720183
A110: 2053 | J110: 68543.012 | K110: 236237.912 | L110: 88439.9724 | M110: 0.2901439969 | N110: 1 | O110: 0.3743682445 | P110: 393220.8964 | R110: 393220.8964 | U110: 2053-07-01 | W110: 0.6645122414 | X110: 1.003706394
A111: 2054 | J111: 68763.85 | K111: 236812.35 | L111: 89096.7462 | M111: 0.2903727361 | N111: 1 | O111: 0.3762335292 | P111: 394672.9462 | R111: 394672.9462 | U111: 2054-07-01 | W111: 0.6666062653 | X111: 1.003692708
A112: 2055 | J112: 68984.688 | K112: 237386.788 | L112: 89753.52 | M112: 0.2906003682 | N112: 1 | O112: 0.3780897865 | P112: 396124.996 | R112: 396124.996 | U112: 2055-07-01 | W112: 0.6686901547 | X112: 1.003679122
A113: 2056 | J113: 69202.133 | K113: 237638.3922 | L113: 90760.2084 | M113: 0.2912077142 | N113: 1 | O113: 0.3819256963 | P113: 397600.7336 | R113: 397600.7336 | U113: 2056-07-01 | W113: 0.6731334105 | X113: 1.003725434
A114: 2057 | J114: 69419.578 | K114: 237889.9964 | L114: 91766.8968 | M114: 0.2918137755 | N114: 1 | O114: 0.3857534919 | P114: 399076.4712 | R114: 399076.4712 | U114: 2057-07-01 | W114: 0.6775672674 | X114: 1.003711607
A115: 2058 | J115: 69637.023 | K115: 238141.6006 | L115: 92773.5852 | M115: 0.2924185561 | N115: 1 | O115: 0.3895731992 | P115: 400552.2088 | R115: 400552.2088 | U115: 2058-07-01 | W115: 0.6819917553 | X115: 1.003697882
A116: 2059 | J116: 69854.468 | K116: 238393.2048 | L116: 93780.2736 | M116: 0.2930220602 | N116: 1 | O116: 0.3933848437 | P116: 402027.9464 | R116: 402027.9464 | U116: 2059-07-01 | W116: 0.6864069038 | X116: 1.003684258
A117: 2060 | J117: 70071.913 | K117: 238644.809 | L117: 94786.962 | M117: 0.2936242917 | N117: 1 | O117: 0.3971884509 | P117: 403503.684 | R117: 403503.684 | U117: 2060-07-01 | W117: 0.6908127425 | X117: 1.003670734
A118: 2061 | J118: 70238.7662 | K118: 239282.3578 | L118: 95460.8264 | M118: 0.2935392598 | N118: 1 | O118: 0.3989463631 | P118: 404981.9504 | R118: 404981.9504 | U118: 2061-07-01 | W118: 0.6924856229 | X118: 1.003663576
A119: 2062 | J119: 70405.6194 | K119: 239919.9066 | L119: 96134.6908 | M119: 0.2934546799 | N119: 1 | O119: 0.4006949326 | P119: 406460.2168 | R119: 406460.2168 | U119: 2062-07-01 | W119: 0.6941496125 | X119: 1.003650203
A120: 2063 | J120: 70572.4726 | K120: 240557.4554 | L120: 96808.5552 | M120: 0.2933705483 | N120: 1 | O120: 0.4024342336 | P120: 407938.4832 | R120: 407938.4832 | U120: 2063-07-01 | W120: 0.6958047819 | X120: 1.003636928
A121: 2064 | J121: 70739.3258 | K121: 241195.0042 | L121: 97482.4196 | M121: 0.2932868615 | N121: 1 | O121: 0.4041643397 | P121: 409416.7496 | R121: 409416.7496 | U121: 2064-07-01 | W121: 0.6974512012 | X121: 1.003623748
A122: 2065 | J122: 70906.179 | K122: 241832.553 | L122: 98156.284 | M122: 0.293203616 | N122: 1 | O122: 0.4058853235 | P122: 410895.016 | R122: 410895.016 | U122: 2065-07-01 | W122: 0.6990889394 | X122: 1.003610664
A123: 2066 | J123: 71012.2544 | K123: 242397.5154 | L123: 98909.1094 | M123: 0.2929578477 | N123: 1 | O123: 0.4080450628 | P123: 412318.8792 | R123: 412318.8792 | U123: 2066-07-01 | W123: 0.7010029105 | X123: 1.003465273
A124: 2067 | J124: 71118.3298 | K124: 242962.4778 | L124: 99661.9348 | M124: 0.2927132224 | N124: 1 | O124: 0.4101947581 | P124: 413742.7424 | R124: 413742.7424 | U124: 2067-07-01 | W124: 0.7029079805 | X124: 1.003453306
A125: 2068 | J125: 71224.4052 | K125: 243527.4402 | L125: 100414.7602 | M125: 0.2924697321 | N125: 1 | O125: 0.4123344791 | P125: 415166.6056 | R125: 415166.6056 | U125: 2068-07-01 | W125: 0.7048042112 | X125: 1.003441422
A126: 2069 | J126: 71330.4806 | K126: 244092.4026 | L126: 101167.5856 | M126: 0.292227369 | N126: 1 | O126: 0.4144642952 | P126: 416590.4688 | R126: 416590.4688 | U126: 2069-07-01 | W126: 0.7066916642 | X126: 1.003429619
A127: 2070 | J127: 71436.556 | K127: 244657.365 | L127: 101920.411 | M127: 0.2919861252 | N127: 1 | O127: 0.4165842749 | P127: 418014.332 | R127: 418014.332 | U127: 2070-07-01 | W127: 0.7085704001 | X127: 1.003417897
A128: 2071 | J128: 71513.5314 | K128: 245129.3922 | L128: 102694.9936 | M128: 0.2917378889 | N128: 1 | O128: 0.4189419828 | P128: 419337.9172 | R128: 419337.9172 | U128: 2071-07-01 | W128: 0.7106798717 | X128: 1.003166363
A129: 2072 | J129: 71590.5068 | K129: 245601.4194 | L129: 103469.5762 | M129: 0.2914906069 | N129: 1 | O129: 0.4212906279 | P129: 420661.5024 | R129: 420661.5024 | U129: 2072-07-01 | W129: 0.7127812348 | X129: 1.003156369
A130: 2073 | J130: 71667.4822 | K130: 246073.4466 | L130: 104244.1588 | M130: 0.2912442736 | N130: 1 | O130: 0.4236302626 | P130: 421985.0876 | R130: 421985.0876 | U130: 2073-07-01 | W130: 0.7148745362 | X130: 1.003146438
A131: 2074 | J131: 71744.4576 | K131: 246545.4738 | L131: 105018.7414 | M131: 0.2909988835 | N131: 1 | O131: 0.4259609385 | P131: 423308.6728 | R131: 423308.6728 | U131: 2074-07-01 | W131: 0.716959822 | X131: 1.003136569
A132: 2075 | J132: 71821.433 | K132: 247017.501 | L132: 105793.324 | M132: 0.2907544312 | N132: 1 | O132: 0.428282707 | P132: 424632.258 | R132: 424632.258 | U132: 2075-07-01 | W132: 0.7190371382 | X132: 1.003126761
A133: 2076 | J133: 71905.5228 | K133: 247572.4834 | L133: 106353.364 | M133: 0.2904423053 | N133: 1 | O133: 0.4295847525 | P133: 425831.3702 | R133: 425831.3702 | U133: 2076-07-01 | W133: 0.7200270577 | X133: 1.002823884
A134: 2077 | J134: 71989.6126 | K134: 248127.4658 | L134: 106913.404 | M134: 0.2901315756 | N134: 1 | O134: 0.4308809734 | P134: 427030.4824 | R134: 427030.4824 | U134: 2077-07-01 | W134: 0.721012549 | X134: 1.002815932
A135: 2078 | J135: 72073.7024 | K135: 248682.4482 | L135: 107473.444 | M135: 0.2898222328 | N135: 1 | O135: 0.4321714089 | P135: 428229.5946 | R135: 428229.5946 | U135: =DATE(A135,7,1) -> 2078-07-01 | W135: 0.7219936417 | X135: 1.002808025
A136: 2079 | J136: 72157.7922 | K136: 249237.4306 | L136: 108033.484 | M136: 0.2895142677 | N136: 1 | O136: 0.4334560974 | P136: 429428.7068 | R136: 429428.7068 | U136: 2079-07-01 | V136: =IF(E136="",NA(),E136+G136) ->  | W136: =IF(M136="",NA(),+M136+O136) -> 0.7229703651 | X136: 1.002800162
A137: 2080 | J137: 72241.882 | K137: 249792.413 | L137: 108593.524 | M137: 0.289207671 | N137: 1 | O137: 0.4347350774 | P137: 430627.819 | R137: 430627.819 | U137: 2080-07-01 | W137: 0.7239427484 | X137: 1.002792343
A138: 2081 | J138: 72335.2752 | K138: 250148.4592 | L138: 109234.1754 | M138: 0.2891693814 | N138: 1 | O138: 0.4366773865 | P138: 431717.9098 | R138: 431717.9098 | U138: 2081-07-01 | W138: 0.7258467679 | X138: =P138/P137 -> 1.002531399
A139: 2082 | J139: 72428.6684 | K139: 250504.5054 | L139: 109874.8268 | M139: 0.2891312006 | N139: 1 | O139: 0.4386141743 | P139: 432808.0006 | R139: 432808.0006 | U139: 2082-07-01 | W139: 0.7277453749 | X139: 1.002525007
A140: 2083 | J140: 72522.0616 | K140: 250860.5516 | L140: 110515.4782 | M140: 0.2890931282 | N140: 1 | O140: 0.4405454644 | P140: 433898.0914 | R140: 433898.0914 | U140: 2083-07-01 | W140: 0.7296385926 | X140: 1.002518648
A141: 2084 | J141: 72615.4548 | K141: 251216.5978 | L141: 111156.1296 | M141: 0.2890551637 | N141: 1 | O141: 0.4424712801 | P141: 434988.1822 | R141: 434988.1822 | U141: 2084-07-01 | W141: 0.7315264438 | X141: 1.00251232
A142: 2085 | J142: 72708.848 | K142: 251572.644 | L142: 111796.781 | M142: 0.2890173067 | N142: 1 | O142: 0.4443916446 | P142: 436078.273 | R142: 436078.273 | U142: 2085-07-01 | W142: 0.7334089513 | X142: 1.002506024
A143: 2086 | J143: 72794.4904 | K143: 251809.0266 | L143: 112489.8982 | M143: 0.2890861038 | N143: 1 | O143: 0.4467270285 | P143: 437093.4152 | R143: 437093.4152 | U143: 2086-07-01 | W143: 0.7358131323 | X143: 1.00232789
A144: 2087 | J144: 72880.1328 | K144: 252045.4092 | L144: 113183.0154 | M144: 0.2891547719 | N144: 1 | O144: 0.4490580319 | P144: 438108.5574 | R144: 438108.5574 | U144: 2087-07-01 | W144: 0.7382128038 | X144: 1.002322483
A145: 2088 | J145: 72965.7752 | K145: 252281.7918 | L145: 113876.1326 | M145: 0.2892233113 | N145: 1 | O145: 0.4513846671 | P145: 439123.6996 | R145: 439123.6996 | U145: 2088-07-01 | W145: 0.7406079784 | X145: 1.002317102
A146: 2089 | J146: 73051.4176 | K146: 252518.1744 | L146: 114569.2498 | M146: 0.2892917224 | N146: 1 | O146: 0.4537069463 | P146: 440138.8418 | R146: 440138.8418 | U146: 2089-07-01 | W146: 0.7429986687 | X146: 1.002311745
A147: 2090 | J147: 73137.06 | K147: 252754.557 | L147: 115262.367 | M147: 0.2893600055 | N147: 1 | O147: 0.4560248819 | P147: 441153.984 | R147: 441153.984 | U147: 2090-07-01 | W147: 0.7453848874 | X147: 1.002306414
A148: 2091 | J148: 73192.9934 | K148: 252965.0108 | L148: 115950.8876 | M148: 0.2893403841 | N148: 1 | O148: 0.4583672945 | P148: 442108.8918 | R148: 442108.8918 | U148: 2091-07-01 | W148: 0.7477076786 | X148: 1.002164568
A149: 2092 | J149: 73248.9268 | K149: 253175.4646 | L149: 116639.4082 | M149: 0.2893207954 | N149: 1 | O149: 0.4607058128 | P149: 443063.7996 | R149: 443063.7996 | U149: 2092-07-01 | W149: 0.7500266082 | X149: 1.002159893
A150: 2093 | J150: 73304.8602 | K150: 253385.9184 | L150: 117327.9288 | M150: 0.2893012392 | N150: 1 | O150: 0.4630404465 | P150: 444018.7074 | R150: 444018.7074 | U150: 2093-07-01 | W150: 0.7523416858 | X150: 1.002155238
A151: 2094 | J151: 73360.7936 | K151: 253596.3722 | L151: 118016.4494 | M151: 0.2892817155 | N151: 1 | O151: 0.4653712053 | P151: 444973.6152 | R151: 444973.6152 | U151: 2094-07-01 | W151: 0.7546529209 | X151: 1.002150603
A152: 2095 | J152: 73416.727 | K152: 253806.826 | L152: 118704.97 | M152: 0.2892622242 | N152: 1 | O152: 0.4676980989 | P152: 445928.523 | R152: 445928.523 | U152: 2095-07-01 | W152: 0.756960323 | X152: 1.002145987
A153: 2096 | J153: 73434.431 | K153: 254010.356 | L153: 119374.996 | M153: 0.289100146 | N153: 1 | O153: 0.4699611381 | P153: 446819.783 | R153: 446819.783 | U153: 2096-07-01 | W153: 0.7590612841 | X153: 1.001998661
A154: 2097 | J154: 73452.135 | K154: 254213.886 | L154: 120045.022 | M154: 0.2889383273 | N154: 1 | O154: 0.4722205537 | P154: 447711.043 | R154: 447711.043 | U154: 2097-07-01 | W154: 0.761158881 | X154: 1.001994674
A155: 2098 | J155: 73469.839 | K155: 254417.416 | L155: 120715.048 | M155: 0.2887767675 | N155: 1 | O155: 0.4744763542 | P155: 448602.303 | R155: 448602.303 | U155: 2098-07-01 | W155: 0.7632531218 | X155: 1.001990704
A156: 2099 | J156: 73487.543 | K156: 254620.946 | L156: 121385.074 | M156: 0.2886154661 | N156: 1 | O156: 0.4767285485 | P156: 449493.563 | R156: 449493.563 | U156: 2099-07-01 | W156: 0.7653440145 | X156: 1.001986749
A157: 2100 | J157: 73505.247 | K157: 254824.476 | L157: 122055.1 | M157: 0.2884544223 | N157: 1 | O157: 0.478977145 | P157: 450384.823 | R157: 450384.823 | U157: 2100-07-01 | W157: 0.7674315673 | X157: 1.001982809
A158: Grand Total | B158: 3651673.517 | C158: 10016043.29 | D158: 1764971.829 | E158: 0.3645824416 | F158: 1 | G158: 0.1762144769 | H158: 15432688.64 | J158: 5909504.091 | K158: 20307469.71 | L158: 7853130.811 | M158: 0.2910014973 | N158: 1 | O158: 0.3867114379 | P158: 34070104.61 | R158: 49502793.25

Sheet US Estimates Data
A1: Sex | B1: Variant | C1: Country | D1: Year | E1: Age | F1: Population
A2: Female | B2: Constant-fertility | C2: United States of America | D2: 2015 | E2: 00-04 | F2: 9630.429
A3: Female | B3: Constant-fertility | C3: United States of America | D3: 2015 | E3: 05-09 | F3: 10104.088
A4: Female | B4: Constant-fertility | C4: United States of America | D4: 2015 | E4: 10-14 | F4: 10104.588
A5: Female | B5: Constant-fertility | C5: United States of America | D5: 2015 | E5: 15-19 | F5: 10077.629
A6: Female | B6: Constant-fertility | C6: United States of America | D6: 2015 | E6: 20-24 | F6: 11278.996
A7: Female | B7: Constant-fertility | C7: United States of America | D7: 2015 | E7: 25-29 | F7: 10723.207
A8: Female | B8: Constant-fertility | C8: United States of America | D8: 2015 | E8: 30-34 | F8: 10905.307
A9: Female | B9: Constant-fertility | C9: United States of America | D9: 2015 | E9: 35-39 | F9: 9781.479
A10: Female | B10: Constant-fertility | C10: United States of America | D10: 2015 | E10: 40-44 | F10: 10393.36
A11: Female | B11: Constant-fertility | C11: United States of America | D11: 2015 | E11: 45-49 | F11: 10233.792
A12: Female | B12: Constant-fertility | C12: United States of America | D12: 2015 | E12: 50-54 | F12: 11545.198
A13: Female | B13: Constant-fertility | C13: United States of America | D13: 2015 | E13: 55-59 | F13: 11244.944
A14: Female | B14: Constant-fertility | C14: United States of America | D14: 2015 | E14: 60-64 | F14: 9811.562
A15: Female | B15: Constant-fertility | C15: United States of America | D15: 2015 | E15: 65-69 | F15: 8402.098
A16: Female | B16: Constant-fertility | C16: United States of America | D16: 2015 | E16: 70-74 | F16: 6174.943
A17: Female | B17: Constant-fertility | C17: United States of America | D17: 2015 | E17: 75-79 | F17: 4399.08
A18: Female | B18: Constant-fertility | C18: United States of America | D18: 2015 | E18: 80-84 | F18: 3447.066
A19: Female | B19: Constant-fertility | C19: United States of America | D19: 2015 | E19: 85-89 | F19: 2425.313
A20: Female | B20: Constant-fertility | C20: United States of America | D20: 2015 | E20: 90-94 | F20: 1181.576
A21: Female | B21: Constant-fertility | C21: United States of America | D21: 2015 | E21: 95-99 | F21: 356.568
A22: Female | B22: Constant-fertility | C22: United States of America | D22: 2015 | E22: 99-00 | F22: 58.636
A23: Female | B23: Constant-fertility | C23: United States of America | D23: 2016 | E23: 00-04 | F23: 9714.266
A24: Female | B24: Constant-fertility | C24: United States of America | D24: 2016 | E24: 05-09 | F24: 10049.721
A25: Female | B25: Constant-fertility | C25: United States of America | D25: 2016 | E25: 10-14 | F25: 10162.5134
A26: Female | B26: Constant-fertility | C26: United States of America | D26: 2016 | E26: 15-19 | F26: 10150.102
A27: Female | B27: Constant-fertility | C27: United States of America | D27: 2016 | E27: 20-24 | F27: 11106.7616
A28: Female | B28: Constant-fertility | C28: United States of America | D28: 2016 | E28: 25-29 | F28: 10897.391
A29: Female | B29: Constant-fertility | C29: United States of America | D29: 2016 | E29: 30-34 | F29: 10919.6188
A30: Female | B30: Constant-fertility | C30: United States of America | D30: 2016 | E30: 35-39 | F30: 10038.6634
A31: Female | B31: Constant-fertility | C31: United States of America | D31: 2016 | E31: 40-44 | F31: 10286.116
A32: Female | B32: Constant-fertility | C32: United States of America | D32: 2016 | E32: 45-49 | F32: 10264.5248
A33: Female | B33: Constant-fertility | C33: United States of America | D33: 2016 | E33: 50-54 | F33: 11266.7602
A34: Female | B34: Constant-fertility | C34: United States of America | D34: 2016 | E34: 55-59 | F34: 11266.1556
A35: Female | B35: Constant-fertility | C35: United States of America | D35: 2016 | E35: 60-64 | F35: 10038.9902
A36: Female | B36: Constant-fertility | C36: United States of America | D36: 2016 | E36: 65-69 | F36: 8603.9014
A37: Female | B37: Constant-fertility | C37: United States of America | D37: 2016 | E37: 70-74 | F37: 6509.8416
A38: Female | B38: Constant-fertility | C38: United States of America | D38: 2016 | E38: 75-79 | F38: 4622.1808
A39: Female | B39: Constant-fertility | C39: United States of America | D39: 2016 | E39: 80-84 | F39: 3483.2194
A40: Female | B40: Constant-fertility | C40: United States of America | D40: 2016 | E40: 85-89 | F40: 2429.6994
A41: Female | B41: Constant-fertility | C41: United States of America | D41: 2016 | E41: 90-94 | F41: 1206.21
A42: Female | B42: Constant-fertility | C42: United States of America | D42: 2016 | E42: 95-99 | F42: 368.9666
A43: Female | B43: Constant-fertility | C43: United States of America | D43: 2016 | E43: 99-00 | F43: 62.0572
A44: Female | B44: Constant-fertility | C44: United States of America | D44: 2017 | E44: 00-04 | F44: 9798.103
A45: Female | B45: Constant-fertility | C45: United States of America | D45: 2017 | E45: 05-09 | F45: 9995.354
A46: Female | B46: Constant-fertility | C46: United States of America | D46: 2017 | E46: 10-14 | F46: 10220.4388
A47: Female | B47: Constant-fertility | C47: United States of America | D47: 2017 | E47: 15-19 | F47: 10222.575
A48: Female | B48: Constant-fertility | C48: United States of America | D48: 2017 | E48: 20-24 | F48: 10934.5272
A49: Female | B49: Constant-fertility | C49: United States of America | D49: 2017 | E49: 25-29 | F49: 11071.575
A50: Female | B50: Constant-fertility | C50: United States of America | D50: 2017 | E50: 30-34 | F50: 10933.9306
A51: Female | B51: Constant-fertility | C51: United States of America | D51: 2017 | E51: 35-39 | F51: 10295.8478
A52: Female | B52: Constant-fertility | C52: United States of America | D52: 2017 | E52: 40-44 | F52: 10178.872
A53: Female | B53: Constant-fertility | C53: United States of America | D53: 2017 | E53: 45-49 | F53: 10295.2576
A54: Female | B54: Constant-fertility | C54: United States of America | D54: 2017 | E54: 50-54 | F54: 10988.3224
A55: Female | B55: Constant-fertility | C55: United States of America | D55: 2017 | E55: 55-59 | F55: 11287.3672
A56: Female | B56: Constant-fertility | C56: United States of America | D56: 2017 | E56: 60-64 | F56: 10266.4184
A57: Female | B57: Constant-fertility | C57: United States of America | D57: 2017 | E57: 65-69 | F57: 8805.7048
A58: Female | B58: Constant-fertility | C58: United States of America | D58: 2017 | E58: 70-74 | F58: 6844.7402
A59: Female | B59: Constant-fertility | C59: United States of America | D59: 2017 | E59: 75-79 | F59: 4845.2816
A60: Female | B60: Constant-fertility | C60: United States of America | D60: 2017 | E60: 80-84 | F60: 3519.3728
A61: Female | B61: Constant-fertility | C61: United States of America | D61: 2017 | E61: 85-89 | F61: 2434.0858
A62: Female | B62: Constant-fertility | C62: United States of America | D62: 2017 | E62: 90-94 | F62: 1230.844
A63: Female | B63: Constant-fertility | C63: United States of America | D63: 2017 | E63: 95-99 | F63: 381.3652
A64: Female | B64: Constant-fertility | C64: United States of America | D64: 2017 | E64: 99-00 | F64: 65.4784
A65: Female | B65: Constant-fertility | C65: United States of America | D65: 2018 | E65: 00-04 | F65: 9881.94
A66: Female | B66: Constant-fertility | C66: United States of America | D66: 2018 | E66: 05-09 | F66: 9940.987
A67: Female | B67: Constant-fertility | C67: United States of America | D67: 2018 | E67: 10-14 | F67: 10278.3642
A68: Female | B68: Constant-fertility | C68: United States of America | D68: 2018 | E68: 15-19 | F68: 10295.048
A69: Female | B69: Constant-fertility | C69: United States of America | D69: 2018 | E69: 20-24 | F69: 10762.2928
A70: Female | B70: Constant-fertility | C70: United States of America | D70: 2018 | E70: 25-29 | F70: 11245.759
A71: Female | B71: Constant-fertility | C71: United States of America | D71: 2018 | E71: 30-34 | F71: 10948.2424
A72: Female | B72: Constant-fertility | C72: United States of America | D72: 2018 | E72: 35-39 | F72: 10553.0322
A73: Female | B73: Constant-fertility | C73: United States of America | D73: 2018 | E73: 40-44 | F73: 10071.628
A74: Female | B74: Constant-fertility | C74: United States of America | D74: 2018 | E74: 45-49 | F74: 10325.9904
A75: Female | B75: Constant-fertility | C75: United States of America | D75: 2018 | E75: 50-54 | F75: 10709.8846
A76: Female | B76: Constant-fertility | C76: United States of America | D76: 2018 | E76: 55-59 | F76: 11308.5788
A77: Female | B77: Constant-fertility | C77: United States of America | D77: 2018 | E77: 60-64 | F77: 10493.8466
A78: Female | B78: Constant-fertility | C78: United States of America | D78: 2018 | E78: 65-69 | F78: 9007.5082
A79: Female | B79: Constant-fertility | C79: United States of America | D79: 2018 | E79: 70-74 | F79: 7179.6388
A80: Female | B80: Constant-fertility | C80: United States of America | D80: 2018 | E80: 75-79 | F80: 5068.3824
A81: Female | B81: Constant-fertility | C81: United States of America | D81: 2018 | E81: 80-84 | F81: 3555.5262
A82: Female | B82: Constant-fertility | C82: United States of America | D82: 2018 | E82: 85-89 | F82: 2438.4722
A83: Female | B83: Constant-fertility | C83: United States of America | D83: 2018 | E83: 90-94 | F83: 1255.478
A84: Female | B84: Constant-fertility | C84: United States of America | D84: 2018 | E84: 95-99 | F84: 393.7638
A85: Female | B85: Constant-fertility | C85: United States of America | D85: 2018 | E85: 99-00 | F85: 68.8996
A86: Female | B86: Constant-fertility | C86: United States of America | D86: 2019 | E86: 00-04 | F86: 9965.777
A87: Female | B87: Constant-fertility | C87: United States of America | D87: 2019 | E87: 05-09 | F87: 9886.62
A88: Female | B88: Constant-fertility | C88: United States of America | D88: 2019 | E88: 10-14 | F88: 10336.2896
A89: Female | B89: Constant-fertility | C89: United States of America | D89: 2019 | E89: 15-19 | F89: 10367.521
A90: Female | B90: Constant-fertility | C90: United States of America | D90: 2019 | E90: 20-24 | F90: 10590.0584
A91: Female | B91: Constant-fertility | C91: United States of America | D91: 2019 | E91: 25-29 | F91: 11419.943
A92: Female | B92: Constant-fertility | C92: United States of America | D92: 2019 | E92: 30-34 | F92: 10962.5542
A93: Female | B93: Constant-fertility | C93: United States of America | D93: 2019 | E93: 35-39 | F93: 10810.2166
A94: Female | B94: Constant-fertility | C94: United States of America | D94: 2019 | E94: 40-44 | F94: 9964.384
A95: Female | B95: Constant-fertility | C95: United States of America | D95: 2019 | E95: 45-49 | F95: 10356.7232
A96: Female | B96: Constant-fertility | C96: United States of America | D96: 2019 | E96: 50-54 | F96: 10431.4468
A97: Female | B97: Constant-fertility | C97: United States of America | D97: 2019 | E97: 55-59 | F97: 11329.7904
A98: Female | B98: Constant-fertility | C98: United States of America | D98: 2019 | E98: 60-64 | F98: 10721.2748
A99: Female | B99: Constant-fertility | C99: United States of America | D99: 2019 | E99: 65-69 | F99: 9209.3116
A100: Female | B100: Constant-fertility | C100: United States of America | D100: 2019 | E100: 70-74 | F100: 7514.5374
A101: Female | B101: Constant-fertility | C101: United States of America | D101: 2019 | E101: 75-79 | F101: 5291.4832
A102: Female | B102: Constant-fertility | C102: United States of America | D102: 2019 | E102: 80-84 | F102: 3591.6796
A103: Female | B103: Constant-fertility | C103: United States of America | D103: 2019 | E103: 85-89 | F103: 2442.8586
A104: Female | B104: Constant-fertility | C104: United States of America | D104: 2019 | E104: 90-94 | F104: 1280.112
A105: Female | B105: Constant-fertility | C105: United States of America | D105: 2019 | E105: 95-99 | F105: 406.1624
A106: Female | B106: Constant-fertility | C106: United States of America | D106: 2019 | E106: 99-00 | F106: 72.3208
A107: Female | B107: Constant-fertility | C107: United States of America | D107: 2020 | E107: 00-04 | F107: 10049.614
A108: Female | B108: Constant-fertility | C108: United States of America | D108: 2020 | E108: 05-09 | F108: 9832.253
A109: Female | B109: Constant-fertility | C109: United States of America | D109: 2020 | E109: 10-14 | F109: 10394.215
A110: Female | B110: Constant-fertility | C110: United States of America | D110: 2020 | E110: 15-19 | F110: 10439.994
A111: Female | B111: Constant-fertility | C111: United States of America | D111: 2020 | E111: 20-24 | F111: 10417.824
A112: Female | B112: Constant-fertility | C112: United States of America | D112: 2020 | E112: 25-29 | F112: 11594.127
A113: Female | B113: Constant-fertility | C113: United States of America | D113: 2020 | E113: 30-34 | F113: 10976.866
A114: Female | B114: Constant-fertility | C114: United States of America | D114: 2020 | E114: 35-39 | F114: 11067.401
A115: Female | B115: Constant-fertility | C115: United States of America | D115: 2020 | E115: 40-44 | F115: 9857.14
A116: Female | B116: Constant-fertility | C116: United States of America | D116: 2020 | E116: 45-49 | F116: 10387.456
A117: Female | B117: Constant-fertility | C117: United States of America | D117: 2020 | E117: 50-54 | F117: 10153.009
A118: Female | B118: Constant-fertility | C118: United States of America | D118: 2020 | E118: 55-59 | F118: 11351.002
A119: Female | B119: Constant-fertility | C119: United States of America | D119: 2020 | E119: 60-64 | F119: 10948.703
A120: Female | B120: Constant-fertility | C120: United States of America | D120: 2020 | E120: 65-69 | F120: 9411.115
A121: Female | B121: Constant-fertility | C121: United States of America | D121: 2020 | E121: 70-74 | F121: 7849.436
A122: Female | B122: Constant-fertility | C122: United States of America | D122: 2020 | E122: 75-79 | F122: 5514.584
A123: Female | B123: Constant-fertility | C123: United States of America | D123: 2020 | E123: 80-84 | F123: 3627.833
A124: Female | B124: Constant-fertility | C124: United States of America | D124: 2020 | E124: 85-89 | F124: 2447.245
A125: Female | B125: Constant-fertility | C125: United States of America | D125: 2020 | E125: 90-94 | F125: 1304.746
A126: Female | B126: Constant-fertility | C126: United States of America | D126: 2020 | E126: 95-99 | F126: 418.561
A127: Female | B127: Constant-fertility | C127: United States of America | D127: 2020 | E127: 99-00 | F127: 75.742
A128: Female | B128: Constant-fertility | C128: United States of America | D128: 2021 | E128: 00-04 | F128: 10085.3538
A129: Female | B129: Constant-fertility | C129: United States of America | D129: 2021 | E129: 05-09 | F129: 9916.1502
A130: Female | B130: Constant-fertility | C130: United States of America | D130: 2021 | E130: 10-14 | F130: 10339.955
A131: Female | B131: Constant-fertility | C131: United States of America | D131: 2021 | E131: 15-19 | F131: 10498.0168
A132: Female | B132: Constant-fertility | C132: United States of America | D132: 2021 | E132: 20-24 | F132: 10490.4488
A133: Female | B133: Constant-fertility | C133: United States of America | D133: 2021 | E133: 25-29 | F133: 11422.7002
A134: Female | B134: Constant-fertility | C134: United States of America | D134: 2021 | E134: 30-34 | F134: 11151.0202
A135: Female | B135: Constant-fertility | C135: United States of America | D135: 2021 | E135: 35-39 | F135: 11082.3108
A136: Female | B136: Constant-fertility | C136: United States of America | D136: 2021 | E136: 40-44 | F136: 10113.641
A137: Female | B137: Constant-fertility | C137: United States of America | D137: 2021 | E137: 45-49 | F137: 10282.4248
A138: Female | B138: Constant-fertility | C138: United States of America | D138: 2021 | E138: 50-54 | F138: 10185.2416
A139: Female | B139: Constant-fertility | C139: United States of America | D139: 2021 | E139: 55-59 | F139: 11081.4122
A140: Female | B140: Constant-fertility | C140: United States of America | D140: 2021 | E140: 60-64 | F140: 10973.7178
A141: Female | B141: Constant-fertility | C141: United States of America | D141: 2021 | E141: 65-69 | F141: 9634.5304
A142: Female | B142: Constant-fertility | C142: United States of America | D142: 2021 | E142: 70-74 | F142: 8045.0632
A143: Female | B143: Constant-fertility | C143: United States of America | D143: 2021 | E143: 75-79 | F143: 5822.504
A144: Female | B144: Constant-fertility | C144: United States of America | D144: 2021 | E144: 80-84 | F144: 3820.8416
A145: Female | B145: Constant-fertility | C145: United States of America | D145: 2021 | E145: 85-89 | F145: 2480.8788
A146: Female | B146: Constant-fertility | C146: United States of America | D146: 2021 | E146: 90-94 | F146: 1313.5272
A147: Female | B147: Constant-fertility | C147: United States of America | D147: 2021 | E147: 95-99 | F147: 430.3928
A148: Female | B148: Constant-fertility | C148: United States of America | D148: 2021 | E148: 99-00 | F148: 79.215
A149: Female | B149: Constant-fertility | C149: United States of America | D149: 2022 | E149: 00-04 | F149: 10121.0936
A150: Female | B150: Constant-fertility | C150: United States of America | D150: 2022 | E150: 05-09 | F150: 10000.0474
A151: Female | B151: Constant-fertility | C151: United States of America | D151: 2022 | E151: 10-14 | F151: 10285.695
A152: Female | B152: Constant-fertility | C152: United States of America | D152: 2022 | E152: 15-19 | F152: 10556.0396
A153: Female | B153: Constant-fertility | C153: United States of America | D153: 2022 | E153: 20-24 | F153: 10563.0736
A154: Female | B154: Constant-fertility | C154: United States of America | D154: 2022 | E154: 25-29 | F154: 11251.2734
A155: Female | B155: Constant-fertility | C155: United States of America | D155: 2022 | E155: 30-34 | F155: 11325.1744
A156: Female | B156: Constant-fertility | C156: United States of America | D156: 2022 | E156: 35-39 | F156: 11097.2206
A157: Female | B157: Constant-fertility | C157: United States of America | D157: 2022 | E157: 40-44 | F157: 10370.142
A158: Female | B158: Constant-fertility | C158: United States of America | D158: 2022 | E158: 45-49 | F158: 10177.3936
A159: Female | B159: Constant-fertility | C159: United States of America | D159: 2022 | E159: 50-54 | F159: 10217.4742
A160: Female | B160: Constant-fertility | C160: United States of America | D160: 2022 | E160: 55-59 | F160: 10811.8224
A161: Female | B161: Constant-fertility | C161: United States of America | D161: 2022 | E161: 60-64 | F161: 10998.7326
A162: Female | B162: Constant-fertility | C162: United States of America | D162: 2022 | E162: 65-69 | F162: 9857.9458
A163: Female | B163: Constant-fertility | C163: United States of America | D163: 2022 | E163: 70-74 | F163: 8240.6904
A164: Female | B164: Constant-fertility | C164: United States of America | D164: 2022 | E164: 75-79 | F164: 6130.424
A165: Female | B165: Constant-fertility | C165: United States of America | D165: 2022 | E165: 80-84 | F165: 4013.8502
A166: Female | B166: Constant-fertility | C166: United States of America | D166: 2022 | E166: 85-89 | F166: 2514.5126
A167: Female | B167: Constant-fertility | C167: United States of America | D167: 2022 | E167: 90-94 | F167: 1322.3084
A168: Female | B168: Constant-fertility | C168: United States of America | D168: 2022 | E168: 95-99 | F168: 442.2246
A169: Female | B169: Constant-fertility | C169: United States of America | D169: 2022 | E169: 99-00 | F169: 82.688
A170: Female | B170: Constant-fertility | C170: United States of America | D170: 2023 | E170: 00-04 | F170: 10156.8334
A171: Female | B171: Constant-fertility | C171: United States of America | D171: 2023 | E171: 05-09 | F171: 10083.9446
A172: Female | B172: Constant-fertility | C172: United States of America | D172: 2023 | E172: 10-14 | F172: 10231.435
A173: Female | B173: Constant-fertility | C173: United States of America | D173: 2023 | E173: 15-19 | F173: 10614.0624
A174: Female | B174: Constant-fertility | C174: United States of America | D174: 2023 | E174: 20-24 | F174: 10635.6984
A175: Female | B175: Constant-fertility | C175: United States of America | D175: 2023 | E175: 25-29 | F175: 11079.8466
A176: Female | B176: Constant-fertility | C176: United States of America | D176: 2023 | E176: 30-34 | F176: 11499.3286
A177: Female | B177: Constant-fertility | C177: United States of America | D177: 2023 | E177: 35-39 | F177: 11112.1304
A178: Female | B178: Constant-fertility | C178: United States of America | D178: 2023 | E178: 40-44 | F178: 10626.643
A179: Female | B179: Constant-fertility | C179: United States of America | D179: 2023 | E179: 45-49 | F179: 10072.3624
A180: Female | B180: Constant-fertility | C180: United States of America | D180: 2023 | E180: 50-54 | F180: 10249.7068
A181: Female | B181: Constant-fertility | C181: United States of America | D181: 2023 | E181: 55-59 | F181: 10542.2326
A182: Female | B182: Constant-fertility | C182: United States of America | D182: 2023 | E182: 60-64 | F182: 11023.7474
A183: Female | B183: Constant-fertility | C183: United States of America | D183: 2023 | E183: 65-69 | F183: 10081.3612
A184: Female | B184: Constant-fertility | C184: United States of America | D184: 2023 | E184: 70-74 | F184: 8436.3176
A185: Female | B185: Constant-fertility | C185: United States of America | D185: 2023 | E185: 75-79 | F185: 6438.344
A186: Female | B186: Constant-fertility | C186: United States of America | D186: 2023 | E186: 80-84 | F186: 4206.8588
A187: Female | B187: Constant-fertility | C187: United States of America | D187: 2023 | E187: 85-89 | F187: 2548.1464
A188: Female | B188: Constant-fertility | C188: United States of America | D188: 2023 | E188: 90-94 | F188: 1331.0896
A189: Female | B189: Constant-fertility | C189: United States of America | D189: 2023 | E189: 95-99 | F189: 454.0564
A190: Female | B190: Constant-fertility | C190: United States of America | D190: 2023 | E190: 99-00 | F190: 86.161
A191: Female | B191: Constant-fertility | C191: United States of America | D191: 2024 | E191: 00-04 | F191: 10192.5732
A192: Female | B192: Constant-fertility | C192: United States of America | D192: 2024 | E192: 05-09 | F192: 10167.8418
A193: Female | B193: Constant-fertility | C193: United States of America | D193: 2024 | E193: 10-14 | F193: 10177.175
A194: Female | B194: Constant-fertility | C194: United States of America | D194: 2024 | E194: 15-19 | F194: 10672.0852
A195: Female | B195: Constant-fertility | C195: United States of America | D195: 2024 | E195: 20-24 | F195: 10708.3232
A196: Female | B196: Constant-fertility | C196: United States of America | D196: 2024 | E196: 25-29 | F196: 10908.4198
A197: Female | B197: Constant-fertility | C197: United States of America | D197: 2024 | E197: 30-34 | F197: 11673.4828
A198: Female | B198: Constant-fertility | C198: United States of America | D198: 2024 | E198: 35-39 | F198: 11127.0402
A199: Female | B199: Constant-fertility | C199: United States of America | D199: 2024 | E199: 40-44 | F199: 10883.144
A200: Female | B200: Constant-fertility | C200: United States of America | D200: 2024 | E200: 45-49 | F200: 9967.3312
... 4300 more rows

Sheet 6.6
A3: Sum of Population | B3: Column Labels
B4: Young | F4: Adult | J4: Old
A5: Row Labels | B5: Estimates | C5: High variant | D5: Medium variant | E5: Low variant | F5: Estimates | G5: High variant | H5: Medium variant | I5: Low variant | J5: Estimates | K5: High variant | L5: Medium variant | M5: Low variant
A6: 1950 | B6: 0.4168917741 | F6: 1 | J6: 0.1276519609
A7: 1951 | B7: 0.4296051122 | F7: 1 | J7: 0.1308189116
A8: 1952 | B8: 0.4421649758 | F8: 1 | J8: 0.1339476312
A9: 1953 | B9: 0.4545741275 | F9: 1 | J9: 0.1370388077
A10: 1954 | B10: 0.4668352637 | F10: 1 | J10: 0.1400931129
A11: 1955 | B11: 0.4789510171 | F11: 1 | J11: 0.1431112026
A12: 1956 | B12: 0.4860819064 | F12: 1 | J12: 0.1450392372
A13: 1957 | B13: 0.4930408256 | F13: 1 | J13: 0.146920775
A14: 1958 | B14: 0.4998339215 | F14: 1 | J14: 0.1487574777
A15: 1959 | B15: 0.5064670513 | F15: 1 | J15: 0.1505509292 | Q15: YOUNG VS. OLD DEPENDENCY RATIOS IN THE U.S., 1950—2100
A16: 1960 | B16: 0.5129457997 | F16: 1 | J16: 0.1523026394
A17: 1961 | B17: 0.5101162648 | F17: 1 | J17: 0.1533333274
A18: 1962 | B18: 0.5073707741 | F18: 1 | J18: 0.1543334014
A19: 1963 | B19: 0.504705638 | F19: 1 | J19: 0.1553042054
A20: 1964 | B20: 0.5021173796 | F20: 1 | J20: 0.1562470059
A21: 1965 | B21: 0.4996027198 | F21: 1 | J21: 0.1571629973
A22: 1966 | B22: 0.4899820725 | F22: 1 | J22: 0.1571288295
A23: 1967 | B23: 0.4806603428 | F23: 1 | J23: 0.1570957233
A24: 1968 | B24: 0.4716238125 | F24: 1 | J24: 0.1570636299
A25: 1969 | B25: 0.4628595904 | F25: 1 | J25: 0.1570325037
A26: 1970 | B26: 0.4543555504 | F26: 1 | J26: 0.1570023015
A27: 1971 | B27: 0.4403390678 | F27: 1 | J27: 0.1581623406
A28: 1972 | B28: 0.4267877786 | F28: 1 | J28: 0.1592838792
A29: 1973 | B29: 0.4136789018 | F29: 1 | J29: 0.1603688026
A30: 1974 | B30: 0.4009911202 | F30: 1 | J30: 0.1614188752
A31: 1975 | B31: 0.3887044641 | F31: 1 | J31: 0.1624357495
A32: 1976 | B32: 0.3793201679 | F32: 1 | J32: 0.1645051387
A33: 1977 | B33: 0.3702001451 | F33: 1 | J33: 0.1665162512
A34: 1978 | B34: 0.3613333873 | F34: 1 | J34: 0.1684715148
A35: 1979 | B35: 0.3527094893 | F35: 1 | J35: 0.1703732238
A36: 1980 | B36: 0.3443186078 | F36: 1 | J36: 0.1722235489
A37: 1981 | B37: 0.3404298652 | F37: 1 | J37: 0.1739752283
A38: 1982 | B38: 0.336625557 | F38: 1 | J38: 0.1756888743
A39: 1983 | B39: 0.3329029629 | F39: 1 | J39: 0.1773657123
A40: 1984 | B40: 0.329259478 | F40: 1 | J40: 0.1790069157
A41: 1985 | B41: 0.3256926071 | F41: 1 | J41: 0.1806136083 | Q41: Source: United Nations Population Division, 2015 Estimates and Projections
A42: 1986 | B42: 0.3261416674 | F42: 1 | J42: 0.1825711165
A43: 1987 | B43: 0.3265832301 | F43: 1 | J43: 0.1844959417
A44: 1988 | B44: 0.3270174814 | F44: 1 | J44: 0.1863888956
A45: 1989 | B45: 0.3274446014 | F45: 1 | J45: 0.1882507632
A46: 1990 | B46: 0.3278647643 | F46: 1 | J46: 0.1900823041
A47: 1991 | B47: 0.3285617221 | F47: 1 | J47: 0.1904372376
A48: 1992 | B48: 0.3292451193 | F48: 1 | J48: 0.1907852652
A49: 1993 | B49: 0.3299153481 | F49: 1 | J49: 0.1911265866
A50: 1994 | B50: 0.3305727854 | F50: 1 | J50: 0.1914613939
A51: 1995 | B51: 0.3312177939 | F51: 1 | J51: 0.1917898716
A52: 1996 | B52: 0.3288518201 | F52: 1 | J52: 0.1904473381
A53: 1997 | B53: 0.3265545568 | F53: 1 | J53: 0.1891437933
A54: 1998 | B54: 0.3243230538 | F54: 1 | J54: 0.1878775632
A55: 1999 | B55: 0.3221545272 | F55: 1 | J55: 0.1866470679
A56: 2000 | B56: 0.3200463483 | F56: 1 | J56: 0.185450816
A57: 2001 | B57: 0.3166351064 | F57: 1 | J57: 0.1849809607
A58: 2002 | B58: 0.3133036326 | F58: 1 | J58: 0.1845220924
A59: 2003 | B59: 0.3100491614 | F59: 1 | J59: 0.1840738302
A60: 2004 | B60: 0.3068690536 | F60: 1 | J60: 0.1836358106
A61: 2005 | B61: 0.3037607891 | F61: 1 | J61: 0.1832076866
A62: 2006 | B62: 0.3016960081 | F62: 1 | J62: 0.1853495162
A63: 2007 | B63: 0.2996686312 | F63: 1 | J63: 0.1874525459
A64: 2008 | B64: 0.2976776512 | F64: 1 | J64: 0.1895178205
A65: 2009 | B65: 0.2957220968 | F65: 1 | J65: 0.1915463477
A66: 2010 | B66: 0.2938010307 | F66: 1 | J66: 0.1935390995
A67: 2011 | B67: 0.2922085506 | F67: 1 | J67: 0.1995696518
A68: 2012 | B68: 0.290630841 | F68: 1 | J68: 0.2055442699
A69: 2013 | B69: 0.2890676973 | F69: 1 | J69: 0.2114637285
A70: 2014 | B70: 0.2875189188 | F70: 1 | J70: 0.2173287878
A71: 2015 | C71: 0.2859843082 | D71: 0.2859843082 | E71: 0.2859843082 | G71: 1 | H71: 1 | I71: 1 | K71: 0.2231401945 | L71: 0.2231401945 | M71: 0.2231401945
A72: 2016 | C72: 0.2887372134 | D72: 0.2862114536 | E72: 0.283685691 | G72: 1 | H72: 1 | I72: 1 | K72: 0.2302222571 | L72: 0.2302222571 | M72: 0.2302222571
A73: 2017 | C73: 0.2914766317 | D73: 0.2864374862 | E73: 0.2813983351 | G73: 1 | H73: 1 | I73: 1 | K73: 0.2372696239 | L73: 0.2372696239 | M73: 0.2372696239
A74: 2018 | C74: 0.2942026621 | D74: 0.2866624141 | E74: 0.2791221577 | G74: 1 | H74: 1 | I74: 1 | K74: 0.2442825492 | L74: 0.2442825492 | M74: 0.2442825492
A75: 2019 | C75: 0.2969154025 | D75: 0.2868862455 | E75: 0.2768570772 | G75: 1 | H75: 1 | I75: 1 | K75: 0.251261285 | L75: 0.251261285 | M75: 0.251261285
A76: 2020 | C76: 0.2996149499 | D76: 0.2871089882 | E76: 0.2746030127 | G76: 1 | H76: 1 | I76: 1 | K76: 0.2582060805 | L76: 0.2582060805 | M76: 0.2582060805
A77: 2021 | C77: 0.3043828139 | D77: 0.2877870272 | E77: 0.271191223 | G77: 1 | H77: 1 | I77: 1 | K77: 0.2666533325 | L77: 0.2666533325 | M77: 0.2666533325
A78: 2022 | C78: 0.3091410859 | D78: 0.2884637022 | E78: 0.2677862972 | G78: 1 | H78: 1 | I78: 1 | K78: 0.2750835905 | L78: 0.2750835905 | M78: 0.2750835905
A79: 2023 | C79: 0.3138897949 | D79: 0.2891390171 | E79: 0.2643882144 | G79: 1 | H79: 1 | I79: 1 | K79: 0.2834969055 | L79: 0.2834969055 | M79: 0.2834969055
A80: 2024 | C80: 0.3186289697 | D80: 0.2898129762 | E80: 0.2609969541 | G80: 1 | H80: 1 | I80: 1 | K80: 0.2918933288 | L80: 0.2918933288 | M80: 0.2918933288
A81: 2025 | C81: 0.323358639 | D81: 0.2904855836 | E81: 0.2576124959 | G81: 1 | H81: 1 | I81: 1 | K81: 0.300272911 | L81: 0.300272911 | M81: 0.300272911
A82: 2026 | C82: 0.3299753326 | D82: 0.2919825474 | E82: 0.2539897318 | G82: 1 | H82: 1 | I82: 1 | K82: 0.3078959721 | L82: 0.3078959721 | M82: 0.3078959721
A83: 2027 | C83: 0.3365860198 | D83: 0.2934781524 | E83: 0.2503702564 | G83: 1 | H83: 1 | I83: 1 | K83: 0.3155121133 | L83: 0.3155121133 | M83: 0.3155121133
A84: 2028 | C84: 0.3431907088 | D84: 0.2949724003 | E84: 0.2467540651 | G84: 1 | H84: 1 | I84: 1 | K84: 0.3231213439 | L84: 0.3231213439 | M84: 0.3231213439
A85: 2029 | C85: 0.3497894078 | D85: 0.296465293 | E85: 0.2431411535 | G85: 1 | H85: 1 | I85: 1 | K85: 0.3307236735 | L85: 0.3307236735 | M85: 0.3307236735
A86: 2030 | C86: 0.3563821248 | D86: 0.2979568324 | E86: 0.239531517 | G86: 1 | H86: 1 | I86: 1 | K86: 0.3383191113 | L86: 0.3383191113 | M86: 0.3383191113
A87: 2031 | C87: 0.3577265867 | D87: 0.2977123365 | E87: 0.2374134427 | G87: 1 | H87: 1 | I87: 1 | K87: 0.3405316462 | L87: 0.3413723578 | M87: 0.342217232
A88: 2032 | C88: 0.3590548535 | D88: 0.2974695973 | E88: 0.2353001899 | G88: 1 | H88: 1 | I88: 1 | K88: 0.3427175295 | L88: 0.3444036664 | M88: 0.3461064792
A89: 2033 | C89: 0.3603672162 | D89: 0.2972285959 | E89: 0.2331917422 | G89: 1 | H89: 1 | I89: 1 | K89: 0.3448772398 | L89: 0.3474132727 | M89: 0.3499868829
A90: 2034 | C90: 0.3616639587 | D90: 0.2969893138 | E90: 0.2310880832 | G90: 1 | H90: 1 | I90: 1 | K90: 0.3470112445 | L90: 0.3504014091 | M90: 0.3538584735
A91: 2035 | C91: 0.3629453581 | D91: 0.2967517326 | E91: 0.2289891967 | G91: 1 | H91: 1 | I91: 1 | K91: 0.3491199998 | L91: 0.3533683043 | M91: 0.3577212808
A92: 2036 | C92: 0.3619035906 | D92: 0.2960551761 | E92: 0.2282207318 | G92: 1 | H92: 1 | I92: 1 | K92: 0.3494569938 | L92: 0.3550823311 | M92: 0.3608917456
A93: 2037 | C93: 0.3608780925 | D93: 0.2953641961 | E93: 0.2274523316 | G93: 1 | H93: 1 | I93: 1 | K93: 0.3497887249 | L93: 0.3567826355 | M93: 0.3640619435
A94: 2038 | C94: 0.3598684857 | D94: 0.294678726 | E94: 0.226683996 | G94: 1 | H94: 1 | I94: 1 | K94: 0.3501153154 | L94: 0.3584693816 | M94: 0.3672318748
A95: 2039 | C95: 0.3588744037 | D95: 0.2939987002 | E95: 0.2259157251 | G95: 1 | H95: 1 | I95: 1 | K95: 0.350436884 | L95: 0.360142731 | M95: 0.3704015393
A96: 2040 | C96: 0.3578954911 | D96: 0.2933240541 | E96: 0.2251475188 | G96: 1 | H96: 1 | I96: 1 | K96: 0.3507535455 | L96: 0.3618028425 | M96: 0.3735709371
A97: 2041 | C97: 0.3561885284 | D97: 0.2924961286 | E97: 0.2250359102 | G97: 1 | H97: 1 | I97: 1 | K97: 0.3487803536 | L97: 0.3614211854 | M97: 0.3750127704
A98: 2042 | C98: 0.3545133195 | D98: 0.2916761709 | E98: 0.224924288 | G98: 1 | H98: 1 | I98: 1 | K98: 0.346843868 | L98: 0.3610432012 | M98: 0.3764547789
A99: 2043 | C99: 0.3528689865 | D99: 0.2908640666 | E99: 0.2248126523 | G99: 1 | H99: 1 | I99: 1 | K99: 0.344943074 | L99: 0.3606688373 | M99: 0.3778969624
A100: 2044 | C100: 0.3512546837 | D100: 0.2900597033 | E100: 0.224701003 | G100: 1 | H100: 1 | I100: 1 | K100: 0.3430769937 | L100: 0.3602980419 | M100: 0.379339321
A101: 2045 | C101: 0.3496695957 | D101: 0.2892629709 | E101: 0.2245893402 | G101: 1 | H101: 1 | I101: 1 | K101: 0.3412446849 | L101: 0.3599307641 | M101: 0.3807818547
A102: 2046 | C102: 0.3503287714 | D102: 0.2893010037 | E102: 0.2243154836 | G102: 1 | H102: 1 | I102: 1 | K102: 0.3414167887 | L102: 0.36170755 | M102: 0.3845577544
A103: 2047 | C103: 0.3509785725 | D103: 0.2893388269 | E103: 0.2240404314 | G103: 1 | H103: 1 | I103: 1 | K103: 0.341586445 | L103: 0.3634745425 | M103: 0.3883501379
A104: 2048 | C104: 0.3516191978 | D104: 0.2893764422 | E104: 0.2237641759 | G104: 1 | H104: 1 | I104: 1 | K104: 0.3417537055 | L104: 0.3652318223 | M104: 0.3921591134
A105: 2049 | C105: 0.3522508401 | D105: 0.2894138513 | E105: 0.223486709 | G105: 1 | H105: 1 | I105: 1 | K105: 0.3419186207 | L105: 0.3669794694 | M105: 0.39598479
A106: 2050 | C106: 0.3528736871 | D106: 0.2894510558 | E106: 0.2232080229 | G106: 1 | H106: 1 | I106: 1 | K106: 0.3420812395 | L106: 0.3687175627 | M106: 0.3998272778
A107: 2051 | C107: 0.3548644574 | D107: 0.289683165 | E107: 0.2222642149 | G107: 1 | H107: 1 | I107: 1 | K107: 0.3423073473 | L107: 0.3706103283 | M107: 0.4039465745
A108: 2052 | C108: 0.3568280134 | D108: 0.2899141426 | E108: 0.2213153214 | G108: 1 | H108: 1 | I108: 1 | K108: 0.3425303641 | L108: 0.3724938664 | M108: 0.4080880667
A109: 2053 | C109: 0.3587649092 | D109: 0.2901439969 | E109: 0.2203613013 | G109: 1 | H109: 1 | I109: 1 | K109: 0.3427503529 | L109: 0.3743682445 | M109: 0.4122519344
A110: 2054 | C110: 0.3606756843 | D110: 0.2903727361 | E110: 0.2194021129 | G110: 1 | H110: 1 | I110: 1 | K110: 0.3429673749 | L110: 0.3762335292 | M110: 0.4164383594
A111: 2055 | C111: 0.3625608634 | D111: 0.2906003682 | E111: 0.2184377141 | G111: 1 | H111: 1 | I111: 1 | K111: 0.3431814898 | L111: 0.3780897865 | M111: 0.4206475254
A112: 2056 | C112: 0.3649725147 | D112: 0.2912077142 | E112: 0.2176329611 | G112: 1 | H112: 1 | I112: 1 | K112: 0.3449080998 | L112: 0.3819256963 | M112: 0.4273946845
A113: 2057 | C113: 0.3673548443 | D113: 0.2918137755 | E113: 0.2168204935 | G113: 1 | H113: 1 | I113: 1 | K113: 0.3466137171 | L113: 0.3857534919 | M113: 0.434206524
A114: 2058 | C114: 0.3697083838 | D114: 0.2924185561 | E114: 0.2160001998 | G114: 1 | H114: 1 | I114: 1 | K114: 0.3482987222 | L114: 0.3895731992 | M114: 0.4410839783
A115: 2059 | C115: 0.3720336518 | D115: 0.2930220602 | E115: 0.2151719664 | G115: 1 | H115: 1 | I115: 1 | K115: 0.3499634865 | L115: 0.3933848437 | M115: 0.4480280002
A116: 2060 | C116: 0.3743311548 | D116: 0.2936242917 | E116: 0.2143356775 | G116: 1 | H116: 1 | I116: 1 | K116: 0.3516083726 | L116: 0.3971884509 | M116: 0.4550395607
A117: 2061 | C117: 0.3747775766 | D117: 0.2935392598 | E117: 0.213612933 | G117: 1 | H117: 1 | I117: 1 | K117: 0.3510735378 | L117: 0.3989463631 | M117: 0.460108514
A118: 2062 | C118: 0.3752164123 | D118: 0.2934546799 | E118: 0.2128843806 | G118: 1 | H118: 1 | I118: 1 | K118: 0.3505477917 | L118: 0.4006949326 | M118: 0.465218201
A119: 2063 | C119: 0.3756478536 | D119: 0.2933705483 | E119: 0.21214995 | G119: 1 | H119: 1 | I119: 1 | K119: 0.3500309044 | L119: 0.4024342336 | M119: 0.4703691148
A120: 2064 | C120: 0.3760720857 | D120: 0.2932868615 | E120: 0.2114095697 | G120: 1 | H120: 1 | I120: 1 | K120: 0.349522654 | L120: 0.4041643397 | M120: 0.4755617563
A121: 2065 | C121: 0.376489288 | D121: 0.293203616 | E121: 0.2106631672 | G121: 1 | H121: 1 | I121: 1 | K121: 0.3490228257 | L121: 0.4058853235 | M121: 0.4807966346
A122: 2066 | C122: 0.3754560139 | D122: 0.2929578477 | E122: 0.2107454544 | G122: 1 | H122: 1 | I122: 1 | K122: 0.3484376195 | L122: 0.4080450628 | M122: 0.4871811223
A123: 2067 | C123: 0.3744417313 | D123: 0.2927132224 | E123: 0.2108286629 | G123: 1 | H123: 1 | I123: 1 | K123: 0.3478631695 | L123: 0.4101947581 | M123: 0.493637088
A124: 2068 | C124: 0.3734459214 | D124: 0.2924697321 | E124: 0.2109128082 | G124: 1 | H124: 1 | I124: 1 | K124: 0.3472991816 | L124: 0.4123344791 | M124: 0.5001657387
A125: 2069 | C125: 0.3724680842 | D125: 0.292227369 | E125: 0.2109979062 | G125: 1 | H125: 1 | I125: 1 | K125: 0.3467453728 | L125: 0.4144642952 | M125: 0.506768309
A126: 2070 | C126: 0.3715077373 | D126: 0.2919861252 | E126: 0.2110839732 | G126: 1 | H126: 1 | I126: 1 | K126: 0.3462014698 | L126: 0.4165842749 | M126: 0.5134460614
A127: 2071 | C127: 0.3700679572 | D127: 0.2917378889 | E127: 0.2116998699 | G127: 1 | H127: 1 | I127: 1 | K127: 0.3455328571 | L127: 0.4189419828 | M127: 0.5209806873
A128: 2072 | C128: 0.3686551605 | D128: 0.2914906069 | E128: 0.2123244767 | G128: 1 | H128: 1 | I128: 1 | K128: 0.344876775 | L128: 0.4212906279 | M128: 0.5286218683
A129: 2073 | C129: 0.3672685955 | D129: 0.2912442736 | E129: 0.2129579797 | G129: 1 | H129: 1 | I129: 1 | K129: 0.3442328746 | L129: 0.4236302626 | M129: 0.5363718809
A130: 2074 | C130: 0.3659075384 | D130: 0.2909988835 | E130: 0.2136005701 | G130: 1 | H130: 1 | I130: 1 | K130: 0.3436008197 | L130: 0.4259609385 | M130: 0.5442330669
A131: 2075 | C131: 0.3645712918 | D131: 0.2907544312 | E131: 0.2142524451 | G131: 1 | H131: 1 | I131: 1 | K131: 0.3429802864 | L131: 0.428282707 | M131: 0.5522078357
A132: 2076 | C132: 0.3635396225 | D132: 0.2904423053 | E132: 0.2147710097 | G132: 1 | H132: 1 | I132: 1 | K132: 0.3414229956 | L132: 0.4295847525 | M132: 0.559164534
A133: 2077 | C133: 0.3625279421 | D133: 0.2901315756 | E133: 0.2152971649 | G133: 1 | H133: 1 | I133: 1 | K133: 0.3398958778 | L133: 0.4308809734 | M133: 0.566223064
A134: 2078 | C134: 0.3615356752 | D134: 0.2898222328 | E134: 0.2158310788 | G134: 1 | H134: 1 | I134: 1 | K134: 0.3383980644 | L134: 0.4321714089 | M134: 0.5733856782
A135: 2079 | C135: 0.3605622684 | D135: 0.2895142677 | E135: 0.2163729241 | G135: 1 | H135: 1 | I135: 1 | K135: 0.33692872 | L135: 0.4334560974 | M135: 0.5806546957
A136: 2080 | C136: 0.3596071888 | D136: 0.289207671 | E136: 0.216922879 | G136: 1 | H136: 1 | I136: 1 | K136: 0.3354870404 | L136: 0.4347350774 | M136: 0.5880325054
A137: 2081 | C137: 0.3600163778 | D137: 0.2891693814 | E137: 0.2168325942 | G137: 1 | H137: 1 | I137: 1 | K137: 0.3364343697 | L137: 0.4366773865 | M137: 0.5924234557
A138: 2082 | C138: 0.3604193944 | D138: 0.2891312006 | E138: 0.2167411896 | G138: 1 | H138: 1 | I138: 1 | K138: 0.337367409 | L138: 0.4386141743 | M138: 0.5968688667
A139: 2083 | C139: 0.3608163771 | D139: 0.2890931282 | E139: 0.2166486442 | G139: 1 | H139: 1 | I139: 1 | K139: 0.3382864793 | L139: 0.4405454644 | M139: 0.6013697578
A140: 2084 | C140: 0.3612074606 | D140: 0.2890551637 | E140: 0.2165549365 | G140: 1 | H140: 1 | I140: 1 | K140: 0.339191892 | L140: 0.4424712801 | M140: 0.6059271744
A141: 2085 | C141: 0.3615927754 | D141: 0.2890173067 | E141: 0.2164600446 | G141: 1 | H141: 1 | I141: 1 | K141: 0.3400839491 | L141: 0.4443916446 | M141: 0.6105421878
A142: 2086 | C142: 0.3624999512 | D142: 0.2890861038 | E142: 0.2159945691 | G142: 1 | H142: 1 | I142: 1 | K142: 0.3422616184 | L142: 0.4467270285 | M142: 0.6133414669
A143: 2087 | C143: 0.3633951262 | D143: 0.2891547719 | E143: 0.2155237957 | G143: 1 | H143: 1 | I143: 1 | K143: 0.3444104797 | L143: 0.4490580319 | M143: 0.6161726061
A144: 2088 | C144: 0.364278537 | D144: 0.2892233113 | E144: 0.2150476337 | G144: 1 | H144: 1 | I144: 1 | K144: 0.3465311011 | L144: 0.4513846671 | M144: 0.6190361523
A145: 2089 | C145: 0.3651504139 | D145: 0.2892917224 | E145: 0.2145659897 | G145: 1 | H145: 1 | I145: 1 | K145: 0.3486240354 | L145: 0.4537069463 | M145: 0.6219326651
A146: 2090 | C146: 0.3660109813 | D146: 0.2893600055 | E146: 0.2140787688 | G146: 1 | H146: 1 | I146: 1 | K146: 0.3506898215 | L146: 0.4560248819 | M146: 0.6248627172
A147: 2091 | C147: 0.3664949067 | D147: 0.2893403841 | E147: 0.2135523596 | G147: 1 | H147: 1 | I147: 1 | K147: 0.3531573439 | L147: 0.4583672945 | M147: 0.6264907868
A148: 2092 | C148: 0.3669724098 | D148: 0.2893207954 | E148: 0.2130202067 | G148: 1 | H148: 1 | I148: 1 | K148: 0.3555921194 | L148: 0.4607058128 | M148: 0.6281366204
A149: 2093 | C149: 0.3674436176 | D149: 0.2893012392 | E149: 0.2124822157 | G149: 1 | H149: 1 | I149: 1 | K149: 0.3579947955 | L149: 0.4630404465 | M149: 0.6298005104
A150: 2094 | C150: 0.3679086539 | D150: 0.2892817155 | E150: 0.2119382897 | G150: 1 | H150: 1 | I150: 1 | K150: 0.3603660028 | L150: 0.4653712053 | M150: 0.6314827556
A151: 2095 | C151: 0.368367639 | D151: 0.2892622242 | E151: 0.2113883302 | G151: 1 | H151: 1 | I151: 1 | K151: 0.3627063556 | L151: 0.4676980989 | M151: 0.6331836613
A152: 2096 | C152: 0.3679844134 | D152: 0.289100146 | E152: 0.2112107256 | G152: 1 | H152: 1 | I152: 1 | K152: 0.3644827284 | L152: 0.4699611381 | M152: 0.635598037
A153: 2097 | C153: 0.367606837 | D153: 0.2889383273 | E153: 0.2110308377 | G153: 1 | H153: 1 | I153: 1 | K153: 0.3662329152 | L153: 0.4722205537 | M153: 0.6380434505
A154: 2098 | C154: 0.3672347859 | D154: 0.2887767675 | E154: 0.2108486224 | G154: 1 | H154: 1 | I154: 1 | K154: 0.3679574905 | L154: 0.4744763542 | M154: 0.6405205043
A155: 2099 | C155: 0.3668681397 | D155: 0.2886154661 | E155: 0.2106640341 | G155: 1 | H155: 1 | I155: 1 | K155: 0.3696570126 | L155: 0.4767285485 | M155: 0.6430298164
A156: 2100 | C156: 0.3665067814 | D156: 0.2884544223 | E156: 0.2104770262 | G156: 1 | H156: 1 | I156: 1 | K156: 0.3713320234 | L156: 0.478977145 | M156: 0.6455720212

Sheet 6.8
A1: ASSESSING DATA QUALITY: AVAILABLE MONTHS
A8: Month | B8: (Multiple Items) | D8: Reliability | E8: Final figure, complete
A10: Count of Value
B11: 1967 | C11: 1968 | D11: 1969 | E11: 1970 | F11: 1971 | G11: 1972 | H11: 1973 | I11: 1974 | J11: 1975 | K11: 1976 | L11: 1977 | M11: 1978 | N11: 1979 | O11: 1980 | P11: 1981 | Q11: 1982 | R11: 1983 | S11: 1984 | T11: 1985 | U11: 1986 | V11: 1987 | W11: 1988 | X11: 1989 | Y11: 1990 | Z11: 1991 | AA11: 1992 | AB11: 1993 | AC11: 1994 | AD11: 1995 | AE11: 1996 | AF11: 1997 | AG11: 1998 | AH11: 1999 | AI11: 2000 | AJ11: 2001 | AK11: 2002 | AL11: 2003 | AM11: 2004 | AN11: 2005 | AO11: 2006 | AP11: 2007 | AQ11: 2008 | AR11: 2009 | AS11: 2010 | AT11: 2011 | AU11: 2012 | AV11: 2013 | AW11: 2014
A12: Chile | B12: 12 | C12: 12 | D12: 12 | E12: 12 | F12: 12 | G12: 12 | H12: 12 | I12: 12 | J12: 12 | K12: 12 | L12: 12 | M12: 12 | N12: 12 | O12: 12 | P12: 12 | Q12: 12 | R12: 12 | S12: 12 | T12: 12 | U12: 12 | V12: 12 | W12: 12 | X12: 12 | Y12: 12 | Z12: 12 | AA12: 12 | AB12: 12 | AC12: 12 | AD12: 12 | AE12: 12 | AF12: 12 | AG12: 12 | AH12: 12 | AI12: 12 | AJ12: 12 | AK12: 12 | AL12: 12 | AM12: 12 | AN12: 12 | AO12: 12 | AP12: 12 | AQ12: 12 | AR12: 12 | AS12: 12 | AT12: 12 | AY12: Country
A13: New Zealand | G13: 12 | H13: 12 | I13: 12 | J13: 12 | K13: 12 | L13: 12 | M13: 12 | N13: 12 | O13: 12 | P13: 12 | Q13: 12 | R13: 12 | S13: 12 | T13: 12 | U13: 12 | V13: 12 | W13: 12 | X13: 12 | Y13: 12 | Z13: 12 | AA13: 12 | AB13: 12 | AC13: 12 | AD13: 12 | AE13: 12 | AF13: 12 | AG13: 12 | AH13: 12 | AI13: 12 | AJ13: 12 | AK13: 12 | AL13: 12 | AM13: 12 | AN13: 24 | AO13: 12 | AP13: 12 | AQ13: 12 | AR13: 12 | AS13: 12 | AT13: 12 | AU13: 12 | AV13: 12
A14: Portugal | F14: 12 | H14: 12 | I14: 12 | J14: 12 | K14: 12 | L14: 12 | M14: 12 | N14: 12 | O14: 12 | P14: 12 | Q14: 12 | R14: 12 | S14: 12 | T14: 12 | U14: 12 | V14: 12 | W14: 12 | X14: 12 | Y14: 12 | Z14: 12 | AA14: 12 | AB14: 12 | AC14: 12 | AD14: 12 | AE14: 12 | AF14: 12 | AG14: 12 | AH14: 12 | AI14: 12 | AJ14: 12 | AK14: 12 | AL14: 12 | AM14: 12 | AN14: 12 | AO14: 12 | AP14: 12 | AQ14: 12 | AR14: 12 | AS14: 12 | AT14: 12 | AU14: 12 | AV14: 12
A15: Singapore | H15: 12 | I15: 12 | J15: 12 | K15: 12 | L15: 12 | M15: 12 | N15: 12 | O15: 12 | P15: 12 | Q15: 12 | R15: 12 | S15: 12 | T15: 12 | U15: 12 | W15: 12 | X15: 12 | Y15: 12 | Z15: 12 | AA15: 12 | AB15: 12 | AC15: 12 | AD15: 12 | AE15: 12 | AF15: 12 | AG15: 12 | AH15: 12 | AI15: 12 | AJ15: 12 | AK15: 12 | AL15: 22 | AM15: 24 | AN15: 12 | AO15: 12 | AP15: 12 | AQ15: 12 | AR15: 12 | AS15: 12 | AT15: 12 | AU15: 12 | AV15: 12
A16: Cuba | D16: 12 | E16: 12 | F16: 12 | K16: 12 | L16: 12 | M16: 12 | N16: 12 | O16: 12 | P16: 12 | Q16: 12 | R16: 12 | S16: 12 | T16: 12 | U16: 12 | V16: 12 | W16: 12 | Y16: 12 | Z16: 12 | AA16: 12 | AB16: 12 | AC16: 12 | AD16: 12 | AE16: 12 | AF16: 12 | AG16: 12 | AH16: 12 | AI16: 12 | AJ16: 12 | AK16: 12 | AL16: 12 | AM16: 12 | AN16: 12 | AO16: 12 | AP16: 12 | AQ16: 12 | AR16: 12 | AS16: 12 | AT16: 12 | AU16: 12 | AV16: 12 | AY16: List
A17: New Caledonia | E17: 12 | F17: 12 | G17: 12 | H17: 12 | I17: 12 | J17: 12 | K17: 12 | L17: 12 | O17: 12 | Q17: 12 | R17: 12 | S17: 12 | T17: 12 | U17: 12 | V17: 12 | W17: 12 | X17: 12 | Y17: 12 | Z17: 12 | AA17: 12 | AB17: 12 | AC17: 12 | AD17: 12 | AE17: 12 | AF17: 12 | AG17: 12 | AH17: 12 | AI17: 12 | AJ17: 12 | AK17: 12 | AL17: 12 | AM17: 12 | AN17: 12 | AO17: 12 | AP17: 12 | AQ17: 12 | AR17: 12 | AS17: 12 | AT17: 12 | AU17: 12
A18: Seychelles | E18: 12 | H18: 12 | I18: 12 | J18: 12 | K18: 12 | L18: 12 | M18: 12 | N18: 12 | O18: 12 | P18: 12 | Q18: 12 | R18: 12 | S18: 12 | T18: 12 | U18: 12 | V18: 12 | W18: 12 | X18: 12 | Y18: 12 | Z18: 12 | AA18: 12 | AB18: 12 | AD18: 12 | AE18: 12 | AF18: 12 | AG18: 12 | AH18: 12 | AI18: 12 | AJ18: 12 | AK18: 12 | AL18: 12 | AM18: 12 | AN18: 12 | AO18: 12 | AP18: 12 | AQ18: 12 | AR18: 12 | AS18: 12 | AT18: 12 | AV18: 12
A19: Japan | G19: 12 | H19: 12 | I19: 12 | J19: 12 | K19: 12 | L19: 12 | M19: 12 | N19: 12 | O19: 12 | P19: 12 | Q19: 12 | R19: 12 | S19: 12 | T19: 12 | U19: 12 | V19: 12 | W19: 12 | X19: 12 | Y19: 12 | Z19: 12 | AA19: 12 | AC19: 12 | AD19: 12 | AE19: 12 | AF19: 12 | AG19: 12 | AH19: 12 | AI19: 12 | AJ19: 12 | AK19: 12 | AL19: 12 | AM19: 12 | AN19: 12 | AO19: 12 | AP19: 12 | AQ19: 12 | AR19: 12 | AS19: 12 | AT19: 12 | AU19: 12
A20: Spain | E20: 12 | F20: 12 | G20: 12 | H20: 12 | I20: 12 | J20: 12 | K20: 12 | L20: 12 | M20: 12 | N20: 12 | O20: 12 | P20: 12 | Q20: 12 | R20: 12 | S20: 12 | T20: 12 | V20: 12 | W20: 12 | Z20: 12 | AA20: 12 | AB20: 12 | AC20: 12 | AD20: 12 | AE20: 12 | AF20: 12 | AG20: 12 | AH20: 12 | AI20: 12 | AJ20: 12 | AK20: 12 | AL20: 12 | AM20: 12 | AN20: 12 | AO20: 12 | AP20: 12 | AQ20: 12 | AR20: 12 | AS20: 12 | AT20: 12 | AU20: 12
A21: Greenland | G21: 12 | H21: 12 | I21: 12 | J21: 12 | K21: 12 | L21: 12 | M21: 12 | N21: 12 | O21: 12 | P21: 12 | Q21: 12 | R21: 12 | S21: 12 | T21: 12 | U21: 12 | V21: 12 | X21: 12 | Y21: 12 | AA21: 12 | AB21: 12 | AC21: 12 | AD21: 12 | AE21: 12 | AF21: 12 | AG21: 12 | AH21: 12 | AI21: 12 | AJ21: 12 | AK21: 12 | AL21: 12 | AM21: 12 | AN21: 12 | AO21: 12 | AP21: 12 | AQ21: 12 | AR21: 12 | AS21: 12 | AT21: 12 | AU21: 12 | AV21: 12
A22: Saint Helena ex. dep. | B22: 12 | C22: 12 | D22: 12 | F22: 12 | H22: 12 | I22: 12 | J22: 12 | K22: 12 | M22: 6 | N22: 12 | P22: 12 | Q22: 12 | R22: 12 | S22: 12 | T22: 12 | U22: 12 | X22: 12 | Y22: 12 | Z22: 12 | AA22: 12 | AB22: 12 | AC22: 12 | AD22: 12 | AE22: 12 | AF22: 12 | AG22: 12 | AH22: 12 | AI22: 12 | AJ22: 12 | AK22: 12 | AL22: 12 | AM22: 12 | AN22: 12 | AO22: 12 | AP22: 12 | AQ22: 12 | AR22: 12 | AS22: 12 | AT22: 12 | AU22: 12 | AV22: 1
A23: Australia | F23: 12 | H23: 12 | I23: 12 | J23: 12 | K23: 12 | L23: 12 | M23: 12 | N23: 12 | O23: 12 | P23: 12 | Q23: 12 | R23: 12 | S23: 12 | T23: 12 | U23: 12 | V23: 12 | W23: 12 | X23: 12 | Y23: 12 | Z23: 12 | AA23: 12 | AB23: 12 | AC23: 12 | AD23: 12 | AE23: 12 | AF23: 24 | AG23: 24 | AH23: 24 | AI23: 24 | AJ23: 24 | AK23: 24 | AL23: 12 | AT23: 12
A24: Cyprus | H24: 12 | I24: 12 | J24: 12 | K24: 12 | L24: 12 | M24: 12 | N24: 12 | O24: 12 | P24: 12 | Q24: 12 | R24: 12 | S24: 12 | T24: 12 | U24: 12 | V24: 12 | W24: 12 | X24: 12 | Y24: 12 | Z24: 12 | AA24: 12 | AB24: 12 | AC24: 12 | AD24: 12 | AE24: 12 | AF24: 12 | AG24: 12 | AH24: 12 | AI24: 12 | AJ24: 12 | AK24: 12 | AL24: 12 | AM24: 12 | AN24: 12 | AO24: 12 | AP24: 12 | AQ24: 12 | AR24: 12 | AS24: 12 | AT24: 12
A25: Denmark | G25: 12 | H25: 12 | I25: 12 | J25: 12 | K25: 12 | L25: 12 | M25: 12 | N25: 12 | O25: 12 | P25: 12 | Q25: 12 | R25: 12 | S25: 12 | T25: 12 | U25: 12 | V25: 12 | W25: 12 | X25: 12 | Y25: 12 | Z25: 12 | AA25: 12 | AB25: 12 | AC25: 12 | AD25: 12 | AE25: 12 | AF25: 12 | AG25: 12 | AH25: 12 | AI25: 12 | AJ25: 12 | AK25: 12 | AL25: 12 | AM25: 12 | AP25: 12 | AQ25: 12 | AR25: 12 | AS25: 12 | AT25: 12 | AU25: 12
A26: United States of America | D26: 12 | E26: 12 | F26: 12 | G26: 12 | H26: 12 | I26: 12 | J26: 12 | M26: 12 | N26: 12 | O26: 12 | P26: 12 | Q26: 12 | R26: 12 | S26: 12 | T26: 12 | U26: 12 | V26: 12 | W26: 12 | X26: 12 | Y26: 12 | Z26: 12 | AA26: 12 | AB26: 12 | AC26: 12 | AD26: 12 | AE26: 12 | AF26: 12 | AG26: 12 | AH26: 12 | AI26: 12 | AJ26: 12 | AK26: 12 | AL26: 12 | AN26: 12 | AO26: 12 | AQ26: 12 | AR26: 12 | AT26: 12 | AU26: 12
A27: Ireland | G27: 12 | H27: 12 | I27: 12 | J27: 12 | K27: 12 | L27: 12 | M27: 12 | N27: 12 | O27: 12 | P27: 12 | Q27: 12 | R27: 12 | S27: 12 | T27: 12 | U27: 12 | V27: 12 | W27: 12 | X27: 12 | Y27: 12 | Z27: 12 | AA27: 12 | AB27: 12 | AC27: 12 | AD27: 12 | AE27: 12 | AF27: 12 | AG27: 12 | AH27: 12 | AI27: 12 | AJ27: 12 | AK27: 12 | AL27: 12 | AO27: 4 | AP27: 12 | AQ27: 12 | AR27: 12 | AS27: 12 | AT27: 12 | AU27: 12
A28: Puerto Rico | B28: 12 | C28: 12 | D28: 12 | E28: 12 | F28: 12 | G28: 12 | H28: 12 | I28: 12 | J28: 12 | K28: 12 | L28: 12 | M28: 12 | N28: 12 | O28: 12 | P28: 12 | Q28: 12 | R28: 12 | S28: 12 | T28: 12 | V28: 12 | W28: 12 | X28: 12 | Y28: 12 | Z28: 12 | AA28: 12 | AC28: 12 | AE28: 12 | AF28: 12 | AG28: 12 | AH28: 12 | AI28: 12 | AK28: 12 | AL28: 12 | AM28: 12 | AN28: 12 | AO28: 12 | AP28: 12 | AQ28: 12
A29: Netherlands | F29: 12 | H29: 12 | I29: 12 | J29: 12 | K29: 12 | L29: 12 | M29: 12 | N29: 12 | O29: 12 | P29: 12 | Q29: 12 | R29: 12 | S29: 12 | T29: 12 | U29: 12 | V29: 12 | W29: 12 | Y29: 12 | Z29: 12 | AA29: 12 | AB29: 12 | AC29: 12 | AD29: 12 | AE29: 12 | AG29: 12 | AH29: 12 | AI29: 12 | AJ29: 12 | AK29: 12 | AL29: 12 | AM29: 12 | AN29: 12 | AP29: 12 | AQ29: 12 | AR29: 12 | AS29: 12 | AT29: 12 | AU29: 12
A30: El Salvador | H30: 12 | I30: 12 | J30: 12 | K30: 12 | L30: 12 | M30: 12 | N30: 12 | O30: 12 | P30: 12 | Q30: 12 | R30: 12 | S30: 12 | T30: 12 | U30: 12 | V30: 12 | W30: 12 | X30: 12 | Y30: 12 | Z30: 12 | AA30: 12 | AB30: 12 | AC30: 12 | AD30: 12 | AE30: 12 | AF30: 12 | AG30: 12 | AH30: 12 | AI30: 12 | AJ30: 12 | AK30: 12 | AL30: 12 | AM30: 12 | AN30: 12 | AO30: 12 | AP30: 12 | AS30: 12 | AT30: 12 | AU30: 12
A31: Poland | H31: 12 | I31: 12 | J31: 12 | K31: 12 | M31: 12 | N31: 12 | O31: 12 | P31: 12 | Q31: 12 | R31: 12 | S31: 12 | T31: 12 | U31: 12 | V31: 12 | W31: 12 | X31: 12 | Y31: 12 | Z31: 12 | AA31: 12 | AB31: 12 | AC31: 12 | AD31: 12 | AE31: 12 | AF31: 12 | AG31: 12 | AH31: 12 | AI31: 12 | AJ31: 12 | AK31: 12 | AL31: 12 | AM31: 12 | AN31: 12 | AP31: 12 | AQ31: 12 | AR31: 12 | AS31: 12 | AT31: 12 | AU31: 12
A32: Panama | F32: 12 | H32: 12 | I32: 12 | J32: 12 | K32: 12 | L32: 12 | M32: 12 | N32: 12 | O32: 12 | P32: 12 | Q32: 12 | R32: 12 | S32: 12 | T32: 12 | U32: 12 | V32: 12 | W32: 12 | X32: 12 | Y32: 12 | Z32: 12 | AA32: 12 | AB32: 12 | AC32: 12 | AD32: 12 | AE32: 12 | AF32: 12 | AG32: 12 | AH32: 12 | AK32: 12 | AL32: 12 | AN32: 12 | AO32: 12 | AP32: 12 | AQ32: 12 | AR32: 12 | AS32: 12 | AT32: 12 | AU32: 12
A33: China, Hong Kong SAR | H33: 12 | I33: 12 | J33: 12 | K33: 12 | L33: 12 | N33: 12 | O33: 12 | P33: 12 | Q33: 12 | R33: 12 | S33: 12 | T33: 12 | U33: 12 | V33: 12 | W33: 12 | X33: 12 | Y33: 12 | Z33: 12 | AA33: 12 | AB33: 12 | AC33: 12 | AD33: 12 | AE33: 12 | AF33: 12 | AG33: 12 | AH33: 12 | AI33: 12 | AJ33: 12 | AK33: 12 | AL33: 12 | AM33: 12 | AN33: 12 | AO33: 12 | AP33: 12 | AQ33: 12 | AR33: 12 | AS33: 12 | AT33: 12
A34: Austria | H34: 12 | I34: 12 | J34: 12 | K34: 12 | L34: 12 | M34: 12 | N34: 12 | O34: 12 | P34: 12 | Q34: 12 | R34: 12 | S34: 12 | T34: 12 | U34: 12 | V34: 12 | W34: 12 | X34: 12 | Y34: 12 | Z34: 12 | AA34: 12 | AB34: 12 | AC34: 12 | AD34: 12 | AE34: 12 | AF34: 12 | AG34: 12 | AH34: 12 | AI34: 12 | AJ34: 12 | AK34: 12 | AL34: 12 | AM34: 12 | AP34: 12 | AQ34: 12 | AR34: 12 | AS34: 12 | AT34: 12 | AU34: 12
A35: Israel | F35: 12 | H35: 12 | I35: 12 | J35: 12 | K35: 12 | L35: 12 | M35: 12 | N35: 12 | O35: 12 | P35: 12 | R35: 12 | S35: 12 | T35: 12 | U35: 12 | V35: 12 | W35: 12 | Y35: 12 | Z35: 12 | AA35: 12 | AB35: 12 | AC35: 12 | AD35: 12 | AE35: 12 | AF35: 12 | AG35: 12 | AH35: 12 | AI35: 12 | AJ35: 12 | AK35: 12 | AL35: 12 | AM35: 12 | AN35: 12 | AO35: 12 | AP35: 12 | AQ35: 12 | AR35: 12 | AS35: 12 | AT35: 12
A36: Iceland | G36: 12 | H36: 12 | I36: 12 | J36: 12 | K36: 12 | L36: 12 | M36: 12 | N36: 12 | O36: 12 | Q36: 12 | R36: 12 | S36: 12 | T36: 12 | U36: 12 | V36: 12 | W36: 12 | X36: 12 | Y36: 12 | Z36: 12 | AA36: 12 | AB36: 12 | AD36: 12 | AE36: 12 | AF36: 12 | AG36: 12 | AH36: 12 | AI36: 12 | AJ36: 12 | AK36: 12 | AL36: 12 | AM36: 12 | AP36: 12 | AQ36: 12 | AR36: 12 | AS36: 12 | AT36: 12 | AU36: 12
A37: Hungary | H37: 12 | I37: 12 | J37: 12 | K37: 12 | L37: 12 | M37: 12 | N37: 12 | O37: 12 | P37: 12 | Q37: 12 | R37: 12 | S37: 12 | T37: 12 | U37: 12 | V37: 12 | W37: 12 | X37: 12 | Y37: 12 | Z37: 12 | AA37: 12 | AC37: 12 | AD37: 12 | AE37: 12 | AF37: 12 | AG37: 12 | AH37: 12 | AI37: 12 | AJ37: 12 | AK37: 12 | AL37: 12 | AM37: 12 | AP37: 12 | AQ37: 12 | AR37: 12 | AS37: 12 | AT37: 12 | AU37: 12
A38: Sweden | F38: 12 | H38: 12 | I38: 12 | J38: 12 | K38: 12 | L38: 12 | M38: 12 | N38: 12 | O38: 12 | P38: 12 | Q38: 12 | R38: 12 | S38: 12 | T38: 12 | U38: 12 | V38: 12 | W38: 12 | X38: 12 | Y38: 12 | AA38: 12 | AB38: 12 | AC38: 12 | AD38: 12 | AE38: 12 | AF38: 12 | AG38: 12 | AH38: 12 | AI38: 12 | AJ38: 12 | AK38: 12 | AN38: 12 | AP38: 12 | AQ38: 12 | AR38: 12 | AS38: 12 | AT38: 12 | AU38: 12
A39: Canada | E39: 12 | F39: 12 | H39: 12 | I39: 12 | J39: 12 | K39: 12 | L39: 12 | M39: 12 | N39: 12 | O39: 12 | P39: 12 | Q39: 12 | R39: 12 | S39: 12 | T39: 12 | U39: 12 | V39: 12 | W39: 12 | X39: 12 | Y39: 12 | AA39: 12 | AB39: 12 | AC39: 12 | AD39: 12 | AE39: 12 | AF39: 12 | AH39: 12 | AI39: 12 | AJ39: 12 | AK39: 12 | AL39: 12 | AM39: 12 | AN39: 12 | AO39: 12 | AP39: 12 | AQ39: 12 | AR39: 12
A40: Malta | H40: 12 | I40: 12 | J40: 12 | K40: 12 | L40: 12 | M40: 12 | N40: 12 | O40: 12 | P40: 12 | Q40: 12 | R40: 12 | S40: 12 | T40: 12 | U40: 12 | V40: 12 | W40: 12 | Y40: 12 | AA40: 12 | AB40: 12 | AC40: 12 | AD40: 12 | AE40: 12 | AF40: 12 | AG40: 12 | AH40: 12 | AI40: 12 | AJ40: 12 | AK40: 12 | AL40: 12 | AM40: 12 | AO40: 12 | AP40: 12 | AQ40: 12 | AR40: 12 | AS40: 12 | AT40: 12 | AU40: 12
A41: Italy | E41: 12 | G41: 12 | H41: 12 | I41: 12 | J41: 12 | K41: 6 | L41: 12 | M41: 12 | N41: 12 | O41: 12 | P41: 12 | Q41: 12 | R41: 12 | S41: 12 | T41: 12 | W41: 12 | X41: 12 | Y41: 12 | Z41: 12 | AA41: 12 | AB41: 12 | AC41: 12 | AD41: 12 | AE41: 12 | AF41: 12 | AG41: 12 | AH41: 12 | AI41: 12 | AJ41: 12 | AK41: 12 | AL41: 12 | AM41: 12 | AP41: 12 | AQ41: 12 | AR41: 12 | AS41: 12 | AU41: 12
A42: France | D42: 12 | E42: 12 | F42: 12 | I42: 12 | J42: 12 | K42: 12 | L42: 12 | M42: 12 | N42: 12 | O42: 12 | Q42: 12 | R42: 12 | S42: 12 | T42: 12 | U42: 12 | V42: 12 | W42: 12 | X42: 12 | Z42: 12 | AA42: 12 | AB42: 12 | AC42: 12 | AD42: 12 | AE42: 12 | AF42: 12 | AH42: 12 | AI42: 12 | AJ42: 12 | AK42: 12 | AL42: 12 | AM42: 12 | AP42: 12 | AQ42: 12 | AR42: 12 | AT42: 12 | AU42: 12
A43: Egypt | I43: 12 | J43: 12 | K43: 12 | L43: 12 | M43: 12 | N43: 12 | O43: 12 | P43: 12 | Q43: 12 | R43: 12 | S43: 11 | T43: 11 | U43: 11 | V43: 12 | W43: 12 | X43: 12 | Y43: 12 | Z43: 12 | AA43: 12 | AB43: 12 | AC43: 12 | AD43: 12 | AE43: 12 | AF43: 12 | AG43: 12 | AH43: 12 | AL43: 12 | AM43: 12 | AN43: 12 | AO43: 12 | AP43: 12 | AQ43: 12 | AR43: 12 | AS43: 12 | AT43: 12 | AU43: 12
A44: Finland | G44: 12 | H44: 12 | I44: 12 | J44: 12 | K44: 12 | L44: 12 | M44: 12 | N44: 12 | O44: 12 | P44: 12 | Q44: 12 | R44: 12 | S44: 12 | T44: 12 | U44: 12 | V44: 12 | W44: 12 | Y44: 12 | AC44: 12 | AD44: 12 | AE44: 12 | AF44: 12 | AG44: 12 | AH44: 12 | AI44: 12 | AJ44: 12 | AK44: 12 | AL44: 12 | AM44: 12 | AP44: 12 | AQ44: 12 | AR44: 12 | AS44: 12 | AT44: 12 | AU44: 12 | AV44: 4 | AW44: 3
A45: Tunisia | D45: 12 | F45: 12 | G45: 12 | H45: 12 | I45: 12 | J45: 12 | K45: 12 | M45: 12 | N45: 12 | O45: 12 | P45: 12 | Q45: 12 | T45: 12 | U45: 12 | V45: 12 | W45: 12 | X45: 12 | Y45: 12 | Z45: 12 | AA45: 12 | AB45: 12 | AC45: 12 | AD45: 12 | AF45: 12 | AG45: 12 | AJ45: 12 | AK45: 12 | AL45: 12 | AM45: 12 | AN45: 12 | AO45: 12 | AP45: 12 | AR45: 12 | AS45: 12 | AT45: 12
A46: Maldives | M46: 12 | N46: 12 | O46: 12 | P46: 12 | Q46: 12 | R46: 12 | S46: 12 | T46: 12 | U46: 12 | V46: 12 | W46: 12 | X46: 12 | Y46: 12 | Z46: 12 | AA46: 12 | AB46: 12 | AC46: 12 | AD46: 12 | AE46: 12 | AF46: 12 | AG46: 12 | AH46: 12 | AI46: 12 | AJ46: 12 | AK46: 12 | AL46: 12 | AM46: 12 | AN46: 12 | AO46: 12 | AP46: 12 | AQ46: 12 | AR46: 12 | AS46: 12 | AT46: 12 | AU46: 12
A47: Luxembourg | H47: 12 | I47: 12 | J47: 12 | K47: 12 | L47: 12 | M47: 12 | N47: 12 | O47: 12 | P47: 12 | Q47: 12 | R47: 12 | S47: 12 | T47: 12 | U47: 12 | V47: 12 | W47: 12 | X47: 12 | AC47: 12 | AD47: 12 | AE47: 12 | AG47: 12 | AH47: 12 | AI47: 12 | AJ47: 12 | AK47: 12 | AL47: 12 | AM47: 12 | AN47: 12 | AO47: 12 | AP47: 12 | AQ47: 12 | AR47: 12 | AS47: 12 | AT47: 12 | AU47: 12
A48: Bahrain | J48: 12 | K48: 12 | L48: 12 | M48: 12 | N48: 12 | O48: 12 | P48: 12 | Q48: 12 | R48: 12 | S48: 12 | T48: 12 | U48: 12 | V48: 12 | W48: 12 | X48: 12 | Y48: 12 | Z48: 12 | AA48: 12 | AB48: 12 | AC48: 12 | AD48: 12 | AE48: 12 | AF48: 12 | AG48: 12 | AH48: 12 | AI48: 12 | AJ48: 12 | AK48: 12 | AM48: 12 | AN48: 12 | AO48: 12 | AP48: 12 | AS48: 12 | AT48: 12 | AU48: 12
A49: China, Macao SAR | F49: 12 | G49: 12 | H49: 12 | I49: 12 | J49: 12 | P49: 12 | Q49: 12 | S49: 12 | T49: 12 | U49: 12 | V49: 12 | W49: 12 | X49: 12 | Z49: 12 | AA49: 12 | AB49: 12 | AC49: 12 | AD49: 12 | AE49: 12 | AF49: 12 | AG49: 12 | AH49: 12 | AI49: 12 | AJ49: 12 | AK49: 12 | AL49: 12 | AM49: 12 | AN49: 12 | AO49: 12 | AP49: 12 | AQ49: 12 | AR49: 12 | AS49: 12 | AT49: 12 | AU49: 12
A50: Norway | H50: 12 | I50: 12 | K50: 12 | L50: 12 | M50: 12 | N50: 12 | O50: 12 | P50: 12 | Q50: 12 | R50: 12 | S50: 12 | T50: 12 | U50: 12 | V50: 12 | Y50: 12 | Z50: 12 | AA50: 12 | AB50: 12 | AD50: 12 | AE50: 12 | AF50: 12 | AG50: 12 | AH50: 12 | AI50: 12 | AJ50: 12 | AK50: 12 | AL50: 12 | AM50: 12 | AP50: 12 | AQ50: 12 | AR50: 12 | AS50: 12 | AT50: 12 | AU50: 12
A51: Switzerland | H51: 12 | I51: 12 | J51: 12 | K51: 12 | L51: 12 | M51: 12 | N51: 12 | O51: 12 | P51: 12 | Q51: 12 | S51: 12 | T51: 12 | U51: 12 | V51: 12 | W51: 12 | X51: 12 | Y51: 12 | AA51: 12 | AC51: 12 | AD51: 12 | AE51: 12 | AG51: 12 | AH51: 12 | AI51: 12 | AJ51: 12 | AK51: 12 | AM51: 12 | AN51: 12 | AP51: 12 | AQ51: 12 | AR51: 12 | AS51: 12 | AT51: 12 | AU51: 12
A52: Kuwait | E52: 12 | H52: 12 | J52: 12 | K52: 12 | L52: 12 | M52: 12 | N52: 12 | O52: 12 | P52: 12 | Q52: 12 | R52: 12 | S52: 12 | T52: 12 | U52: 12 | AA52: 12 | AB52: 12 | AC52: 12 | AD52: 12 | AE52: 12 | AF52: 12 | AG52: 12 | AH52: 12 | AI52: 12 | AJ52: 12 | AK52: 12 | AL52: 12 | AM52: 12 | AN52: 12 | AO52: 12 | AP52: 12 | AQ52: 12 | AR52: 12 | AS52: 12 | AU52: 12
A53: Venezuela (Bolivarian Republic of) | G53: 12 | H53: 12 | I53: 12 | J53: 12 | K53: 12 | L53: 12 | M53: 12 | N53: 12 | O53: 12 | P53: 12 | Q53: 12 | R53: 12 | S53: 12 | T53: 12 | U53: 12 | V53: 12 | W53: 12 | X53: 12 | Y53: 12 | Z53: 12 | AA53: 12 | AB53: 12 | AC53: 12 | AD53: 12 | AE53: 12 | AF53: 12 | AG53: 12 | AH53: 12 | AI53: 12 | AJ53: 12 | AN53: 12 | AO53: 12 | AP53: 12
A54: Bulgaria | F54: 12 | H54: 12 | I54: 12 | J54: 12 | K54: 12 | L54: 12 | M54: 12 | O54: 12 | P54: 12 | Q54: 12 | R54: 12 | S54: 12 | T54: 12 | U54: 12 | V54: 12 | W54: 12 | X54: 12 | Y54: 12 | AA54: 12 | AB54: 12 | AC54: 12 | AD54: 12 | AF54: 12 | AH54: 12 | AI54: 12 | AJ54: 12 | AK54: 12 | AP54: 12 | AQ54: 12 | AR54: 12 | AS54: 12 | AT54: 12 | AU54: 12
A55: Republic of Korea | J55: 12 | K55: 12 | L55: 12 | M55: 12 | N55: 12 | AE55: 12 | AF55: 24 | AG55: 24 | AH55: 24 | AI55: 24 | AJ55: 24 | AK55: 24 | AL55: 24 | AM55: 24 | AN55: 24 | AO55: 24 | AP55: 12 | AQ55: 12 | AR55: 12 | AS55: 12 | AT55: 12 | AU55: 12
A56: Guatemala | E56: 12 | G56: 12 | I56: 12 | J56: 12 | K56: 12 | L56: 12 | M56: 12 | N56: 12 | P56: 12 | Q56: 12 | R56: 12 | S56: 12 | T56: 12 | U56: 12 | V56: 12 | W56: 12 | X56: 12 | Y56: 12 | Z56: 12 | AA56: 12 | AB56: 12 | AC56: 12 | AD56: 12 | AE56: 12 | AF56: 12 | AG56: 12 | AH56: 12 | AM56: 12 | AN56: 12 | AO56: 12 | AS56: 12 | AT56: 12
A57: Greece | F57: 12 | I57: 12 | J57: 12 | K57: 12 | L57: 12 | M57: 12 | N57: 12 | O57: 12 | P57: 12 | Q57: 12 | R57: 12 | S57: 12 | T57: 12 | Y57: 12 | Z57: 12 | AA57: 12 | AB57: 12 | AC57: 12 | AD57: 12 | AE57: 12 | AF57: 12 | AG57: 12 | AH57: 12 | AI57: 12 | AJ57: 12 | AL57: 12 | AP57: 12 | AQ57: 12 | AR57: 12 | AT57: 12 | AU57: 12
A58: San Marino | F58: 12 | H58: 12 | I58: 12 | J58: 12 | K58: 12 | L58: 12 | M58: 12 | O58: 12 | P58: 12 | Q58: 12 | S58: 12 | T58: 12 | U58: 12 | V58: 12 | W58: 12 | X58: 12 | AA58: 12 | AB58: 12 | AC58: 12 | AD58: 12 | AF58: 12 | AI58: 12 | AJ58: 12 | AK58: 12 | AL58: 12 | AM58: 12 | AO58: 12 | AP58: 12 | AR58: 12 | AS58: 3 | AU58: 12
A59: Trinidad and Tobago | G59: 12 | H59: 12 | I59: 12 | J59: 12 | K59: 12 | L59: 12 | M59: 12 | N59: 12 | O59: 12 | P59: 12 | Q59: 12 | R59: 12 | S59: 12 | T59: 12 | U59: 12 | V59: 12 | W59: 12 | X59: 12 | Y59: 12 | Z59: 12 | AA59: 12 | AB59: 12 | AC59: 12 | AD59: 12 | AF59: 12 | AK59: 12 | AM59: 12 | AN59: 12 | AO59: 12
A60: American Samoa | F60: 12 | H60: 12 | K60: 12 | Q60: 12 | S60: 12 | T60: 12 | U60: 12 | V60: 12 | W60: 12 | Y60: 12 | Z60: 12 | AA60: 12 | AB60: 12 | AE60: 12 | AF60: 12 | AG60: 12 | AH60: 12 | AI60: 12 | AJ60: 12 | AK60: 12 | AL60: 12 | AM60: 12 | AN60: 12 | AO60: 12 | AP60: 12 | AQ60: 12 | AR60: 12 | AS60: 12 | AT60: 12
A61: Kyrgyzstan | O61: 12 | T61: 12 | U61: 12 | V61: 12 | W61: 12 | X61: 12 | Y61: 12 | Z61: 12 | AA61: 12 | AB61: 12 | AC61: 12 | AD61: 12 | AE61: 12 | AF61: 12 | AG61: 12 | AH61: 12 | AI61: 12 | AJ61: 12 | AK61: 12 | AL61: 12 | AM61: 12 | AN61: 12 | AO61: 12 | AP61: 12 | AQ61: 12 | AR61: 12 | AS61: 12 | AT61: 12 | AU61: 12
A62: Gibraltar | F62: 12 | H62: 12 | I62: 12 | J62: 12 | K62: 12 | L62: 12 | M62: 12 | N62: 12 | O62: 12 | P62: 12 | Q62: 12 | R62: 12 | S62: 12 | T62: 12 | U62: 12 | V62: 12 | W62: 12 | Y62: 12 | AD62: 12 | AE62: 12 | AF62: 12 | AK62: 12 | AL62: 12 | AM62: 12 | AN62: 12 | AO62: 12 | AP62: 12 | AQ62: 12
A63: Martinique | J63: 12 | K63: 12 | L63: 12 | M63: 12 | N63: 12 | O63: 12 | P63: 12 | Q63: 12 | R63: 12 | S63: 12 | T63: 12 | U63: 12 | V63: 12 | W63: 12 | X63: 12 | Y63: 12 | Z63: 12 | AA63: 12 | AG63: 12 | AH63: 12 | AI63: 12 | AJ63: 12 | AK63: 12 | AL63: 12 | AN63: 12 | AO63: 12 | AP63: 12
A64: Liechtenstein | M64: 12 | N64: 12 | O64: 12 | P64: 12 | Q64: 12 | R64: 12 | S64: 12 | T64: 12 | U64: 12 | V64: 12 | AB64: 12 | AC64: 12 | AD64: 12 | AE64: 12 | AF64: 12 | AI64: 12 | AJ64: 12 | AK64: 12 | AL64: 12 | AM64: 12 | AN64: 12 | AP64: 12 | AQ64: 12 | AR64: 12 | AS64: 12 | AT64: 12 | AU64: 12
A65: Romania | F65: 12 | H65: 12 | I65: 12 | U65: 12 | V65: 12 | W65: 12 | X65: 12 | Y65: 12 | Z65: 12 | AA65: 12 | AC65: 12 | AD65: 12 | AE65: 12 | AF65: 12 | AG65: 12 | AH65: 12 | AI65: 12 | AJ65: 12 | AK65: 12 | AN65: 12 | AP65: 12 | AQ65: 12 | AR65: 12 | AS65: 12 | AT65: 12 | AU65: 12
A66: Lithuania | V66: 12 | W66: 12 | X66: 12 | Y66: 12 | Z66: 12 | AA66: 12 | AB66: 12 | AC66: 12 | AD66: 12 | AE66: 12 | AF66: 12 | AG66: 12 | AH66: 12 | AI66: 12 | AJ66: 12 | AK66: 12 | AL66: 12 | AM66: 12 | AN66: 12 | AO66: 12 | AP66: 12 | AQ66: 12 | AR66: 12 | AS66: 12 | AT66: 12 | AU66: 12
A67: Albania | P67: 12 | Q67: 12 | R67: 12 | S67: 12 | T67: 12 | U67: 12 | V67: 12 | W67: 12 | X67: 12 | Y67: 12 | Z67: 12 | AA67: 12 | AB67: 12 | AC67: 12 | AD67: 12 | AE67: 12 | AF67: 12 | AG67: 12 | AH67: 12 | AI67: 12 | AJ67: 12 | AK67: 12 | AL67: 12 | AN67: 12 | AO67: 12 | AP67: 12
A68: Brunei Darussalam | G68: 12 | H68: 12 | I68: 12 | J68: 12 | K68: 12 | M68: 12 | O68: 12 | P68: 12 | Q68: 12 | R68: 12 | S68: 12 | T68: 12 | U68: 12 | V68: 12 | W68: 12 | X68: 12 | Y68: 12 | Z68: 12 | AA68: 12 | AE68: 12 | AF68: 12 | AG68: 12 | AH68: 12 | AI68: 12 | AJ68: 12 | AK68: 12
A69: Costa Rica | H69: 12 | I69: 12 | M69: 12 | N69: 12 | O69: 12 | P69: 12 | Q69: 12 | V69: 12 | W69: 12 | X69: 12 | Y69: 12 | Z69: 12 | AC69: 12 | AD69: 12 | AE69: 12 | AF69: 12 | AH69: 12 | AL69: 12 | AM69: 12 | AN69: 12 | AO69: 12 | AP69: 12 | AQ69: 12 | AR69: 12 | AT69: 12 | AU69: 12
A70: Belgium | G70: 12 | H70: 12 | I70: 12 | J70: 12 | K70: 12 | L70: 12 | M70: 12 | N70: 12 | O70: 12 | P70: 12 | Q70: 12 | R70: 12 | U70: 12 | V70: 12 | W70: 12 | X70: 12 | Y70: 12 | Z70: 12 | AA70: 12 | AJ70: 12 | AK70: 12 | AP70: 12 | AS70: 12 | AT70: 12 | AU70: 12
A71: United States Virgin Islands | D71: 12 | E71: 12 | F71: 12 | G71: 12 | H71: 12 | O71: 12 | P71: 12 | Q71: 12 | R71: 12 | S71: 12 | T71: 12 | U71: 12 | V71: 12 | W71: 12 | X71: 12 | Y71: 12 | Z71: 12 | AA71: 12 | AB71: 12 | AC71: 12 | AD71: 12 | AE71: 12 | AF71: 12 | AO71: 12 | AP71: 12
A72: Qatar | O72: 12 | P72: 12 | Q72: 12 | R72: 12 | T72: 12 | U72: 12 | V72: 12 | W72: 12 | X72: 12 | Y72: 12 | AA72: 12 | AB72: 12 | AC72: 12 | AH72: 12 | AI72: 12 | AJ72: 12 | AK72: 12 | AL72: 12 | AM72: 12 | AN72: 12 | AO72: 12 | AP72: 12 | AQ72: 12 | AR72: 12 | AS72: 12
A73: United Kingdom of Great Britain and Northern Ireland | Q73: 12 | R73: 12 | S73: 12 | T73: 12 | U73: 12 | V73: 12 | W73: 12 | Y73: 12 | Z73: 12 | AA73: 12 | AB73: 12 | AC73: 12 | AD73: 12 | AE73: 12 | AF73: 12 | AG73: 12 | AH73: 12 | AI73: 12 | AJ73: 12 | AK73: 12 | AM73: 12 | AQ73: 12 | AT73: 12 | AU73: 12
A74: Belarus | O74: 12 | P74: 12 | Q74: 12 | R74: 12 | T74: 12 | V74: 12 | W74: 12 | X74: 12 | Y74: 12 | Z74: 12 | AA74: 12 | AB74: 12 | AC74: 12 | AD74: 12 | AE74: 12 | AF74: 12 | AG74: 12 | AH74: 12 | AM74: 12 | AP74: 12 | AQ74: 12 | AR74: 12 | AT74: 12 | AU74: 12
A75: Latvia | X75: 12 | Y75: 12 | Z75: 12 | AA75: 12 | AB75: 12 | AC75: 12 | AD75: 12 | AE75: 12 | AF75: 12 | AG75: 12 | AH75: 12 | AI75: 12 | AJ75: 12 | AK75: 12 | AL75: 12 | AM75: 12 | AN75: 12 | AO75: 12 | AP75: 12 | AQ75: 12 | AR75: 12 | AS75: 12 | AT75: 12 | AU75: 12
A76: Guernsey | H76: 12 | I76: 12 | J76: 12 | K76: 12 | L76: 12 | M76: 12 | N76: 12 | R76: 12 | S76: 12 | T76: 12 | U76: 12 | W76: 12 | X76: 12 | Y76: 12 | AA76: 12 | AB76: 12 | AC76: 12 | AD76: 12 | AE76: 12 | AF76: 12 | AG76: 12 | AH76: 12 | AI76: 12 | AS76: 4 | AT76: 4
A77: Montserrat | E77: 12 | F77: 4 | R77: 12 | S77: 12 | T77: 12 | U77: 12 | AC77: 12 | AD77: 12 | AE77: 12 | AF77: 12 | AG77: 12 | AH77: 12 | AI77: 12 | AJ77: 12 | AK77: 12 | AL77: 12 | AM77: 12 | AN77: 12 | AO77: 12 | AP77: 12 | AQ77: 12 | AS77: 12 | AT77: 12 | AU77: 12
A78: Ukraine | O78: 12 | P78: 12 | Q78: 12 | R78: 12 | S78: 12 | T78: 12 | U78: 12 | X78: 12 | Y78: 12 | Z78: 12 | AA78: 12 | AB78: 12 | AC78: 12 | AD78: 12 | AE78: 12 | AG78: 12 | AJ78: 12 | AN78: 12 | AP78: 12 | AQ78: 12 | AS78: 12 | AT78: 12 | AU78: 12
A79: Suriname | X79: 12 | Y79: 12 | Z79: 12 | AA79: 12 | AB79: 12 | AC79: 12 | AD79: 12 | AE79: 12 | AF79: 12 | AG79: 12 | AH79: 12 | AI79: 12 | AJ79: 12 | AK79: 12 | AL79: 12 | AM79: 12 | AN79: 12 | AO79: 12 | AP79: 12 | AQ79: 12 | AR79: 12 | AS79: 12 | AT79: 12
A80: Sri Lanka | H80: 12 | I80: 12 | J80: 12 | K80: 12 | L80: 12 | M80: 12 | N80: 12 | O80: 12 | P80: 12 | Q80: 12 | R80: 12 | S80: 12 | T80: 12 | U80: 12 | V80: 12 | W80: 12 | X80: 12 | Z80: 12 | AD80: 12 | AE80: 12 | AJ80: 12 | AN80: 12 | AO80: 12
A81: Barbados | D81: 12 | E81: 12 | F81: 12 | G81: 12 | H81: 12 | I81: 12 | J81: 12 | K81: 12 | L81: 4 | M81: 12 | Q81: 12 | R81: 12 | S81: 12 | T81: 12 | U81: 12 | V81: 12 | W81: 12 | X81: 12 | Y81: 12 | Z81: 12 | AN81: 12 | AO81: 12 | AP81: 12
A82: Kazakhstan | V82: 12 | W82: 12 | X82: 12 | Y82: 12 | Z82: 12 | AA82: 12 | AB82: 12 | AC82: 12 | AD82: 12 | AE82: 12 | AF82: 12 | AG82: 12 | AH82: 12 | AI82: 12 | AJ82: 12 | AK82: 12 | AL82: 12 | AM82: 12 | AN82: 12 | AO82: 12 | AP82: 12 | AQ82: 12
A83: Slovenia | W83: 12 | X83: 12 | Y83: 12 | Z83: 12 | AA83: 12 | AB83: 12 | AC83: 12 | AD83: 12 | AE83: 12 | AG83: 12 | AH83: 12 | AI83: 12 | AJ83: 12 | AK83: 12 | AL83: 12 | AN83: 12 | AP83: 12 | AQ83: 12 | AR83: 12 | AS83: 12 | AT83: 12 | AU83: 12
A84: Bermuda | S84: 12 | T84: 12 | U84: 12 | V84: 12 | W84: 12 | X84: 12 | Y84: 12 | Z84: 12 | AD84: 12 | AE84: 12 | AF84: 12 | AG84: 12 | AH84: 12 | AI84: 12 | AJ84: 12 | AO84: 12 | AP84: 12 | AQ84: 12 | AR84: 12 | AS84: 12 | AT84: 12 | AU84: 12
A85: Croatia | W85: 12 | X85: 12 | Y85: 12 | Z85: 12 | AA85: 12 | AB85: 12 | AC85: 12 | AD85: 12 | AE85: 12 | AF85: 12 | AG85: 12 | AH85: 12 | AI85: 12 | AJ85: 12 | AK85: 12 | AM85: 12 | AP85: 12 | AQ85: 12 | AR85: 12 | AS85: 12 | AT85: 12 | AU85: 12
A86: Republic of Moldova | V86: 12 | W86: 12 | X86: 12 | Y86: 12 | Z86: 12 | AA86: 12 | AD86: 12 | AE86: 12 | AG86: 12 | AH86: 12 | AI86: 12 | AJ86: 12 | AK86: 12 | AL86: 12 | AM86: 12 | AN86: 12 | AP86: 12 | AQ86: 12 | AR86: 12 | AS86: 12 | AT86: 12 | AU86: 12
A87: Réunion | L87: 12 | M87: 12 | N87: 12 | O87: 12 | P87: 12 | Q87: 12 | R87: 12 | S87: 12 | T87: 12 | U87: 12 | W87: 12 | X87: 12 | Y87: 12 | AG87: 12 | AH87: 12 | AI87: 12 | AJ87: 12 | AK87: 12 | AL87: 12 | AN87: 12 | AO87: 12 | AP87: 12
A88: French Guiana | E88: 12 | L88: 12 | M88: 12 | N88: 12 | O88: 12 | P88: 12 | Q88: 12 | R88: 12 | S88: 12 | T88: 12 | U88: 12 | AF88: 12 | AG88: 12 | AH88: 12 | AI88: 12 | AJ88: 12 | AK88: 12 | AL88: 12 | AN88: 12 | AO88: 12 | AP88: 12
A89: Mauritius | Y89: 12 | Z89: 12 | AC89: 12 | AD89: 12 | AE89: 12 | AF89: 12 | AG89: 12 | AH89: 12 | AI89: 12 | AJ89: 12 | AK89: 12 | AL89: 12 | AM89: 12 | AN89: 12 | AO89: 12 | AP89: 12 | AQ89: 12 | AR89: 12 | AS89: 12 | AT89: 12 | AU89: 12
A90: Saint Vincent and the Grenadines | O90: 12 | R90: 12 | S90: 12 | U90: 12 | W90: 12 | AA90: 12 | AB90: 12 | AC90: 12 | AD90: 12 | AE90: 12 | AF90: 12 | AG90: 12 | AH90: 12 | AI90: 12 | AJ90: 12 | AK90: 12 | AL90: 12 | AM90: 12 | AN90: 12 | AQ90: 12 | AR90: 12
A91: Slovakia | W91: 12 | X91: 12 | Y91: 12 | Z91: 12 | AA91: 12 | AB91: 12 | AC91: 12 | AD91: 12 | AG91: 12 | AH91: 12 | AI91: 12 | AJ91: 12 | AK91: 12 | AM91: 12 | AN91: 12 | AP91: 12 | AQ91: 12 | AR91: 12 | AS91: 12 | AT91: 12 | AU91: 12
A92: Guam | F92: 12 | H92: 12 | I92: 12 | J92: 12 | K92: 12 | L92: 12 | M92: 12 | N92: 12 | O92: 12 | P92: 12 | Q92: 12 | T92: 12 | U92: 12 | W92: 12 | X92: 12 | Y92: 12 | Z92: 12 | AA92: 12 | AF92: 12 | AM92: 12
A93: Faeroe Islands | G93: 12 | H93: 12 | I93: 12 | J93: 12 | K93: 12 | L93: 12 | M93: 12 | N93: 12 | O93: 12 | P93: 12 | Q93: 12 | R93: 12 | S93: 12 | T93: 12 | U93: 12 | V93: 12 | X93: 12 | AN93: 12 | AO93: 12 | AP93: 12
A94: Guadeloupe | E94: 12 | J94: 12 | K94: 12 | L94: 12 | M94: 12 | N94: 12 | O94: 12 | Q94: 12 | R94: 12 | S94: 12 | T94: 12 | U94: 12 | Z94: 12 | AF94: 12 | AG94: 12 | AH94: 12 | AI94: 12 | AJ94: 12 | AK94: 12 | AL94: 12
A95: Czech Republic | Z95: 12 | AA95: 12 | AB95: 12 | AC95: 12 | AD95: 12 | AE95: 12 | AF95: 12 | AG95: 12 | AH95: 12 | AI95: 12 | AJ95: 12 | AK95: 12 | AL95: 12 | AM95: 12 | AP95: 12 | AQ95: 12 | AR95: 12 | AS95: 12 | AT95: 12 | AU95: 12
A96: Libya | G96: 12 | H96: 12 | I96: 12 | J96: 12 | K96: 12 | L96: 12 | M96: 12 | N96: 12 | O96: 12 | P96: 12 | X96: 12 | Y96: 12 | Z96: 12 | AA96: 12 | AB96: 12 | AC96: 12 | AD96: 12 | AE96: 12 | AI96: 12 | AK96: 12
A97: Estonia | X97: 12 | Y97: 12 | Z97: 12 | AA97: 12 | AB97: 12 | AC97: 12 | AD97: 12 | AE97: 12 | AF97: 12 | AH97: 12 | AI97: 12 | AJ97: 12 | AK97: 12 | AL97: 12 | AP97: 12 | AQ97: 12 | AR97: 12 | AS97: 12 | AT97: 12 | AU97: 12
A98: Isle of Man | F98: 12 | H98: 12 | I98: 12 | J98: 12 | K98: 12 | L98: 12 | M98: 12 | N98: 12 | O98: 12 | P98: 12 | Q98: 12 | R98: 12 | S98: 12 | T98: 12 | U98: 12 | V98: 12 | W98: 12 | Z98: 4 | AA98: 4 | AB98: 4 | AC98: 4 | AD98: 4 | AE98: 4 | AH98: 4
A99: Jamaica | D99: 4 | E99: 4 | F99: 4 | G99: 4 | H99: 4 | I99: 4 | J99: 4 | L99: 12 | M99: 12 | N99: 12 | Q99: 12 | R99: 12 | V99: 12 | Z99: 4 | AA99: 4 | AB99: 4 | AC99: 4 | AD99: 4 | AF99: 4 | AH99: 12 | AI99: 12 | AJ99: 12 | AK99: 12 | AL99: 12 | AM99: 12 | AN99: 12 | AO99: 12 | AP99: 12
A100: Malaysia | Y100: 12 | Z100: 12 | AA100: 12 | AC100: 12 | AD100: 12 | AE100: 12 | AF100: 12 | AG100: 12 | AH100: 12 | AI100: 12 | AJ100: 12 | AK100: 12 | AL100: 12 | AM100: 12 | AN100: 12 | AO100: 12 | AQ100: 12 | AR100: 12 | AT100: 12
A101: TFYR of Macedonia | X101: 12 | Y101: 12 | Z101: 12 | AA101: 12 | AB101: 12 | AD101: 12 | AF101: 12 | AH101: 12 | AI101: 12 | AJ101: 12 | AK101: 12 | AM101: 12 | AN101: 12 | AP101: 12 | AQ101: 12 | AR101: 12 | AS101: 12 | AT101: 12 | AU101: 12
A102: Azerbaijan | AA102: 12 | AB102: 12 | AC102: 12 | AD102: 12 | AE102: 12 | AF102: 12 | AG102: 12 | AH102: 12 | AI102: 12 | AJ102: 12 | AK102: 12 | AL102: 12 | AM102: 12 | AP102: 12 | AQ102: 12 | AR102: 12 | AS102: 12 | AU102: 12 | AV102: 12
A103: Saint Lucia | K103: 12 | L103: 12 | M103: 12 | N103: 12 | P103: 12 | Q103: 12 | R103: 12 | S103: 12 | T103: 12 | U103: 12 | AC103: 12 | AD103: 12 | AE103: 12 | AF103: 12 | AG103: 12 | AH103: 12 | AI103: 12 | AJ103: 12 | AK103: 12
A104: Germany | Z104: 12 | AA104: 12 | AB104: 12 | AC104: 12 | AD104: 12 | AE104: 12 | AF104: 12 | AH104: 12 | AJ104: 12 | AK104: 12 | AM104: 12 | AN104: 12 | AO104: 12 | AP104: 12 | AQ104: 12 | AS104: 12 | AT104: 12 | AU104: 12 | AV104: 12
A105: Armenia | V105: 12 | W105: 12 | X105: 12 | Y105: 12 | Z105: 12 | AA105: 12 | AB105: 12 | AC105: 12 | AD105: 12 | AE105: 12 | AF105: 12 | AG105: 12 | AH105: 12 | AM105: 12 | AN105: 12 | AP105: 12 | AQ105: 12 | AR105: 12
A106: Cayman Islands | P106: 12 | Q106: 12 | R106: 12 | U106: 12 | V106: 12 | W106: 12 | X106: 12 | Y106: 12 | Z106: 12 | AA106: 12 | AB106: 12 | AC106: 12 | AD106: 12 | AO106: 12 | AP106: 12 | AQ106: 12 | AR106: 12 | AT106: 12
A107: Philippines | I107: 12 | J107: 12 | K107: 12 | M107: 12 | N107: 12 | AF107: 12 | AG107: 12 | AH107: 12 | AI107: 12 | AJ107: 12 | AK107: 12 | AL107: 12 | AM107: 12 | AN107: 12 | AO107: 12 | AP107: 12 | AR107: 12
A108: Jersey | H108: 12 | I108: 12 | J108: 12 | K108: 12 | L108: 12 | M108: 12 | N108: 12 | O108: 12 | P108: 12 | Q108: 12 | R108: 12 | S108: 12 | T108: 12 | U108: 12 | V108: 12 | W108: 12 | X108: 12
A109: Uruguay | L109: 12 | O109: 12 | P109: 12 | Q109: 12 | R109: 12 | S109: 12 | T109: 12 | U109: 12 | V109: 12 | W109: 12 | AB109: 12 | AE109: 12 | AF109: 12 | AG109: 12 | AH109: 12 | AI109: 12
A110: Cabo Verde | C110: 12 | D110: 12 | E110: 12 | F110: 12 | G110: 12 | H110: 12 | I110: 12 | J110: 12 | O110: 12 | P110: 12 | Q110: 12 | R110: 12 | S110: 12 | T110: 12 | Y110: 12
A111: Andorra | AA111: 12 | AB111: 12 | AC111: 12 | AE111: 12 | AF111: 12 | AH111: 12 | AI111: 12 | AJ111: 12 | AM111: 12 | AP111: 12 | AQ111: 12 | AR111: 12 | AS111: 12 | AT111: 12 | AU111: 12
A112: Niue | J112: 12 | Q112: 12 | R112: 12 | S112: 12 | T112: 12 | U112: 12 | V112: 12 | AF112: 12 | AG112: 12 | AH112: 12 | AI112: 12 | AJ112: 12 | AK112: 12 | AR112: 12
A113: Mongolia | AC113: 12 | AD113: 12 | AE113: 12 | AF113: 12 | AG113: 12 | AH113: 12 | AI113: 12 | AJ113: 12 | AK113: 12 | AL113: 12 | AT113: 12 | AU113: 12 | AV113: 12
A114: Turks and Caicos Islands | G114: 12 | H114: 12 | I114: 12 | J114: 12 | AF114: 12 | AG114: 12 | AH114: 12 | AI114: 12 | AJ114: 12 | AK114: 12 | AL114: 12 | AM114: 12 | AN114: 12
A115: Algeria | M115: 12 | N115: 12 | O115: 12 | P115: 12 | T115: 12 | U115: 12 | AG115: 12 | AH115: 12 | AI115: 12 | AJ115: 12 | AK115: 12 | AS115: 12 | AU115: 12
A116: Russian Federation | AA116: 12 | AB116: 12 | AC116: 12 | AD116: 12 | AH116: 12 | AI116: 12 | AJ116: 12 | AM116: 12 | AP116: 12 | AQ116: 12 | AR116: 12 | AS116: 12 | AT116: 12
A117: Turkey | AJ117: 12 | AK117: 12 | AL117: 12 | AM117: 12 | AN117: 12 | AO117: 12 | AP117: 12 | AQ117: 12 | AR117: 12 | AS117: 12 | AT117: 12 | AU117: 12
A118: British Virgin Islands | F118: 12 | G118: 12 | I118: 12 | J118: 12 | O118: 12 | P118: 12 | Q118: 12 | R118: 12 | S118: 12 | T118: 12 | U118: 12 | W118: 12
A119: Lebanon | G119: 12 | H119: 12 | AI119: 12 | AL119: 12 | AM119: 12 | AN119: 12 | AO119: 12 | AP119: 12 | AQ119: 12 | AR119: 12 | AS119: 12 | AT119: 12
A120: Antigua and Barbuda | G120: 12 | H120: 12 | I120: 12 | J120: 12 | N120: 12 | O120: 12 | P120: 12 | Q120: 12 | R120: 12 | S120: 12 | T120: 12 | U120: 12
A121: Georgia | AA121: 12 | AC121: 12 | AD121: 12 | AE121: 12 | AH121: 12 | AI121: 12 | AJ121: 12 | AL121: 12 | AP121: 12 | AQ121: 12 | AS121: 12 | AT121: 12
A122: Fiji | G122: 12 | H122: 12 | I122: 12 | J122: 12 | K122: 4 | M122: 12 | N122: 12 | S122: 12 | T122: 12 | U122: 12 | V122: 12 | AM122: 12
A123: Bosnia and Herzegovina | Y123: 12 | Z123: 12 | AE123: 12 | AF123: 12 | AG123: 12 | AL123: 12 | AM123: 12 | AP123: 12 | AQ123: 12 | AR123: 12 | AS123: 12
A124: State of Palestine | AF124: 12 | AG124: 12 | AH124: 12 | AI124: 12 | AJ124: 12 | AK124: 12 | AL124: 12 | AM124: 12 | AN124: 12 | AO124: 12 | AP124: 12
A125: Tonga | AB125: 12 | AC125: 12 | AD125: 12 | AE125: 12 | AF125: 12 | AG125: 12 | AH125: 12 | AI125: 12 | AK125: 12 | AL125: 12
A126: Cook Islands | H126: 4 | I126: 4 | J126: 4 | K126: 4 | L126: 4 | N126: 4 | O126: 4 | P126: 4 | Q126: 4 | R126: 12 | S126: 12 | T126: 12 | U126: 12 | V126: 12 | W126: 12 | AO126: 4 | AP126: 4 | AQ126: 4
A127: Norfolk Island | I127: 12 | J127: 10 | K127: 10 | M127: 9 | N127: 12 | O127: 12 | P127: 12 | R127: 12 | S127: 12 | W127: 12
A128: Bahamas | G128: 12 | H128: 12 | I128: 12 | J128: 12 | K128: 12 | L128: 12 | M128: 12 | N128: 12 | AR128: 12
A129: Aruba | AK129: 12 | AL129: 12 | AM129: 12 | AN129: 12 | AO129: 12 | AP129: 12 | AT129: 12 | AU129: 12 | AV129: 12
A130: Saint Helena: Ascension | F130: 11 | G130: 11 | H130: 10 | I130: 11 | J130: 8 | K130: 11 | L130: 9 | N130: 4 | O130: 12 | P130: 12
A131: Uzbekistan | AB131: 12 | AC131: 12 | AD131: 12 | AE131: 12 | AF131: 12 | AH131: 12 | AI131: 12 | AJ131: 12
A132: French Polynesia | T132: 12 | U132: 12 | V132: 12 | W132: 12 | X132: 12 | Y132: 12 | Z132: 12 | AA132: 12
A133: Iran (Islamic Republic of) | H133: 12 | I133: 12 | AH133: 12 | AI133: 12 | AJ133: 12 | AK133: 12 | AL133: 12 | AM133: 12
A134: Serbia | AP134: 12 | AQ134: 12 | AR134: 12 | AS134: 12 | AT134: 12 | AU134: 12 | AV134: 11 | AW134: 9
A135: Palau | AF135: 12 | AG135: 12 | AH135: 12 | AI135: 12 | AJ135: 12 | AK135: 12 | AL135: 12
A136: Tajikistan | X136: 12 | Y136: 12 | Z136: 12 | AA136: 12 | AB136: 12 | AC136: 12 | AH136: 12
A137: Falkland Islands (Malvinas) | H137: 10 | I137: 11 | N137: 8 | O137: 12 | P137: 12 | Z137: 12 | AA137: 12
A138: Wallis and Futuna Islands | H138: 12 | I138: 12 | J138: 12 | K138: 12 | L138: 12 | M138: 12
A139: Sao Tome and Principe | B139: 12 | C139: 12 | D139: 12 | E139: 12 | F139: 12 | M139: 12
A140: Jordan | H140: 12 | I140: 12 | K140: 12 | L140: 12 | M140: 12 | N140: 12
A141: Anguilla | AQ141: 12 | AR141: 12 | AS141: 12 | AT141: 12 | AU141: 12 | AV141: 12
A142: Montenegro | AP142: 12 | AQ142: 12 | AR142: 12 | AT142: 12 | AU142: 12
A143: Guyana | B143: 12 | C143: 12 | D143: 12 | E143: 12 | F143: 12
A144: Curaçao | AR144: 12 | AS144: 12 | AT144: 12 | AU144: 12 | AV144: 12
A145: Åland Islands | AO145: 12 | AP145: 12 | AQ145: 12 | AU145: 12
A146: Saint Pierre and Miquelon | I146: 12 | N146: 12 | O146: 12 | P146: 12
A147: South Africa | E147: 12 | I147: 12 | K147: 12 | L147: 12
A148: Saint Kitts and Nevis | F148: 4 | I148: 4 | K148: 4 | L148: 4 | M148: 4 | N148: 4 | R148: 4 | S148: 4 | T148: 4 | U148: 4 | W148: 4 | X148: 4
A149: Samoa | F149: 4 | G149: 4 | H149: 4 | I149: 4 | J149: 12 | M149: 12
A150: Argentina | O150: 12 | P150: 12
A151: Thailand | M151: 12 | N151: 12
A152: Mali | V152: 12
A153: Ghana | AJ153: 12
B155: 1967 | AP155: 2014

Sheet 6.9
A2: Reliability | B2: NA
A3: Record Type | B3: Consolidated
A4: Use | B4: Yes
A6: Sum of Column3 | B6: Column Labels
B7: 1961 | N7: 1962 | Z7: 1963 | AL7: 1964 | AX7: 1965 | BJ7: 1966 | BV7: 1967 | CH7: 1968 | CT7: 1969 | DF7: 1970 | DR7: 1971 | ED7: 1972 | EP7: 1973 | FB7: 1974 | FN7: 1975 | FZ7: 1976 | GL7: 1977 | GX7: 1978 | HJ7: 1979 | HV7: 1980 | IH7: 1981 | IT7: 1982 | JF7: 1983 | JR7: 1984 | KD7: 1985 | KP7: 1986 | LB7: 1987 | LN7: 1988 | LZ7: 1989 | ML7: 1990 | MX7: 1991 | NJ7: 1992 | NV7: 1993 | OH7: 1994 | OT7: 1995 | PF7: 1996 | PR7: 1997 | QD7: 1998 | QP7: 1999 | RB7: 2000 | RN7: 2001 | RZ7: 2002 | SL7: 2003 | SX7: 2004 | TJ7: 2005 | TV7: 2006 | UH7: 2007 | UT7: 2008 | VF7: 2009 | VR7: 2010 | WD7: 2011 | WP7: 2012 | XB7: 2013 | XN7: Grand Total
A8: Row Labels | B8: January | C8: February | D8: March | E8: April | F8: May | G8: June | H8: July | I8: August | J8: September | K8: October | L8: November | M8: December | N8: January | O8: February | P8: March | Q8: April | R8: May | S8: June | T8: July | U8: August | V8: September | W8: October | X8: November | Y8: December | Z8: January | AA8: February | AB8: March | AC8: April | AD8: May | AE8: June | AF8: July | AG8: August | AH8: September | AI8: October | AJ8: November | AK8: December | AL8: January | AM8: February | AN8: March | AO8: April | AP8: May | AQ8: June | AR8: July | AS8: August | AT8: September | AU8: October | AV8: November | AW8: December | AX8: January | AY8: February | AZ8: March | BA8: April | BB8: May | BC8: June | BD8: July | BE8: August | BF8: September | BG8: October | BH8: November | BI8: December | BJ8: January | BK8: February | BL8: March | BM8: April | BN8: May | BO8: June | BP8: July | BQ8: August | BR8: September | BS8: October | BT8: November | BU8: December | BV8: January | BW8: February | BX8: March | BY8: April | BZ8: May | CA8: June | CB8: July | CC8: August | CD8: September | CE8: October | CF8: November | CG8: December | CH8: January | CI8: February | CJ8: March | CK8: April | CL8: May | CM8: June | CN8: July | CO8: August | CP8: September | CQ8: October | CR8: November | CS8: December | CT8: January | CU8: February | CV8: March | CW8: April | CX8: May | CY8: June | CZ8: July | DA8: August | DB8: September | DC8: October | DD8: November | DE8: December | DF8: January | DG8: February | DH8: March | DI8: April | DJ8: May | DK8: June | DL8: July | DM8: August | DN8: September | DO8: October | DP8: November | DQ8: December | DR8: January | DS8: February | DT8: March | DU8: April | DV8: May | DW8: June | DX8: July | DY8: August | DZ8: September | EA8: October | EB8: November | EC8: December | ED8: January | EE8: February | EF8: March | EG8: April | EH8: May | EI8: June | EJ8: July | EK8: August | EL8: September | EM8: October | EN8: November | EO8: December | EP8: January | EQ8: February | ER8: March | ES8: April | ET8: May | EU8: June | EV8: July | EW8: August | EX8: September | EY8: October | EZ8: November | FA8: December | FB8: January | FC8: February | FD8: March | FE8: April | FF8: May | FG8: June | FH8: July | FI8: August | FJ8: September | FK8: October | FL8: November | FM8: December | FN8: January | FO8: February | FP8: March | FQ8: April | FR8: May | FS8: June | FT8: July | FU8: August | FV8: September | FW8: October | FX8: November | FY8: December | FZ8: January | GA8: February | GB8: March | GC8: April | GD8: May | GE8: June | GF8: July | GG8: August | GH8: September | GI8: October | GJ8: November | GK8: December | GL8: January | GM8: February | GN8: March | GO8: April | GP8: May | GQ8: June | GR8: July | GS8: August | GT8: September | GU8: October | GV8: November | GW8: December | GX8: January | GY8: February | GZ8: March | HA8: April | HB8: May | HC8: June | HD8: July | HE8: August | HF8: September | HG8: October | HH8: November | HI8: December | HJ8: January | HK8: February | HL8: March | HM8: April | HN8: May | HO8: June | HP8: July | HQ8: August | HR8: September | HS8: October | HT8: November | HU8: December | HV8: January | HW8: February | HX8: March | HY8: April | HZ8: May | IA8: June | IB8: July | IC8: August | ID8: September | IE8: October | IF8: November | IG8: December | IH8: January | II8: February | IJ8: March | IK8: April | IL8: May | IM8: June | IN8: July | IO8: August | IP8: September | IQ8: October | IR8: November | IS8: December | IT8: January | IU8: February | IV8: March | IW8: April | IX8: May | IY8: June | IZ8: July | JA8: August | JB8: September | JC8: October | JD8: November | JE8: December | JF8: January | JG8: February | JH8: March | JI8: April | JJ8: May | JK8: June | JL8: July | JM8: August | JN8: September | JO8: October | JP8: November | JQ8: December | JR8: January | JS8: February | JT8: March | JU8: April | JV8: May | JW8: June | JX8: July | JY8: August | JZ8: September | KA8: October | KB8: November | KC8: December | KD8: January | KE8: February | KF8: March | KG8: April | KH8: May | KI8: June | KJ8: July | KK8: August | KL8: September | KM8: October | KN8: November | KO8: December | KP8: January | KQ8: February | KR8: March | KS8: April | KT8: May | KU8: June | KV8: July | KW8: August | KX8: September | KY8: October | KZ8: November | LA8: December | LB8: January | LC8: February | LD8: March | LE8: April | LF8: May | LG8: June | LH8: July | LI8: August | LJ8: September | LK8: October | LL8: November | LM8: December | LN8: January | LO8: February | LP8: March | LQ8: April | LR8: May | LS8: June | LT8: July | LU8: August | LV8: September | LW8: October | LX8: November | LY8: December | LZ8: January | MA8: February | MB8: March | MC8: April | MD8: May | ME8: June | MF8: July | MG8: August | MH8: September | MI8: October | MJ8: November | MK8: December | ML8: January | MM8: February | MN8: March | MO8: April | MP8: May | MQ8: June | MR8: July | MS8: August | MT8: September | MU8: October | MV8: November | MW8: December | MX8: January | MY8: February | MZ8: March | NA8: April | NB8: May | NC8: June | ND8: July | NE8: August | NF8: September | NG8: October | NH8: November | NI8: December | NJ8: January | NK8: February | NL8: March | NM8: April | NN8: May | NO8: June | NP8: July | NQ8: August | NR8: September | NS8: October | NT8: November | NU8: December | NV8: January | NW8: February | NX8: March | NY8: April | NZ8: May | OA8: June | OB8: July | OC8: August | OD8: September | OE8: October | OF8: November | OG8: December | OH8: January | OI8: February | OJ8: March | OK8: April | OL8: May | OM8: June | ON8: July | OO8: August | OP8: September | OQ8: October | OR8: November | OS8: December | OT8: January | OU8: February | OV8: March | OW8: April | OX8: May | OY8: June | OZ8: July | PA8: August | PB8: September | PC8: October | PD8: November | PE8: December | PF8: January | PG8: February | PH8: March | PI8: April | PJ8: May | PK8: June | PL8: July | PM8: August | PN8: September | PO8: October | PP8: November | PQ8: December | PR8: January | PS8: February | PT8: March | PU8: April | PV8: May | PW8: June | PX8: July | PY8: August | PZ8: September | QA8: October | QB8: November | QC8: December | QD8: January | QE8: February | QF8: March | QG8: April | QH8: May | QI8: June | QJ8: July | QK8: August | QL8: September | QM8: October | QN8: November | QO8: December | QP8: January | QQ8: February | QR8: March | QS8: April | QT8: May | QU8: June | QV8: July | QW8: August | QX8: September | QY8: October | QZ8: November | RA8: December | RB8: January | RC8: February | RD8: March | RE8: April | RF8: May | RG8: June | RH8: July | RI8: August | RJ8: September | RK8: October | RL8: November | RM8: December | RN8: January | RO8: February | RP8: March | RQ8: April | RR8: May | RS8: June | RT8: July | RU8: August | RV8: September | RW8: October | RX8: November | RY8: December | RZ8: January | SA8: February | SB8: March | SC8: April | SD8: May | SE8: June | SF8: July | SG8: August | SH8: September | SI8: October | SJ8: November | SK8: December | SL8: January | SM8: February | SN8: March | SO8: April | SP8: May | SQ8: June | SR8: July | SS8: August | ST8: September | SU8: October | SV8: November | SW8: December | SX8: January | SY8: February | SZ8: March | TA8: April | TB8: May | TC8: June | TD8: July | TE8: August | TF8: September | TG8: October | TH8: November | TI8: December | TJ8: January | TK8: February | TL8: March | TM8: April | TN8: May | TO8: June | TP8: July | TQ8: August | TR8: September | TS8: October | TT8: November | TU8: December | TV8: January | TW8: February | TX8: March | TY8: April | TZ8: May | UA8: June | UB8: July | UC8: August | UD8: September | UE8: October | UF8: November | UG8: December | UH8: January | UI8: February | UJ8: March | UK8: April | UL8: May | UM8: June | UN8: July | UO8: August | UP8: September | UQ8: October | UR8: November | US8: December | UT8: January | UU8: February | UV8: March | UW8: April | UX8: May | UY8: June | UZ8: July | VA8: August | VB8: September | VC8: October | VD8: November | VE8: December | VF8: January | VG8: February | VH8: March | VI8: April | VJ8: May | VK8: June | VL8: July | VM8: August | VN8: September | VO8: October | VP8: November | VQ8: December | VR8: January | VS8: February | VT8: March | VU8: April | VV8: May | VW8: June | VX8: July | VY8: August | VZ8: September | WA8: October | WB8: November | WC8: December | WD8: January | WE8: February | WF8: March | WG8: April | WH8: May | WI8: June | WJ8: July | WK8: August | WL8: September | WM8: October | WN8: November | WO8: December | WP8: January | WQ8: February | WR8: March | WS8: April | WT8: May | WU8: June | WV8: July | WW8: August | WX8: September | WY8: October | WZ8: November | XA8: December | XB8: January | XC8: February | XD8: March | XE8: April | XF8: May | XG8: June | XH8: July | XI8: August | XJ8: September | XK8: October | XL8: November | XM8: December
A9: Sweden | B9: 0.07836312431 | C9: 0.085096523 | D9: 0.09479788664 | E9: 0.09788992464 | F9: 0.0899922908 | G9: 0.08296348116 | H9: 0.08041864284 | I9: 0.07950820769 | J9: 0.08174143315 | K9: 0.07817540572 | L9: 0.07610643403 | M9: 0.07494664602 | N9: 0.07938187962 | O9: 0.08564031317 | P9: 0.09501327232 | Q9: 0.09756639979 | R9: 0.09062551297 | S9: 0.08526787597 | T9: 0.0795738441 | U9: 0.07645670672 | V9: 0.08242466885 | W9: 0.07808383415 | X9: 0.0760959354 | Y9: 0.07386975694 | Z9: 0.07873777081 | AA9: 0.08138224614 | AB9: 0.09438799984 | AC9: 0.09687877015 | AD9: 0.09291074336 | AE9: 0.0839304722 | AF9: 0.08152717865 | AG9: 0.0766435425 | AH9: 0.08418189546 | AI9: 0.07879859902 | AJ9: 0.07681878567 | AK9: 0.0738019962 | AL9: 0.07724116246 | AM9: 0.08263671025 | AN9: 0.09197896549 | AO9: 0.09748920393 | AP9: 0.09021491943 | AQ9: 0.08429841584 | AR9: 0.08107395346 | AS9: 0.07604642217 | AT9: 0.08483698445 | AU9: 0.07874862001 | AV9: 0.07749588002 | AW9: 0.0779387625 | AX9: 0.07927497814 | AY9: 0.08693771651 | AZ9: 0.09547652232 | BA9: 0.100028765 | BB9: 0.09124447776 | BC9: 0.08418654533 | BD9: 0.07993773229 | BE9: 0.07734261062 | BF9: 0.08258582105 | BG9: 0.07772589013 | BH9: 0.07364156788 | BI9: 0.07161737298 | BJ9: 0.07840528712 | BK9: 0.08763316275 | BL9: 0.09311969312 | BM9: 0.09656868842 | BN9: 0.08926421667 | BO9: 0.08027949914 | BP9: 0.07865171963 | BQ9: 0.07920023072 | BR9: 0.08475635651 | BS9: 0.07952615759 | BT9: 0.0770594476 | BU9: 0.07553554073 | BV9: 0.08148318049 | BW9: 0.08880016118 | BX9: 0.09750510879 | BY9: 0.1003879247 | BZ9: 0.09121914801 | CA9: 0.08637836571 | CB9: 0.07998036724 | CC9: 0.07598902454 | CD9: 0.07772049163 | CE9: 0.07765343061 | CF9: 0.0722101764 | CG9: 0.0706726207 | CH9: 0.08136224922 | CI9: 0.08817262369 | CJ9: 0.09514582821 | CK9: 0.09871274597 | CL9: 0.0911716354 | CM9: 0.08370589246 | CN9: 0.07987518802 | CO9: 0.07962299635 | CP9: 0.08208838729 | CQ9: 0.07734457509 | CR9: 0.0726798989 | CS9: 0.07011797942 | CT9: 0.08494138385 | CU9: 0.08625248093 | CV9: 0.09554082906 | CW9: 0.09800036212 | CX9: 0.09161274576 | CY9: 0.08419404549 | CZ9: 0.07919963794 | DA9: 0.07662952311 | DB9: 0.08079426357 | DC9: 0.07887153818 | DD9: 0.0717721276 | DE9: 0.07219106239 | DF9: 0.07865796655 | DG9: 0.08510414705 | DH9: 0.09234341987 | DI9: 0.09761132511 | DJ9: 0.08903113058 | DK9: 0.08525464591 | DL9: 0.08080383138 | DM9: 0.07742031007 | DN9: 0.08310165788 | DO9: 0.07835523043 | DP9: 0.074664521 | DQ9: 0.07765181416 | DR9: 0.07899519927 | DS9: 0.08679510943 | DT9: 0.09320611183 | DU9: 0.09875599142 | DV9: 0.09049927134 | DW9: 0.08381468879 | DX9: 0.08135940172 | DY9: 0.07935496921 | DZ9: 0.0818762141 | EA9: 0.07767604283 | EB9: 0.07457374095 | EC9: 0.0730932591 | ED9: 0.07978420619 | EE9: 0.08757136124 | EF9: 0.09173256558 | EG9: 0.09438298733 | EH9: 0.09052371397 | EI9: 0.08554844282 | EJ9: 0.08210555167 | EK9: 0.07963528969 | EL9: 0.08257040476 | EM9: 0.07746286071 | EN9: 0.07421560498 | EO9: 0.07446701107 | EP9: 0.08227586591 | EQ9: 0.08814089718 | ER9: 0.09221049117 | ES9: 0.09622666701 | ET9: 0.09123580696 | EU9: 0.08578532519 | EV9: 0.08165886398 | EW9: 0.07889576838 | EX9: 0.08168270946 | EY9: 0.07708053082 | EZ9: 0.07288610998 | FA9: 0.07192096397 | FB9: 0.08361192179 | FC9: 0.08602805881 | FD9: 0.09317190558 | FE9: 0.09718156452 | FF9: 0.09064578475 | FG9: 0.08447121943 | FH9: 0.08223728359 | FI9: 0.0793630401 | FJ9: 0.08191623714 | FK9: 0.07605141172 | FL9: 0.07479549228 | FM9: 0.07052608028 | FN9: 0.08491519585 | FO9: 0.09154142461 | FP9: 0.0948295369 | FQ9: 0.1002877853 | FR9: 0.09047782232 | FS9: 0.08447087948 | FT9: 0.08252175283 | FU9: 0.07709156985 | FV9: 0.08017939515 | FW9: 0.07378048267 | FX9: 0.06851711542 | FY9: 0.07138703965 | FZ9: 0.08402544717 | GA9: 0.08998064174 | GB9: 0.09585480621 | GC9: 0.0945035461 | GD9: 0.08913517031 | GE9: 0.08514205334 | GF9: 0.08110560538 | GG9: 0.07921570778 | GH9: 0.08359213732 | GI9: 0.07589588766 | GJ9: 0.07150279237 | GK9: 0.07004620462 | GL9: 0.08087141521 | GM9: 0.09123111523 | GN9: 0.09678238647 | GO9: 0.09558965897 | GP9: 0.08883200378 | GQ9: 0.08447409183 | GR9: 0.08147356229 | GS9: 0.08155520935 | GT9: 0.08232269174 | GU9: 0.07656453267 | GV9: 0.07317924135 | GW9: 0.06712409109 | GX9: 0.08030184096 | GY9: 0.08721715995 | GZ9: 0.09624651561 | HA9: 0.09567260549 | HB9: 0.09410092614 | HC9: 0.08560866902 | HD9: 0.08088030871 | HE9: 0.07964975005 | HF9: 0.08090274625 | HG9: 0.07643136585 | HH9: 0.07307765526 | HI9: 0.0699104567 | HJ9: 0.08187972766 | HK9: 0.08837411638 | HL9: 0.0943089012 | HM9: 0.09761044287 | HN9: 0.09138498907 | HO9: 0.08566179612 | HP9: 0.08325508703 | HQ9: 0.07807966067 | HR9: 0.08012436159 | HS9: 0.07750914123 | HT9: 0.07191295678 | HU9: 0.0698988194 | HV9: 0.08401872429 | HW9: 0.08945572935 | HX9: 0.09532523536 | HY9: 0.09947635943 | HZ9: 0.08900331519 | IA9: 0.08627496086 | IB9: 0.08518382175 | IC9: 0.07841612516 | ID9: 0.081029996 | IE9: 0.07270208193 | IF9: 0.06944082216 | IG9: 0.06967282852 | IH9: 0.08308417701 | II9: 0.08995499737 | IJ9: 0.09325732427 | IK9: 0.09662439974 | IL9: 0.08940070082 | IM9: 0.08633833334 | IN9: 0.08447047679 | IO9: 0.08168745392 | IP9: 0.08371027029 | IQ9: 0.07320288234 | IR9: 0.06894357182 | IS9: 0.06932541228 | IT9: 0.08305118462 | IU9: 0.08870741551 | IV9: 0.09658294586 | IW9: 0.09722429496 | IX9: 0.08677241896 | IY9: 0.08529520169 | IZ9: 0.08112713732 | JA9: 0.08153943317 | JB9: 0.0848910108 | JC9: 0.07555585749 | JD9: 0.07087541862 | JE9: 0.06837768102 | JF9: 0.08134965081 | JG9: 0.0894743146 | JH9: 0.0946711235 | JI9: 0.09491255517 | JJ9: 0.08905196181 | JK9: 0.0888190764 | JL9: 0.08149921025 | JM9: 0.08203335109 | JN9: 0.08272559763 | JO9: 0.07503610601 | JP9: 0.07058279574 | JQ9: 0.06984425699 | JR9: 0.0808112464 | JS9: 0.08841108298 | JT9: 0.09384160163 | JU9: 0.09435031619 | JV9: 0.09141150322 | JW9: 0.0849445086 | JX9: 0.08334609043 | JY9: 0.08147114382 | JZ9: 0.08241175949 | KA9: 0.07646430314 | KB9: 0.07464033273 | KC9: 0.06789611137 | KD9: 0.08070579521 | KE9: 0.08827218584 | KF9: 0.09464978056 | KG9: 0.09534498783 | KH9: 0.09070562471 | KI9: 0.08580431386 | KJ9: 0.08418183156 | KK9: 0.08224959359 | KL9: 0.08184189802 | KM9: 0.07506844114 | KN9: 0.07078830163 | KO9: 0.07038724605 | KP9: 0.08255381831 | KQ9: 0.08722453063 | KR9: 0.09243180635 | KS9: 0.09749070844 | KT9: 0.08802662765 | KU9: 0.08635913606 | KV9: 0.0837080136 | KW9: 0.08294816836 | KX9: 0.08626968593 | KY9: 0.07385888043 | KZ9: 0.07006927256 | LA9: 0.06905935168 | LB9: 0.07894680681 | LC9: 0.0875298285 | LD9: 0.09334249337 | LE9: 0.09436339763 | LF9: 0.08948366262 | LG9: 0.0889338729 | LH9: 0.08624299408 | LI9: 0.08101671359 | LJ9: 0.08298172013 | LK9: 0.07346764178 | LL9: 0.07189039154 | LM9: 0.07180047704 | LN9: 0.07922694739 | LO9: 0.08504738894 | LP9: 0.09534090279 | LQ9: 0.0929413628 | LR9: 0.09079459075 | LS9: 0.08683777799 | LT9: 0.08412432599 | LU9: 0.08330809622 | LV9: 0.08488789577 | LW9: 0.07492638195 | LX9: 0.07089408988 | LY9: 0.07167023954 | LZ9: 0.07972889174 | MA9: 0.0870451531 | MB9: 0.09162355303 | MC9: 0.08947118575 | MD9: 0.08972987561 | ME9: 0.08616908575 | MF9: 0.08631449312 | MG9: 0.08359233183 | MH9: 0.08248261432 | MI9: 0.07698136869 | MJ9: 0.07442828574 | MK9: 0.07243316132 | ML9: 0.08075532129 | MM9: 0.08929380433 | MN9: 0.09172893064 | MO9: 0.09303700808 | MP9: 0.08803413931 | MQ9: 0.08580988021 | MR9: 0.08436308327 | MS9: 0.08256711404 | MT9: 0.08399492276 | MU9: 0.0778200588 | MV9: 0.07168264384 | MW9: 0.07091309344 | MX9: 0.08505740122 | MY9: 0.09023156232 | MZ9: 0.09222079704 | NA9: 0.0953112001 | NB9: 0.0883934517 | NC9: 0.08424068957 | ND9: 0.08479590557 | NE9: 0.08188775705 | NF9: 0.08120284977 | NG9: 0.07319500792 | NH9: 0.07287540214 | NI9: 0.0705879756 | NJ9: 0.08681790974 | NK9: 0.08904863907 | NL9: 0.09396667815 | NM9: 0.0940464647 | NN9: 0.08729823013 | NO9: 0.08827247998 | NP9: 0.08436827577 | NQ9: 0.08155039618 | NR9: 0.08349942956 | NS9: 0.07334492292 | NT9: 0.06944498823 | NU9: 0.06834158557 | NV9: 0.08518450846 | NW9: 0.08868033822 | NX9: 0.09381930888 | NY9: 0.09635406742 | NZ9: 0.08818466529 | OA9: 0.0883159741 | OB9: 0.08440330419 | OC9: 0.0839379059 | OD9: 0.08092195876 | OE9: 0.07399832813 | OF9: 0.06840108262 | OG9: 0.06779855805 | OH9: 0.0811819337 | OI9: 0.09195876304 | OJ9: 0.09518965978 | OK9: 0.09650368463 | OL9: 0.08943461521 | OM9: 0.09001535947 | ON9: 0.08389789555 | OO9: 0.08108587074 | OP9: 0.07564899834 | OQ9: 0.07263233031 | OR9: 0.07141669723 | OS9: 0.07103419199 | OT9: 0.08290196653 | OU9: 0.09120706022 | OV9: 0.09405984128 | OW9: 0.09419761622 | OX9: 0.08913975887 | OY9: 0.0894367966 | OZ9: 0.08562270574 | PA9: 0.08280716726 | PB9: 0.08057148434 | PC9: 0.07544126354 | PD9: 0.06874780269 | PE9: 0.0658665367 | PF9: 0.08257829018 | PG9: 0.0878540987 | PH9: 0.09055642021 | PI9: 0.09533469739 | PJ9: 0.08726402243 | PK9: 0.08602412676 | PL9: 0.08825483806 | PM9: 0.08376520474 | PN9: 0.08119286847 | PO9: 0.07596253165 | PP9: 0.07138104146 | PQ9: 0.06983185994 | PR9: 0.0839880271 | PS9: 0.0874435345 | PT9: 0.08947163248 | PU9: 0.09508564508 | PV9: 0.08938493516 | PW9: 0.09025913312 | PX9: 0.08848545049 | PY9: 0.08542937002 | PZ9: 0.08113243418 | QA9: 0.0741695558 | QB9: 0.06685446957 | QC9: 0.06829581249 | QD9: 0.08012790965 | QE9: 0.08813983509 | QF9: 0.08743129212 | QG9: 0.09282712949 | QH9: 0.08894043751 | QI9: 0.08562178639 | QJ9: 0.08954629881 | QK9: 0.0873541825 | QL9: 0.08495019833 | QM9: 0.07593094325 | QN9: 0.0704143008 | QO9: 0.06871568606 | QP9: 0.07995556117 | QQ9: 0.08719217827 | QR9: 0.08877647937 | QS9: 0.0915747757 | QT9: 0.08977759241 | QU9: 0.08894258998 | QV9: 0.08711908112 | QW9: 0.0844828168 | QX9: 0.0828391375 | QY9: 0.07794221162 | QZ9: 0.07056326698 | RA9: 0.07083430907 | RB9: 0.07945244808 | RC9: 0.0865012963 | RD9: 0.08701054436 | RE9: 0.08912427383 | RF9: 0.08902241171 | RG9: 0.08782072878 | RH9: 0.0869996694 | RI9: 0.08447667899 | RJ9: 0.08416855516 | RK9: 0.07902832469 | RL9: 0.07607758591 | RM9: 0.07031748279 | RN9: 0.0823297054 | RO9: 0.0865320609 | RP9: 0.08833525901 | RQ9: 0.09105813412 | RR9: 0.09048009958 | RS9: 0.08604921643 | RT9: 0.08689821582 | RU9: 0.08502148032 | RV9: 0.0834006958 | RW9: 0.07964865469 | RX9: 0.07199765089 | RY9: 0.06824882704 | RZ9: 0.0799262744 | SA9: 0.08481736926 | SB9: 0.0864886853 | SC9: 0.09308488084 | SD9: 0.08952930314 | SE9: 0.08556319085 | SF9: 0.08514753736 | SG9: 0.08470731323 | SH9: 0.08503423937 | SI9: 0.0824959548 | SJ9: 0.0729741457 | SK9: 0.07023110573 | SL9: 0.07962133128 | SM9: 0.08570990494 | SN9: 0.08525981541 | SO9: 0.08961463764 | SP9: 0.08562582228 | SQ9: 0.08717162425 | SR9: 0.09086862332 | SS9: 0.08389470873 | ST9: 0.08540325054 | SU9: 0.08142168937 | SV9: 0.07375038332 | SW9: 0.07165820894 | SX9: 0.08186847795 | SY9: 0.08456617201 | SZ9: 0.08750180894 | TA9: 0.08975384183 | TB9: 0.08570849942 | TC9: 0.08999554877 | TD9: 0.08917816349 | TE9: 0.08549408198 | TF9: 0.08310690112 | TG9: 0.07725850295 | TH9: 0.07426445575 | TI9: 0.0713035458 | TJ9: 0.08012880021 | TK9: 0.08356932253 | TL9: 0.08667308787 | TM9: 0.08964221956 | TN9: 0.08913203619 | TO9: 0.08763149686 | TP9: 0.08737979349 | TQ9: 0.08681830135 | TR9: 0.08427028876 | TS9: 0.07967379796 | TT9: 0.07301624379 | TU9: 0.07206461143 | TV9: 0.0791199399 | TW9: 0.08647942662 | TX9: 0.08996501184 | TY9: 0.08850418405 | TZ9: 0.08785341799 | UA9: 0.08703996041 | UB9: 0.08833500957 | UC9: 0.0861493247 | UD9: 0.0831832145 | UE9: 0.08119448825 | UF9: 0.07392893834 | UG9: 0.06824708382 | UH9: 0.08015972712 | UI9: 0.08449134537 | UJ9: 0.08692722829 | UK9: 0.08826763799 | UL9: 0.08894560583 | UM9: 0.0861819812 | UN9: 0.0884798264 | UO9: 0.08560295343 | UP9: 0.0833696476 | UQ9: 0.08148400198 | UR9: 0.07558382473 | US9: 0.07050622005 | UT9: 0.08179994111 | UU9: 0.08516124243 | UV9: 0.0839869128 | UW9: 0.09105512131 | UX9: 0.08760486597 | UY9: 0.08733516946 | UZ9: 0.09123181902 | VA9: 0.08529189591 | VB9: 0.08392211364 | VC9: 0.07916297525 | VD9: 0.07278085786 | VE9: 0.07066708523 | VF9: 0.07837412946 | VG9: 0.08147568125 | VH9: 0.08582537648 | VI9: 0.08779745564 | VJ9: 0.085728835 | VK9: 0.08943895336 | VL9: 0.0907577685 | VM9: 0.08790540657 | VN9: 0.08588388647 | VO9: 0.0791727908 | VP9: 0.07459292146 | VQ9: 0.07304679501 | VR9: 0.0828231998 | VS9: 0.08665447707 | VT9: 0.08719972526 | VU9: 0.08784517795 | VV9: 0.08577480999 | VW9: 0.08887060804 | VX9: 0.08736935803 | VY9: 0.08478245829 | VZ9: 0.08323512471 | WA9: 0.07992247944 | WB9: 0.07450582238 | WC9: 0.07101675903 | WD9: 0.08121490971 | WE9: 0.08277333459 | WF9: 0.08555128729 | WG9: 0.0873598669 | WH9: 0.08740346476 | WI9: 0.0885390573 | WJ9: 0.0897472154 | WK9: 0.0875878047 | WL9: 0.08592669704 | WM9: 0.07878337815 | WN9: 0.07490580219 | WO9: 0.070207182 | WP9: 0.07955108752 | WQ9: 0.08623586397 | WR9: 0.08368812648 | WS9: 0.08700760775 | WT9: 0.08733845498 | WU9: 0.08801347605 | WV9: 0.08929398811 | WW9: 0.08885942519 | WX9: 0.08508568082 | WY9: 0.08002041547 | WZ9: 0.07425463469 | XA9: 0.07065123898 | XB9: 0.08205802852 | XC9: 0.0833620108 | XD9: 0.0856513064 | XE9: 0.08955957194 | XF9: 0.08836354018 | XG9: 0.08672122792 | XH9: 0.09074754185 | XI9: 0.08809577188 | XJ9: 0.08413280099 | XK9: 0.07843883758 | XL9: 0.07289545785 | XM9: 0.06997390411 | XN9: 53
A10: Grand Total | B10: 0.07836312431 | C10: 0.085096523 | D10: 0.09479788664 | E10: 0.09788992464 | F10: 0.0899922908 | G10: 0.08296348116 | H10: 0.08041864284 | I10: 0.07950820769 | J10: 0.08174143315 | K10: 0.07817540572 | L10: 0.07610643403 | M10: 0.07494664602 | N10: 0.07938187962 | O10: 0.08564031317 | P10: 0.09501327232 | Q10: 0.09756639979 | R10: 0.09062551297 | S10: 0.08526787597 | T10: 0.0795738441 | U10: 0.07645670672 | V10: 0.08242466885 | W10: 0.07808383415 | X10: 0.0760959354 | Y10: 0.07386975694 | Z10: 0.07873777081 | AA10: 0.08138224614 | AB10: 0.09438799984 | AC10: 0.09687877015 | AD10: 0.09291074336 | AE10: 0.0839304722 | AF10: 0.08152717865 | AG10: 0.0766435425 | AH10: 0.08418189546 | AI10: 0.07879859902 | AJ10: 0.07681878567 | AK10: 0.0738019962 | AL10: 0.07724116246 | AM10: 0.08263671025 | AN10: 0.09197896549 | AO10: 0.09748920393 | AP10: 0.09021491943 | AQ10: 0.08429841584 | AR10: 0.08107395346 | AS10: 0.07604642217 | AT10: 0.08483698445 | AU10: 0.07874862001 | AV10: 0.07749588002 | AW10: 0.0779387625 | AX10: 0.07927497814 | AY10: 0.08693771651 | AZ10: 0.09547652232 | BA10: 0.100028765 | BB10: 0.09124447776 | BC10: 0.08418654533 | BD10: 0.07993773229 | BE10: 0.07734261062 | BF10: 0.08258582105 | BG10: 0.07772589013 | BH10: 0.07364156788 | BI10: 0.07161737298 | BJ10: 0.07840528712 | BK10: 0.08763316275 | BL10: 0.09311969312 | BM10: 0.09656868842 | BN10: 0.08926421667 | BO10: 0.08027949914 | BP10: 0.07865171963 | BQ10: 0.07920023072 | BR10: 0.08475635651 | BS10: 0.07952615759 | BT10: 0.0770594476 | BU10: 0.07553554073 | BV10: 0.08148318049 | BW10: 0.08880016118 | BX10: 0.09750510879 | BY10: 0.1003879247 | BZ10: 0.09121914801 | CA10: 0.08637836571 | CB10: 0.07998036724 | CC10: 0.07598902454 | CD10: 0.07772049163 | CE10: 0.07765343061 | CF10: 0.0722101764 | CG10: 0.0706726207 | CH10: 0.08136224922 | CI10: 0.08817262369 | CJ10: 0.09514582821 | CK10: 0.09871274597 | CL10: 0.0911716354 | CM10: 0.08370589246 | CN10: 0.07987518802 | CO10: 0.07962299635 | CP10: 0.08208838729 | CQ10: 0.07734457509 | CR10: 0.0726798989 | CS10: 0.07011797942 | CT10: 0.08494138385 | CU10: 0.08625248093 | CV10: 0.09554082906 | CW10: 0.09800036212 | CX10: 0.09161274576 | CY10: 0.08419404549 | CZ10: 0.07919963794 | DA10: 0.07662952311 | DB10: 0.08079426357 | DC10: 0.07887153818 | DD10: 0.0717721276 | DE10: 0.07219106239 | DF10: 0.07865796655 | DG10: 0.08510414705 | DH10: 0.09234341987 | DI10: 0.09761132511 | DJ10: 0.08903113058 | DK10: 0.08525464591 | DL10: 0.08080383138 | DM10: 0.07742031007 | DN10: 0.08310165788 | DO10: 0.07835523043 | DP10: 0.074664521 | DQ10: 0.07765181416 | DR10: 0.07899519927 | DS10: 0.08679510943 | DT10: 0.09320611183 | DU10: 0.09875599142 | DV10: 0.09049927134 | DW10: 0.08381468879 | DX10: 0.08135940172 | DY10: 0.07935496921 | DZ10: 0.0818762141 | EA10: 0.07767604283 | EB10: 0.07457374095 | EC10: 0.0730932591 | ED10: 0.07978420619 | EE10: 0.08757136124 | EF10: 0.09173256558 | EG10: 0.09438298733 | EH10: 0.09052371397 | EI10: 0.08554844282 | EJ10: 0.08210555167 | EK10: 0.07963528969 | EL10: 0.08257040476 | EM10: 0.07746286071 | EN10: 0.07421560498 | EO10: 0.07446701107 | EP10: 0.08227586591 | EQ10: 0.08814089718 | ER10: 0.09221049117 | ES10: 0.09622666701 | ET10: 0.09123580696 | EU10: 0.08578532519 | EV10: 0.08165886398 | EW10: 0.07889576838 | EX10: 0.08168270946 | EY10: 0.07708053082 | EZ10: 0.07288610998 | FA10: 0.07192096397 | FB10: 0.08361192179 | FC10: 0.08602805881 | FD10: 0.09317190558 | FE10: 0.09718156452 | FF10: 0.09064578475 | FG10: 0.08447121943 | FH10: 0.08223728359 | FI10: 0.0793630401 | FJ10: 0.08191623714 | FK10: 0.07605141172 | FL10: 0.07479549228 | FM10: 0.07052608028 | FN10: 0.08491519585 | FO10: 0.09154142461 | FP10: 0.0948295369 | FQ10: 0.1002877853 | FR10: 0.09047782232 | FS10: 0.08447087948 | FT10: 0.08252175283 | FU10: 0.07709156985 | FV10: 0.08017939515 | FW10: 0.07378048267 | FX10: 0.06851711542 | FY10: 0.07138703965 | FZ10: 0.08402544717 | GA10: 0.08998064174 | GB10: 0.09585480621 | GC10: 0.0945035461 | GD10: 0.08913517031 | GE10: 0.08514205334 | GF10: 0.08110560538 | GG10: 0.07921570778 | GH10: 0.08359213732 | GI10: 0.07589588766 | GJ10: 0.07150279237 | GK10: 0.07004620462 | GL10: 0.08087141521 | GM10: 0.09123111523 | GN10: 0.09678238647 | GO10: 0.09558965897 | GP10: 0.08883200378 | GQ10: 0.08447409183 | GR10: 0.08147356229 | GS10: 0.08155520935 | GT10: 0.08232269174 | GU10: 0.07656453267 | GV10: 0.07317924135 | GW10: 0.06712409109 | GX10: 0.08030184096 | GY10: 0.08721715995 | GZ10: 0.09624651561 | HA10: 0.09567260549 | HB10: 0.09410092614 | HC10: 0.08560866902 | HD10: 0.08088030871 | HE10: 0.07964975005 | HF10: 0.08090274625 | HG10: 0.07643136585 | HH10: 0.07307765526 | HI10: 0.0699104567 | HJ10: 0.08187972766 | HK10: 0.08837411638 | HL10: 0.0943089012 | HM10: 0.09761044287 | HN10: 0.09138498907 | HO10: 0.08566179612 | HP10: 0.08325508703 | HQ10: 0.07807966067 | HR10: 0.08012436159 | HS10: 0.07750914123 | HT10: 0.07191295678 | HU10: 0.0698988194 | HV10: 0.08401872429 | HW10: 0.08945572935 | HX10: 0.09532523536 | HY10: 0.09947635943 | HZ10: 0.08900331519 | IA10: 0.08627496086 | IB10: 0.08518382175 | IC10: 0.07841612516 | ID10: 0.081029996 | IE10: 0.07270208193 | IF10: 0.06944082216 | IG10: 0.06967282852 | IH10: 0.08308417701 | II10: 0.08995499737 | IJ10: 0.09325732427 | IK10: 0.09662439974 | IL10: 0.08940070082 | IM10: 0.08633833334 | IN10: 0.08447047679 | IO10: 0.08168745392 | IP10: 0.08371027029 | IQ10: 0.07320288234 | IR10: 0.06894357182 | IS10: 0.06932541228 | IT10: 0.08305118462 | IU10: 0.08870741551 | IV10: 0.09658294586 | IW10: 0.09722429496 | IX10: 0.08677241896 | IY10: 0.08529520169 | IZ10: 0.08112713732 | JA10: 0.08153943317 | JB10: 0.0848910108 | JC10: 0.07555585749 | JD10: 0.07087541862 | JE10: 0.06837768102 | JF10: 0.08134965081 | JG10: 0.0894743146 | JH10: 0.0946711235 | JI10: 0.09491255517 | JJ10: 0.08905196181 | JK10: 0.0888190764 | JL10: 0.08149921025 | JM10: 0.08203335109 | JN10: 0.08272559763 | JO10: 0.07503610601 | JP10: 0.07058279574 | JQ10: 0.06984425699 | JR10: 0.0808112464 | JS10: 0.08841108298 | JT10: 0.09384160163 | JU10: 0.09435031619 | JV10: 0.09141150322 | JW10: 0.0849445086 | JX10: 0.08334609043 | JY10: 0.08147114382 | JZ10: 0.08241175949 | KA10: 0.07646430314 | KB10: 0.07464033273 | KC10: 0.06789611137 | KD10: 0.08070579521 | KE10: 0.08827218584 | KF10: 0.09464978056 | KG10: 0.09534498783 | KH10: 0.09070562471 | KI10: 0.08580431386 | KJ10: 0.08418183156 | KK10: 0.08224959359 | KL10: 0.08184189802 | KM10: 0.07506844114 | KN10: 0.07078830163 | KO10: 0.07038724605 | KP10: 0.08255381831 | KQ10: 0.08722453063 | KR10: 0.09243180635 | KS10: 0.09749070844 | KT10: 0.08802662765 | KU10: 0.08635913606 | KV10: 0.0837080136 | KW10: 0.08294816836 | KX10: 0.08626968593 | KY10: 0.07385888043 | KZ10: 0.07006927256 | LA10: 0.06905935168 | LB10: 0.07894680681 | LC10: 0.0875298285 | LD10: 0.09334249337 | LE10: 0.09436339763 | LF10: 0.08948366262 | LG10: 0.0889338729 | LH10: 0.08624299408 | LI10: 0.08101671359 | LJ10: 0.08298172013 | LK10: 0.07346764178 | LL10: 0.07189039154 | LM10: 0.07180047704 | LN10: 0.07922694739 | LO10: 0.08504738894 | LP10: 0.09534090279 | LQ10: 0.0929413628 | LR10: 0.09079459075 | LS10: 0.08683777799 | LT10: 0.08412432599 | LU10: 0.08330809622 | LV10: 0.08488789577 | LW10: 0.07492638195 | LX10: 0.07089408988 | LY10: 0.07167023954 | LZ10: 0.07972889174 | MA10: 0.0870451531 | MB10: 0.09162355303 | MC10: 0.08947118575 | MD10: 0.08972987561 | ME10: 0.08616908575 | MF10: 0.08631449312 | MG10: 0.08359233183 | MH10: 0.08248261432 | MI10: 0.07698136869 | MJ10: 0.07442828574 | MK10: 0.07243316132 | ML10: 0.08075532129 | MM10: 0.08929380433 | MN10: 0.09172893064 | MO10: 0.09303700808 | MP10: 0.08803413931 | MQ10: 0.08580988021 | MR10: 0.08436308327 | MS10: 0.08256711404 | MT10: 0.08399492276 | MU10: 0.0778200588 | MV10: 0.07168264384 | MW10: 0.07091309344 | MX10: 0.08505740122 | MY10: 0.09023156232 | MZ10: 0.09222079704 | NA10: 0.0953112001 | NB10: 0.0883934517 | NC10: 0.08424068957 | ND10: 0.08479590557 | NE10: 0.08188775705 | NF10: 0.08120284977 | NG10: 0.07319500792 | NH10: 0.07287540214 | NI10: 0.0705879756 | NJ10: 0.08681790974 | NK10: 0.08904863907 | NL10: 0.09396667815 | NM10: 0.0940464647 | NN10: 0.08729823013 | NO10: 0.08827247998 | NP10: 0.08436827577 | NQ10: 0.08155039618 | NR10: 0.08349942956 | NS10: 0.07334492292 | NT10: 0.06944498823 | NU10: 0.06834158557 | NV10: 0.08518450846 | NW10: 0.08868033822 | NX10: 0.09381930888 | NY10: 0.09635406742 | NZ10: 0.08818466529 | OA10: 0.0883159741 | OB10: 0.08440330419 | OC10: 0.0839379059 | OD10: 0.08092195876 | OE10: 0.07399832813 | OF10: 0.06840108262 | OG10: 0.06779855805 | OH10: 0.0811819337 | OI10: 0.09195876304 | OJ10: 0.09518965978 | OK10: 0.09650368463 | OL10: 0.08943461521 | OM10: 0.09001535947 | ON10: 0.08389789555 | OO10: 0.08108587074 | OP10: 0.07564899834 | OQ10: 0.07263233031 | OR10: 0.07141669723 | OS10: 0.07103419199 | OT10: 0.08290196653 | OU10: 0.09120706022 | OV10: 0.09405984128 | OW10: 0.09419761622 | OX10: 0.08913975887 | OY10: 0.0894367966 | OZ10: 0.08562270574 | PA10: 0.08280716726 | PB10: 0.08057148434 | PC10: 0.07544126354 | PD10: 0.06874780269 | PE10: 0.0658665367 | PF10: 0.08257829018 | PG10: 0.0878540987 | PH10: 0.09055642021 | PI10: 0.09533469739 | PJ10: 0.08726402243 | PK10: 0.08602412676 | PL10: 0.08825483806 | PM10: 0.08376520474 | PN10: 0.08119286847 | PO10: 0.07596253165 | PP10: 0.07138104146 | PQ10: 0.06983185994 | PR10: 0.0839880271 | PS10: 0.0874435345 | PT10: 0.08947163248 | PU10: 0.09508564508 | PV10: 0.08938493516 | PW10: 0.09025913312 | PX10: 0.08848545049 | PY10: 0.08542937002 | PZ10: 0.08113243418 | QA10: 0.0741695558 | QB10: 0.06685446957 | QC10: 0.06829581249 | QD10: 0.08012790965 | QE10: 0.08813983509 | QF10: 0.08743129212 | QG10: 0.09282712949 | QH10: 0.08894043751 | QI10: 0.08562178639 | QJ10: 0.08954629881 | QK10: 0.0873541825 | QL10: 0.08495019833 | QM10: 0.07593094325 | QN10: 0.0704143008 | QO10: 0.06871568606 | QP10: 0.07995556117 | QQ10: 0.08719217827 | QR10: 0.08877647937 | QS10: 0.0915747757 | QT10: 0.08977759241 | QU10: 0.08894258998 | QV10: 0.08711908112 | QW10: 0.0844828168 | QX10: 0.0828391375 | QY10: 0.07794221162 | QZ10: 0.07056326698 | RA10: 0.07083430907 | RB10: 0.07945244808 | RC10: 0.0865012963 | RD10: 0.08701054436 | RE10: 0.08912427383 | RF10: 0.08902241171 | RG10: 0.08782072878 | RH10: 0.0869996694 | RI10: 0.08447667899 | RJ10: 0.08416855516 | RK10: 0.07902832469 | RL10: 0.07607758591 | RM10: 0.07031748279 | RN10: 0.0823297054 | RO10: 0.0865320609 | RP10: 0.08833525901 | RQ10: 0.09105813412 | RR10: 0.09048009958 | RS10: 0.08604921643 | RT10: 0.08689821582 | RU10: 0.08502148032 | RV10: 0.0834006958 | RW10: 0.07964865469 | RX10: 0.07199765089 | RY10: 0.06824882704 | RZ10: 0.0799262744 | SA10: 0.08481736926 | SB10: 0.0864886853 | SC10: 0.09308488084 | SD10: 0.08952930314 | SE10: 0.08556319085 | SF10: 0.08514753736 | SG10: 0.08470731323 | SH10: 0.08503423937 | SI10: 0.0824959548 | SJ10: 0.0729741457 | SK10: 0.07023110573 | SL10: 0.07962133128 | SM10: 0.08570990494 | SN10: 0.08525981541 | SO10: 0.08961463764 | SP10: 0.08562582228 | SQ10: 0.08717162425 | SR10: 0.09086862332 | SS10: 0.08389470873 | ST10: 0.08540325054 | SU10: 0.08142168937 | SV10: 0.07375038332 | SW10: 0.07165820894 | SX10: 0.08186847795 | SY10: 0.08456617201 | SZ10: 0.08750180894 | TA10: 0.08975384183 | TB10: 0.08570849942 | TC10: 0.08999554877 | TD10: 0.08917816349 | TE10: 0.08549408198 | TF10: 0.08310690112 | TG10: 0.07725850295 | TH10: 0.07426445575 | TI10: 0.0713035458 | TJ10: 0.08012880021 | TK10: 0.08356932253 | TL10: 0.08667308787 | TM10: 0.08964221956 | TN10: 0.08913203619 | TO10: 0.08763149686 | TP10: 0.08737979349 | TQ10: 0.08681830135 | TR10: 0.08427028876 | TS10: 0.07967379796 | TT10: 0.07301624379 | TU10: 0.07206461143 | TV10: 0.0791199399 | TW10: 0.08647942662 | TX10: 0.08996501184 | TY10: 0.08850418405 | TZ10: 0.08785341799 | UA10: 0.08703996041 | UB10: 0.08833500957 | UC10: 0.0861493247 | UD10: 0.0831832145 | UE10: 0.08119448825 | UF10: 0.07392893834 | UG10: 0.06824708382 | UH10: 0.08015972712 | UI10: 0.08449134537 | UJ10: 0.08692722829 | UK10: 0.08826763799 | UL10: 0.08894560583 | UM10: 0.0861819812 | UN10: 0.0884798264 | UO10: 0.08560295343 | UP10: 0.0833696476 | UQ10: 0.08148400198 | UR10: 0.07558382473 | US10: 0.07050622005 | UT10: 0.08179994111 | UU10: 0.08516124243 | UV10: 0.0839869128 | UW10: 0.09105512131 | UX10: 0.08760486597 | UY10: 0.08733516946 | UZ10: 0.09123181902 | VA10: 0.08529189591 | VB10: 0.08392211364 | VC10: 0.07916297525 | VD10: 0.07278085786 | VE10: 0.07066708523 | VF10: 0.07837412946 | VG10: 0.08147568125 | VH10: 0.08582537648 | VI10: 0.08779745564 | VJ10: 0.085728835 | VK10: 0.08943895336 | VL10: 0.0907577685 | VM10: 0.08790540657 | VN10: 0.08588388647 | VO10: 0.0791727908 | VP10: 0.07459292146 | VQ10: 0.07304679501 | VR10: 0.0828231998 | VS10: 0.08665447707 | VT10: 0.08719972526 | VU10: 0.08784517795 | VV10: 0.08577480999 | VW10: 0.08887060804 | VX10: 0.08736935803 | VY10: 0.08478245829 | VZ10: 0.08323512471 | WA10: 0.07992247944 | WB10: 0.07450582238 | WC10: 0.07101675903 | WD10: 0.08121490971 | WE10: 0.08277333459 | WF10: 0.08555128729 | WG10: 0.0873598669 | WH10: 0.08740346476 | WI10: 0.0885390573 | WJ10: 0.0897472154 | WK10: 0.0875878047 | WL10: 0.08592669704 | WM10: 0.07878337815 | WN10: 0.07490580219 | WO10: 0.070207182 | WP10: 0.07955108752 | WQ10: 0.08623586397 | WR10: 0.08368812648 | WS10: 0.08700760775 | WT10: 0.08733845498 | WU10: 0.08801347605 | WV10: 0.08929398811 | WW10: 0.08885942519 | WX10: 0.08508568082 | WY10: 0.08002041547 | WZ10: 0.07425463469 | XA10: 0.07065123898 | XB10: 0.08205802852 | XC10: 0.0833620108 | XD10: 0.0856513064 | XE10: 0.08955957194 | XF10: 0.08836354018 | XG10: 0.08672122792 | XH10: 0.09074754185 | XI10: 0.08809577188 | XJ10: 0.08413280099 | XK10: 0.07843883758 | XL10: 0.07289545785 | XM10: 0.06997390411 | XN10: 53
B13: =1/12 -> 0.08333333333 | C13: =1/12 -> 0.08333333333 | D13: 0.08333333333 | E13: 0.08333333333 | F13: 0.08333333333 | G13: 0.08333333333 | H13: 0.08333333333 | I13: 0.08333333333 | J13: 0.08333333333 | K13: 0.08333333333 | L13: 0.08333333333 | M13: 0.08333333333 | N13: 0.08333333333 | O13: 0.08333333333 | P13: 0.08333333333 | Q13: 0.08333333333 | R13: 0.08333333333 | S13: 0.08333333333 | T13: 0.08333333333 | U13: 0.08333333333 | V13: 0.08333333333 | W13: 0.08333333333 | X13: 0.08333333333 | Y13: 0.08333333333 | Z13: 0.08333333333 | AA13: 0.08333333333 | AB13: 0.08333333333 | AC13: 0.08333333333 | AD13: 0.08333333333 | AE13: 0.08333333333 | AF13: 0.08333333333 | AG13: 0.08333333333 | AH13: 0.08333333333 | AI13: 0.08333333333 | AJ13: 0.08333333333 | AK13: 0.08333333333 | AL13: 0.08333333333 | AM13: 0.08333333333 | AN13: 0.08333333333 | AO13: 0.08333333333 | AP13: 0.08333333333 | AQ13: 0.08333333333 | AR13: 0.08333333333 | AS13: 0.08333333333 | AT13: 0.08333333333 | AU13: 0.08333333333 | AV13: 0.08333333333 | AW13: 0.08333333333 | AX13: 0.08333333333 | AY13: 0.08333333333 | AZ13: 0.08333333333 | BA13: 0.08333333333 | BB13: 0.08333333333 | BC13: 0.08333333333 | BD13: 0.08333333333 | BE13: 0.08333333333 | BF13: 0.08333333333 | BG13: 0.08333333333 | BH13: 0.08333333333 | BI13: 0.08333333333 | BJ13: 0.08333333333 | BK13: 0.08333333333 | BL13: 0.08333333333 | BM13: 0.08333333333 | BN13: 0.08333333333 | BO13: =1/12 -> 0.08333333333 | BP13: 0.08333333333 | BQ13: 0.08333333333 | BR13: 0.08333333333 | BS13: 0.08333333333 | BT13: 0.08333333333 | BU13: 0.08333333333 | BV13: 0.08333333333 | BW13: 0.08333333333 | BX13: 0.08333333333 | BY13: 0.08333333333 | BZ13: 0.08333333333 | CA13: 0.08333333333 | CB13: 0.08333333333 | CC13: 0.08333333333 | CD13: 0.08333333333 | CE13: 0.08333333333 | CF13: 0.08333333333 | CG13: 0.08333333333 | CH13: 0.08333333333 | CI13: 0.08333333333 | CJ13: 0.08333333333 | CK13: 0.08333333333 | CL13: 0.08333333333 | CM13: 0.08333333333 | CN13: 0.08333333333 | CO13: 0.08333333333 | CP13: 0.08333333333 | CQ13: 0.08333333333 | CR13: 0.08333333333 | CS13: 0.08333333333 | CT13: 0.08333333333 | CU13: 0.08333333333 | CV13: 0.08333333333 | CW13: 0.08333333333 | CX13: 0.08333333333 | CY13: 0.08333333333 | CZ13: 0.08333333333 | DA13: 0.08333333333 | DB13: 0.08333333333 | DC13: 0.08333333333 | DD13: 0.08333333333 | DE13: 0.08333333333 | DF13: 0.08333333333 | DG13: 0.08333333333 | DH13: 0.08333333333 | DI13: 0.08333333333 | DJ13: 0.08333333333 | DK13: 0.08333333333 | DL13: 0.08333333333 | DM13: 0.08333333333 | DN13: 0.08333333333 | DO13: 0.08333333333 | DP13: 0.08333333333 | DQ13: 0.08333333333 | DR13: 0.08333333333 | DS13: 0.08333333333 | DT13: 0.08333333333 | DU13: 0.08333333333 | DV13: 0.08333333333 | DW13: 0.08333333333 | DX13: 0.08333333333 | DY13: 0.08333333333 | DZ13: 0.08333333333 | EA13: =1/12 -> 0.08333333333 | EB13: 0.08333333333 | EC13: 0.08333333333 | ED13: 0.08333333333 | EE13: 0.08333333333 | EF13: 0.08333333333 | EG13: 0.08333333333 | EH13: 0.08333333333 | EI13: 0.08333333333 | EJ13: 0.08333333333 | EK13: 0.08333333333 | EL13: 0.08333333333 | EM13: 0.08333333333 | EN13: 0.08333333333 | EO13: 0.08333333333 | EP13: 0.08333333333 | EQ13: 0.08333333333 | ER13: 0.08333333333 | ES13: 0.08333333333 | ET13: 0.08333333333 | EU13: 0.08333333333 | EV13: 0.08333333333 | EW13: 0.08333333333 | EX13: 0.08333333333 | EY13: 0.08333333333 | EZ13: 0.08333333333 | FA13: 0.08333333333 | FB13: 0.08333333333 | FC13: 0.08333333333 | FD13: 0.08333333333 | FE13: 0.08333333333 | FF13: 0.08333333333 | FG13: 0.08333333333 | FH13: 0.08333333333 | FI13: 0.08333333333 | FJ13: 0.08333333333 | FK13: 0.08333333333 | FL13: 0.08333333333 | FM13: 0.08333333333 | FN13: 0.08333333333 | FO13: 0.08333333333 | FP13: 0.08333333333 | FQ13: 0.08333333333 | FR13: 0.08333333333 | FS13: 0.08333333333 | FT13: 0.08333333333 | FU13: 0.08333333333 | FV13: 0.08333333333 | FW13: 0.08333333333 | FX13: 0.08333333333 | FY13: 0.08333333333 | FZ13: 0.08333333333 | GA13: 0.08333333333 | GB13: 0.08333333333 | GC13: 0.08333333333 | GD13: 0.08333333333 | GE13: 0.08333333333 | GF13: 0.08333333333 | GG13: 0.08333333333 | GH13: 0.08333333333 | GI13: 0.08333333333 | GJ13: 0.08333333333 | GK13: 0.08333333333 | GL13: 0.08333333333 | GM13: =1/12 -> 0.08333333333 | GN13: 0.08333333333 | GO13: 0.08333333333 | GP13: 0.08333333333 | GQ13: 0.08333333333 | GR13: 0.08333333333 | GS13: 0.08333333333 | GT13: 0.08333333333 | GU13: 0.08333333333 | GV13: 0.08333333333 | GW13: 0.08333333333 | GX13: 0.08333333333 | GY13: 0.08333333333 | GZ13: 0.08333333333 | HA13: 0.08333333333 | HB13: 0.08333333333 | HC13: 0.08333333333 | HD13: 0.08333333333 | HE13: 0.08333333333 | HF13: 0.08333333333 | HG13: 0.08333333333 | HH13: 0.08333333333 | HI13: 0.08333333333 | HJ13: 0.08333333333 | HK13: 0.08333333333 | HL13: 0.08333333333 | HM13: 0.08333333333 | HN13: 0.08333333333 | HO13: 0.08333333333 | HP13: 0.08333333333 | HQ13: 0.08333333333 | HR13: 0.08333333333 | HS13: 0.08333333333 | HT13: 0.08333333333 | HU13: 0.08333333333 | HV13: 0.08333333333 | HW13: 0.08333333333 | HX13: 0.08333333333 | HY13: 0.08333333333 | HZ13: 0.08333333333 | IA13: 0.08333333333 | IB13: 0.08333333333 | IC13: 0.08333333333 | ID13: 0.08333333333 | IE13: 0.08333333333 | IF13: 0.08333333333 | IG13: 0.08333333333 | IH13: 0.08333333333 | II13: 0.08333333333 | IJ13: 0.08333333333 | IK13: 0.08333333333 | IL13: 0.08333333333 | IM13: 0.08333333333 | IN13: 0.08333333333 | IO13: 0.08333333333 | IP13: 0.08333333333 | IQ13: 0.08333333333 | IR13: 0.08333333333 | IS13: 0.08333333333 | IT13: 0.08333333333 | IU13: 0.08333333333 | IV13: 0.08333333333 | IW13: 0.08333333333 | IX13: 0.08333333333 | IY13: =1/12 -> 0.08333333333 | IZ13: 0.08333333333 | JA13: 0.08333333333 | JB13: 0.08333333333 | JC13: 0.08333333333 | JD13: 0.08333333333 | JE13: 0.08333333333 | JF13: 0.08333333333 | JG13: 0.08333333333 | JH13: 0.08333333333 | JI13: 0.08333333333 | JJ13: 0.08333333333 | JK13: 0.08333333333 | JL13: 0.08333333333 | JM13: 0.08333333333 | JN13: 0.08333333333 | JO13: 0.08333333333 | JP13: 0.08333333333 | JQ13: 0.08333333333 | JR13: 0.08333333333 | JS13: 0.08333333333 | JT13: 0.08333333333 | JU13: 0.08333333333 | JV13: 0.08333333333 | JW13: 0.08333333333 | JX13: 0.08333333333 | JY13: 0.08333333333 | JZ13: 0.08333333333 | KA13: 0.08333333333 | KB13: 0.08333333333 | KC13: 0.08333333333 | KD13: 0.08333333333 | KE13: 0.08333333333 | KF13: 0.08333333333 | KG13: 0.08333333333 | KH13: 0.08333333333 | KI13: 0.08333333333 | KJ13: 0.08333333333 | KK13: 0.08333333333 | KL13: 0.08333333333 | KM13: 0.08333333333 | KN13: 0.08333333333 | KO13: 0.08333333333 | KP13: 0.08333333333 | KQ13: 0.08333333333 | KR13: 0.08333333333 | KS13: 0.08333333333 | KT13: 0.08333333333 | KU13: 0.08333333333 | KV13: 0.08333333333 | KW13: 0.08333333333 | KX13: 0.08333333333 | KY13: 0.08333333333 | KZ13: 0.08333333333 | LA13: 0.08333333333 | LB13: 0.08333333333 | LC13: 0.08333333333 | LD13: 0.08333333333 | LE13: 0.08333333333 | LF13: 0.08333333333 | LG13: 0.08333333333 | LH13: 0.08333333333 | LI13: 0.08333333333 | LJ13: 0.08333333333 | LK13: =1/12 -> 0.08333333333 | LL13: 0.08333333333 | LM13: 0.08333333333 | LN13: 0.08333333333 | LO13: 0.08333333333 | LP13: 0.08333333333 | LQ13: 0.08333333333 | LR13: 0.08333333333 | LS13: 0.08333333333 | LT13: 0.08333333333 | LU13: 0.08333333333 | LV13: 0.08333333333 | LW13: 0.08333333333 | LX13: 0.08333333333 | LY13: 0.08333333333 | LZ13: 0.08333333333 | MA13: 0.08333333333 | MB13: 0.08333333333 | MC13: 0.08333333333 | MD13: 0.08333333333 | ME13: 0.08333333333 | MF13: 0.08333333333 | MG13: 0.08333333333 | MH13: 0.08333333333 | MI13: 0.08333333333 | MJ13: 0.08333333333 | MK13: 0.08333333333 | ML13: 0.08333333333 | MM13: 0.08333333333 | MN13: 0.08333333333 | MO13: 0.08333333333 | MP13: 0.08333333333 | MQ13: 0.08333333333 | MR13: 0.08333333333 | MS13: 0.08333333333 | MT13: 0.08333333333 | MU13: 0.08333333333 | MV13: 0.08333333333 | MW13: 0.08333333333 | MX13: 0.08333333333 | MY13: 0.08333333333 | MZ13: 0.08333333333 | NA13: 0.08333333333 | NB13: 0.08333333333 | NC13: 0.08333333333 | ND13: 0.08333333333 | NE13: 0.08333333333 | NF13: 0.08333333333 | NG13: 0.08333333333 | NH13: 0.08333333333 | NI13: 0.08333333333 | NJ13: 0.08333333333 | NK13: 0.08333333333 | NL13: 0.08333333333 | NM13: 0.08333333333 | NN13: 0.08333333333 | NO13: 0.08333333333 | NP13: 0.08333333333 | NQ13: 0.08333333333 | NR13: 0.08333333333 | NS13: 0.08333333333 | NT13: 0.08333333333 | NU13: 0.08333333333 | NV13: 0.08333333333 | NW13: =1/12 -> 0.08333333333 | NX13: 0.08333333333 | NY13: 0.08333333333 | NZ13: 0.08333333333 | OA13: 0.08333333333 | OB13: 0.08333333333 | OC13: 0.08333333333 | OD13: 0.08333333333 | OE13: 0.08333333333 | OF13: 0.08333333333 | OG13: 0.08333333333 | OH13: 0.08333333333 | OI13: 0.08333333333 | OJ13: 0.08333333333 | OK13: 0.08333333333 | OL13: 0.08333333333 | OM13: 0.08333333333 | ON13: 0.08333333333 | OO13: 0.08333333333 | OP13: 0.08333333333 | OQ13: 0.08333333333 | OR13: 0.08333333333 | OS13: 0.08333333333 | OT13: 0.08333333333 | OU13: 0.08333333333 | OV13: 0.08333333333 | OW13: 0.08333333333 | OX13: 0.08333333333 | OY13: 0.08333333333 | OZ13: 0.08333333333 | PA13: 0.08333333333 | PB13: 0.08333333333 | PC13: 0.08333333333 | PD13: 0.08333333333 | PE13: 0.08333333333 | PF13: 0.08333333333 | PG13: 0.08333333333 | PH13: 0.08333333333 | PI13: 0.08333333333 | PJ13: 0.08333333333 | PK13: 0.08333333333 | PL13: 0.08333333333 | PM13: 0.08333333333 | PN13: 0.08333333333 | PO13: 0.08333333333 | PP13: 0.08333333333 | PQ13: 0.08333333333 | PR13: 0.08333333333 | PS13: 0.08333333333 | PT13: 0.08333333333 | PU13: 0.08333333333 | PV13: 0.08333333333 | PW13: 0.08333333333 | PX13: 0.08333333333 | PY13: 0.08333333333 | PZ13: 0.08333333333 | QA13: 0.08333333333 | QB13: 0.08333333333 | QC13: 0.08333333333 | QD13: 0.08333333333 | QE13: 0.08333333333 | QF13: 0.08333333333 | QG13: 0.08333333333 | QH13: 0.08333333333 | QI13: =1/12 -> 0.08333333333 | QJ13: 0.08333333333 | QK13: 0.08333333333 | QL13: 0.08333333333 | QM13: 0.08333333333 | QN13: 0.08333333333 | QO13: 0.08333333333 | QP13: 0.08333333333 | QQ13: 0.08333333333 | QR13: 0.08333333333 | QS13: 0.08333333333 | QT13: 0.08333333333 | QU13: 0.08333333333 | QV13: 0.08333333333 | QW13: 0.08333333333 | QX13: 0.08333333333 | QY13: 0.08333333333 | QZ13: 0.08333333333 | RA13: 0.08333333333 | RB13: 0.08333333333 | RC13: 0.08333333333 | RD13: 0.08333333333 | RE13: 0.08333333333 | RF13: 0.08333333333 | RG13: 0.08333333333 | RH13: 0.08333333333 | RI13: 0.08333333333 | RJ13: 0.08333333333 | RK13: 0.08333333333 | RL13: 0.08333333333 | RM13: 0.08333333333 | RN13: 0.08333333333 | RO13: 0.08333333333 | RP13: 0.08333333333 | RQ13: 0.08333333333 | RR13: 0.08333333333 | RS13: 0.08333333333 | RT13: 0.08333333333 | RU13: 0.08333333333 | RV13: 0.08333333333 | RW13: 0.08333333333 | RX13: 0.08333333333 | RY13: 0.08333333333 | RZ13: 0.08333333333 | SA13: 0.08333333333 | SB13: 0.08333333333 | SC13: 0.08333333333 | SD13: 0.08333333333 | SE13: 0.08333333333 | SF13: 0.08333333333 | SG13: 0.08333333333 | SH13: 0.08333333333 | SI13: 0.08333333333 | SJ13: 0.08333333333 | SK13: 0.08333333333 | SL13: 0.08333333333 | SM13: 0.08333333333 | SN13: 0.08333333333 | SO13: 0.08333333333 | SP13: 0.08333333333 | SQ13: 0.08333333333 | SR13: 0.08333333333 | SS13: 0.08333333333 | ST13: 0.08333333333 | SU13: =1/12 -> 0.08333333333 | SV13: 0.08333333333 | SW13: 0.08333333333 | SX13: 0.08333333333 | SY13: 0.08333333333 | SZ13: 0.08333333333 | TA13: 0.08333333333 | TB13: 0.08333333333 | TC13: 0.08333333333 | TD13: 0.08333333333 | TE13: 0.08333333333 | TF13: 0.08333333333 | TG13: 0.08333333333 | TH13: 0.08333333333 | TI13: 0.08333333333 | TJ13: 0.08333333333 | TK13: 0.08333333333 | TL13: 0.08333333333 | TM13: 0.08333333333 | TN13: 0.08333333333 | TO13: 0.08333333333 | TP13: 0.08333333333 | TQ13: 0.08333333333 | TR13: 0.08333333333 | TS13: 0.08333333333 | TT13: 0.08333333333 | TU13: 0.08333333333 | TV13: 0.08333333333 | TW13: 0.08333333333 | TX13: 0.08333333333 | TY13: 0.08333333333 | TZ13: 0.08333333333 | UA13: 0.08333333333 | UB13: 0.08333333333 | UC13: 0.08333333333 | UD13: 0.08333333333 | UE13: 0.08333333333 | UF13: 0.08333333333 | UG13: 0.08333333333 | UH13: 0.08333333333 | UI13: 0.08333333333 | UJ13: 0.08333333333 | UK13: 0.08333333333 | UL13: 0.08333333333 | UM13: 0.08333333333 | UN13: 0.08333333333 | UO13: 0.08333333333 | UP13: 0.08333333333 | UQ13: 0.08333333333 | UR13: 0.08333333333 | US13: 0.08333333333 | UT13: 0.08333333333 | UU13: 0.08333333333 | UV13: 0.08333333333 | UW13: 0.08333333333 | UX13: 0.08333333333 | UY13: 0.08333333333 | UZ13: 0.08333333333 | VA13: 0.08333333333 | VB13: 0.08333333333 | VC13: 0.08333333333 | VD13: 0.08333333333 | VE13: 0.08333333333 | VF13: 0.08333333333 | VG13: =1/12 -> 0.08333333333 | VH13: 0.08333333333 | VI13: 0.08333333333 | VJ13: 0.08333333333 | VK13: 0.08333333333 | VL13: 0.08333333333 | VM13: 0.08333333333 | VN13: 0.08333333333 | VO13: 0.08333333333 | VP13: 0.08333333333 | VQ13: 0.08333333333 | VR13: 0.08333333333 | VS13: 0.08333333333 | VT13: 0.08333333333 | VU13: 0.08333333333 | VV13: 0.08333333333 | VW13: 0.08333333333 | VX13: 0.08333333333 | VY13: 0.08333333333 | VZ13: 0.08333333333 | WA13: 0.08333333333 | WB13: 0.08333333333 | WC13: 0.08333333333 | WD13: 0.08333333333 | WE13: 0.08333333333 | WF13: 0.08333333333 | WG13: 0.08333333333 | WH13: 0.08333333333 | WI13: 0.08333333333 | WJ13: 0.08333333333 | WK13: 0.08333333333 | WL13: 0.08333333333 | WM13: 0.08333333333 | WN13: 0.08333333333 | WO13: 0.08333333333 | WP13: 0.08333333333 | WQ13: 0.08333333333 | WR13: 0.08333333333 | WS13: 0.08333333333 | WT13: 0.08333333333 | WU13: 0.08333333333 | WV13: 0.08333333333 | WW13: 0.08333333333 | WX13: 0.08333333333 | WY13: 0.08333333333 | WZ13: 0.08333333333 | XA13: 0.08333333333 | XB13: 0.08333333333 | XC13: 0.08333333333 | XD13: 0.08333333333 | XE13: 0.08333333333 | XF13: 0.08333333333 | XG13: 0.08333333333 | XH13: 0.08333333333 | XI13: 0.08333333333 | XJ13: 0.08333333333 | XK13: 0.08333333333 | XL13: 0.08333333333 | XM13: 0.08333333333 | XN13: 0.08333333333 | XO13: 0.08333333333 | XP13: 0.08333333333 | XQ13: 0.08333333333 | XR13: 0.08333333333 | XS13: =1/12 -> 0.08333333333 | XT13: 0.08333333333 | XU13: 0.08333333333 | XV13: 0.08333333333 | XW13: 0.08333333333 | XX13: 0.08333333333 | XY13: 0.08333333333 | XZ13: 0.08333333333
B20: PROPORTION OF MONTHLY BIRTHS IN SWEDEN

Sheet 6.10
A1: Reliability | B1: NA
A2: Record Type | B2: Consolidated
A3: Use | B3: Yes
A4: Country or Area | B4: Sweden
A6: Sum of Column3 | B6: Column Labels
A7: Row Labels | B7: January | C7: February | D7: March | E7: April | F7: May | G7: June | H7: July | I7: August | J7: September | K7: October | L7: November | M7: December | N7: Grand Total
A8: 1961 | B8: 0.07836312431 | C8: 0.085096523 | D8: 0.09479788664 | E8: 0.09788992464 | F8: 0.0899922908 | G8: 0.08296348116 | H8: 0.08041864284 | I8: 0.07950820769 | J8: 0.08174143315 | K8: 0.07817540572 | L8: 0.07610643403 | M8: 0.07494664602 | N8: 1
A9: 1962 | B9: 0.07938187962 | C9: 0.08564031317 | D9: 0.09501327232 | E9: 0.09756639979 | F9: 0.09062551297 | G9: 0.08526787597 | H9: 0.0795738441 | I9: 0.07645670672 | J9: 0.08242466885 | K9: 0.07808383415 | L9: 0.0760959354 | M9: 0.07386975694 | N9: 1
A10: 1963 | B10: 0.07873777081 | C10: 0.08138224614 | D10: 0.09438799984 | E10: 0.09687877015 | F10: 0.09291074336 | G10: 0.0839304722 | H10: 0.08152717865 | I10: 0.0766435425 | J10: 0.08418189546 | K10: 0.07879859902 | L10: 0.07681878567 | M10: 0.0738019962 | N10: 1
A11: 1964 | B11: 0.07724116246 | C11: 0.08263671025 | D11: 0.09197896549 | E11: 0.09748920393 | F11: 0.09021491943 | G11: 0.08429841584 | H11: 0.08107395346 | I11: 0.07604642217 | J11: 0.08483698445 | K11: 0.07874862001 | L11: 0.07749588002 | M11: 0.0779387625 | N11: 1
A12: 1965 | B12: 0.07927497814 | C12: 0.08693771651 | D12: 0.09547652232 | E12: 0.100028765 | F12: 0.09124447776 | G12: 0.08418654533 | H12: 0.07993773229 | I12: 0.07734261062 | J12: 0.08258582105 | K12: 0.07772589013 | L12: 0.07364156788 | M12: 0.07161737298 | N12: 1 | Q12: PROPORTION OF MONTHLY BIRTHS IN SWEDEN
A13: 1966 | B13: 0.07840528712 | C13: 0.08763316275 | D13: 0.09311969312 | E13: 0.09656868842 | F13: 0.08926421667 | G13: 0.08027949914 | H13: 0.07865171963 | I13: 0.07920023072 | J13: 0.08475635651 | K13: 0.07952615759 | L13: 0.0770594476 | M13: 0.07553554073 | N13: 1
A14: 1967 | B14: 0.08148318049 | C14: 0.08880016118 | D14: 0.09750510879 | E14: 0.1003879247 | F14: 0.09121914801 | G14: 0.08637836571 | H14: 0.07998036724 | I14: 0.07598902454 | J14: 0.07772049163 | K14: 0.07765343061 | L14: 0.0722101764 | M14: 0.0706726207 | N14: 1
A15: 1968 | B15: 0.08136224922 | C15: 0.08817262369 | D15: 0.09514582821 | E15: 0.09871274597 | F15: 0.0911716354 | G15: 0.08370589246 | H15: 0.07987518802 | I15: 0.07962299635 | J15: 0.08208838729 | K15: 0.07734457509 | L15: 0.0726798989 | M15: 0.07011797942 | N15: 1
A16: 1969 | B16: 0.08494138385 | C16: 0.08625248093 | D16: 0.09554082906 | E16: 0.09800036212 | F16: 0.09161274576 | G16: 0.08419404549 | H16: 0.07919963794 | I16: 0.07662952311 | J16: 0.08079426357 | K16: 0.07887153818 | L16: 0.0717721276 | M16: 0.07219106239 | N16: 1
A17: 1970 | B17: 0.07865796655 | C17: 0.08510414705 | D17: 0.09234341987 | E17: 0.09761132511 | F17: 0.08903113058 | G17: 0.08525464591 | H17: 0.08080383138 | I17: 0.07742031007 | J17: 0.08310165788 | K17: 0.07835523043 | L17: 0.074664521 | M17: 0.07765181416 | N17: 1
A18: 1971 | B18: 0.07899519927 | C18: 0.08679510943 | D18: 0.09320611183 | E18: 0.09875599142 | F18: 0.09049927134 | G18: 0.08381468879 | H18: 0.08135940172 | I18: 0.07935496921 | J18: 0.0818762141 | K18: 0.07767604283 | L18: 0.07457374095 | M18: 0.0730932591 | N18: 1
A19: 1972 | B19: 0.07978420619 | C19: 0.08757136124 | D19: 0.09173256558 | E19: 0.09438298733 | F19: 0.09052371397 | G19: 0.08554844282 | H19: 0.08210555167 | I19: 0.07963528969 | J19: 0.08257040476 | K19: 0.07746286071 | L19: 0.07421560498 | M19: 0.07446701107 | N19: 1
A20: 1973 | B20: 0.08227586591 | C20: 0.08814089718 | D20: 0.09221049117 | E20: 0.09622666701 | F20: 0.09123580696 | G20: 0.08578532519 | H20: 0.08165886398 | I20: 0.07889576838 | J20: 0.08168270946 | K20: 0.07708053082 | L20: 0.07288610998 | M20: 0.07192096397 | N20: 1
A21: 1974 | B21: 0.08361192179 | C21: 0.08602805881 | D21: 0.09317190558 | E21: 0.09718156452 | F21: 0.09064578475 | G21: 0.08447121943 | H21: 0.08223728359 | I21: 0.0793630401 | J21: 0.08191623714 | K21: 0.07605141172 | L21: 0.07479549228 | M21: 0.07052608028 | N21: 1
A22: 1975 | B22: 0.08491519585 | C22: 0.09154142461 | D22: 0.0948295369 | E22: 0.1002877853 | F22: 0.09047782232 | G22: 0.08447087948 | H22: 0.08252175283 | I22: 0.07709156985 | J22: 0.08017939515 | K22: 0.07378048267 | L22: 0.06851711542 | M22: 0.07138703965 | N22: 1
A23: 1976 | B23: 0.08402544717 | C23: 0.08998064174 | D23: 0.09585480621 | E23: 0.0945035461 | F23: 0.08913517031 | G23: 0.08514205334 | H23: 0.08110560538 | I23: 0.07921570778 | J23: 0.08359213732 | K23: 0.07589588766 | L23: 0.07150279237 | M23: 0.07004620462 | N23: 1
A24: 1977 | B24: 0.08087141521 | C24: 0.09123111523 | D24: 0.09678238647 | E24: 0.09558965897 | F24: 0.08883200378 | G24: 0.08447409183 | H24: 0.08147356229 | I24: 0.08155520935 | J24: 0.08232269174 | K24: 0.07656453267 | L24: 0.07317924135 | M24: 0.06712409109 | N24: 1
A25: 1978 | B25: 0.08030184096 | C25: 0.08721715995 | D25: 0.09624651561 | E25: 0.09567260549 | F25: 0.09410092614 | G25: 0.08560866902 | H25: 0.08088030871 | I25: 0.07964975005 | J25: 0.08090274625 | K25: 0.07643136585 | L25: 0.07307765526 | M25: 0.0699104567 | N25: 1
A26: 1979 | B26: 0.08187972766 | C26: 0.08837411638 | D26: 0.0943089012 | E26: 0.09761044287 | F26: 0.09138498907 | G26: 0.08566179612 | H26: 0.08325508703 | I26: 0.07807966067 | J26: 0.08012436159 | K26: 0.07750914123 | L26: 0.07191295678 | M26: 0.0698988194 | N26: 1
A27: 1980 | B27: 0.08401872429 | C27: 0.08945572935 | D27: 0.09532523536 | E27: 0.09947635943 | F27: 0.08900331519 | G27: 0.08627496086 | H27: 0.08518382175 | I27: 0.07841612516 | J27: 0.081029996 | K27: 0.07270208193 | L27: 0.06944082216 | M27: 0.06967282852 | N27: 1
A28: 1981 | B28: 0.08308417701 | C28: 0.08995499737 | D28: 0.09325732427 | E28: 0.09662439974 | F28: 0.08940070082 | G28: 0.08633833334 | H28: 0.08447047679 | I28: 0.08168745392 | J28: 0.08371027029 | K28: 0.07320288234 | L28: 0.06894357182 | M28: 0.06932541228 | N28: 1
A29: 1982 | B29: 0.08305118462 | C29: 0.08870741551 | D29: 0.09658294586 | E29: 0.09722429496 | F29: 0.08677241896 | G29: 0.08529520169 | H29: 0.08112713732 | I29: 0.08153943317 | J29: 0.0848910108 | K29: 0.07555585749 | L29: 0.07087541862 | M29: 0.06837768102 | N29: 1
A30: 1983 | B30: 0.08134965081 | C30: 0.0894743146 | D30: 0.0946711235 | E30: 0.09491255517 | F30: 0.08905196181 | G30: 0.0888190764 | H30: 0.08149921025 | I30: 0.08203335109 | J30: 0.08272559763 | K30: 0.07503610601 | L30: 0.07058279574 | M30: 0.06984425699 | N30: 1
A31: 1984 | B31: 0.0808112464 | C31: 0.08841108298 | D31: 0.09384160163 | E31: 0.09435031619 | F31: 0.09141150322 | G31: 0.0849445086 | H31: 0.08334609043 | I31: 0.08147114382 | J31: 0.08241175949 | K31: 0.07646430314 | L31: 0.07464033273 | M31: 0.06789611137 | N31: 1
A32: 1985 | B32: 0.08070579521 | C32: 0.08827218584 | D32: 0.09464978056 | E32: 0.09534498783 | F32: 0.09070562471 | G32: 0.08580431386 | H32: 0.08418183156 | I32: 0.08224959359 | J32: 0.08184189802 | K32: 0.07506844114 | L32: 0.07078830163 | M32: 0.07038724605 | N32: 1
A33: 1986 | B33: 0.08255381831 | C33: 0.08722453063 | D33: 0.09243180635 | E33: 0.09749070844 | F33: 0.08802662765 | G33: 0.08635913606 | H33: 0.0837080136 | I33: 0.08294816836 | J33: 0.08626968593 | K33: 0.07385888043 | L33: 0.07006927256 | M33: 0.06905935168 | N33: 1
A34: 1987 | B34: 0.07894680681 | C34: 0.0875298285 | D34: 0.09334249337 | E34: 0.09436339763 | F34: 0.08948366262 | G34: 0.0889338729 | H34: 0.08624299408 | I34: 0.08101671359 | J34: 0.08298172013 | K34: 0.07346764178 | L34: 0.07189039154 | M34: 0.07180047704 | N34: 1
A35: 1988 | B35: 0.07922694739 | C35: 0.08504738894 | D35: 0.09534090279 | E35: 0.0929413628 | F35: 0.09079459075 | G35: 0.08683777799 | H35: 0.08412432599 | I35: 0.08330809622 | J35: 0.08488789577 | K35: 0.07492638195 | L35: 0.07089408988 | M35: 0.07167023954 | N35: 1
A36: 1989 | B36: 0.07972889174 | C36: 0.0870451531 | D36: 0.09162355303 | E36: 0.08947118575 | F36: 0.08972987561 | G36: 0.08616908575 | H36: 0.08631449312 | I36: 0.08359233183 | J36: 0.08248261432 | K36: 0.07698136869 | L36: 0.07442828574 | M36: 0.07243316132 | N36: 1
A37: 1990 | B37: 0.08075532129 | C37: 0.08929380433 | D37: 0.09172893064 | E37: 0.09303700808 | F37: 0.08803413931 | G37: 0.08580988021 | H37: 0.08436308327 | I37: 0.08256711404 | J37: 0.08399492276 | K37: 0.0778200588 | L37: 0.07168264384 | M37: 0.07091309344 | N37: 1
A38: 1991 | B38: 0.08505740122 | C38: 0.09023156232 | D38: 0.09222079704 | E38: 0.0953112001 | F38: 0.0883934517 | G38: 0.08424068957 | H38: 0.08479590557 | I38: 0.08188775705 | J38: 0.08120284977 | K38: 0.07319500792 | L38: 0.07287540214 | M38: 0.0705879756 | N38: 1
A39: 1992 | B39: 0.08681790974 | C39: 0.08904863907 | D39: 0.09396667815 | E39: 0.0940464647 | F39: 0.08729823013 | G39: 0.08827247998 | H39: 0.08436827577 | I39: 0.08155039618 | J39: 0.08349942956 | K39: 0.07334492292 | L39: 0.06944498823 | M39: 0.06834158557 | N39: 1
A40: 1993 | B40: 0.08518450846 | C40: 0.08868033822 | D40: 0.09381930888 | E40: 0.09635406742 | F40: 0.08818466529 | G40: 0.0883159741 | H40: 0.08440330419 | I40: 0.0839379059 | J40: 0.08092195876 | K40: 0.07399832813 | L40: 0.06840108262 | M40: 0.06779855805 | N40: 1
A41: 1994 | B41: 0.0811819337 | C41: 0.09195876304 | D41: 0.09518965978 | E41: 0.09650368463 | F41: 0.08943461521 | G41: 0.09001535947 | H41: 0.08389789555 | I41: 0.08108587074 | J41: 0.07564899834 | K41: 0.07263233031 | L41: 0.07141669723 | M41: 0.07103419199 | N41: 1
A42: 1995 | B42: 0.08290196653 | C42: 0.09120706022 | D42: 0.09405984128 | E42: 0.09419761622 | F42: 0.08913975887 | G42: 0.0894367966 | H42: 0.08562270574 | I42: 0.08280716726 | J42: 0.08057148434 | K42: 0.07544126354 | L42: 0.06874780269 | M42: 0.0658665367 | N42: 1
A43: 1996 | B43: 0.08257829018 | C43: 0.0878540987 | D43: 0.09055642021 | E43: 0.09533469739 | F43: 0.08726402243 | G43: 0.08602412676 | H43: 0.08825483806 | I43: 0.08376520474 | J43: 0.08119286847 | K43: 0.07596253165 | L43: 0.07138104146 | M43: 0.06983185994 | N43: 1
A44: 1997 | B44: 0.0839880271 | C44: 0.0874435345 | D44: 0.08947163248 | E44: 0.09508564508 | F44: 0.08938493516 | G44: 0.09025913312 | H44: 0.08848545049 | I44: 0.08542937002 | J44: 0.08113243418 | K44: 0.0741695558 | L44: 0.06685446957 | M44: 0.06829581249 | N44: 1
A45: 1998 | B45: 0.08012790965 | C45: 0.08813983509 | D45: 0.08743129212 | E45: 0.09282712949 | F45: 0.08894043751 | G45: 0.08562178639 | H45: 0.08954629881 | I45: 0.0873541825 | J45: 0.08495019833 | K45: 0.07593094325 | L45: 0.0704143008 | M45: 0.06871568606 | N45: 1
A46: 1999 | B46: 0.07995556117 | C46: 0.08719217827 | D46: 0.08877647937 | E46: 0.0915747757 | F46: 0.08977759241 | G46: 0.08894258998 | H46: 0.08711908112 | I46: 0.0844828168 | J46: 0.0828391375 | K46: 0.07794221162 | L46: 0.07056326698 | M46: 0.07083430907 | N46: 1
A47: 2000 | B47: 0.07945244808 | C47: 0.0865012963 | D47: 0.08701054436 | E47: 0.08912427383 | F47: 0.08902241171 | G47: 0.08782072878 | H47: 0.0869996694 | I47: 0.08447667899 | J47: 0.08416855516 | K47: 0.07902832469 | L47: 0.07607758591 | M47: 0.07031748279 | N47: 1
A48: 2001 | B48: 0.0823297054 | C48: 0.0865320609 | D48: 0.08833525901 | E48: 0.09105813412 | F48: 0.09048009958 | G48: 0.08604921643 | H48: 0.08689821582 | I48: 0.08502148032 | J48: 0.0834006958 | K48: 0.07964865469 | L48: 0.07199765089 | M48: 0.06824882704 | N48: 1
A49: 2002 | B49: 0.0799262744 | C49: 0.08481736926 | D49: 0.0864886853 | E49: 0.09308488084 | F49: 0.08952930314 | G49: 0.08556319085 | H49: 0.08514753736 | I49: 0.08470731323 | J49: 0.08503423937 | K49: 0.0824959548 | L49: 0.0729741457 | M49: 0.07023110573 | N49: 1
A50: 2003 | B50: 0.07962133128 | C50: 0.08570990494 | D50: 0.08525981541 | E50: 0.08961463764 | F50: 0.08562582228 | G50: 0.08717162425 | H50: 0.09086862332 | I50: 0.08389470873 | J50: 0.08540325054 | K50: 0.08142168937 | L50: 0.07375038332 | M50: 0.07165820894 | N50: 1
A51: 2004 | B51: 0.08186847795 | C51: 0.08456617201 | D51: 0.08750180894 | E51: 0.08975384183 | F51: 0.08570849942 | G51: 0.08999554877 | H51: 0.08917816349 | I51: 0.08549408198 | J51: 0.08310690112 | K51: 0.07725850295 | L51: 0.07426445575 | M51: 0.0713035458 | N51: 1
A52: 2005 | B52: 0.08012880021 | C52: 0.08356932253 | D52: 0.08667308787 | E52: 0.08964221956 | F52: 0.08913203619 | G52: 0.08763149686 | H52: 0.08737979349 | I52: 0.08681830135 | J52: 0.08427028876 | K52: 0.07967379796 | L52: 0.07301624379 | M52: 0.07206461143 | N52: 1
A53: 2006 | B53: 0.0791199399 | C53: 0.08647942662 | D53: 0.08996501184 | E53: 0.08850418405 | F53: 0.08785341799 | G53: 0.08703996041 | H53: 0.08833500957 | I53: 0.0861493247 | J53: 0.0831832145 | K53: 0.08119448825 | L53: 0.07392893834 | M53: 0.06824708382 | N53: 1
A54: 2007 | B54: 0.08015972712 | C54: 0.08449134537 | D54: 0.08692722829 | E54: 0.08826763799 | F54: 0.08894560583 | G54: 0.0861819812 | H54: 0.0884798264 | I54: 0.08560295343 | J54: 0.0833696476 | K54: 0.08148400198 | L54: 0.07558382473 | M54: 0.07050622005 | N54: 1
A55: 2008 | B55: 0.08179994111 | C55: 0.08516124243 | D55: 0.0839869128 | E55: 0.09105512131 | F55: 0.08760486597 | G55: 0.08733516946 | H55: 0.09123181902 | I55: 0.08529189591 | J55: 0.08392211364 | K55: 0.07916297525 | L55: 0.07278085786 | M55: 0.07066708523 | N55: 1
A56: 2009 | B56: 0.07837412946 | C56: 0.08147568125 | D56: 0.08582537648 | E56: 0.08779745564 | F56: 0.085728835 | G56: 0.08943895336 | H56: 0.0907577685 | I56: 0.08790540657 | J56: 0.08588388647 | K56: 0.0791727908 | L56: 0.07459292146 | M56: 0.07304679501 | N56: 1
A57: 2010 | B57: 0.0828231998 | C57: 0.08665447707 | D57: 0.08719972526 | E57: 0.08784517795 | F57: 0.08577480999 | G57: 0.08887060804 | H57: 0.08736935803 | I57: 0.08478245829 | J57: 0.08323512471 | K57: 0.07992247944 | L57: 0.07450582238 | M57: 0.07101675903 | N57: 1
A58: 2011 | B58: 0.08121490971 | C58: 0.08277333459 | D58: 0.08555128729 | E58: 0.0873598669 | F58: 0.08740346476 | G58: 0.0885390573 | H58: 0.0897472154 | I58: 0.0875878047 | J58: 0.08592669704 | K58: 0.07878337815 | L58: 0.07490580219 | M58: 0.070207182 | N58: 1
A59: 2012 | B59: 0.07955108752 | C59: 0.08623586397 | D59: 0.08368812648 | E59: 0.08700760775 | F59: 0.08733845498 | G59: 0.08801347605 | H59: 0.08929398811 | I59: 0.08885942519 | J59: 0.08508568082 | K59: 0.08002041547 | L59: 0.07425463469 | M59: 0.07065123898 | N59: 1
A60: 2013 | B60: 0.08205802852 | C60: 0.0833620108 | D60: 0.0856513064 | E60: 0.08955957194 | F60: 0.08836354018 | G60: 0.08672122792 | H60: 0.09074754185 | I60: 0.08809577188 | J60: 0.08413280099 | K60: 0.07843883758 | L60: 0.07289545785 | M60: 0.06997390411 | N60: 1
A61: 2014
A62: Grand Total | B62: 4.304963875 | C62: 4.615037918 | D62: 4.862004729 | E62: 4.997491827 | F62: 4.732865606 | G62: 4.574523729 | H62: 4.481129276 | I62: 4.345518341 | J62: 4.388708684 | K62: 4.087142927 | L62: 3.853069187 | M62: 3.757543903 | N62: 53
A64: Labels | B64: Jan | C64: Feb | D64: Mar | E64: Apr | F64: May | G64: Jun | H64: Jul | I64: Aug | J64: Sep | K64: Oct | L64: Nov | M64: Dec
A65: Reference | B65: =1/12 -> 0.08333333333 | C65: =1/12 -> 0.08333333333 | D65: 0.08333333333 | E65: 0.08333333333 | F65: 0.08333333333 | G65: 0.08333333333 | H65: 0.08333333333 | I65: 0.08333333333 | J65: 0.08333333333 | K65: 0.08333333333 | L65: 0.08333333333 | M65: 0.08333333333

Sheet MonthlyBirthsData
A1: Country or Area | B1: Year | C1: MonthNum | D1: Area | E1: Month | F1: Value | G1: MonthWeight | H1: Expected | I1: StdBirths | J1: Record Type | K1: Reliability | L1: Source Year | M1: Use | N1: Value Footnotes | O1: Month2 | P1: Days in month | Q1: StdMonth | R1: Column3 | S1: Positive | T1: Negative | U1: Series3 | V1: Series4
A2: Åland Islands | B2: 2006 | C2: 1 | D2: Total | E2: January | F2: 19 | G2: =Table59[[#This Row],[Days in month]]/SUMIFS(Table59[Days in month],Table59[Country or Area],Table59[[#This Row],[Country or Area]],Table59[Year],Table59[[#This Row],[Year]]) -> 0.08493150685 | H2: =SUMIFS(Table59[Value],Table59[Country or Area],Table59[[#This Row],[Country or Area]],Table59[Year],Table59[[#This Row],[Year]])*Table59[[#This Row],[MonthWeight]] -> 25.05479452 | I2: =+Table59[[#This Row],[Value]]/Table59[[#This Row],[Days in month]]*Table59[[#This Row],[StdMonth]] -> 18.64247312 | J2: Consolidated | K2: NA | L2: NA | M2: No | N2: NA | O2: 2006-01-01 | P2: =DAY(DATE(YEAR(Table59[[#This Row],[Month2]]),MONTH(Table59[[#This Row],[Month2]])+1,0)) -> 31 | Q2: =IF(MONTH(DATE(Table59[[#This Row],[Year]],2,29))=2,366,365)/12 -> 30.41666667 | R2: =Table59[[#This Row],[StdBirths]]/SUMIFS(Table59[StdBirths],Table59[Country or Area],Table59[[#This Row],[Country or Area]],Table59[Year],Table59[[#This Row],[Year]]) -> 0.06322995737 | S2: =IF(Table59[[#This Row],[Column3]]-0.083333>=0,Table59[[#This Row],[Column3]]-0.083333,NA()) ->  | T2: =IF(Table59[[#This Row],[Column3]]-0.083333<0,ABS(Table59[[#This Row],[Column3]]-0.083333),NA()) -> 0.02010304263 | U2: =COUNTIFS(Table59[Country or Area],Table59[[#This Row],[Country or Area]],Table59[Year],Table59[[#This Row],[Year]]) -> 12 | V2: =Table59[[#This Row],[StdBirths]]/SUM(I2:I13) -> 0.06322995737 | X2: =MAX(Table59[Column3]) -> 1
A3: Åland Islands | B3: 2006 | C3: 2 | D3: Total | E3: February | F3: 22 | G3: 0.07671232877 | H3: 22.63013699 | I3: 23.89880952 | J3: Consolidated | K3: NA | L3: NA | M3: No | N3: NA | O3: 2006-02-01 | P3: 28 | Q3: 30.41666667 | R3: 0.08105795287 | T3: 0.002275047129 | U3: 12 | V3: =Table59[[#This Row],[StdBirths]]/SUM(I3:I14) -> 0.07921267403
A4: Åland Islands | B4: 2006 | C4: 3 | D4: Total | E4: March | F4: 32 | G4: 0.08493150685 | H4: 25.05479452 | I4: 31.39784946 | J4: Consolidated | K4: NA | L4: NA | M4: No | N4: NA | O4: 2006-03-01 | P4: 31 | Q4: 30.41666667 | R4: 0.1064925598 | S4: 0.02315955978 | U4: 12 | V4: =Table59[[#This Row],[StdBirths]]/SUM(I4:I15) -> 0.1044443236
A5: Åland Islands | B5: 2006 | C5: 4 | D5: Total | E5: April | F5: 23 | G5: 0.08219178082 | H5: 24.24657534 | I5: 23.31944444 | J5: Consolidated | K5: NA | L5: NA | M5: No | N5: NA | O5: 2006-04-01 | P5: 30 | Q5: 30.41666667 | R5: 0.07909291159 | T5: 0.004240088411 | U5: 12 | V5: =Table59[[#This Row],[StdBirths]]/SUM(I5:I16) -> 0.07681947961
A6: Åland Islands | B6: 2006 | C6: 5 | D6: Total | E6: May | F6: 22 | G6: 0.08493150685 | H6: 25.05479452 | I6: 21.58602151 | J6: Consolidated | K6: NA | L6: NA | M6: No | N6: NA | O6: 2006-05-01 | P6: 31 | Q6: 30.41666667 | R6: 0.07321363485 | T6: 0.01011936515 | U6: 12 | V6: =Table59[[#This Row],[StdBirths]]/SUM(I6:I17) -> 0.06994118582
A7: Åland Islands | B7: 2006 | C7: 6 | D7: Total | E7: June | F7: 24 | G7: 0.08219178082 | H7: 24.24657534 | I7: 24.33333333 | J7: Consolidated | K7: NA | L7: NA | M7: No | N7: NA | O7: 2006-06-01 | P7: 30 | Q7: 30.41666667 | R7: 0.08253173383 | T7: 0.000801266168 | U7: 12 | V7: =Table59[[#This Row],[StdBirths]]/SUM(I7:I18) -> 0.07934730443
A8: Åland Islands | B8: 2006 | C8: 7 | D8: Total | E8: July | F8: 26 | G8: 0.08493150685 | H8: 25.05479452 | I8: 25.51075269 | J8: Consolidated | K8: NA | L8: NA | M8: No | N8: NA | O8: 2006-07-01 | P8: 31 | Q8: 30.41666667 | R8: 0.08652520482 | S8: 0.003192204824 | U8: 12 | V8: =Table59[[#This Row],[StdBirths]]/SUM(I8:I19) -> 0.08430154012
A9: Åland Islands | B9: 2006 | C9: 8 | D9: Total | E9: August | F9: 24 | G9: 0.08493150685 | H9: 25.05479452 | I9: 23.5483871 | J9: Consolidated | K9: NA | L9: NA | M9: No | N9: NA | O9: 2006-08-01 | P9: 31 | Q9: 30.41666667 | R9: 0.07986941984 | T9: 0.003463580163 | U9: 12 | V9: =Table59[[#This Row],[StdBirths]]/SUM(I9:I20) -> 0.07832472124
A10: Åland Islands | B10: 2006 | C10: 9 | D10: Total | E10: September | F10: 27 | G10: 0.08219178082 | H10: 24.24657534 | I10: 27.375 | J10: Consolidated | K10: NA | L10: NA | M10: No | N10: NA | O10: 2006-09-01 | P10: 30 | Q10: 30.41666667 | R10: 0.09284820056 | S10: 0.009515200561 | U10: 12 | V10: =Table59[[#This Row],[StdBirths]]/SUM(I10:I21) -> 0.09287101248
A11: Åland Islands | B11: 2006 | C11: 10 | D11: Total | E11: October | F11: 31 | G11: 0.08493150685 | H11: 25.05479452 | I11: 30.41666667 | J11: Consolidated | K11: NA | L11: NA | M11: No | N11: NA | O11: 2006-10-01 | P11: 31 | Q11: 30.41666667 | R11: 0.1031646673 | S11: 0.01983166729 | U11: 12 | V11: =Table59[[#This Row],[StdBirths]]/SUM(I11:I22) -> 0.1017895255
A12: Åland Islands | B12: 2006 | C12: 11 | D12: Total | E12: November | F12: 20 | G12: 0.08219178082 | H12: 24.24657534 | I12: 20.27777778 | J12: Consolidated | K12: NA | L12: NA | M12: No | N12: NA | O12: 2006-11-01 | P12: 30 | Q12: 30.41666667 | R12: 0.06877644486 | T12: 0.01455655514 | U12: 12 | V12: =Table59[[#This Row],[StdBirths]]/SUM(I12:I23) -> 0.06969032766
A13: Åland Islands | B13: 2006 | C13: 12 | D13: Total | E13: December | F13: 25 | G13: 0.08493150685 | H13: 25.05479452 | I13: 24.52956989 | J13: Consolidated | K13: NA | L13: NA | M13: No | N13: NA | O13: 2006-12-01 | P13: 31 | Q13: 30.41666667 | R13: 0.08319731233 | T13: 0.0001356876694 | U13: 12 | V13: =Table59[[#This Row],[StdBirths]]/SUM(I13:I24) -> 0.08549444286
A14: Åland Islands | B14: 2007 | C14: 1 | D14: Total | E14: January | F14: 26 | G14: 0.08493150685 | H14: 24.29041096 | I14: 25.51075269 | J14: Consolidated | K14: NA | L14: NA | M14: No | N14: NA | O14: 2007-01-01 | P14: 31 | Q14: 30.41666667 | R14: 0.08921933086 | S14: 0.005886330855 | U14: 12 | V14: =Table59[[#This Row],[StdBirths]]/SUM(I14:I25) -> 0.08921933086
A15: Åland Islands | B15: 2007 | C15: 2 | D15: Total | E15: February | F15: 21 | G15: 0.07671232877 | H15: 21.93972603 | I15: 22.8125 | J15: Consolidated | K15: NA | L15: NA | M15: No | N15: NA | O15: 2007-02-01 | P15: 28 | Q15: 30.41666667 | R15: 0.07978267086 | T15: 0.003550329139 | U15: 12 | V15: =Table59[[#This Row],[StdBirths]]/SUM(I15:I26) -> 0.07815012098
A16: Åland Islands | B16: 2007 | C16: 3 | D16: Total | E16: March | F16: 35 | G16: 0.08493150685 | H16: 24.29041096 | I16: 34.34139785 | J16: Consolidated | K16: NA | L16: NA | M16: No | N16: NA | O16: 2007-03-01 | P16: 31 | Q16: 30.41666667 | R16: 0.1201029454 | S16: 0.03676994538 | U16: 12 | V16: =Table59[[#This Row],[StdBirths]]/SUM(I16:I27) -> 0.1162591039
A17: Åland Islands | B17: 2007 | C17: 4 | D17: Total | E17: April | F17: 28 | G17: 0.08219178082 | H17: 23.50684932 | I17: 28.38888889 | J17: Consolidated | K17: NA | L17: NA | M17: No | N17: NA | O17: 2007-04-01 | P17: 30 | Q17: 30.41666667 | R17: 0.09928510152 | S17: 0.01595210152 | U17: 12 | V17: =Table59[[#This Row],[StdBirths]]/SUM(I17:I28) -> 0.1000756195
A18: Åland Islands | B18: 2007 | C18: 5 | D18: Total | E18: May | F18: 20 | G18: 0.08493150685 | H18: 24.29041096 | I18: 19.62365591 | J18: Consolidated | K18: NA | L18: NA | M18: No | N18: NA | O18: 2007-05-01 | P18: 31 | Q18: 30.41666667 | R18: 0.0686302545 | T18: 0.0147027455 | U18: 12 | V18: =Table59[[#This Row],[StdBirths]]/SUM(I18:I29) -> 0.06940641277
A19: Åland Islands | B19: 2007 | C19: 6 | D19: Total | E19: June | F19: 20 | G19: 0.08219178082 | H19: 23.50684932 | I19: 20.27777778 | J19: Consolidated | K19: NA | L19: NA | M19: No | N19: NA | O19: 2007-06-01 | P19: 30 | Q19: 30.41666667 | R19: 0.07091792965 | T19: 0.01241507035 | U19: 12 | V19: =Table59[[#This Row],[StdBirths]]/SUM(I19:I30) -> 0.07121081597
A20: Åland Islands | B20: 2007 | C20: 7 | D20: Total | E20: July | F20: 24 | G20: 0.08493150685 | H20: 24.29041096 | I20: 23.5483871 | J20: Consolidated | K20: NA | L20: NA | M20: No | N20: NA | O20: 2007-07-01 | P20: 31 | Q20: 30.41666667 | R20: 0.0823563054 | T20: 0.0009766945954 | U20: 12 | V20: =Table59[[#This Row],[StdBirths]]/SUM(I20:I31) -> 0.08038476936
A21: Åland Islands | B21: 2007 | C21: 8 | D21: Total | E21: August | F21: 18 | G21: 0.08493150685 | H21: 24.29041096 | I21: 17.66129032 | J21: Consolidated | K21: NA | L21: NA | M21: No | N21: NA | O21: 2007-08-01 | P21: 31 | Q21: 30.41666667 | R21: 0.06176722905 | T21: 0.02156577095 | U21: 12 | V21: =Table59[[#This Row],[StdBirths]]/SUM(I21:I32) -> 0.05928004905
A22: Åland Islands | B22: 2007 | C22: 9 | D22: Total | E22: September | F22: 31 | G22: 0.08219178082 | H22: 23.50684932 | I22: 31.43055556 | J22: Consolidated | K22: NA | L22: NA | M22: No | N22: NA | O22: 2007-09-01 | P22: 30 | Q22: 30.41666667 | R22: 0.109922791 | S22: 0.02658979096 | U22: 12 | V22: =Table59[[#This Row],[StdBirths]]/SUM(I22:I33) -> 0.1037663109
A23: Åland Islands | B23: 2007 | C23: 10 | D23: Total | E23: October | F23: 23 | G23: 0.08493150685 | H23: 24.29041096 | I23: 22.5672043 | J23: Consolidated | K23: NA | L23: NA | M23: No | N23: NA | O23: 2007-10-01 | P23: 31 | Q23: 30.41666667 | R23: 0.07892479268 | T23: 0.004408207321 | U23: 12 | V23: =Table59[[#This Row],[StdBirths]]/SUM(I23:I34) -> 0.07788053534
A24: Åland Islands | B24: 2007 | C24: 11 | D24: Total | E24: November | F24: 16 | G24: 0.08219178082 | H24: 23.50684932 | I24: 16.22222222 | J24: Consolidated | K24: NA | L24: NA | M24: No | N24: NA | O24: 2007-11-01 | P24: 30 | Q24: 30.41666667 | R24: 0.05673434372 | T24: 0.02659865628 | U24: 12 | V24: =Table59[[#This Row],[StdBirths]]/SUM(I24:I35) -> 0.05597174641
A25: Åland Islands | B25: 2007 | C25: 12 | D25: Total | E25: December | F25: 24 | G25: 0.08493150685 | H25: 24.29041096 | I25: 23.5483871 | J25: Consolidated | K25: NA | L25: NA | M25: No | N25: NA | O25: 2007-12-01 | P25: 31 | Q25: 30.41666667 | R25: 0.0823563054 | T25: 0.0009766945954 | U25: 12 | V25: =Table59[[#This Row],[StdBirths]]/SUM(I25:I36) -> 0.07821915033
A26: Åland Islands | B26: 2008 | C26: 1 | D26: Total | E26: January | F26: 32 | G26: 0.08469945355 | H26: 24.90163934 | I26: 31.48387097 | J26: Consolidated | K26: NA | L26: NA | M26: No | N26: NA | O26: 2008-01-01 | P26: 31 | Q26: 30.5 | R26: 0.1070028442 | S26: 0.02366984418 | U26: 12 | V26: =Table59[[#This Row],[StdBirths]]/SUM(I26:I37) -> 0.1070028442
A27: Åland Islands | B27: 2008 | C27: 2 | D27: Total | E27: February | F27: 25 | G27: 0.07923497268 | H27: 23.29508197 | I27: 26.29310345 | J27: Consolidated | K27: NA | L27: NA | M27: No | N27: NA | O27: 2008-02-01 | P27: 29 | Q27: 30.5 | R27: 0.08936121147 | S27: 0.006028211469 | U27: 12 | V27: =Table59[[#This Row],[StdBirths]]/SUM(I27:I38) -> 0.09026672361
A28: Åland Islands | B28: 2008 | C28: 3 | D28: Total | E28: March | F28: 23 | G28: 0.08469945355 | H28: 24.90163934 | I28: 22.62903226 | J28: Consolidated | K28: NA | L28: NA | M28: No | N28: NA | O28: 2008-03-01 | P28: 31 | Q28: 30.5 | R28: 0.07690829426 | T28: 0.006424705742 | U28: 12 | V28: =Table59[[#This Row],[StdBirths]]/SUM(I28:I39) -> 0.07713063254
A29: Åland Islands | B29: 2008 | C29: 4 | D29: Total | E29: April | F29: 27 | G29: 0.08196721311 | H29: 24.09836066 | I29: 27.45 | J29: Consolidated | K29: NA | L29: NA | M29: No | N29: NA | O29: 2008-04-01 | P29: 30 | Q29: 30.5 | R29: 0.09329310477 | S29: 0.009960104774 | U29: 12 | V29: =Table59[[#This Row],[StdBirths]]/SUM(I29:I40) -> 0.09293946472
A30: Åland Islands | B30: 2008 | C30: 5 | D30: Total | E30: May | F30: 22 | G30: 0.08469945355 | H30: 24.90163934 | I30: 21.64516129 | J30: Consolidated | K30: NA | L30: NA | M30: No | N30: NA | O30: 2008-05-01 | P30: 31 | Q30: 30.5 | R30: 0.07356445538 | T30: 0.009768544623 | U30: 12 | V30: =Table59[[#This Row],[StdBirths]]/SUM(I30:I41) -> 0.07353873463
A31: Åland Islands | B31: 2008 | C31: 6 | D31: Total | E31: June | F31: 28 | G31: 0.08196721311 | H31: 24.09836066 | I31: 28.46666667 | J31: Consolidated | K31: NA | L31: NA | M31: No | N31: NA | O31: 2008-06-01 | P31: 30 | Q31: 30.5 | R31: 0.09674840495 | S31: 0.01341540495 | U31: 12 | V31: =Table59[[#This Row],[StdBirths]]/SUM(I31:I42) -> 0.09639237041
A32: Åland Islands | B32: 2008 | C32: 7 | D32: Total | E32: July | F32: 29 | G32: 0.08469945355 | H32: 24.90163934 | I32: 28.53225806 | J32: Consolidated | K32: NA | L32: NA | M32: No | N32: NA | O32: 2008-07-01 | P32: 31 | Q32: 30.5 | R32: 0.09697132754 | S32: 0.01363832754 | U32: 12 | V32: =Table59[[#This Row],[StdBirths]]/SUM(I32:I43) -> 0.09497959614
A33: Åland Islands | B33: 2008 | C33: 8 | D33: Total | E33: August | F33: 23 | G33: 0.08469945355 | H33: 24.90163934 | I33: 22.62903226 | J33: Consolidated | K33: NA | L33: NA | M33: No | N33: NA | O33: 2008-08-01 | P33: 31 | Q33: 30.5 | R33: 0.07690829426 | T33: 0.006424705742 | U33: 12 | V33: =Table59[[#This Row],[StdBirths]]/SUM(I33:I44) -> 0.07607612936
A34: Åland Islands | B34: 2008 | C34: 9 | D34: Total | E34: September | F34: 18 | G34: 0.08196721311 | H34: 24.09836066 | I34: 18.3 | J34: Consolidated | K34: NA | L34: NA | M34: No | N34: NA | O34: 2008-09-01 | P34: 30 | Q34: 30.5 | R34: 0.06219540318 | T34: 0.02113759682 | U34: 12 | V34: =Table59[[#This Row],[StdBirths]]/SUM(I34:I45) -> 0.06071908325
A35: Åland Islands | B35: 2008 | C35: 10 | D35: Total | E35: October | F35: 23 | G35: 0.08469945355 | H35: 24.90163934 | I35: 22.62903226 | J35: Consolidated | K35: NA | L35: NA | M35: No | N35: NA | O35: 2008-10-01 | P35: 31 | Q35: 30.5 | R35: 0.07690829426 | T35: 0.006424705742 | U35: 12 | V35: =Table59[[#This Row],[StdBirths]]/SUM(I35:I46) -> 0.07508273735
A36: Åland Islands | B36: 2008 | C36: 11 | D36: Total | E36: November | F36: 27 | G36: 0.08196721311 | H36: 24.09836066 | I36: 27.45 | J36: Consolidated | K36: NA | L36: NA | M36: No | N36: NA | O36: 2008-11-01 | P36: 30 | Q36: 30.5 | R36: 0.09329310477 | S36: 0.009960104774 | U36: 12 | V36: =Table59[[#This Row],[StdBirths]]/SUM(I36:I47) -> 0.09167717909
A37: Åland Islands | B37: 2008 | C37: 12 | D37: Total | E37: December | F37: 17 | G37: 0.08469945355 | H37: 24.90163934 | I37: 16.72580645 | J37: Consolidated | K37: NA | L37: NA | M37: No | N37: NA | O37: 2008-12-01 | P37: 31 | Q37: 30.5 | R37: 0.05684526097 | T37: 0.02648773903 | U37: 12 | V37: =Table59[[#This Row],[StdBirths]]/SUM(I37:I48) -> 0.05662978137
A38: Åland Islands | B38: 2012 | C38: 1 | D38: Total | E38: January | F38: 29 | G38: 0.08469945355 | H38: 24.73224044 | I38: 28.53225806 | J38: Consolidated | K38: NA | L38: NA | M38: No | N38: NA | O38: 2012-01-01 | P38: 31 | Q38: 30.5 | R38: 0.09757889851 | S38: 0.01424589851 | U38: 12 | V38: =Table59[[#This Row],[StdBirths]]/SUM(I38:I49) -> 0.09757889851
A39: Åland Islands | B39: 2012 | C39: 2 | D39: Total | E39: February | F39: 27 | G39: 0.07923497268 | H39: 23.13661202 | I39: 28.39655172 | J39: Consolidated | K39: NA | L39: NA | M39: No | N39: NA | O39: 2012-02-01 | P39: 29 | Q39: 30.5 | R39: 0.0971147896 | S39: 0.0137817896 | U39: 12 | V39: =Table59[[#This Row],[StdBirths]]/SUM(I39:I50) -> 0.005281297782
A40: Åland Islands | B40: 2012 | C40: 3 | D40: Total | E40: March | F40: 25 | G40: 0.08469945355 | H40: 24.73224044 | I40: 24.59677419 | J40: Consolidated | K40: NA | L40: NA | M40: No | N40: NA | O40: 2012-03-01 | P40: 31 | Q40: 30.5 | R40: 0.0841197401 | S40: 0.000786740099 | U40: 12 | V40: =Table59[[#This Row],[StdBirths]]/SUM(I40:I51) -> 0.002144283892
A41: Åland Islands | B41: 2012 | C41: 4 | D41: Total | E41: April | F41: 26 | G41: 0.08196721311 | H41: 23.93442623 | I41: 26.43333333 | J41: Consolidated | K41: NA | L41: NA | M41: No | N41: NA | O41: 2012-04-01 | P41: 30 | Q41: 30.5 | R41: 0.09040068069 | S41: 0.007067680693 | U41: 12 | V41: =Table59[[#This Row],[StdBirths]]/SUM(I41:I52) -> 0.001430955122
A42: Åland Islands | B42: 2012 | C42: 5 | D42: Total | E42: May | F42: 23 | G42: 0.08469945355 | H42: 24.73224044 | I42: 22.62903226 | J42: Consolidated | K42: NA | L42: NA | M42: No | N42: NA | O42: 2012-05-01 | P42: 31 | Q42: 30.5 | R42: 0.07739016089 | T42: 0.005942839109 | U42: 12 | V42: =Table59[[#This Row],[StdBirths]]/SUM(I42:I53) -> 0.0008806305692
A43: Åland Islands | B43: 2012 | C43: 6 | D43: Total | E43: June | F43: 33 | G43: 0.08196721311 | H43: 23.93442623 | I43: 33.55 | J43: Consolidated | K43: NA | L43: NA | M43: No | N43: NA | O43: 2012-06-01 | P43: 30 | Q43: 30.5 | R43: 0.1147393255 | S43: 0.0314063255 | U43: 12 | V43: =Table59[[#This Row],[StdBirths]]/SUM(I43:I54) -> 0.001024302923
A44: Åland Islands | B44: 2012 | C44: 7 | D44: Total | E44: July | F44: 26 | G44: 0.08469945355 | H44: 24.73224044 | I44: 25.58064516 | J44: Consolidated | K44: NA | L44: NA | M44: No | N44: NA | O44: 2012-07-01 | P44: 31 | Q44: 30.5 | R44: 0.0874845297 | S44: 0.004151529703 | U44: 12 | V44: =Table59[[#This Row],[StdBirths]]/SUM(I44:I55) -> 0.00064237937
A45: Åland Islands | B45: 2012 | C45: 8 | D45: Total | E45: August | F45: 27 | G45: 0.08469945355 | H45: 24.73224044 | I45: 26.56451613 | J45: Consolidated | K45: NA | L45: NA | M45: No | N45: NA | O45: 2012-08-01 | P45: 31 | Q45: 30.5 | R45: 0.09084931931 | S45: 0.007516319307 | U45: 12 | V45: =Table59[[#This Row],[StdBirths]]/SUM(I45:I56) -> 0.0005704065588
A46: Åland Islands | B46: 2012 | C46: 9 | D46: Total | E46: September | F46: 18 | G46: 0.08196721311 | H46: 23.93442623 | I46: 18.3 | J46: Consolidated | K46: NA | L46: NA | M46: No | N46: NA | O46: 2012-09-01 | P46: 30 | Q46: 30.5 | R46: 0.06258508663 | T46: 0.02074791337 | U46: 12 | V46: =Table59[[#This Row],[StdBirths]]/SUM(I46:I57) -> 0.0003480872927
A47: Åland Islands | B47: 2012 | C47: 10 | D47: Total | E47: October | F47: 21 | G47: 0.08469945355 | H47: 24.73224044 | I47: 20.66129032 | J47: Consolidated | K47: NA | L47: NA | M47: No | N47: NA | O47: 2012-10-01 | P47: 31 | Q47: 30.5 | R47: 0.07066058168 | T47: 0.01267241832 | U47: 12 | V47: =Table59[[#This Row],[StdBirths]]/SUM(I47:I58) -> 0.0003542825578
A48: Åland Islands | B48: 2012 | C48: 11 | D48: Total | E48: November | F48: 23 | G48: 0.08196721311 | H48: 23.93442623 | I48: 23.38333333 | J48: Consolidated | K48: NA | L48: NA | M48: No | N48: NA | O48: 2012-11-01 | P48: 30 | Q48: 30.5 | R48: 0.07996983292 | T48: 0.003363167079 | U48: 12 | V48: =Table59[[#This Row],[StdBirths]]/SUM(I48:I59) -> 0.0003675301659
A49: Åland Islands | B49: 2012 | C49: 12 | D49: Total | E49: December | F49: 14 | G49: 0.08469945355 | H49: 24.73224044 | I49: 13.77419355 | J49: Consolidated | K49: NA | L49: NA | M49: No | N49: NA | O49: 2012-12-01 | P49: 31 | Q49: 30.5 | R49: 0.04710705446 | T49: 0.03622594554 | U49: 12 | V49: =Table59[[#This Row],[StdBirths]]/SUM(I49:I60) -> 0.0002032441369
A50: Albania | B50: 1981 | C50: 1 | D50: Total | E50: January | F50: 5211 | G50: 0.08493150685 | H50: 6130.356164 | I50: 5112.943548 | J50: Consolidated | K50: NA | L50: NA | M50: No | N50: NA | O50: 1981-01-01 | P50: 31 | Q50: 30.41666667 | R50: 0.07081860656 | T50: 0.01251439344 | U50: 12 | V50: =Table59[[#This Row],[StdBirths]]/SUM(I50:I61) -> 0.07081860656
A51: Albania | B51: 1981 | C51: 2 | D51: Total | E51: February | F51: 5636 | G51: 0.07671232877 | H51: 5537.09589 | I51: 6122.440476 | J51: Consolidated | K51: NA | L51: NA | M51: No | N51: NA | O51: 1981-02-01 | P51: 28 | Q51: 30.41666667 | R51: 0.08480099558 | S51: 0.00146799558 | U51: 12 | V51: =Table59[[#This Row],[StdBirths]]/SUM(I51:I62) -> 0.08473765742
A52: Albania | B52: 1981 | C52: 3 | D52: Total | E52: March | F52: 7161 | G52: 0.08493150685 | H52: 6130.356164 | I52: 7026.25 | J52: Consolidated | K52: NA | L52: NA | M52: No | N52: NA | O52: 1981-03-01 | P52: 31 | Q52: 30.41666667 | R52: 0.09731952438 | S52: 0.01398652438 | U52: 12 | V52: =Table59[[#This Row],[StdBirths]]/SUM(I52:I63) -> 0.09663082714
A53: Albania | B53: 1981 | C53: 4 | D53: Total | E53: April | F53: 7151 | G53: 0.08219178082 | H53: 5932.60274 | I53: 7250.319444 | J53: Consolidated | K53: NA | L53: NA | M53: No | N53: NA | O53: 1981-04-01 | P53: 30 | Q53: 30.41666667 | R53: 0.1004230763 | S53: 0.01709007631 | U53: 12 | V53: =Table59[[#This Row],[StdBirths]]/SUM(I53:I64) -> 0.09911723235
A54: Albania | B54: 1981 | C54: 5 | D54: Total | E54: May | F54: 7216 | G54: 0.08493150685 | H54: 6130.356164 | I54: 7080.215054 | J54: Consolidated | K54: NA | L54: NA | M54: No | N54: NA | O54: 1981-05-01 | P54: 31 | Q54: 30.41666667 | R54: 0.09806698617 | S54: 0.01473398617 | U54: 12 | V54: =Table59[[#This Row],[StdBirths]]/SUM(I54:I65) -> 0.09573158767
A55: Albania | B55: 1981 | C55: 6 | D55: Total | E55: June | F55: 7004 | G55: 0.08219178082 | H55: 5932.60274 | I55: 7101.277778 | J55: Consolidated | K55: NA | L55: NA | M55: No | N55: NA | O55: 1981-06-01 | P55: 30 | Q55: 30.41666667 | R55: 0.09835872277 | S55: 0.01502572277 | U55: 12 | V55: =Table59[[#This Row],[StdBirths]]/SUM(I55:I66) -> 0.09501551576
A56: Albania | B56: 1981 | C56: 7 | D56: Total | E56: July | F56: 6905 | G56: 0.08493150685 | H56: 6130.356164 | I56: 6775.067204 | J56: Consolidated | K56: NA | L56: NA | M56: No | N56: NA | O56: 1981-07-01 | P56: 31 | Q56: 30.41666667 | R56: 0.09384042953 | S56: 0.01050742953 | U56: 12 | V56: =Table59[[#This Row],[StdBirths]]/SUM(I56:I67) -> 0.09044222101
A57: Albania | B57: 1981 | C57: 8 | D57: Total | E57: August | F57: 6144 | G57: 0.08493150685 | H57: 6130.356164 | I57: 6028.387097 | J57: Consolidated | K57: NA | L57: NA | M57: No | N57: NA | O57: 1981-08-01 | P57: 31 | Q57: 30.41666667 | R57: 0.08349827647 | S57: 0.0001652764696 | U57: 12 | V57: =Table59[[#This Row],[StdBirths]]/SUM(I57:I68) -> 0.08012824096
A58: Albania | B58: 1981 | C58: 9 | D58: Total | E58: September | F58: 5685 | G58: 0.08219178082 | H58: 5932.60274 | I58: 5763.958333 | J58: Consolidated | K58: NA | L58: NA | M58: No | N58: NA | O58: 1981-09-01 | P58: 30 | Q58: 30.41666667 | R58: 0.07983571372 | T58: 0.003497286276 | U58: 12 | V58: =Table59[[#This Row],[StdBirths]]/SUM(I58:I69) -> 0.07620898588
A59: Albania | B59: 1981 | C59: 10 | D59: Total | E59: October | F59: 5427 | G59: 0.08493150685 | H59: 6130.356164 | I59: 5324.879032 | J59: Consolidated | K59: NA | L59: NA | M59: No | N59: NA | O59: 1981-10-01 | P59: 31 | Q59: 30.41666667 | R59: 0.07375409284 | T59: 0.009578907161 | U59: 12 | V59: =Table59[[#This Row],[StdBirths]]/SUM(I59:I70) -> 0.07028304022
A60: Albania | B60: 1981 | C60: 11 | D60: Total | E60: November | F60: 4115 | G60: 0.08219178082 | H60: 5932.60274 | I60: 4172.152778 | J60: Consolidated | K60: NA | L60: NA | M60: No | N60: NA | O60: 1981-11-01 | P60: 30 | Q60: 30.41666667 | R60: 0.05778785611 | T60: 0.02554514389 | U60: 12 | V60: =Table59[[#This Row],[StdBirths]]/SUM(I60:I71) -> 0.05505181667
A61: Albania | B61: 1981 | C61: 12 | D61: Total | E61: December | F61: 4525 | G61: 0.08493150685 | H61: 6130.356164 | I61: 4439.852151 | J61: Consolidated | K61: NA | L61: NA | M61: No | N61: NA | O61: 1981-12-01 | P61: 31 | Q61: 30.41666667 | R61: 0.06149571957 | T61: 0.02183728043 | U61: 12 | V61: =Table59[[#This Row],[StdBirths]]/SUM(I61:I72) -> 0.05803520198
A62: Albania | B62: 1982 | C62: 1 | D62: Total | E62: January | F62: 5266 | G62: 0.08493150685 | H62: 6559.430137 | I62: 5166.908602 | J62: Consolidated | K62: NA | L62: NA | M62: No | N62: NA | O62: 1982-01-01 | P62: 31 | Q62: 30.41666667 | R62: 0.06687840251 | T62: 0.01645459749 | U62: 12 | V62: =Table59[[#This Row],[StdBirths]]/SUM(I62:I73) -> 0.06687840251
A63: Albania | B63: 1982 | C63: 2 | D63: Total | E63: February | F63: 6060 | G63: 0.07671232877 | H63: 5924.646575 | I63: 6583.035714 | J63: Consolidated | K63: NA | L63: NA | M63: No | N63: NA | O63: 1982-02-01 | P63: 28 | Q63: 30.41666667 | R63: 0.08520818659 | S63: 0.00187518659 | U63: 12 | V63: =Table59[[#This Row],[StdBirths]]/SUM(I63:I74) -> 0.08536755977
A64: Albania | B64: 1982 | C64: 3 | D64: Total | E64: March | F64: 7606 | G64: 0.08493150685 | H64: 6559.430137 | I64: 7462.876344 | J64: Consolidated | K64: NA | L64: NA | M64: No | N64: NA | O64: 1982-03-01 | P64: 31 | Q64: 30.41666667 | R64: 0.0965964925 | S64: 0.0132634925 | U64: 12 | V64: =Table59[[#This Row],[StdBirths]]/SUM(I64:I75) -> 0.09706979586
A65: Albania | B65: 1982 | C65: 4 | D65: Total | E65: April | F65: 7950 | G65: 0.08219178082 | H65: 6347.835616 | I65: 8060.416667 | J65: Consolidated | K65: NA | L65: NA | M65: No | N65: NA | O65: 1982-04-01 | P65: 30 | Q65: 30.41666667 | R65: 0.1043308159 | S65: 0.02099781592 | U65: 12 | V65: =Table59[[#This Row],[StdBirths]]/SUM(I65:I76) -> 0.1056469477
A66: Albania | B66: 1982 | C66: 5 | D66: Total | E66: May | F66: 8010 | G66: 0.08493150685 | H66: 6559.430137 | I66: 7859.274194 | J66: Consolidated | K66: NA | L66: NA | M66: No | N66: NA | O66: 1982-05-01 | P66: 31 | Q66: 30.41666667 | R66: 0.101727308 | S66: 0.01839430804 | U66: 12 | V66: =Table59[[#This Row],[StdBirths]]/SUM(I66:I77) -> 0.1042771549
A67: Albania | B67: 1982 | C67: 6 | D67: Total | E67: June | F67: 7174 | G67: 0.08219178082 | H67: 6347.835616 | I67: 7273.638889 | J67: Consolidated | K67: NA | L67: NA | M67: No | N67: NA | O67: 1982-06-01 | P67: 30 | Q67: 30.41666667 | R67: 0.09414707842 | S67: 0.01081407842 | U67: 12 | V67: =Table59[[#This Row],[StdBirths]]/SUM(I67:I78) -> 0.09725519056
A68: Albania | B68: 1982 | C68: 7 | D68: Total | E68: July | F68: 7235 | G68: 0.08493150685 | H68: 6559.430137 | I68: 7098.857527 | J68: Consolidated | K68: NA | L68: NA | M68: No | N68: NA | O68: 1982-07-01 | P68: 31 | Q68: 30.41666667 | R68: 0.09188477824 | S68: 0.008551778236 | U68: 12 | V68: =Table59[[#This Row],[StdBirths]]/SUM(I68:I79) -> 0.0954734578
A69: Albania | B69: 1982 | C69: 8 | D69: Total | E69: August | F69: 6551 | G69: 0.08493150685 | H69: 6559.430137 | I69: 6427.728495 | J69: Consolidated | K69: NA | L69: NA | M69: No | N69: NA | O69: 1982-08-01 | P69: 31 | Q69: 30.41666667 | R69: 0.08319795193 | T69: 0.0001350480687 | U69: 12 | V69: =Table59[[#This Row],[StdBirths]]/SUM(I69:I80) -> 0.08695453209
A70: Albania | B70: 1982 | C70: 9 | D70: Total | E70: September | F70: 5813 | G70: 0.08219178082 | H70: 6347.835616 | I70: 5893.736111 | J70: Consolidated | K70: NA | L70: NA | M70: No | N70: NA | O70: 1982-09-01 | P70: 30 | Q70: 30.41666667 | R70: 0.07628616767 | T70: 0.007046832332 | U70: 12 | V70: =Table59[[#This Row],[StdBirths]]/SUM(I70:I81) -> 0.07955748008
A71: Albania | B71: 1982 | C71: 10 | D71: Total | E71: October | F71: 5450 | G71: 0.08493150685 | H71: 6559.430137 | I71: 5347.446237 | J71: Consolidated | K71: NA | L71: NA | M71: No | N71: NA | O71: 1982-10-01 | P71: 31 | Q71: 30.41666667 | R71: 0.06921520959 | T71: 0.01411779041 | U71: 12 | V71: =Table59[[#This Row],[StdBirths]]/SUM(I71:I82) -> 0.07219713774
A72: Albania | B72: 1982 | C72: 11 | D72: Total | E72: November | F72: 4822 | G72: 0.08219178082 | H72: 6347.835616 | I72: 4888.972222 | J72: Consolidated | K72: NA | L72: NA | M72: No | N72: NA | O72: 1982-11-01 | P72: 30 | Q72: 30.41666667 | R72: 0.06328090495 | T72: 0.02005209505 | U72: 12 | V72: =Table59[[#This Row],[StdBirths]]/SUM(I72:I83) -> 0.06580232312
A73: Albania | B73: 1982 | C73: 12 | D73: Total | E73: December | F73: 5295 | G73: 0.08493150685 | H73: 6559.430137 | I73: 5195.362903 | J73: Consolidated | K73: NA | L73: NA | M73: No | N73: NA | O73: 1982-12-01 | P73: 31 | Q73: 30.41666667 | R73: 0.06724670363 | T73: 0.01608629637 | U73: 12 | V73: =Table59[[#This Row],[StdBirths]]/SUM(I73:I84) -> 0.07015206459
A74: Albania | B74: 1983 | C74: 1 | D74: Total | E74: January | F74: 5119 | G74: 0.08493150685 | H74: 6264.717808 | I74: 5022.674731 | J74: Consolidated | K74: NA | L74: NA | M74: No | N74: NA | O74: 1983-01-01 | P74: 31 | Q74: 30.41666667 | R74: 0.06807733936 | T74: 0.01525566064 | U74: 12 | V74: =Table59[[#This Row],[StdBirths]]/SUM(I74:I85) -> 0.06807733936
A75: Albania | B75: 1983 | C75: 2 | D75: Total | E75: February | F75: 5846 | G75: 0.07671232877 | H75: 5658.454795 | I75: 6350.565476 | J75: Consolidated | K75: NA | L75: NA | M75: No | N75: NA | O75: 1983-02-01 | P75: 28 | Q75: 30.41666667 | R75: 0.08607557212 | S75: 0.002742572123 | U75: 12 | V75: =Table59[[#This Row],[StdBirths]]/SUM(I75:I86) -> 0.08564273971
A76: Albania | B76: 1983 | C76: 3 | D76: Total | E76: March | F76: 7009 | G76: 0.08493150685 | H76: 6264.717808 | I76: 6877.110215 | J76: Consolidated | K76: NA | L76: NA | M76: No | N76: NA | O76: 1983-03-01 | P76: 31 | Q76: 30.41666667 | R76: 0.09321236015 | S76: 0.009879360148 | U76: 12 | V76: =Table59[[#This Row],[StdBirths]]/SUM(I76:I87) -> 0.09200147293
A77: Albania | B77: 1983 | C77: 4 | D77: Total | E77: April | F77: 7036 | G77: 0.08219178082 | H77: 6062.630137 | I77: 7133.722222 | J77: Consolidated | K77: NA | L77: NA | M77: No | N77: NA | O77: 1983-04-01 | P77: 30 | Q77: 30.41666667 | R77: 0.0966904796 | S77: 0.0133574796 | U77: 12 | V77: =Table59[[#This Row],[StdBirths]]/SUM(I77:I88) -> 0.09510375399
A78: Albania | B78: 1983 | C78: 5 | D78: Total | E78: May | F78: 7419 | G78: 0.08493150685 | H78: 6264.717808 | I78: 7279.395161 | J78: Consolidated | K78: NA | L78: NA | M78: No | N78: NA | O78: 1983-05-01 | P78: 31 | Q78: 30.41666667 | R78: 0.09866493079 | S78: 0.01533193079 | U78: 12 | V78: =Table59[[#This Row],[StdBirths]]/SUM(I78:I89) -> 0.0965352283
A79: Albania | B79: 1983 | C79: 6 | D79: Total | E79: June | F79: 6745 | G79: 0.08219178082 | H79: 6062.630137 | I79: 6838.680556 | J79: Consolidated | K79: NA | L79: NA | M79: No | N79: NA | O79: 1983-06-01 | P79: 30 | Q79: 30.41666667 | R79: 0.0926914845 | S79: 0.009358484497 | U79: 12 | V79: =Table59[[#This Row],[StdBirths]]/SUM(I79:I90) -> 0.08968638327
A80: Albania | B80: 1983 | C80: 7 | D80: Total | E80: July | F80: 6793 | G80: 0.08493150685 | H80: 6264.717808 | I80: 6665.174731 | J80: Consolidated | K80: NA | L80: NA | M80: No | N80: NA | O80: 1983-07-01 | P80: 31 | Q80: 30.41666667 | R80: 0.09033978634 | S80: 0.007006786344 | U80: 12 | V80: =Table59[[#This Row],[StdBirths]]/SUM(I80:I91) -> 0.08647650028
A81: Albania | B81: 1983 | C81: 8 | D81: Total | E81: August | F81: 6715 | G81: 0.08493150685 | H81: 6264.717808 | I81: 6588.642473 | J81: Consolidated | K81: NA | L81: NA | M81: No | N81: NA | O81: 1983-08-01 | P81: 31 | Q81: 30.41666667 | R81: 0.08930246803 | S81: 0.005969468026 | U81: 12 | V81: =Table59[[#This Row],[StdBirths]]/SUM(I81:I92) -> 0.08481063001
A82: Albania | B82: 1983 | C82: 9 | D82: Total | E82: September | F82: 5799 | G82: 0.08219178082 | H82: 6062.630137 | I82: 5879.541667 | J82: Consolidated | K82: NA | L82: NA | M82: No | N82: NA | O82: 1983-09-01 | P82: 30 | Q82: 30.41666667 | R82: 0.07969131484 | T82: 0.00364168516 | U82: 12 | V82: =Table59[[#This Row],[StdBirths]]/SUM(I82:I93) -> 0.07522528289
A83: Albania | B83: 1983 | C83: 10 | D83: Total | E83: October | F83: 5685 | G83: 0.08493150685 | H83: 6264.717808 | I83: 5578.024194 | J83: Consolidated | K83: NA | L83: NA | M83: No | N83: NA | O83: 1983-10-01 | P83: 31 | Q83: 30.41666667 | R83: 0.07560454665 | T83: 0.007728453354 | U83: 12 | V83: =Table59[[#This Row],[StdBirths]]/SUM(I83:I94) -> 0.07130647136
A84: Albania | B84: 1983 | C84: 11 | D84: Total | E84: November | F84: 4586 | G84: 0.08219178082 | H84: 6062.630137 | I84: 4649.694444 | J84: Consolidated | K84: NA | L84: NA | M84: No | N84: NA | O84: 1983-11-01 | P84: 30 | Q84: 30.41666667 | R84: 0.06302196411 | T84: 0.02031103589 | U84: 12 | V84: =Table59[[#This Row],[StdBirths]]/SUM(I84:I95) -> 0.05899509148
A85: Albania | B85: 1983 | C85: 12 | D85: Total | E85: December | F85: 5010 | G85: 0.08493150685 | H85: 6264.717808 | I85: 4915.725806 | J85: Consolidated | K85: NA | L85: NA | M85: No | N85: NA | O85: 1983-12-01 | P85: 31 | Q85: 30.41666667 | R85: 0.06662775351 | T85: 0.01670524649 | U85: 12 | V85: =Table59[[#This Row],[StdBirths]]/SUM(I85:I96) -> 0.06227125705
A86: Albania | B86: 1984 | C86: 1 | D86: Total | E86: January | F86: 5484 | G86: 0.08469945355 | H86: 6706.248634 | I86: 5395.548387 | J86: Consolidated | K86: NA | L86: NA | M86: No | N86: NA | O86: 1984-01-01 | P86: 31 | Q86: 30.5 | R86: 0.06813918727 | T86: 0.01519381273 | U86: 12 | V86: =Table59[[#This Row],[StdBirths]]/SUM(I86:I97) -> 0.06813918727
A87: Albania | B87: 1984 | C87: 2 | D87: Total | E87: February | F87: 6607 | G87: 0.07923497268 | H87: 6273.587432 | I87: 6948.741379 | J87: Consolidated | K87: NA | L87: NA | M87: No | N87: NA | O87: 1984-02-01 | P87: 29 | Q87: 30.5 | R87: 0.08775411806 | S87: 0.00442111806 | U87: 12 | V87: =Table59[[#This Row],[StdBirths]]/SUM(I87:I98) -> 0.08793174559
A88: Albania | B88: 1984 | C88: 3 | D88: Total | E88: March | F88: 7254 | G88: 0.08469945355 | H88: 6706.248634 | I88: 7137 | J88: Consolidated | K88: NA | L88: NA | M88: No | N88: NA | O88: 1984-03-01 | P88: 31 | Q88: 30.5 | R88: 0.09013159454 | S88: 0.006798594545 | U88: 12 | V88: =Table59[[#This Row],[StdBirths]]/SUM(I88:I99) -> 0.09156984358
A89: Albania | B89: 1984 | C89: 4 | D89: Total | E89: April | F89: 7407 | G89: 0.08196721311 | H89: 6489.918033 | I89: 7530.45 | J89: Consolidated | K89: NA | L89: NA | M89: No | N89: NA | O89: 1984-04-01 | P89: 30 | Q89: 30.5 | R89: 0.09510038758 | S89: 0.01176738758 | U89: 12 | V89: =Table59[[#This Row],[StdBirths]]/SUM(I89:I100) -> 0.09660074612
A90: Albania | B90: 1984 | C90: 5 | D90: Total | E90: May | F90: 8257 | G90: 0.08469945355 | H90: 6706.248634 | I90: 8123.822581 | J90: Consolidated | K90: NA | L90: NA | M90: No | N90: NA | O90: 1984-05-01 | P90: 31 | Q90: 30.5 | R90: 0.1025939587 | S90: 0.01926095866 | U90: 12 | V90: =Table59[[#This Row],[StdBirths]]/SUM(I90:I101) -> 0.1035757448
A91: Albania | B91: 1984 | C91: 6 | D91: Total | E91: June | F91: 7537 | G91: 0.08196721311 | H91: 6489.918033 | I91: 7662.616667 | J91: Consolidated | K91: NA | L91: NA | M91: No | N91: NA | O91: 1984-06-01 | P91: 30 | Q91: 30.5 | R91: 0.09676949118 | S91: 0.01343649118 | U91: 12 | V91: =Table59[[#This Row],[StdBirths]]/SUM(I91:I102) -> 0.09754498591
A92: Albania | B92: 1984 | C92: 7 | D92: Total | E92: July | F92: 7396 | G92: 0.08469945355 | H92: 6706.248634 | I92: 7276.709677 | J92: Consolidated | K92: NA | L92: NA | M92: No | N92: NA | O92: 1984-07-01 | P92: 31 | Q92: 30.5 | R92: 0.09189595716 | S92: 0.008562957162 | U92: 12 | V92: =Table59[[#This Row],[StdBirths]]/SUM(I92:I103) -> 0.09269059721
A93: Albania | B93: 1984 | C93: 8 | D93: Total | E93: August | F93: 7177 | G93: 0.08469945355 | H93: 6706.248634 | I93: 7061.241935 | J93: Consolidated | K93: NA | L93: NA | M93: No | N93: NA | O93: 1984-08-01 | P93: 31 | Q93: 30.5 | R93: 0.0891748627 | S93: 0.005841862703 | U93: 12 | V93: =Table59[[#This Row],[StdBirths]]/SUM(I93:I104) -> 0.08996650842
A94: Albania | B94: 1984 | C94: 9 | D94: Total | E94: September | F94: 5849 | G94: 0.08196721311 | H94: 6489.918033 | I94: 5946.483333 | J94: Consolidated | K94: NA | L94: NA | M94: No | N94: NA | O94: 1984-09-01 | P94: 30 | Q94: 30.5 | R94: 0.07509682286 | T94: 0.008236177138 | U94: 12 | V94: =Table59[[#This Row],[StdBirths]]/SUM(I94:I105) -> 0.0761037663
A95: Albania | B95: 1984 | C95: 10 | D95: Total | E95: October | F95: 6268 | G95: 0.08469945355 | H95: 6706.248634 | I95: 6166.903226 | J95: Consolidated | K95: NA | L95: NA | M95: No | N95: NA | O95: 1984-10-01 | P95: 31 | Q95: 30.5 | R95: 0.07788045693 | T95: 0.005452543065 | U95: 12 | V95: =Table59[[#This Row],[StdBirths]]/SUM(I95:I106) -> 0.07857909501
A96: Albania | B96: 1984 | C96: 11 | D96: Total | E96: November | F96: 4697 | G96: 0.08196721311 | H96: 6489.918033 | I96: 4775.283333 | J96: Consolidated | K96: NA | L96: NA | M96: No | N96: NA | O96: 1984-11-01 | P96: 30 | Q96: 30.5 | R96: 0.06030599709 | T96: 0.02302700291 | U96: 12 | V96: =Table59[[#This Row],[StdBirths]]/SUM(I96:I107) -> 0.0613108618
A97: Albania | B97: 1984 | C97: 12 | D97: Total | E97: December | F97: 5244 | G97: 0.08469945355 | H97: 6706.248634 | I97: 5159.419355 | J97: Consolidated | K97: NA | L97: NA | M97: No | N97: NA | O97: 1984-12-01 | P97: 31 | Q97: 30.5 | R97: 0.06515716595 | T97: 0.01817583405 | U97: 12 | V97: =Table59[[#This Row],[StdBirths]]/SUM(I97:I108) -> 0.0662091379
A98: Albania | B98: 1985 | C98: 1 | D98: Total | E98: January | F98: 5336 | G98: 0.08493150685 | H98: 6585.164384 | I98: 5235.591398 | J98: Consolidated | K98: NA | L98: NA | M98: No | N98: NA | O98: 1985-01-01 | P98: 31 | Q98: 30.41666667 | R98: 0.06755097542 | T98: 0.01578202458 | U98: 12 | V98: =Table59[[#This Row],[StdBirths]]/SUM(I98:I109) -> 0.06755097542
A99: Albania | B99: 1985 | C99: 2 | D99: Total | E99: February | F99: 5399 | G99: 0.07671232877 | H99: 5947.890411 | I99: 5864.985119 | J99: Consolidated | K99: NA | L99: NA | M99: No | N99: NA | O99: 1985-02-01 | P99: 28 | Q99: 30.41666667 | R99: 0.07567157853 | T99: 0.007661421466 | U99: 12 | V99: =Table59[[#This Row],[StdBirths]]/SUM(I99:I110) -> 0.07585018014
A100: Albania | B100: 1985 | C100: 3 | D100: Total | E100: March | F100: 7288 | G100: 0.08493150685 | H100: 6585.164384 | I100: 7150.860215 | J100: Consolidated | K100: NA | L100: NA | M100: No | N100: NA | O100: 1985-03-01 | P100: 31 | Q100: 30.41666667 | R100: 0.09226227678 | S100: 0.008929276778 | U100: 12 | V100: =Table59[[#This Row],[StdBirths]]/SUM(I100:I111) -> 0.09201337515
A101: Albania | B101: 1985 | C101: 4 | D101: Total | E101: April | F101: 7900 | G101: 0.08219178082 | H101: 6372.739726 | I101: 8009.722222 | J101: Consolidated | K101: NA | L101: NA | M101: No | N101: NA | O101: 1985-04-01 | P101: 30 | Q101: 30.41666667 | R101: 0.10334354 | S101: 0.02001053999 | U101: 12 | V101: =Table59[[#This Row],[StdBirths]]/SUM(I101:I112) -> 0.1034565957
A102: Albania | B102: 1985 | C102: 5 | D102: Total | E102: May | F102: 8403 | G102: 0.08493150685 | H102: 6585.164384 | I102: 8244.879032 | J102: Consolidated | K102: NA | L102: NA | M102: No | N102: NA | O102: 1985-05-01 | P102: 31 | Q102: 30.41666667 | R102: 0.1063775949 | S102: 0.02304459492 | U102: 12 | V102: =Table59[[#This Row],[StdBirths]]/SUM(I102:I113) -> 0.1066084517
A103: Albania | B103: 1985 | C103: 6 | D103: Total | E103: June | F103: 7509 | G103: 0.08219178082 | H103: 6372.739726 | I103: 7613.291667 | J103: Consolidated | K103: NA | L103: NA | M103: No | N103: NA | O103: 1985-06-01 | P103: 30 | Q103: 30.41666667 | R103: 0.09822868883 | S103: 0.01489568883 | U103: 12 | V103: =Table59[[#This Row],[StdBirths]]/SUM(I103:I114) -> 0.09918682113
A104: Albania | B104: 1985 | C104: 7 | D104: Total | E104: July | F104: 7398 | G104: 0.08493150685 | H104: 6585.164384 | I104: 7258.790323 | J104: Consolidated | K104: NA | L104: NA | M104: No | N104: NA | O104: 1985-07-01 | P104: 31 | Q104: 30.41666667 | R104: 0.09365481937 | S104: 0.01032181937 | U104: 12 | V104: =Table59[[#This Row],[StdBirths]]/SUM(I104:I115) -> 0.0949609476
A105: Albania | B105: 1985 | C105: 8 | D105: Total | E105: August | F105: 6839 | G105: 0.08493150685 | H105: 6585.164384 | I105: 6710.30914 | J105: Consolidated | K105: NA | L105: NA | M105: No | N105: NA | O105: 1985-08-01 | P105: 31 | Q105: 30.41666667 | R105: 0.08657817109 | S105: 0.003245171087 | U105: 12 | V105: =Table59[[#This Row],[StdBirths]]/SUM(I105:I116) -> 0.08804214233
A106: Albania | B106: 1985 | C106: 9 | D106: Total | E106: September | F106: 6204 | G106: 0.08219178082 | H106: 6372.739726 | I106: 6290.166667 | J106: Consolidated | K106: NA | L106: NA | M106: No | N106: NA | O106: 1985-09-01 | P106: 30 | Q106: 30.41666667 | R106: 0.08115738254 | T106: 0.002175617458 | U106: 12 | V106: =Table59[[#This Row],[StdBirths]]/SUM(I106:I117) -> 0.08282290396
A107: Albania | B107: 1985 | C107: 10 | D107: Total | E107: October | F107: 5680 | G107: 0.08493150685 | H107: 6585.164384 | I107: 5573.11828 | J107: Consolidated | K107: NA | L107: NA | M107: No | N107: NA | O107: 1985-10-01 | P107: 31 | Q107: 30.41666667 | R107: 0.07190583591 | T107: 0.01142716409 | U107: 12 | V107: =Table59[[#This Row],[StdBirths]]/SUM(I107:I118) -> 0.07373883594
A108: Albania | B108: 1985 | C108: 11 | D108: Total | E108: November | F108: 4749 | G108: 0.08219178082 | H108: 6372.739726 | I108: 4814.958333 | J108: Consolidated | K108: NA | L108: NA | M108: No | N108: NA | O108: 1985-11-01 | P108: 30 | Q108: 30.41666667 | R108: 0.06212385714 | T108: 0.02120914286 | U108: 12 | V108: =Table59[[#This Row],[StdBirths]]/SUM(I108:I119) -> 0.06339066257
A109: Albania | B109: 1985 | C109: 12 | D109: Total | E109: December | F109: 4830 | G109: 0.08493150685 | H109: 6585.164384 | I109: 4739.112903 | J109: Consolidated | K109: NA | L109: NA | M109: No | N109: NA | O109: 1985-12-01 | P109: 31 | Q109: 30.41666667 | R109: 0.06114527948 | T109: 0.02218772052 | U109: 12 | V109: =Table59[[#This Row],[StdBirths]]/SUM(I109:I120) -> 0.06238380302
A110: Albania | B110: 1986 | C110: 1 | D110: Total | E110: January | F110: 5150 | G110: 0.08493150685 | H110: 6491.739726 | I110: 5053.091398 | J110: Consolidated | K110: NA | L110: NA | M110: No | N110: NA | O110: 1986-01-01 | P110: 31 | Q110: 30.41666667 | R110: 0.06610535488 | T110: 0.01722764512 | U110: 12 | V110: =Table59[[#This Row],[StdBirths]]/SUM(I110:I121) -> 0.06610535488
A111: Albania | B111: 1986 | C111: 2 | D111: Total | E111: February | F111: 5760 | G111: 0.07671232877 | H111: 5863.506849 | I111: 6257.142857 | J111: Consolidated | K111: NA | L111: NA | M111: No | N111: NA | O111: 1986-02-01 | P111: 28 | Q111: 30.41666667 | R111: 0.08185694985 | T111: 0.001476050154 | U111: 12 | V111: =Table59[[#This Row],[StdBirths]]/SUM(I111:I122) -> 0.0809303216
A112: Albania | B112: 1986 | C112: 3 | D112: Total | E112: March | F112: 6988 | G112: 0.08493150685 | H112: 6491.739726 | I112: 6856.505376 | J112: Consolidated | K112: NA | L112: NA | M112: No | N112: NA | O112: 1986-03-01 | P112: 31 | Q112: 30.41666667 | R112: 0.08969790678 | S112: 0.00636490678 | U112: 12 | V112: =Table59[[#This Row],[StdBirths]]/SUM(I112:I123) -> 0.0880761406
A113: Albania | B113: 1986 | C113: 4 | D113: Total | E113: April | F113: 7818 | G113: 0.08219178082 | H113: 6282.328767 | I113: 7926.583333 | J113: Consolidated | K113: NA | L113: NA | M113: No | N113: NA | O113: 1986-04-01 | P113: 30 | Q113: 30.41666667 | R113: 0.1036968388 | S113: 0.02036383883 | U113: 12 | V113: =Table59[[#This Row],[StdBirths]]/SUM(I113:I124) -> 0.101341702
A114: Albania | B114: 1986 | C114: 5 | D114: Total | E114: May | F114: 7811 | G114: 0.08493150685 | H114: 6491.739726 | I114: 7664.018817 | J114: Consolidated | K114: NA | L114: NA | M114: No | N114: NA | O114: 1986-05-01 | P114: 31 | Q114: 30.41666667 | R114: 0.1002619276 | S114: 0.01692892757 | U114: 12 | V114: =Table59[[#This Row],[StdBirths]]/SUM(I114:I125) -> 0.09789724236
A115: Albania | B115: 1986 | C115: 6 | D115: Total | E115: June | F115: 7196 | G115: 0.08219178082 | H115: 6282.328767 | I115: 7295.944444 | J115: Consolidated | K115: NA | L115: NA | M115: No | N115: NA | O115: 1986-06-01 | P115: 30 | Q115: 30.41666667 | R115: 0.09544671939 | S115: 0.01211371939 | U115: 12 | V115: =Table59[[#This Row],[StdBirths]]/SUM(I115:I126) -> 0.09317925149
A116: Albania | B116: 1986 | C116: 7 | D116: Total | E116: July | F116: 7171 | G116: 0.08493150685 | H116: 6491.739726 | I116: 7036.061828 | J116: Consolidated | K116: NA | L116: NA | M116: No | N116: NA | O116: 1986-07-01 | P116: 31 | Q116: 30.41666667 | R116: 0.09204689318 | S116: 0.008713893177 | U116: 12 | V116: =Table59[[#This Row],[StdBirths]]/SUM(I116:I127) -> 0.08921786801
A117: Albania | B117: 1986 | C117: 8 | D117: Total | E117: August | F117: 6564 | G117: 0.08493150685 | H117: 6491.739726 | I117: 6440.483871 | J117: Consolidated | K117: NA | L117: NA | M117: No | N117: NA | O117: 1986-08-01 | P117: 31 | Q117: 30.41666667 | R117: 0.08425544649 | S117: 0.0009224464945 | U117: 12 | V117: =Table59[[#This Row],[StdBirths]]/SUM(I117:I128) -> 0.0813370037
A118: Albania | B118: 1986 | C118: 9 | D118: Total | E118: September | F118: 5841 | G118: 0.08219178082 | H118: 6282.328767 | I118: 5922.125 | J118: Consolidated | K118: NA | L118: NA | M118: No | N118: NA | O118: 1986-09-01 | P118: 30 | Q118: 30.41666667 | R118: 0.07747419232 | T118: 0.005858807677 | U118: 12 | V118: =Table59[[#This Row],[StdBirths]]/SUM(I118:I129) -> 0.07456150671
A119: Albania | B119: 1986 | C119: 10 | D119: Total | E119: October | F119: 6065 | G119: 0.08493150685 | H119: 6491.739726 | I119: 5950.873656 | J119: Consolidated | K119: NA | L119: NA | M119: No | N119: NA | O119: 1986-10-01 | P119: 31 | Q119: 30.41666667 | R119: 0.07785028687 | T119: 0.005482713134 | U119: 12 | V119: =Table59[[#This Row],[StdBirths]]/SUM(I119:I130) -> 0.07448608026
A120: Albania | B120: 1986 | C120: 11 | D120: Total | E120: November | F120: 4759 | G120: 0.08219178082 | H120: 6282.328767 | I120: 4825.097222 | J120: Consolidated | K120: NA | L120: NA | M120: No | N120: NA | O120: 1986-11-01 | P120: 30 | Q120: 30.41666667 | R120: 0.06312269838 | T120: 0.02021030162 | U120: 12 | V120: =Table59[[#This Row],[StdBirths]]/SUM(I120:I131) -> 0.06041199139
A121: Albania | B121: 1986 | C121: 12 | D121: Total | E121: December | F121: 5312 | G121: 0.08493150685 | H121: 6491.739726 | I121: 5212.043011 | J121: Consolidated | K121: NA | L121: NA | M121: No | N121: NA | O121: 1986-12-01 | P121: 31 | Q121: 30.41666667 | R121: 0.06818478546 | T121: 0.01514821454 | U121: 12 | V121: =Table59[[#This Row],[StdBirths]]/SUM(I121:I132) -> 0.06523350838
A122: Albania | B122: 1987 | C122: 1 | D122: Total | E122: January | F122: 6042 | G122: 0.08493150685 | H122: 6768.70137 | I122: 5928.306452 | J122: Consolidated | K122: NA | L122: NA | M122: No | N122: NA | O122: 1987-01-01 | P122: 31 | Q122: 30.41666667 | R122: 0.07435708913 | T122: 0.008975910865 | U122: 12 | V122: =Table59[[#This Row],[StdBirths]]/SUM(I122:I133) -> 0.07435708913
A123: Albania | B123: 1987 | C123: 2 | D123: Total | E123: February | F123: 6250 | G123: 0.07671232877 | H123: 6113.665753 | I123: 6789.434524 | J123: Consolidated | K123: NA | L123: NA | M123: No | N123: NA | O123: 1987-02-01 | P123: 28 | Q123: 30.41666667 | R123: 0.08515797761 | S123: 0.001824977608 | U123: 12 | V123: =Table59[[#This Row],[StdBirths]]/SUM(I123:I134) -> 0.08505353418
A124: Albania | B124: 1987 | C124: 3 | D124: Total | E124: March | F124: 7364 | G124: 0.08493150685 | H124: 6768.70137 | I124: 7225.430108 | J124: Consolidated | K124: NA | L124: NA | M124: No | N124: NA | O124: 1987-03-01 | P124: 31 | Q124: 30.41666667 | R124: 0.09062654823 | S124: 0.007293548227 | U124: 12 | V124: =Table59[[#This Row],[StdBirths]]/SUM(I124:I135) -> 0.09079715511
A125: Albania | B125: 1987 | C125: 4 | D125: Total | E125: April | F125: 7887 | G125: 0.08219178082 | H125: 6550.356164 | I125: 7996.541667 | J125: Consolidated | K125: NA | L125: NA | M125: No | N125: NA | O125: 1987-04-01 | P125: 30 | Q125: 30.41666667 | R125: 0.1002983848 | S125: 0.01696538476 | U125: 12 | V125: =Table59[[#This Row],[StdBirths]]/SUM(I125:I136) -> 0.1007348941
A126: Albania | B126: 1987 | C126: 5 | D126: Total | E126: May | F126: 7825 | G126: 0.08493150685 | H126: 6768.70137 | I126: 7677.755376 | J126: Consolidated | K126: NA | L126: NA | M126: No | N126: NA | O126: 1987-05-01 | P126: 31 | Q126: 30.41666667 | R126: 0.09629993752 | S126: 0.01296693752 | U126: 12 | V126: =Table59[[#This Row],[StdBirths]]/SUM(I126:I137) -> 0.09655760307
A127: Albania | B127: 1987 | C127: 6 | D127: Total | E127: June | F127: 7752 | G127: 0.08219178082 | H127: 6550.356164 | I127: 7859.666667 | J127: Consolidated | K127: NA | L127: NA | M127: No | N127: NA | O127: 1987-06-01 | P127: 30 | Q127: 30.41666667 | R127: 0.09858159993 | S127: 0.01524859993 | U127: 12 | V127: =Table59[[#This Row],[StdBirths]]/SUM(I127:I138) -> 0.0986532601
A128: Albania | B128: 1987 | C128: 7 | D128: Total | E128: July | F128: 7496 | G128: 0.08493150685 | H128: 6768.70137 | I128: 7354.946237 | J128: Consolidated | K128: NA | L128: NA | M128: No | N128: NA | O128: 1987-07-01 | P128: 31 | Q128: 30.41666667 | R128: 0.0922510328 | S128: 0.008918032796 | U128: 12 | V128: =Table59[[#This Row],[StdBirths]]/SUM(I128:I139) -> 0.09220609771
A129: Albania | B129: 1987 | C129: 8 | D129: Total | E129: August | F129: 6812 | G129: 0.08493150685 | H129: 6768.70137 | I129: 6683.817204 | J129: Consolidated | K129: NA | L129: NA | M129: No | N129: NA | O129: 1987-08-01 | P129: 31 | Q129: 30.41666667 | R129: 0.08383324912 | S129: 0.0005002491203 | U129: 12 | V129: =Table59[[#This Row],[StdBirths]]/SUM(I129:I140) -> 0.08380742294
A130: Albania | B130: 1987 | C130: 9 | D130: Total | E130: September | F130: 6301 | G130: 0.08219178082 | H130: 6550.356164 | I130: 6388.513889 | J130: Consolidated | K130: NA | L130: NA | M130: No | N130: NA | O130: 1987-09-01 | P130: 30 | Q130: 30.41666667 | R130: 0.08012934226 | T130: 0.003203657742 | U130: 12 | V130: =Table59[[#This Row],[StdBirths]]/SUM(I130:I141) -> 0.07988526987
A131: Albania | B131: 1987 | C131: 10 | D131: Total | E131: October | F131: 6042 | G131: 0.08493150685 | H131: 6768.70137 | I131: 5928.306452 | J131: Consolidated | K131: NA | L131: NA | M131: No | N131: NA | O131: 1987-10-01 | P131: 31 | Q131: 30.41666667 | R131: 0.07435708913 | T131: 0.008975910865 | U131: 12 | V131: =Table59[[#This Row],[StdBirths]]/SUM(I131:I142) -> 0.07400620559
A132: Albania | B132: 1987 | C132: 11 | D132: Total | E132: November | F132: 4787 | G132: 0.08219178082 | H132: 6550.356164 | I132: 4853.486111 | J132: Consolidated | K132: NA | L132: NA | M132: No | N132: NA | O132: 1987-11-01 | P132: 30 | Q132: 30.41666667 | R132: 0.06087591833 | T132: 0.02245708167 | U132: 12 | V132: =Table59[[#This Row],[StdBirths]]/SUM(I132:I143) -> 0.06053251286
A133: Albania | B133: 1987 | C133: 12 | D133: Total | E133: December | F133: 5138 | G133: 0.08493150685 | H133: 6768.70137 | I133: 5041.317204 | J133: Consolidated | K133: NA | L133: NA | M133: No | N133: NA | O133: 1987-12-01 | P133: 31 | Q133: 30.41666667 | R133: 0.06323183118 | T133: 0.02010116882 | U133: 12 | V133: =Table59[[#This Row],[StdBirths]]/SUM(I133:I144) -> 0.06299888892
A134: Albania | B134: 1988 | C134: 1 | D134: Total | E134: January | F134: 6125 | G134: 0.08469945355 | H134: 6796.368852 | I134: 6026.209677 | J134: Consolidated | K134: NA | L134: NA | M134: No | N134: NA | O134: 1988-01-01 | P134: 31 | Q134: 30.5 | R134: 0.07509330065 | T134: 0.008239699348 | U134: 12 | V134: =Table59[[#This Row],[StdBirths]]/SUM(I134:I145) -> 0.07509330065
A135: Albania | B135: 1988 | C135: 2 | D135: Total | E135: February | F135: 6220 | G135: 0.07923497268 | H135: 6357.893443 | I135: 6541.724138 | J135: Consolidated | K135: NA | L135: NA | M135: No | N135: NA | O135: 1988-02-01 | P135: 29 | Q135: 30.5 | R135: 0.08151718639 | T135: 0.001815813615 | U135: 12 | V135: =Table59[[#This Row],[StdBirths]]/SUM(I135:I146) -> 0.0819246435
A136: Albania | B136: 1988 | C136: 3 | D136: Total | E136: March | F136: 7145 | G136: 0.08469945355 | H136: 6796.368852 | I136: 7029.758065 | J136: Consolidated | K136: NA | L136: NA | M136: No | N136: NA | O136: 1988-03-01 | P136: 31 | Q136: 30.5 | R136: 0.08759863398 | S136: 0.004265633985 | U136: 12 | V136: =Table59[[#This Row],[StdBirths]]/SUM(I136:I147) -> 0.08819963912
A137: Albania | B137: 1988 | C137: 4 | D137: Total | E137: April | F137: 7996 | G137: 0.08196721311 | H137: 6577.131148 | I137: 8129.266667 | J137: Consolidated | K137: NA | L137: NA | M137: No | N137: NA | O137: 1988-04-01 | P137: 30 | Q137: 30.5 | R137: 0.1012997387 | S137: 0.01796673873 | U137: 12 | V137: =Table59[[#This Row],[StdBirths]]/SUM(I137:I148) -> 0.1019929569
A138: Albania | B138: 1988 | C138: 5 | D138: Total | E138: May | F138: 7961 | G138: 0.08469945355 | H138: 6796.368852 | I138: 7832.596774 | J138: Consolidated | K138: NA | L138: NA | M138: No | N138: NA | O138: 1988-05-01 | P138: 31 | Q138: 30.5 | R138: 0.09760290065 | S138: 0.01426990065 | U138: 12 | V138: =Table59[[#This Row],[StdBirths]]/SUM(I138:I149) -> 0.09940751323
A139: Albania | B139: 1988 | C139: 6 | D139: Total | E139: June | F139: 7826 | G139: 0.08196721311 | H139: 6577.131148 | I139: 7956.433333 | J139: Consolidated | K139: NA | L139: NA | M139: No | N139: NA | O139: 1988-06-01 | P139: 30 | Q139: 30.5 | R139: 0.09914604244 | S139: 0.01581304244 | U139: 12 | V139: =Table59[[#This Row],[StdBirths]]/SUM(I139:I150) -> 0.1012437073
A140: Albania | B140: 1988 | C140: 7 | D140: Total | E140: July | F140: 7461 | G140: 0.08469945355 | H140: 6796.368852 | I140: 7340.66129 | J140: Consolidated | K140: NA | L140: NA | M140: No | N140: NA | O140: 1988-07-01 | P140: 31 | Q140: 30.5 | R140: 0.09147283529 | S140: 0.008139835292 | U140: 12 | V140: =Table59[[#This Row],[StdBirths]]/SUM(I140:I151) -> 0.09394806156
A141: Albania | B141: 1988 | C141: 8 | D141: Total | E141: August | F141: 7016 | G141: 0.08469945355 | H141: 6796.368852 | I141: 6902.83871 | J141: Consolidated | K141: NA | L141: NA | M141: No | N141: NA | O141: 1988-08-01 | P141: 31 | Q141: 30.5 | R141: 0.08601707712 | S141: 0.002684077122 | U141: 12 | V141: =Table59[[#This Row],[StdBirths]]/SUM(I141:I152) -> 0.08838289731
A142: Albania | B142: 1988 | C142: 9 | D142: Total | E142: September | F142: 6416 | G142: 0.08196721311 | H142: 6577.131148 | I142: 6522.933333 | J142: Consolidated | K142: NA | L142: NA | M142: No | N142: NA | O142: 1988-09-01 | P142: 30 | Q142: 30.5 | R142: 0.08128303198 | T142: 0.00204996802 | U142: 12 | V142: =Table59[[#This Row],[StdBirths]]/SUM(I142:I153) -> 0.08327199
A143: Albania | B143: 1988 | C143: 10 | D143: Total | E143: October | F143: 6101 | G143: 0.08469945355 | H143: 6796.368852 | I143: 6002.596774 | J143: Consolidated | K143: NA | L143: NA | M143: No | N143: NA | O143: 1988-10-01 | P143: 31 | Q143: 30.5 | R143: 0.07479905751 | T143: 0.008533942486 | U143: 12 | V143: =Table59[[#This Row],[StdBirths]]/SUM(I143:I154) -> 0.07664183316
A144: Albania | B144: 1988 | C144: 11 | D144: Total | E144: November | F144: 4619 | G144: 0.08196721311 | H144: 6577.131148 | I144: 4695.983333 | J144: Consolidated | K144: NA | L144: NA | M144: No | N144: NA | O144: 1988-11-01 | P144: 30 | Q144: 30.5 | R144: 0.05851719525 | T144: 0.02481580475 | U144: 12 | V144: =Table59[[#This Row],[StdBirths]]/SUM(I144:I155) -> 0.06025756976
A145: Albania | B145: 1988 | C145: 12 | D145: Total | E145: December | F145: 5355 | G145: 0.08469945355 | H145: 6796.368852 | I145: 5268.629032 | J145: Consolidated | K145: NA | L145: NA | M145: No | N145: NA | O145: 1988-12-01 | P145: 31 | Q145: 30.5 | R145: 0.065653 | T145: 0.01768 | U145: 12 | V145: =Table59[[#This Row],[StdBirths]]/SUM(I145:I156) -> 0.06714580647
A146: Albania | B146: 1989 | C146: 1 | D146: Total | E146: January | F146: 5735 | G146: 0.08493150685 | H146: 6697.868493 | I146: 5627.083333 | J146: Consolidated | K146: NA | L146: NA | M146: No | N146: NA | O146: 1989-01-01 | P146: 31 | Q146: 30.41666667 | R146: 0.07136400442 | T146: 0.01196899558 | U146: 12 | V146: =Table59[[#This Row],[StdBirths]]/SUM(I146:I157) -> 0.07136400442
A147: Albania | B147: 1989 | C147: 2 | D147: Total | E147: February | F147: 5886 | G147: 0.07671232877 | H147: 6049.687671 | I147: 6394.017857 | J147: Consolidated | K147: NA | L147: NA | M147: No | N147: NA | O147: 1989-02-01 | P147: 28 | Q147: 30.41666667 | R147: 0.08109044981 | T147: 0.002242550191 | U147: 12 | V147: =Table59[[#This Row],[StdBirths]]/SUM(I147:I158) -> 0.08074681488
A148: Albania | B148: 1989 | C148: 3 | D148: Total | E148: March | F148: 7166 | G148: 0.08493150685 | H148: 6697.868493 | I148: 7031.155914 | J148: Consolidated | K148: NA | L148: NA | M148: No | N148: NA | O148: 1989-03-01 | P148: 31 | Q148: 30.41666667 | R148: 0.08917078564 | S148: 0.005837785644 | U148: 12 | V148: =Table59[[#This Row],[StdBirths]]/SUM(I148:I159) -> 0.08806561821
A149: Albania | B149: 1989 | C149: 4 | D149: Total | E149: April | F149: 7119 | G149: 0.08219178082 | H149: 6481.808219 | I149: 7217.875 | J149: Consolidated | K149: NA | L149: NA | M149: No | N149: NA | O149: 1989-04-01 | P149: 30 | Q149: 30.41666667 | R149: 0.09153880134 | S149: 0.008205801344 | U149: 12 | V149: =Table59[[#This Row],[StdBirths]]/SUM(I149:I160) -> 0.08979294687
